Workbook

Sheet Caratula
B7: GERENCIA DE REGULACIÓN Y ESTUDIOS ECONÓMICOS
B9: MODELO DE LAS TARIFAS DE LOS SERVICIOS AEROPORTUARIOS BRINDADOS POR CORPAC S.A.
B13: 2025

Sheet Indice
B2: Contenido
B4: Propuesta Tarifaria de Ositrán
B6: A. Flujos de Caja Servicios Aeroportuarios
B8: B. Ingresos
B9: 1.Demanda
B10: 2.Ingresos
B11: Ingresos por servicios Regulados
B12: Ingresos por usuarios no atribuibles
B13: Ingresos por Transferencias del AIJCh
B15: C. Egresos
B16: Costos operativos - OPEX
B17: Gastos de Capital - CAPEX
B18: Activos existentes
B19: Inversiones programadas
B20: inversiones ejecutadas
B21: Consumo de capital fijo no ejecutado
B23: D. Tasa de descuento
B24: Costo Promedio Ponderado del Capital (WACC)
B26: E. Tarifas

Sheet Propuesta_tarifaria
A1: Servicios Aeroportuarios Regulados de CORPAC
O2: Índice
A3: Revisión tarifaria 2025
B4: Servicio | C4: Moneda / Unidad | E4: Cusco | I4: Nazca | M4: Grupo V
E5: Tarifa Vigente | F5: Tarifa aprobada | G5: Variación | I5: Tarifa Vigente | J5: Tarifa aprobada | K5: Variación | M5: Tarifa Vigente | N5: Tarifa aprobada | O5: Variación
B8: TUUA Nacional | C8: USD/Pasajero | E8: =+'8.TARIFAS'!I9 -> 5.17 | F8: =+'8.TARIFAS'!J9 -> 4.918002058 | G8: =IF(E8>0,F8/E8-1,"") -> -0.04874234849 | I8: =+'8.TARIFAS'!I45 -> 0 | J8: =+'8.TARIFAS'!J45 -> 0 | K8: =IF(I8>0,J8/I8-1,"") ->  | M8: =+'8.TARIFAS'!I81 -> 4.19 | N8: =+'8.TARIFAS'!J81 -> 3.98576956 | O8: =IF(M8>0,N8/M8-1,"") -> -0.04874234849
B9: TUUA Internacional | C9: USD/Pasajero | E9: =+'8.TARIFAS'!I10 -> 14.37 | F9: =+'8.TARIFAS'!J10 -> 13.66957245 | G9: =IF(E9>0,F9/E9-1,"") -> -0.04874234849 | I9: =+'8.TARIFAS'!I46 -> 0 | J9: =+'8.TARIFAS'!J46 -> 0 | K9: =IF(I9>0,J9/I9-1,"") ->  | M9: =+'8.TARIFAS'!I82 -> 0 | N9: =+'8.TARIFAS'!J82 -> 0
E10: =+'8.TARIFAS'!I11 -> 0
B11: Aterrizaje y despegue nacional
B12: Hasta 10 t | C12: USD/Operación | E12: =+'8.TARIFAS'!I13 -> 11.51 | F12: =+'8.TARIFAS'!J13 -> 10.94897557 | G12: -0.04874234849 | I12: =+'8.TARIFAS'!I49 -> 5.74 | J12: =+'8.TARIFAS'!J49 -> 5.46021892 | K12: -0.04874234849 | M12: =+'8.TARIFAS'!I85 -> 2.88 | N12: =+'8.TARIFAS'!J85 -> 2.739622036 | O12: -0.04874234849
B13: Más de 10 t hasta 35 t | C13: USD/t | E13: =+'8.TARIFAS'!I14 -> 2.48 | F13: =+'8.TARIFAS'!J14 -> 2.359118976 | G13: -0.04874234849 | I13: =+'8.TARIFAS'!I50 -> 1.24 | J13: =+'8.TARIFAS'!J50 -> 1.179559488 | K13: -0.04874234849 | M13: =+'8.TARIFAS'!I86 -> 0.96 | N13: =+'8.TARIFAS'!J86 -> 0.9132073455 | O13: -0.04874234849
B14: Más de 35 t hasta 70 t | C14: USD/t | E14: =+'8.TARIFAS'!I15 -> 3.1 | F14: =+'8.TARIFAS'!J15 -> 2.94889872 | G14: -0.04874234849 | I14: =+'8.TARIFAS'!I51 -> 1.29 | J14: =+'8.TARIFAS'!J51 -> 1.22712237 | K14: -0.04874234849 | M14: =+'8.TARIFAS'!I87 -> 1.01 | N14: =+'8.TARIFAS'!J87 -> 0.960770228 | O14: -0.04874234849
B15: Más de 70 t hasta 105 t | C15: USD/t | E15: =+'8.TARIFAS'!I16 -> 3.24 | F15: =+'8.TARIFAS'!J16 -> 3.082074791 | G15: -0.04874234849 | I15: =+'8.TARIFAS'!I52 -> 1.35 | J15: =+'8.TARIFAS'!J52 -> 1.28419783 | K15: -0.04874234849 | M15: =+'8.TARIFAS'!I88 -> 1.06 | N15: =+'8.TARIFAS'!J88 -> 1.008333111 | O15: -0.04874234849
B16: Más de 105 t | C16: USD/t | E16: =+'8.TARIFAS'!I17 -> 3.32 | F16: =+'8.TARIFAS'!J17 -> 3.158175403 | G16: -0.04874234849 | I16: =+'8.TARIFAS'!I53 -> 1.38 | J16: =+'8.TARIFAS'!J53 -> 1.312735559 | K16: -0.04874234849 | M16: =+'8.TARIFAS'!I89 -> 1.08 | N16: =+'8.TARIFAS'!J89 -> 1.027358264 | O16: -0.04874234849
B17: Aterrizaje y despegue Internacional
B18: Hasta 10 t | C18: USD/Operación | E18: =+'8.TARIFAS'!I19 -> 23 | F18: =+'8.TARIFAS'!J19 -> 21.87892598 | G18: -0.04874234849 | I18: =+'8.TARIFAS'!I55 -> 0 | J18: =+'8.TARIFAS'!J55 -> 0 | M18: =+'8.TARIFAS'!I91 -> 0 | N18: =+'8.TARIFAS'!J91 -> 0
B19: Más de 10 t hasta 35 t | C19: USD/t | E19: =+'8.TARIFAS'!I20 -> 4.27 | F19: =+'8.TARIFAS'!J20 -> 4.061870172 | G19: -0.04874234849 | I19: =+'8.TARIFAS'!I56 -> 0 | J19: =+'8.TARIFAS'!J56 -> 0 | M19: =+'8.TARIFAS'!I92 -> 0 | N19: =+'8.TARIFAS'!J92 -> 0
B20: Más de 35 t hasta 70 t | C20: USD/t | E20: =+'8.TARIFAS'!I21 -> 5.17 | F20: =+'8.TARIFAS'!J21 -> 4.918002058 | G20: -0.04874234849 | I20: =+'8.TARIFAS'!I57 -> 0 | J20: =+'8.TARIFAS'!J57 -> 0 | M20: =+'8.TARIFAS'!I93 -> 0 | N20: =+'8.TARIFAS'!J93 -> 0
B21: Más de 70 t hasta 105 t | C21: USD/t | E21: =+'8.TARIFAS'!I22 -> 5.45 | F21: =+'8.TARIFAS'!J22 -> 5.184354201 | G21: -0.04874234849 | I21: =+'8.TARIFAS'!I58 -> 0 | J21: =+'8.TARIFAS'!J58 -> 0 | M21: =+'8.TARIFAS'!I94 -> 0 | N21: =+'8.TARIFAS'!J94 -> 0
B22: Más de 105 t | C22: USD/t | E22: =+'8.TARIFAS'!I23 -> 5.58 | F22: =+'8.TARIFAS'!J23 -> 5.308017695 | G22: -0.04874234849 | I22: =+'8.TARIFAS'!I59 -> 0 | J22: =+'8.TARIFAS'!J59 -> 0 | M22: =+'8.TARIFAS'!I95 -> 0 | N22: =+'8.TARIFAS'!J95 -> 0
E23: =+'8.TARIFAS'!I24 -> 0
B24: Estacionamiento nacional
B25: Hasta 10 t | C25: USD/h | E25: =+'8.TARIFAS'!I26 -> 0.28 | F25: =+'8.TARIFAS'!J26 -> 0.2663521424 | G25: -0.04874234849 | I25: =+'8.TARIFAS'!I62 -> 0.14 | J25: =+'8.TARIFAS'!J62 -> 0.1331760712 | K25: -0.04874234849 | M25: =+'8.TARIFAS'!I98 -> 0.07 | N25: =+'8.TARIFAS'!J98 -> 0.06658803561 | O25: -0.04874234849
B26: Más de 10 t hasta 35 t | C26: USD/h | E26: =+'8.TARIFAS'!I27 -> 0.06 | F26: =+'8.TARIFAS'!J27 -> 0.05707545909 | G26: -0.04874234849 | I26: =+'8.TARIFAS'!I63 -> 0.03 | J26: =+'8.TARIFAS'!J63 -> 0.02853772955 | K26: -0.04874234849 | M26: =+'8.TARIFAS'!I99 -> 0.02 | N26: =+'8.TARIFAS'!J99 -> 0.01902515303 | O26: -0.04874234849
B27: Más de 35 t hasta 70 t | C27: USD/h | E27: =+'8.TARIFAS'!I28 -> 0.07 | F27: =+'8.TARIFAS'!J28 -> 0.06658803561 | G27: -0.04874234849 | I27: =+'8.TARIFAS'!I64 -> 0.03 | J27: =+'8.TARIFAS'!J64 -> 0.02853772955 | K27: -0.04874234849 | M27: =+'8.TARIFAS'!I100 -> 0.02 | N27: =+'8.TARIFAS'!J100 -> 0.01902515303 | O27: -0.04874234849
B28: Más de 70 t hasta 105 t | C28: USD/h | E28: =+'8.TARIFAS'!I29 -> 0.07 | F28: =+'8.TARIFAS'!J29 -> 0.06658803561 | G28: -0.04874234849 | I28: =+'8.TARIFAS'!I65 -> 0.03 | J28: =+'8.TARIFAS'!J65 -> 0.02853772955 | K28: -0.04874234849 | M28: =+'8.TARIFAS'!I101 -> 0.02 | N28: =+'8.TARIFAS'!J101 -> 0.01902515303 | O28: -0.04874234849
B29: Más de 105 t | C29: USD/h | E29: =+'8.TARIFAS'!I30 -> 0.08 | F29: =+'8.TARIFAS'!J30 -> 0.07610061212 | G29: -0.04874234849 | I29: =+'8.TARIFAS'!I66 -> 0.03 | J29: =+'8.TARIFAS'!J66 -> 0.02853772955 | K29: -0.04874234849 | M29: =+'8.TARIFAS'!I102 -> 0.02 | N29: =+'8.TARIFAS'!J102 -> 0.01902515303 | O29: -0.04874234849
B30: Estacionamiento internacional
B31: Hasta 10 t | C31: USD/h | E31: =+'8.TARIFAS'!I32 -> 0.58 | F31: =+'8.TARIFAS'!J32 -> 0.5517294379 | G31: -0.04874234849 | I31: =+'8.TARIFAS'!I68 -> 0 | J31: =+'8.TARIFAS'!J68 -> 0 | M31: =+'8.TARIFAS'!I104 -> 0 | N31: =+'8.TARIFAS'!J104 -> 0
B32: Más de 10 t hasta 35 t | C32: USD/h | E32: =+'8.TARIFAS'!I33 -> 0.1 | F32: =+'8.TARIFAS'!J33 -> 0.09512576515 | G32: -0.04874234849 | I32: =+'8.TARIFAS'!I69 -> 0 | J32: =+'8.TARIFAS'!J69 -> 0 | M32: =+'8.TARIFAS'!I105 -> 0 | N32: =+'8.TARIFAS'!J105 -> 0
B33: Más de 35 t hasta 70 t | C33: USD/h | E33: =+'8.TARIFAS'!I34 -> 0.13 | F33: =+'8.TARIFAS'!J34 -> 0.1236634947 | G33: -0.04874234849 | I33: =+'8.TARIFAS'!I70 -> 0 | J33: =+'8.TARIFAS'!J70 -> 0 | M33: =+'8.TARIFAS'!I106 -> 0 | N33: =+'8.TARIFAS'!J106 -> 0
B34: Más de 70 t hasta 105 t | C34: USD/h | E34: =+'8.TARIFAS'!I35 -> 0.14 | F34: =+'8.TARIFAS'!J35 -> 0.1331760712 | G34: -0.04874234849 | I34: =+'8.TARIFAS'!I71 -> 0 | J34: =+'8.TARIFAS'!J71 -> 0 | M34: =+'8.TARIFAS'!I107 -> 0 | N34: =+'8.TARIFAS'!J107 -> 0
B35: Más de 105 t | C35: USD/h | E35: =+'8.TARIFAS'!I36 -> 0.14 | F35: =+'8.TARIFAS'!J36 -> 0.1331760712 | G35: -0.04874234849 | I35: =+'8.TARIFAS'!I72 -> 0 | J35: =+'8.TARIFAS'!J72 -> 0 | M35: =+'8.TARIFAS'!I108 -> 0 | N35: =+'8.TARIFAS'!J108 -> 0
B37: Uso de Mangas | C37: USD/h | E37: =+'8.TARIFAS'!I38 -> 43.13 | F37: =+'8.TARIFAS'!J38 -> 41.02774251 | G37: -0.04874234849 | I37: =+'8.TARIFAS'!I74 -> 0 | J37: =+'8.TARIFAS'!J74 -> 0 | M37: =+'8.TARIFAS'!I110 -> 0 | N37: =+'8.TARIFAS'!J110 -> 0

Sheet 0_FC_Aeroportuario
A2: 0. Flujo de Caja Servicios Aeroportuarios | G2: Índice
B5: Montos expresados en miles de Dolares
B6: Año | D6: 2024 | E6: =+D6+1 -> 2025 | F6: =+E6+1 -> 2026 | G6: 2027
B8: Total ingresos | E8: =+E10+E21+E22 -> 32525.92094 | F8: =+F10+F21+F22 -> 35009.55114 | G8: =+G10+G21+G22 -> 37664.70831
B10: Ingresos regulados | E10: =+E11+E14+E17+E20 -> 21231.08817 | F10: =+F11+F14+F17+F20 -> 22666.29116 | G10: 24199.63122
B11: TUUA | E11: =+E12+E13 -> 12657.88316 | F11: =+F12+F13 -> 13505.61314 | G11: 14410.95787
B12: Nacional | E12: =+'2.1_Ingresos Regulados'!I9/1000 -> 11682.81054 | F12: =+'2.1_Ingresos Regulados'!J9/1000 -> 12472.04307 | G12: =+'2.1_Ingresos Regulados'!K9/1000 -> 13315.37906
B13: Internacional | E13: =+'2.1_Ingresos Regulados'!I10/1000 -> 975.0726241 | F13: =+'2.1_Ingresos Regulados'!J10/1000 -> 1033.570074 | G13: =+'2.1_Ingresos Regulados'!K10/1000 -> 1095.57881
B14: Aterrizaje y despegue | E14: =+E15+E16 -> 7986.014941 | F14: =+F15+F16 -> 8532.395142 | G14: =+G15+G16 -> 9116.421408
B15: Nacional | E15: =+'2.1_Ingresos Regulados'!I12/1000 -> 7451.204593 | F15: =+'2.1_Ingresos Regulados'!J12/1000 -> 7965.499961 | G15: =+'2.1_Ingresos Regulados'!K12/1000 -> 8515.515516
B16: Internacional | E16: =+'2.1_Ingresos Regulados'!I18/1000 -> 534.8103485 | F16: =+'2.1_Ingresos Regulados'!J18/1000 -> 566.8951808 | G16: =+'2.1_Ingresos Regulados'!K18/1000 -> 600.9058924
B17: Estacionamiento | E17: =+E18+E19 -> 4.647897361 | F17: =+F18+F19 -> 4.963023119 | G17: 5.299892948
B18: Nacional | E18: =+'2.1_Ingresos Regulados'!I25/1000 -> 4.572069777 | F18: =+'2.1_Ingresos Regulados'!J25/1000 -> 4.882879205 | G18: =+'2.1_Ingresos Regulados'!K25/1000 -> 5.215198233
B19: Internacional | E19: =+'2.1_Ingresos Regulados'!I31/1000 -> 0.07582758389 | F19: =+'2.1_Ingresos Regulados'!J31/1000 -> 0.08014391405 | G19: =+'2.1_Ingresos Regulados'!K31/1000 -> 0.08469471549
B20: Mangas | E20: =+'2.1_Ingresos Regulados'!I38/1000 -> 582.5421749 | F20: =+'2.1_Ingresos Regulados'!J38/1000 -> 623.3198562 | G20: =+'2.1_Ingresos Regulados'!K38/1000 -> 666.9520475
B21: Transferencias AIJCh | E21: ='2.3_Ingresos_transferencias'!F122/1000 -> 11293.07695 | F21: ='2.3_Ingresos_transferencias'!G122/1000 -> 12341.38125 | G21: ='2.3_Ingresos_transferencias'!H122/1000 -> 13463.06686
B22: Usuarios no atribuibles | E22: =+'2.2_Ingresos no atribuibles'!P75/1000 -> 1.755814902 | F22: =+'2.2_Ingresos no atribuibles'!Q75/1000 -> 1.878721946 | G22: =+'2.2_Ingresos no atribuibles'!R75/1000 -> 2.010232482
B24: Contribuciones | E24: =SUM(E25:E25) -> -325.2592094 | F24: =SUM(F25:F25) -> -350.0955114 | G24: =SUM(G25:G25) -> -376.6470831
B25: Aporte por Regulación | C25: 0.01 | E25: =-$C$25*E8 -> -325.2592094 | F25: =-$C$25*F8 -> -350.0955114 | G25: -376.6470831
B27: Ingresos Netos | E27: =+E8+E24 -> 32200.66173 | F27: =+F8+F24 -> 34659.45563 | G27: 37288.06123
B29: Total Costos de Operación | E29: =+E30+E40 -> -24813.8852 | F29: =+F30+F40 -> -25419.48 | G29: =+G30+G40 -> -26029.41828
B30: Costos de operación base | E30: =+SUM(E31:E39) -> -24799.5675 | F30: =+SUM(F31:F39) -> -25377.82022 | G30: -25987.72641
B31: Suministros y Materiales | E31: =-'4.Opex'!F12/1000 -> -263.1813397 | F31: =-'4.Opex'!G12/1000 -> -268.4983677 | G31: =-'4.Opex'!H12/1000 -> -274.0793041
B32: Gastos de Personal | E32: =-'4.Opex'!F13/1000 -> -17411.45585 | F32: =-'4.Opex'!G13/1000 -> -17743.50983 | G32: =-'4.Opex'!H13/1000 -> -18092.59854
B33: Servicios de terceros excepto mantenimiento | E33: =-'4.Opex'!F14/1000 -> -4274.3462 | F33: =-'4.Opex'!G14/1000 -> -4360.700417 | G33: =-'4.Opex'!H14/1000 -> -4451.340789
B34: Mantenimiento | E34: =-'4.Opex'!F15/1000 -> -952.6727261 | F34: =-'4.Opex'!G15/1000 -> -971.9194844 | G34: =-'4.Opex'!H15/1000 -> -992.121547
B35: Depreciación de activos | E35: =-'4.Opex'!F16/1000 -> 0 | F35: =-'4.Opex'!G16/1000 -> 0 | G35: =-'4.Opex'!H16/1000 -> 0
B36: Amortización de Intangibles | E36: =-'4.Opex'!F17/1000 -> 0 | F36: =-'4.Opex'!G17/1000 -> 0 | G36: =-'4.Opex'!H17/1000 -> 0
B37: Seguros y tributos | E37: =-'4.Opex'!F18/1000 -> -1283.529177 | F37: =-'4.Opex'!G18/1000 -> -1309.460197 | G37: =-'4.Opex'!H18/1000 -> -1336.678292
B38: Otros Costos | E38: =-'4.Opex'!F19/1000 -> -386.9314076 | F38: =-'4.Opex'!G19/1000 -> -394.7485468 | G38: =-'4.Opex'!H19/1000 -> -402.9536862
B39: Participación de los trabajadores | E39: =-E73 -> -227.4507925 | F39: =-F73 -> -328.983374 | G39: -437.9542549
B40: Costos de operación incrementales | E40: =+SUM(E41:E48) -> -14.31770064 | F40: =+SUM(F41:F48) -> -41.65977841 | G40: =+SUM(G41:G48) -> -41.6918702
B41: Suministros y Materiales
B42: Gastos de Personal
B43: Servicios de terceros excepto mantenimiento
B44: Mantenimiento | E44: =-'4.Opex'!F39/1000 -> -14.31770064 | F44: =-'4.Opex'!G39/1000 -> -41.65977841 | G44: =-'4.Opex'!H39/1000 -> -41.6918702
B45: Depreciación de activos
B46: Amortización de Intangibles
B47: Seguros y tributos
B48: Otros Costos
B50: Impuesto | E50: =+E51 -> -1274.861692 | F50: =+F51 -> -1843.951811 | G50: -2454.733599
B51: Pago de IR | E51: =-E74 -> -1274.861692 | F51: =-F74 -> -1843.951811 | G51: -2454.733599
B53: Flujo de Caja Operativo | E53: =+E8+E24+E29 -> 7386.776536 | F53: =+F8+F24+F29 -> 9239.97563 | G53: =+G8+G24+G29 -> 11258.64294
B55: Valor inicial de los activos | D55: =-('5.CAPEX'!C37-'6.CKF_AEROPORTUARIO'!H280)/1000 -> -58423.96641
B56: Inversiones | D56: =-'5.CAPEX'!C52/1000 -> -1369.430504 | E56: =-'5.CAPEX'!D52/1000 -> -1085.16977 | F56: =-'5.CAPEX'!E52/1000 -> -1120.433019 | G56: =-'5.CAPEX'!F52/1000 -> -1788.302196
B57: Recuperación de la inversión | G57: =-(D55+SUM(D56:G56)-SUM(D69:G69)) -> 54697.61744
B59: Flujo de Caja Económico | D59: =+SUM(D55:D57)+D53+D50 -> -59793.39691 | E59: =+SUM(E55:E57)+E53+E50 -> 5026.745074 | F59: =+SUM(F55:F57)+F53+F50 -> 6275.5908 | G59: =+SUM(G55:G57)+G53+G50 -> 61713.22459
B61: WACC | C61: =+'7.WACC'!C30 -> 0.07493357989
B62: VAN | C62: =NPV(C61,E59:G59)+D59 -> 0
B63: Variación Tarifaria | C63: -0.04874234849
B65: EGyP | D65: 2024 | E65: =+D65+1 -> 2025 | F65: =+E65+1 -> 2026 | G65: =+F65+1 -> 2027
B66: Ingresos Brutos | E66: =+E8 -> 32525.92094 | F66: =+F8 -> 35009.55114 | G66: 37664.70831
B67: Contribuciones | E67: =E25 -> -325.2592094 | F67: =F25 -> -350.0955114 | G67: -376.6470831
B68: Costos de operación, neto de participaciones | E68: =SUM(E31:E38) -> -24572.1167 | F68: =SUM(F31:F38) -> -25048.83685 | G68: -25549.77216
B69: Depreciación y Amortización | E69: =-'5.CAPEX'!D106/1000 -> -3079.52918 | F69: =-'5.CAPEX'!E106/1000 -> -3030.951303 | G69: =-'5.CAPEX'!F106/1000 -> -2979.203969
B70: Utilidad Operativa | E70: =SUM(E66:E69) -> 4549.015849 | F70: =SUM(F66:F69) -> 6579.667479 | G70: 8759.085098
B72: Pago de IR y Participación de los trabajadores
B73: Participación de los trabajadores | E73: =+IF(E70>0,E70*SupuestosGenerales!K19) -> 227.4507925 | F73: =+IF(F70>0,F70*SupuestosGenerales!L19) -> 328.983374 | G73: =+IF(G70>0,G70*SupuestosGenerales!M19) -> 437.9542549
B74: Impuesto a la renta | E74: =+IF((E70-E73)>0,(E70-E73)*SupuestosGenerales!K18,0) -> 1274.861692 | F74: =+IF((F70-F73)>0,(F70-F73)*SupuestosGenerales!L18,0) -> 1843.951811 | G74: =+IF((G70-G73)>0,(G70-G73)*SupuestosGenerales!M18,0) -> 2454.733599

Sheet 1.Demanda
A2: 1. Demanda de Servicios Regualados | L2: Índice
A4: 1.1.CUZCO
B6: Servicio | C6: Unidad de cobro | D6: Historico | J6: Proyecciones
D7: 2019 | E7: 2020 | F7: 2021 | G7: 2022 | H7: 2023 | I7: 2024 | J7: =+I7+1 -> 2025 | K7: 2026 | L7: 2027
B9: TUUA Nacional | C9: Pasajero | D9: =+'1.1_Demanda_G1'!F7 -> 1897955 | E9: =+'1.1_Demanda_G1'!G7 -> 487147 | F9: =+'1.1_Demanda_G1'!H7 -> 780016 | G9: =+'1.1_Demanda_G1'!I7 -> 1464576 | H9: =+'1.1_Demanda_G1'!J7 -> 1507220 | I9: =+'1.1_Demanda_G1'!K7 -> 2039211 | J9: =+'1.1_Demanda_G1'!F53 -> 2181955.77 | K9: =+'1.1_Demanda_G1'!G53 -> 2334691.659 | L9: =+'1.1_Demanda_G1'!H53 -> 2498119.331
B10: TUUA Internacional | C10: Pasajero | D10: =+'1.1_Demanda_G1'!F8 -> 71530 | E10: =+'1.1_Demanda_G1'!G8 -> 22558 | F10: =+'1.1_Demanda_G1'!H8 -> 30 | G10: =+'1.1_Demanda_G1'!I8 -> 8187 | H10: =+'1.1_Demanda_G1'!J8 -> 12061 | I10: =+'1.1_Demanda_G1'!K8 -> 67294.35 | J10: =+'1.1_Demanda_G1'!F54 -> 71331.61096 | K10: =+'1.1_Demanda_G1'!G54 -> 75611.0023 | L10: =+'1.1_Demanda_G1'!H54 -> 80147.2624
B12: Aterrizaje y despegue nacional
B13: Hasta 10 t | C13: Operación | D13: =+'1.1_Demanda_G1'!F14 -> 3115 | E13: =+'1.1_Demanda_G1'!G14 -> 1074 | F13: =+'1.1_Demanda_G1'!H14 -> 2584 | G13: =+'1.1_Demanda_G1'!I14 -> 3181 | H13: =+'1.1_Demanda_G1'!J14 -> 1804 | I13: =+'1.1_Demanda_G1'!K14 -> 2440.283439 | J13: =+'1.1_Demanda_G1'!F60 -> 2611.203822 | K13: =+'1.1_Demanda_G1'!G60 -> 2794.093418 | L13: =+'1.1_Demanda_G1'!H60 -> 2989.909766
B14: Más de 10 t hasta 35 t | C14: t | D14: =+'1.1_Demanda_G1'!F15 -> 3064.09 | E14: =+'1.1_Demanda_G1'!G15 -> 446.37 | F14: =+'1.1_Demanda_G1'!H15 -> 2999.98 | G14: =+'1.1_Demanda_G1'!I15 -> 3311.1 | H14: =+'1.1_Demanda_G1'!J15 -> 1513.78 | I14: =+'1.1_Demanda_G1'!K15 -> 2043.603 | J14: =+'1.1_Demanda_G1'!F61 -> 2190.250438 | K14: =+'1.1_Demanda_G1'!G61 -> 2341.628438 | L14: =+'1.1_Demanda_G1'!H61 -> 2507.198125
B15: Más de 35 t hasta 70 t | C15: t | D15: =+'1.1_Demanda_G1'!F16 -> 500041.77 | E15: =+'1.1_Demanda_G1'!G16 -> 68454.32 | F15: =+'1.1_Demanda_G1'!H16 -> 68180.04 | G15: =+'1.1_Demanda_G1'!I16 -> 110749.41 | H15: =+'1.1_Demanda_G1'!J16 -> 251235.95 | I15: =+'1.1_Demanda_G1'!K16 -> 339912.2602 | J15: =+'1.1_Demanda_G1'!F62 -> 363705.4273 | K15: =+'1.1_Demanda_G1'!G62 -> 389165.1697 | L15: =+'1.1_Demanda_G1'!H62 -> 416407.0488
B16: Más de 70 t hasta 105 t | C16: t | D16: =+'1.1_Demanda_G1'!F17 -> 1694727 | E16: =+'1.1_Demanda_G1'!G17 -> 495130.2 | F16: =+'1.1_Demanda_G1'!H17 -> 785877.3 | G16: =+'1.1_Demanda_G1'!I17 -> 1447977.95 | H16: =+'1.1_Demanda_G1'!J17 -> 1327884.24 | I16: =+'1.1_Demanda_G1'!K17 -> 1796575.822 | J16: =+'1.1_Demanda_G1'!F63 -> 1922335.909 | K16: =+'1.1_Demanda_G1'!G63 -> 2056898.7 | L16: =+'1.1_Demanda_G1'!H63 -> 2200881.138
B17: Más de 105 t | C17: t | D17: =+'1.1_Demanda_G1'!F18 -> 0 | E17: =+'1.1_Demanda_G1'!G18 -> 0 | F17: =+'1.1_Demanda_G1'!H18 -> 364 | G17: =+'1.1_Demanda_G1'!I18 -> 0 | H17: =+'1.1_Demanda_G1'!J18 -> 0 | I17: =+'1.1_Demanda_G1'!K18 -> 0 | J17: =+'1.1_Demanda_G1'!F64 -> 0 | K17: =+'1.1_Demanda_G1'!G64 -> 0 | L17: =+'1.1_Demanda_G1'!H64 -> 0
B18: Aterrizaje y despegue Internacional
B19: Hasta 10 t | C19: Operación | D19: =+'1.1_Demanda_G1'!F20 -> 41 | E19: =+'1.1_Demanda_G1'!G20 -> 8 | F19: =+'1.1_Demanda_G1'!H20 -> 4 | G19: =+'1.1_Demanda_G1'!I20 -> 35 | H19: =+'1.1_Demanda_G1'!J20 -> 20 | I19: =+'1.1_Demanda_G1'!K20 -> 30 | J19: =+'1.1_Demanda_G1'!F66 -> 31.79982166 | K19: =+'1.1_Demanda_G1'!G66 -> 33.70758569 | L19: =+'1.1_Demanda_G1'!H66 -> 35.72986249
B20: Más de 10 t hasta 35 t | C20: t | D20: =+'1.1_Demanda_G1'!F21 -> 18702 | E20: =+'1.1_Demanda_G1'!G21 -> 337 | F20: =+'1.1_Demanda_G1'!H21 -> 62 | G20: =+'1.1_Demanda_G1'!I21 -> 872 | H20: =+'1.1_Demanda_G1'!J21 -> 576 | I20: =+'1.1_Demanda_G1'!K21 -> 741 | J20: =+'1.1_Demanda_G1'!F67 -> 785.455595 | K20: =+'1.1_Demanda_G1'!G67 -> 832.5773665 | L20: =+'1.1_Demanda_G1'!H67 -> 882.5276035
B21: Más de 35 t hasta 70 t | C21: t | D21: =+'1.1_Demanda_G1'!F22 -> 28401 | E21: =+'1.1_Demanda_G1'!G22 -> 10350 | F21: =+'1.1_Demanda_G1'!H22 -> 342 | G21: =+'1.1_Demanda_G1'!I22 -> 8939 | H21: =+'1.1_Demanda_G1'!J22 -> 1845 | I21: =+'1.1_Demanda_G1'!K22 -> 1640 | J21: =+'1.1_Demanda_G1'!F68 -> 1738.390251 | K21: =+'1.1_Demanda_G1'!G68 -> 1842.681351 | L21: =+'1.1_Demanda_G1'!H68 -> 1953.232483
B22: Más de 70 t hasta 105 t | C22: t | D22: =+'1.1_Demanda_G1'!F23 -> 66586 | E22: =+'1.1_Demanda_G1'!G23 -> 23437 | F22: =+'1.1_Demanda_G1'!H23 -> 0 | G22: =+'1.1_Demanda_G1'!I23 -> 2233 | H22: =+'1.1_Demanda_G1'!J23 -> 16388 | I22: =+'1.1_Demanda_G1'!K23 -> 95057 | J22: =+'1.1_Demanda_G1'!F69 -> 100759.8549 | K22: =+'1.1_Demanda_G1'!G69 -> 106804.7324 | L22: =+'1.1_Demanda_G1'!H69 -> 113212.4513
B23: Más de 105 t | C23: t | D23: =+'1.1_Demanda_G1'!F24 -> 0 | E23: =+'1.1_Demanda_G1'!G24 -> 0 | F23: =+'1.1_Demanda_G1'!H24 -> 0 | G23: =+'1.1_Demanda_G1'!I24 -> 0 | H23: =+'1.1_Demanda_G1'!J24 -> 0 | I23: =+'1.1_Demanda_G1'!K24 -> 0 | J23: =+'1.1_Demanda_G1'!F70 -> 0 | K23: =+'1.1_Demanda_G1'!G70 -> 0 | L23: =+'1.1_Demanda_G1'!H70 -> 0
B25: Estacionamiento nacional
B26: Hasta 10 t | C26: Operación | D26: =+'1.1_Demanda_G1'!F30 -> 1962.561028 | E26: =+'1.1_Demanda_G1'!G30 -> 676.6582806 | F26: =+'1.1_Demanda_G1'!H30 -> 1628.012101 | G26: =+'1.1_Demanda_G1'!I30 -> 2004.14338 | H26: =+'1.1_Demanda_G1'!J30 -> 1136.5843 | I26: =+'1.1_Demanda_G1'!K30 -> 1537.465546 | J26: =+'1.1_Demanda_G1'!F76 -> 1459.340457 | K26: =+'1.1_Demanda_G1'!G76 -> 1561.295206 | L26: =+'1.1_Demanda_G1'!H76 -> 1670.790987
B27: Más de 10 t hasta 35 t | C27: t | D27: =+'1.1_Demanda_G1'!F31 -> 126.6371642 | E27: =+'1.1_Demanda_G1'!G31 -> 19.53110493 | F27: =+'1.1_Demanda_G1'!H31 -> 139.8679127 | G27: =+'1.1_Demanda_G1'!I31 -> 149.3184474 | H27: =+'1.1_Demanda_G1'!J31 -> 69.93395637 | I27: =+'1.1_Demanda_G1'!K31 -> 94.4108411 | J27: =+'1.1_Demanda_G1'!F77 -> 89.6028816 | K27: =+'1.1_Demanda_G1'!G77 -> 95.9406464 | L27: =+'1.1_Demanda_G1'!H77 -> 102.7154984
B28: Más de 35 t hasta 70 t | C28: t | D28: =+'1.1_Demanda_G1'!F32 -> 4927.486058 | E28: =+'1.1_Demanda_G1'!G32 -> 625.0241182 | F28: =+'1.1_Demanda_G1'!H32 -> 622.4729994 | G28: =+'1.1_Demanda_G1'!I32 -> 1012.156404 | H28: =+'1.1_Demanda_G1'!J32 -> 2292.818066 | I28: =+'1.1_Demanda_G1'!K32 -> 3064.425444 | J28: =+'1.1_Demanda_G1'!F78 -> 2943.969588 | K28: =+'1.1_Demanda_G1'!G78 -> 3150.046425 | L28: =+'1.1_Demanda_G1'!H78 -> 3370.557223
B29: Más de 70 t hasta 105 t | C29: t | D29: =+'1.1_Demanda_G1'!F33 -> 14231.18372 | E29: =+'1.1_Demanda_G1'!G33 -> 4150.307826 | F29: =+'1.1_Demanda_G1'!H33 -> 6576.128773 | G29: =+'1.1_Demanda_G1'!I33 -> 12122.694 | H29: =+'1.1_Demanda_G1'!J33 -> 11123.90198 | I29: =+'1.1_Demanda_G1'!K33 -> 14791.08363 | J29: =+'1.1_Demanda_G1'!F79 -> 14283.07996 | K29: =+'1.1_Demanda_G1'!G79 -> 15282.89213 | L29: =+'1.1_Demanda_G1'!H79 -> 16352.69046
B30: Más de 105 t | C30: t | D30: =+'1.1_Demanda_G1'!F34 -> 0 | E30: =+'1.1_Demanda_G1'!G34 -> 0 | F30: =+'1.1_Demanda_G1'!H34 -> 0 | G30: =+'1.1_Demanda_G1'!I34 -> 0 | H30: =+'1.1_Demanda_G1'!J34 -> 0 | I30: =+'1.1_Demanda_G1'!K34 -> 0 | J30: =+'1.1_Demanda_G1'!F80 -> 0 | K30: =+'1.1_Demanda_G1'!G80 -> 0 | L30: =+'1.1_Demanda_G1'!H80 -> 0
B31: Estacionamiento internacional | J31: =+'1.1_Demanda_G1'!F81 -> 0 | K31: =+'1.1_Demanda_G1'!G81 -> 0 | L31: =+'1.1_Demanda_G1'!H81 -> 0
B32: Hasta 10 t | C32: Operación | D32: =+'1.1_Demanda_G1'!F36 -> 33.877573 | E32: =+'1.1_Demanda_G1'!G36 -> 6.610258146 | F32: =+'1.1_Demanda_G1'!H36 -> 3.305129073 | G32: =+'1.1_Demanda_G1'!I36 -> 28.91987939 | H32: =+'1.1_Demanda_G1'!J36 -> 16.52564536 | I32: =+'1.1_Demanda_G1'!K37 -> 28.36801111 | J32: =+'1.1_Demanda_G1'!F82 -> 20.65705671 | K32: =+'1.1_Demanda_G1'!G82 -> 21.48333897 | L32: =+'1.1_Demanda_G1'!H82 -> 22.30962124
B33: Más de 10 t hasta 35 t | C33: t | D33: =+'1.1_Demanda_G1'!F37 -> 500.8331765 | E33: =+'1.1_Demanda_G1'!G37 -> 17.22610926 | F33: =+'1.1_Demanda_G1'!H37 -> 1.914012139 | G33: =+'1.1_Demanda_G1'!I37 -> 27.434174 | H33: =+'1.1_Demanda_G1'!J37 -> 22.33014163 | I33: =+'1.1_Demanda_G1'!K38 -> 17.36098216 | J33: =+'1.1_Demanda_G1'!F83 -> 28.37788832 | K33: =+'1.1_Demanda_G1'!G83 -> 30.04489542 | L33: =+'1.1_Demanda_G1'!H83 -> 31.82820534
B34: Más de 35 t hasta 70 t | C34: t | D34: =+'1.1_Demanda_G1'!F38 -> 521.0444486 | E34: =+'1.1_Demanda_G1'!G38 -> 368.2381439 | F34: =+'1.1_Demanda_G1'!H38 -> 10.02008555 | G34: =+'1.1_Demanda_G1'!I38 -> 166.5839223 | H34: =+'1.1_Demanda_G1'!J38 -> 38.8278315 | I34: =+'1.1_Demanda_G1'!K39 -> 778.4000792 | J34: =+'1.1_Demanda_G1'!F84 -> 49.37132396 | K34: =+'1.1_Demanda_G1'!G84 -> 52.31760928 | L34: =+'1.1_Demanda_G1'!H84 -> 55.45329865
B35: Más de 70 t hasta 105 t | C35: t | D35: =+'1.1_Demanda_G1'!F39 -> 305.4209033 | E35: =+'1.1_Demanda_G1'!G39 -> 632.8321116 | F35: =+'1.1_Demanda_G1'!H39 -> 0 | G35: =+'1.1_Demanda_G1'!I39 -> 10.12252137 | H35: =+'1.1_Demanda_G1'!J39 -> 74.34817417 | I35: =+'1.1_Demanda_G1'!K40 -> 0 | J35: =+'1.1_Demanda_G1'!F85 -> 417.6844857 | K35: =+'1.1_Demanda_G1'!G85 -> 442.7454641 | L35: =+'1.1_Demanda_G1'!H85 -> 469.308105
B36: Más de 105 t | C36: t | D36: =+'1.1_Demanda_G1'!F40 -> 0 | E36: =+'1.1_Demanda_G1'!G40 -> 0 | F36: =+'1.1_Demanda_G1'!H40 -> 0 | G36: =+'1.1_Demanda_G1'!I40 -> 0 | H36: =+'1.1_Demanda_G1'!J40 -> 0 | I36: =+'1.1_Demanda_G1'!K41 -> 0 | J36: =+'1.1_Demanda_G1'!F86 -> 0 | K36: =+'1.1_Demanda_G1'!G86 -> 0 | L36: =+'1.1_Demanda_G1'!H86 -> 0
B38: Uso de Mangas | C38: h | D38: =+'1.1_Demanda_G1'!F45 -> 13004 | E38: =+'1.1_Demanda_G1'!G45 -> 2431 | F38: =+'1.1_Demanda_G1'!H45 -> 4677 | G38: =+'1.1_Demanda_G1'!I45 -> 9220 | H38: =+'1.1_Demanda_G1'!J45 -> 9808 | I38: =+'1.1_Demanda_G1'!K45 -> 13269.84879 | J38: =+'1.1_Demanda_G1'!F91 -> 14198.7382 | K38: =+'1.1_Demanda_G1'!G91 -> 15192.64327 | L38: =+'1.1_Demanda_G1'!H91 -> 16256.12346
A40: 1.2.NAZCA
B42: Servicio | C42: Unidad de cobro | D42: Historico | J42: Proyecciones
D43: 2019 | E43: 2020 | F43: 2021 | G43: 2022 | H43: 2023 | I43: 2024 | J43: =+I43+1 -> 2025 | K43: =+J43+1 -> 2026 | L43: =+K43+1 -> 2027
B45: TUUA Nacional | C45: Pasajero | D45: =+'1.2_Demanda_G2'!F7 -> 0 | E45: =+'1.2_Demanda_G2'!G7 -> 0 | F45: =+'1.2_Demanda_G2'!H7 -> 0 | G45: =+'1.2_Demanda_G2'!I7 -> 0 | H45: =+'1.2_Demanda_G2'!J7 -> 0 | I45: =+'1.2_Demanda_G2'!K7 -> 0 | J45: =+'1.2_Demanda_G2'!F53 -> 0 | K45: =+'1.2_Demanda_G2'!G53 -> 0 | L45: =+'1.2_Demanda_G2'!H53 -> 0
B46: TUUA Internacional | C46: Pasajero | D46: =+'1.2_Demanda_G2'!F8 -> 0 | E46: =+'1.2_Demanda_G2'!G8 -> 0 | F46: =+'1.2_Demanda_G2'!H8 -> 0 | G46: =+'1.2_Demanda_G2'!I8 -> 0 | H46: =+'1.2_Demanda_G2'!J8 -> 0 | I46: =+'1.2_Demanda_G2'!K8 -> 0 | J46: =+'1.2_Demanda_G2'!F54 -> 0 | K46: =+'1.2_Demanda_G2'!G54 -> 0 | L46: =+'1.2_Demanda_G2'!H54 -> 0
B48: Aterrizaje y despegue nacional
B49: Hasta 10 t | C49: Operación | D49: =+'1.2_Demanda_G2'!F14 -> 36187 | E49: =+'1.2_Demanda_G2'!G14 -> 6660 | F49: =+'1.2_Demanda_G2'!H14 -> 9986 | G49: =+'1.2_Demanda_G2'!I14 -> 23208 | H49: =+'1.2_Demanda_G2'!J14 -> 20242 | I49: =+'1.2_Demanda_G2'!K14 -> 30363 | J49: =+'1.2_Demanda_G2'!F60 -> 32488.38909 | K49: =+'1.2_Demanda_G2'!G60 -> 34762.21673 | L49: =+'1.2_Demanda_G2'!H60 -> 37195.35447
B50: Más de 10 t hasta 35 t | C50: t | D50: =+'1.2_Demanda_G2'!F15 -> 25 | E50: =+'1.2_Demanda_G2'!G15 -> 0 | F50: =+'1.2_Demanda_G2'!H15 -> 0 | G50: =+'1.2_Demanda_G2'!I15 -> 0 | H50: =+'1.2_Demanda_G2'!J15 -> 0 | I50: =+'1.2_Demanda_G2'!K15 -> 0 | J50: =+'1.2_Demanda_G2'!F61 -> 0 | K50: =+'1.2_Demanda_G2'!G61 -> 0 | L50: =+'1.2_Demanda_G2'!H61 -> 0
B51: Más de 35 t hasta 70 t | C51: t | D51: =+'1.2_Demanda_G2'!F16 -> 0 | E51: =+'1.2_Demanda_G2'!G16 -> 0 | F51: =+'1.2_Demanda_G2'!H16 -> 0 | G51: =+'1.2_Demanda_G2'!I16 -> 0 | H51: =+'1.2_Demanda_G2'!J16 -> 0 | I51: =+'1.2_Demanda_G2'!K16 -> 0 | J51: =+'1.2_Demanda_G2'!F62 -> 0 | K51: =+'1.2_Demanda_G2'!G62 -> 0 | L51: =+'1.2_Demanda_G2'!H62 -> 0
B52: Más de 70 t hasta 105 t | C52: t | D52: =+'1.2_Demanda_G2'!F17 -> 0 | E52: =+'1.2_Demanda_G2'!G17 -> 0 | F52: =+'1.2_Demanda_G2'!H17 -> 0 | G52: =+'1.2_Demanda_G2'!I17 -> 0 | H52: =+'1.2_Demanda_G2'!J17 -> 0 | I52: =+'1.2_Demanda_G2'!K17 -> 0 | J52: =+'1.2_Demanda_G2'!F63 -> 0 | K52: =+'1.2_Demanda_G2'!G63 -> 0 | L52: =+'1.2_Demanda_G2'!H63 -> 0
B53: Más de 105 t | C53: t | D53: =+'1.2_Demanda_G2'!F18 -> 0 | E53: =+'1.2_Demanda_G2'!G18 -> 0 | F53: =+'1.2_Demanda_G2'!H18 -> 0 | G53: =+'1.2_Demanda_G2'!I18 -> 0 | H53: =+'1.2_Demanda_G2'!J18 -> 0 | I53: =+'1.2_Demanda_G2'!K18 -> 0 | J53: =+'1.2_Demanda_G2'!F64 -> 0 | K53: =+'1.2_Demanda_G2'!G64 -> 0 | L53: =+'1.2_Demanda_G2'!H64 -> 0
B54: Aterrizaje y despegue Internacional
B55: Hasta 10 t | C55: Operación | D55: =+'1.2_Demanda_G2'!F20 -> 0 | E55: =+'1.2_Demanda_G2'!G20 -> 0 | F55: =+'1.2_Demanda_G2'!H20 -> 0 | G55: =+'1.2_Demanda_G2'!I20 -> 0 | H55: =+'1.2_Demanda_G2'!J20 -> 0 | I55: =+'1.2_Demanda_G2'!K20 -> 0 | J55: =+'1.2_Demanda_G2'!F66 -> 0 | K55: =+'1.2_Demanda_G2'!G66 -> 0 | L55: =+'1.2_Demanda_G2'!H66 -> 0
B56: Más de 10 t hasta 35 t | C56: t | D56: =+'1.2_Demanda_G2'!F21 -> 0 | E56: =+'1.2_Demanda_G2'!G21 -> 0 | F56: =+'1.2_Demanda_G2'!H21 -> 0 | G56: =+'1.2_Demanda_G2'!I21 -> 0 | H56: =+'1.2_Demanda_G2'!J21 -> 0 | I56: =+'1.2_Demanda_G2'!K21 -> 0 | J56: =+'1.2_Demanda_G2'!F67 -> 0 | K56: =+'1.2_Demanda_G2'!G67 -> 0 | L56: =+'1.2_Demanda_G2'!H67 -> 0
B57: Más de 35 t hasta 70 t | C57: t | D57: =+'1.2_Demanda_G2'!F22 -> 0 | E57: =+'1.2_Demanda_G2'!G22 -> 0 | F57: =+'1.2_Demanda_G2'!H22 -> 0 | G57: =+'1.2_Demanda_G2'!I22 -> 0 | H57: =+'1.2_Demanda_G2'!J22 -> 0 | I57: =+'1.2_Demanda_G2'!K22 -> 0 | J57: =+'1.2_Demanda_G2'!F68 -> 0 | K57: =+'1.2_Demanda_G2'!G68 -> 0 | L57: =+'1.2_Demanda_G2'!H68 -> 0
B58: Más de 70 t hasta 105 t | C58: t | D58: =+'1.2_Demanda_G2'!F23 -> 0 | E58: =+'1.2_Demanda_G2'!G23 -> 0 | F58: =+'1.2_Demanda_G2'!H23 -> 0 | G58: =+'1.2_Demanda_G2'!I23 -> 0 | H58: =+'1.2_Demanda_G2'!J23 -> 0 | I58: =+'1.2_Demanda_G2'!K23 -> 0 | J58: =+'1.2_Demanda_G2'!F69 -> 0 | K58: =+'1.2_Demanda_G2'!G69 -> 0 | L58: =+'1.2_Demanda_G2'!H69 -> 0
B59: Más de 105 t | C59: t | D59: =+'1.2_Demanda_G2'!F24 -> 0 | E59: =+'1.2_Demanda_G2'!G24 -> 0 | F59: =+'1.2_Demanda_G2'!H24 -> 0 | G59: =+'1.2_Demanda_G2'!I24 -> 0 | H59: =+'1.2_Demanda_G2'!J24 -> 0 | I59: =+'1.2_Demanda_G2'!K24 -> 0 | J59: =+'1.2_Demanda_G2'!F70 -> 0 | K59: =+'1.2_Demanda_G2'!G70 -> 0 | L59: =+'1.2_Demanda_G2'!H70 -> 0
B61: Estacionamiento nacional
B62: Hasta 10 t | C62: Operación | D62: =+'1.2_Demanda_G2'!F30 -> 23215.8239 | E62: =+'1.2_Demanda_G2'!G30 -> 4272.732947 | F62: =+'1.2_Demanda_G2'!H30 -> 6406.533214 | G62: =+'1.2_Demanda_G2'!I30 -> 14889.12706 | H62: =+'1.2_Demanda_G2'!J30 -> 12986.28533 | I62: =+'1.2_Demanda_G2'!K30 -> 19129.77223 | J62: =+'1.2_Demanda_G2'!F76 -> 20468.84311 | K62: =+'1.2_Demanda_G2'!G76 -> 21901.43557 | L62: =+'1.2_Demanda_G2'!H76 -> 23434.39907
B63: Más de 10 t hasta 35 t | C63: t | D63: =+'1.2_Demanda_G2'!F31 -> 0 | E63: =+'1.2_Demanda_G2'!G31 -> 0 | F63: =+'1.2_Demanda_G2'!H31 -> 0 | G63: =+'1.2_Demanda_G2'!I31 -> 0 | H63: =+'1.2_Demanda_G2'!J31 -> 0 | I63: =+'1.2_Demanda_G2'!K31 -> 0 | J63: =+'1.2_Demanda_G2'!F77 -> 0 | K63: =+'1.2_Demanda_G2'!G77 -> 0 | L63: =+'1.2_Demanda_G2'!H77 -> 0
B64: Más de 35 t hasta 70 t | C64: t | D64: =+'1.2_Demanda_G2'!F32 -> 0 | E64: =+'1.2_Demanda_G2'!G32 -> 0 | F64: =+'1.2_Demanda_G2'!H32 -> 0 | G64: =+'1.2_Demanda_G2'!I32 -> 0 | H64: =+'1.2_Demanda_G2'!J32 -> 0 | I64: =+'1.2_Demanda_G2'!K32 -> 0 | J64: =+'1.2_Demanda_G2'!F78 -> 0 | K64: =+'1.2_Demanda_G2'!G78 -> 0 | L64: =+'1.2_Demanda_G2'!H78 -> 0
B65: Más de 70 t hasta 105 t | C65: t | D65: =+'1.2_Demanda_G2'!F33 -> 0 | E65: =+'1.2_Demanda_G2'!G33 -> 0 | F65: =+'1.2_Demanda_G2'!H33 -> 0 | G65: =+'1.2_Demanda_G2'!I33 -> 0 | H65: =+'1.2_Demanda_G2'!J33 -> 0 | I65: =+'1.2_Demanda_G2'!K33 -> 0 | J65: =+'1.2_Demanda_G2'!F79 -> 0 | K65: =+'1.2_Demanda_G2'!G79 -> 0 | L65: =+'1.2_Demanda_G2'!H79 -> 0
B66: Más de 105 t | C66: t | D66: =+'1.2_Demanda_G2'!F34 -> 0 | E66: =+'1.2_Demanda_G2'!G34 -> 0 | F66: =+'1.2_Demanda_G2'!H34 -> 0 | G66: =+'1.2_Demanda_G2'!I34 -> 0 | H66: =+'1.2_Demanda_G2'!J34 -> 0 | I66: =+'1.2_Demanda_G2'!K34 -> 0 | J66: =+'1.2_Demanda_G2'!F80 -> 0 | K66: =+'1.2_Demanda_G2'!G80 -> 0 | L66: =+'1.2_Demanda_G2'!H80 -> 0
B67: Estacionamiento internacional
B68: Hasta 10 t | C68: Operación | D68: =+'1.2_Demanda_G2'!F36 -> 0 | E68: =+'1.2_Demanda_G2'!G36 -> 0 | F68: =+'1.2_Demanda_G2'!H36 -> 0 | G68: =+'1.2_Demanda_G2'!I36 -> 0 | H68: =+'1.2_Demanda_G2'!J36 -> 0 | I68: =+'1.2_Demanda_G2'!K36 -> 0 | J68: =+'1.2_Demanda_G2'!F82 -> 0 | K68: =+'1.2_Demanda_G2'!G82 -> 0 | L68: =+'1.2_Demanda_G2'!H82 -> 0
B69: Más de 10 t hasta 35 t | C69: t | D69: =+'1.2_Demanda_G2'!F37 -> 0 | E69: =+'1.2_Demanda_G2'!G37 -> 0 | F69: =+'1.2_Demanda_G2'!H37 -> 0 | G69: =+'1.2_Demanda_G2'!I37 -> 0 | H69: =+'1.2_Demanda_G2'!J37 -> 0 | I69: =+'1.2_Demanda_G2'!K37 -> 0 | J69: =+'1.2_Demanda_G2'!F83 -> 0 | K69: =+'1.2_Demanda_G2'!G83 -> 0 | L69: =+'1.2_Demanda_G2'!H83 -> 0
B70: Más de 35 t hasta 70 t | C70: t | D70: =+'1.2_Demanda_G2'!F38 -> 0 | E70: =+'1.2_Demanda_G2'!G38 -> 0 | F70: =+'1.2_Demanda_G2'!H38 -> 0 | G70: =+'1.2_Demanda_G2'!I38 -> 0 | H70: =+'1.2_Demanda_G2'!J38 -> 0 | I70: =+'1.2_Demanda_G2'!K38 -> 0 | J70: =+'1.2_Demanda_G2'!F84 -> 0 | K70: =+'1.2_Demanda_G2'!G84 -> 0 | L70: =+'1.2_Demanda_G2'!H84 -> 0
B71: Más de 70 t hasta 105 t | C71: t | D71: =+'1.2_Demanda_G2'!F39 -> 0 | E71: =+'1.2_Demanda_G2'!G39 -> 0 | F71: =+'1.2_Demanda_G2'!H39 -> 0 | G71: =+'1.2_Demanda_G2'!I39 -> 0 | H71: =+'1.2_Demanda_G2'!J39 -> 0 | I71: =+'1.2_Demanda_G2'!K39 -> 0 | J71: =+'1.2_Demanda_G2'!F85 -> 0 | K71: =+'1.2_Demanda_G2'!G85 -> 0 | L71: =+'1.2_Demanda_G2'!H85 -> 0
B72: Más de 105 t | C72: t | D72: =+'1.2_Demanda_G2'!F40 -> 0 | E72: =+'1.2_Demanda_G2'!G40 -> 0 | F72: =+'1.2_Demanda_G2'!H40 -> 0 | G72: =+'1.2_Demanda_G2'!I40 -> 0 | H72: =+'1.2_Demanda_G2'!J40 -> 0 | I72: =+'1.2_Demanda_G2'!K40 -> 0 | J72: =+'1.2_Demanda_G2'!F86 -> 0 | K72: =+'1.2_Demanda_G2'!G86 -> 0 | L72: =+'1.2_Demanda_G2'!H86 -> 0
B74: Uso de Mangas | C74: h | D74: =+'1.2_Demanda_G2'!F45 -> 0 | E74: =+'1.2_Demanda_G2'!G45 -> 0 | F74: =+'1.2_Demanda_G2'!H45 -> 0 | G74: =+'1.2_Demanda_G2'!I45 -> 0 | H74: =+'1.2_Demanda_G2'!J45 -> 0 | I74: =+'1.2_Demanda_G2'!K45 -> 0 | J74: =+'1.2_Demanda_G2'!F91 -> 0 | K74: =+'1.2_Demanda_G2'!G91 -> 0 | L74: =+'1.2_Demanda_G2'!H91 -> 0
A76: 1.3.GRUPO V
B78: Servicio | C78: Unidad de cobro | D78: Historico | J78: Proyecciones
D79: 2019 | E79: 2020 | F79: 2021 | G79: 2022 | H79: 2023 | I79: 2024 | J79: =+I79+1 -> 2025 | K79: =+J79+1 -> 2026 | L79: =+K79+1 -> 2027
B81: TUUA Nacional | C81: Pasajero | D81: =+'1.3_Demanda_G3'!F7 -> 330328 | E81: =+'1.3_Demanda_G3'!G7 -> 123244 | F81: =+'1.3_Demanda_G3'!H7 -> 252491 | G81: =+'1.3_Demanda_G3'!I7 -> 313183 | H81: =+'1.3_Demanda_G3'!J7 -> 273715 | I81: =+'1.3_Demanda_G3'!K7 -> 229651 | J81: =+'1.3_Demanda_G3'!F53 -> 238836.5794 | K81: =+'1.3_Demanda_G3'!G53 -> 248389.8451 | L81: =+'1.3_Demanda_G3'!H53 -> 258324.7809
B82: TUUA Internacional | C82: Pasajero | D82: =+'1.3_Demanda_G3'!F8 -> 0 | E82: =+'1.3_Demanda_G3'!G8 -> 0 | F82: =+'1.3_Demanda_G3'!H8 -> 0 | G82: =+'1.3_Demanda_G3'!I8 -> 0 | H82: =+'1.3_Demanda_G3'!J8 -> 0 | I82: =+'1.3_Demanda_G3'!K8 -> 0 | J82: =+'1.3_Demanda_G3'!F54 -> 0 | K82: =+'1.3_Demanda_G3'!G54 -> 0 | L82: =+'1.3_Demanda_G3'!H54 -> 0
B84: Aterrizaje y despegue nacional
B85: Hasta 10 t | C85: Operación | D85: =+'1.3_Demanda_G3'!F14 -> 7462 | E85: =+'1.3_Demanda_G3'!G14 -> 5841 | F85: =+'1.3_Demanda_G3'!H14 -> 8221 | G85: =+'1.3_Demanda_G3'!I14 -> 7961 | H85: =+'1.3_Demanda_G3'!J14 -> 6351 | I85: =+'1.3_Demanda_G3'!K14 -> 5328.58448 | J85: =+'1.3_Demanda_G3'!F60 -> 5541.717171 | K85: =+'1.3_Demanda_G3'!G60 -> 5763.381278 | L85: =+'1.3_Demanda_G3'!H60 -> 5993.90126
B86: Más de 10 t hasta 35 t | C86: t | D86: =+'1.3_Demanda_G3'!F15 -> 44828 | E86: =+'1.3_Demanda_G3'!G15 -> 21930 | F86: =+'1.3_Demanda_G3'!H15 -> 62926 | G86: =+'1.3_Demanda_G3'!I15 -> 87032 | H86: =+'1.3_Demanda_G3'!J15 -> 90651 | I86: =+'1.3_Demanda_G3'!K15 -> 76057.921 | J86: =+'1.3_Demanda_G3'!F61 -> 79100.08529 | K86: =+'1.3_Demanda_G3'!G61 -> 82264.02332 | L86: =+'1.3_Demanda_G3'!H61 -> 85554.36631
B87: Más de 35 t hasta 70 t | C87: t | D87: =+'1.3_Demanda_G3'!F16 -> 160256 | E87: =+'1.3_Demanda_G3'!G16 -> 47045 | F87: =+'1.3_Demanda_G3'!H16 -> 67130 | G87: =+'1.3_Demanda_G3'!I16 -> 100820 | H87: =+'1.3_Demanda_G3'!J16 -> 103600 | I87: =+'1.3_Demanda_G3'!K16 -> 86921.95751 | J87: =+'1.3_Demanda_G3'!F62 -> 90398.66146 | K87: =+'1.3_Demanda_G3'!G62 -> 94014.5332 | L87: =+'1.3_Demanda_G3'!H62 -> 97774.86546
B88: Más de 70 t hasta 105 t | C88: t | D88: =+'1.3_Demanda_G3'!F17 -> 179241 | E88: =+'1.3_Demanda_G3'!G17 -> 68725 | F88: =+'1.3_Demanda_G3'!H17 -> 170955 | G88: =+'1.3_Demanda_G3'!I17 -> 110239 | H88: =+'1.3_Demanda_G3'!J17 -> 77821 | I88: =+'1.3_Demanda_G3'!K17 -> 65293.49236 | J88: =+'1.3_Demanda_G3'!F63 -> 67905.10109 | K88: =+'1.3_Demanda_G3'!G63 -> 70621.249 | L88: =+'1.3_Demanda_G3'!H63 -> 73445.91187
B89: Más de 105 t | C89: t | D89: =+'1.3_Demanda_G3'!F18 -> 0 | E89: =+'1.3_Demanda_G3'!G18 -> 0 | F89: =+'1.3_Demanda_G3'!H18 -> 0 | G89: =+'1.3_Demanda_G3'!I18 -> 0 | H89: =+'1.3_Demanda_G3'!J18 -> 0 | I89: =+'1.3_Demanda_G3'!K18 -> 0 | J89: =+'1.3_Demanda_G3'!F64 -> 0 | K89: =+'1.3_Demanda_G3'!G64 -> 0 | L89: =+'1.3_Demanda_G3'!H64 -> 0
B90: Aterrizaje y despegue Internacional
B91: Hasta 10 t | C91: Operación | D91: =+'1.3_Demanda_G3'!F20 -> 0 | E91: =+'1.3_Demanda_G3'!G20 -> 0 | F91: =+'1.3_Demanda_G3'!H20 -> 0 | G91: =+'1.3_Demanda_G3'!I20 -> 0 | H91: =+'1.3_Demanda_G3'!J20 -> 0 | I91: =+'1.3_Demanda_G3'!K20 -> 0 | J91: =+'1.3_Demanda_G3'!F66 -> 0 | K91: =+'1.3_Demanda_G3'!G66 -> 0 | L91: =+'1.3_Demanda_G3'!H66 -> 0
B92: Más de 10 t hasta 35 t | C92: t | D92: =+'1.3_Demanda_G3'!F21 -> 0 | E92: =+'1.3_Demanda_G3'!G21 -> 0 | F92: =+'1.3_Demanda_G3'!H21 -> 0 | G92: =+'1.3_Demanda_G3'!I21 -> 0 | H92: =+'1.3_Demanda_G3'!J21 -> 0 | I92: =+'1.3_Demanda_G3'!K21 -> 0 | J92: =+'1.3_Demanda_G3'!F67 -> 0 | K92: =+'1.3_Demanda_G3'!G67 -> 0 | L92: =+'1.3_Demanda_G3'!H67 -> 0
B93: Más de 35 t hasta 70 t | C93: t | D93: =+'1.3_Demanda_G3'!F22 -> 0 | E93: =+'1.3_Demanda_G3'!G22 -> 0 | F93: =+'1.3_Demanda_G3'!H22 -> 0 | G93: =+'1.3_Demanda_G3'!I22 -> 0 | H93: =+'1.3_Demanda_G3'!J22 -> 0 | I93: =+'1.3_Demanda_G3'!K22 -> 0 | J93: =+'1.3_Demanda_G3'!F68 -> 0 | K93: =+'1.3_Demanda_G3'!G68 -> 0 | L93: =+'1.3_Demanda_G3'!H68 -> 0
B94: Más de 70 t hasta 105 t | C94: t | D94: =+'1.3_Demanda_G3'!F23 -> 0 | E94: =+'1.3_Demanda_G3'!G23 -> 0 | F94: =+'1.3_Demanda_G3'!H23 -> 0 | G94: =+'1.3_Demanda_G3'!I23 -> 0 | H94: =+'1.3_Demanda_G3'!J23 -> 0 | I94: =+'1.3_Demanda_G3'!K23 -> 0 | J94: =+'1.3_Demanda_G3'!F69 -> 0 | K94: =+'1.3_Demanda_G3'!G69 -> 0 | L94: =+'1.3_Demanda_G3'!H69 -> 0
B95: Más de 105 t | C95: t | D95: =+'1.3_Demanda_G3'!F24 -> 0 | E95: =+'1.3_Demanda_G3'!G24 -> 0 | F95: =+'1.3_Demanda_G3'!H24 -> 0 | G95: =+'1.3_Demanda_G3'!I24 -> 0 | H95: =+'1.3_Demanda_G3'!J24 -> 0 | I95: =+'1.3_Demanda_G3'!K24 -> 0 | J95: =+'1.3_Demanda_G3'!F70 -> 0 | K95: =+'1.3_Demanda_G3'!G70 -> 0 | L95: =+'1.3_Demanda_G3'!H70 -> 0
B97: Estacionamiento nacional
B98: Hasta 10 t | C98: Operación | D98: =+'1.3_Demanda_G3'!F30 -> 4786.305728 | E98: =+'1.3_Demanda_G3'!G30 -> 3746.557459 | F98: =+'1.3_Demanda_G3'!H30 -> 5273.146528 | G98: =+'1.3_Demanda_G3'!I30 -> 5106.376294 | H98: =+'1.3_Demanda_G3'!J30 -> 4073.683688 | I98: =+'1.3_Demanda_G3'!K30 -> 3357.198149 | J98: =+'1.3_Demanda_G3'!F76 -> 3491.479341 | K98: =+'1.3_Demanda_G3'!G76 -> 3631.135629 | L98: =+'1.3_Demanda_G3'!H76 -> 3776.371434
B99: Más de 10 t hasta 35 t | C99: t | D99: =+'1.3_Demanda_G3'!F31 -> 1417.383573 | E99: =+'1.3_Demanda_G3'!G31 -> 842.7012271 | F99: =+'1.3_Demanda_G3'!H31 -> 2002.038714 | G99: =+'1.3_Demanda_G3'!I31 -> 2567.994864 | H99: =+'1.3_Demanda_G3'!J31 -> 2779.29347 | I99: =+'1.3_Demanda_G3'!K31 -> 2357.069209 | J99: =+'1.3_Demanda_G3'!F77 -> 2451.34725 | K99: =+'1.3_Demanda_G3'!G77 -> 2549.399113 | L99: =+'1.3_Demanda_G3'!H77 -> 2651.368324
B100: Más de 35 t hasta 70 t | C100: t | D100: =+'1.3_Demanda_G3'!F32 -> 1592.132514 | E100: =+'1.3_Demanda_G3'!G32 -> 429.5825919 | F100: =+'1.3_Demanda_G3'!H32 -> 611.2310173 | G100: =+'1.3_Demanda_G3'!I32 -> 918.4399332 | H100: =+'1.3_Demanda_G3'!J32 -> 943.2970861 | I100: =+'1.3_Demanda_G3'!K32 -> 782.341877 | J100: =+'1.3_Demanda_G3'!F78 -> 813.6339828 | K100: =+'1.3_Demanda_G3'!G78 -> 846.1786696 | L100: =+'1.3_Demanda_G3'!H78 -> 880.0235747
B101: Más de 70 t hasta 105 t | C101: t | D101: =+'1.3_Demanda_G3'!F33 -> 1508.52484 | E101: =+'1.3_Demanda_G3'!G33 -> 574.8892884 | F101: =+'1.3_Demanda_G3'!H33 -> 1429.229766 | G101: =+'1.3_Demanda_G3'!I33 -> 921.4855001 | H101: =+'1.3_Demanda_G3'!J33 -> 646.5106458 | I101: =+'1.3_Demanda_G3'!K33 -> 534.4240795 | J101: =+'1.3_Demanda_G3'!F79 -> 555.7999707 | K101: =+'1.3_Demanda_G3'!G79 -> 578.0315101 | L101: =+'1.3_Demanda_G3'!H79 -> 601.1512392
B102: Más de 105 t | C102: t | D102: =+'1.3_Demanda_G3'!F34 -> 0 | E102: =+'1.3_Demanda_G3'!G34 -> 0 | F102: =+'1.3_Demanda_G3'!H34 -> 0 | G102: =+'1.3_Demanda_G3'!I34 -> 0 | H102: =+'1.3_Demanda_G3'!J34 -> 0 | I102: =+'1.3_Demanda_G3'!K34 -> 0 | J102: =+'1.3_Demanda_G3'!F80 -> 0 | K102: =+'1.3_Demanda_G3'!G80 -> 0 | L102: =+'1.3_Demanda_G3'!H80 -> 0
B103: Estacionamiento internacional
B104: Hasta 10 t | C104: Operación | D104: =+'1.3_Demanda_G3'!F36 -> 0 | E104: =+'1.3_Demanda_G3'!G36 -> 0 | F104: =+'1.3_Demanda_G3'!H36 -> 0 | G104: =+'1.3_Demanda_G3'!I36 -> 0 | H104: =+'1.3_Demanda_G3'!J36 -> 0 | I104: =+'1.3_Demanda_G3'!K36 -> 0 | J104: =+'1.3_Demanda_G3'!F82 -> 0 | K104: =+'1.3_Demanda_G3'!G82 -> 0 | L104: =+'1.3_Demanda_G3'!H82 -> 0
B105: Más de 10 t hasta 35 t | C105: t | D105: =+'1.3_Demanda_G3'!F37 -> 0 | E105: =+'1.3_Demanda_G3'!G37 -> 0 | F105: =+'1.3_Demanda_G3'!H37 -> 0 | G105: =+'1.3_Demanda_G3'!I37 -> 0 | H105: =+'1.3_Demanda_G3'!J37 -> 0 | I105: =+'1.3_Demanda_G3'!K37 -> 0 | J105: =+'1.3_Demanda_G3'!F83 -> 0 | K105: =+'1.3_Demanda_G3'!G83 -> 0 | L105: =+'1.3_Demanda_G3'!H83 -> 0
B106: Más de 35 t hasta 70 t | C106: t | D106: =+'1.3_Demanda_G3'!F38 -> 0 | E106: =+'1.3_Demanda_G3'!G38 -> 0 | F106: =+'1.3_Demanda_G3'!H38 -> 0 | G106: =+'1.3_Demanda_G3'!I38 -> 0 | H106: =+'1.3_Demanda_G3'!J38 -> 0 | I106: =+'1.3_Demanda_G3'!K38 -> 0 | J106: =+'1.3_Demanda_G3'!F84 -> 0 | K106: =+'1.3_Demanda_G3'!G84 -> 0 | L106: =+'1.3_Demanda_G3'!H84 -> 0
B107: Más de 70 t hasta 105 t | C107: t | D107: =+'1.3_Demanda_G3'!F39 -> 0 | E107: =+'1.3_Demanda_G3'!G39 -> 0 | F107: =+'1.3_Demanda_G3'!H39 -> 0 | G107: =+'1.3_Demanda_G3'!I39 -> 0 | H107: =+'1.3_Demanda_G3'!J39 -> 0 | I107: =+'1.3_Demanda_G3'!K39 -> 0 | J107: =+'1.3_Demanda_G3'!F85 -> 0 | K107: =+'1.3_Demanda_G3'!G85 -> 0 | L107: =+'1.3_Demanda_G3'!H85 -> 0
B108: Más de 105 t | C108: t | D108: =+'1.3_Demanda_G3'!F40 -> 0 | E108: =+'1.3_Demanda_G3'!G40 -> 0 | F108: =+'1.3_Demanda_G3'!H40 -> 0 | G108: =+'1.3_Demanda_G3'!I40 -> 0 | H108: =+'1.3_Demanda_G3'!J40 -> 0 | I108: =+'1.3_Demanda_G3'!K40 -> 0 | J108: =+'1.3_Demanda_G3'!F86 -> 0 | K108: =+'1.3_Demanda_G3'!G86 -> 0 | L108: =+'1.3_Demanda_G3'!H86 -> 0
B110: Uso de Mangas | C110: h | D110: =+'1.3_Demanda_G3'!F45 -> 0 | E110: =+'1.3_Demanda_G3'!G45 -> 0 | F110: =+'1.3_Demanda_G3'!H45 -> 0 | G110: =+'1.3_Demanda_G3'!I45 -> 0 | H110: =+'1.3_Demanda_G3'!J45 -> 0 | I110: =+'1.3_Demanda_G3'!K45 -> 0 | J110: =+'1.3_Demanda_G3'!F91 -> 0 | K110: =+'1.3_Demanda_G3'!G91 -> 0 | L110: =+'1.3_Demanda_G3'!H91 -> 0

Sheet 1.1_Demanda_G1
B2: 1.1.1_CUZCO_ DEMANDA HISTORICA | K2: Índice
C4: 1.1.1.TUUA
D6: Servicio | E6: Unidad de cobro | F6: 2019 | G6: 2020 | H6: 2021 | I6: 2022 | J6: 2023 | K6: 2024*
D7: TUUA Nacional | E7: Pasajero | F7: =+'supuesto demanda'!C9 -> 1897955 | G7: =+'supuesto demanda'!D9 -> 487147 | H7: =+'supuesto demanda'!E9 -> 780016 | I7: =+'supuesto demanda'!F9 -> 1464576 | J7: =+'supuesto demanda'!G9 -> 1507220 | K7: =+'supuesto demanda'!H9 -> 2039211
D8: TUUA Internacional | E8: Pasajero | F8: =+'supuesto demanda'!C10 -> 71530 | G8: =+'supuesto demanda'!D10 -> 22558 | H8: =+'supuesto demanda'!E10 -> 30 | I8: =+'supuesto demanda'!F10 -> 8187 | J8: =+'supuesto demanda'!G10 -> 12061 | K8: =+'supuesto demanda'!H10 -> 67294.35
C10: 1.1.1.Aterrizaje y despegue
D12: Servicio | E12: Unidad de cobro | F12: 2019 | G12: 2020 | H12: 2021 | I12: 2022 | J12: 2023 | K12: 2024*
D13: Aterrizaje y despegue nacional
D14: Hasta 10 t | E14: Operación | F14: 3115 | G14: 1074 | H14: 2584 | I14: 3181 | J14: 1804 | K14: =+'supuesto demanda'!H28 -> 2440.283439
D15: Más de 10 t hasta 35 t | E15: t | F15: 3064.09 | G15: 446.37 | H15: 2999.98 | I15: 3311.1 | J15: 1513.78 | K15: =+'supuesto demanda'!H30 -> 2043.603
D16: Más de 35 t hasta 70 t | E16: t | F16: 500041.77 | G16: 68454.32 | H16: 68180.04 | I16: 110749.41 | J16: 251235.95 | K16: =+'supuesto demanda'!H32 -> 339912.2602
D17: Más de 70 t hasta 105 t | E17: t | F17: 1694727 | G17: 495130.2 | H17: 785877.3 | I17: 1447977.95 | J17: 1327884.24 | K17: =+'supuesto demanda'!H34 -> 1796575.822
D18: Más de 105 t | E18: t | F18: 0 | G18: 0 | H18: 364 | I18: 0 | J18: 0 | K18: 0
D19: Aterrizaje y despegue Internacional
D20: Hasta 10 t | E20: Operación | F20: 41 | G20: 8 | H20: 4 | I20: 35 | J20: 20 | K20: =+'supuesto demanda'!H62 -> 30
D21: Más de 10 t hasta 35 t | E21: t | F21: 18702 | G21: 337 | H21: 62 | I21: 872 | J21: 576 | K21: =+'supuesto demanda'!H63 -> 741
D22: Más de 35 t hasta 70 t | E22: t | F22: 28401 | G22: 10350 | H22: 342 | I22: 8939 | J22: 1845 | K22: =+'supuesto demanda'!H64 -> 1640
D23: Más de 70 t hasta 105 t | E23: t | F23: 66586 | G23: 23437 | H23: 0 | I23: 2233 | J23: 16388 | K23: =+'supuesto demanda'!H65 -> 95057
D24: Más de 105 t | E24: t | F24: 0 | G24: 0 | H24: 0 | I24: 0 | J24: 0 | K24: =+'supuesto demanda'!H66 -> 0
C26: 1.1.1.Estacionamiento
D28: Servicio | E28: Unidad de cobro | F28: 2019 | G28: 2020 | H28: 2021 | I28: 2022 | J28: 2023 | K28: 2024*
D29: Estacionamiento nacional
D30: Hasta 10 t | E30: Operación | F30: 1962.561028 | G30: 676.6582806 | H30: 1628.012101 | I30: 2004.14338 | J30: 1136.5843 | K30: =+'supuesto demanda'!N77 -> 1537.465546
D31: Más de 10 t hasta 35 t | E31: t | F31: 126.6371642 | G31: 19.53110493 | H31: 139.8679127 | I31: 149.3184474 | J31: 69.93395637 | K31: =+'supuesto demanda'!N78 -> 94.4108411
D32: Más de 35 t hasta 70 t | E32: t | F32: 4927.486058 | G32: 625.0241182 | H32: 622.4729994 | I32: 1012.156404 | J32: 2292.818066 | K32: =+'supuesto demanda'!N79 -> 3064.425444
D33: Más de 70 t hasta 105 t | E33: t | F33: 14231.18372 | G33: 4150.307826 | H33: 6576.128773 | I33: 12122.694 | J33: 11123.90198 | K33: =+'supuesto demanda'!N80 -> 14791.08363
D34: Más de 105 t | E34: t | F34: 0 | G34: 0 | H34: 0 | I34: 0 | J34: 0 | K34: =+'supuesto demanda'!N81 -> 0
D35: Estacionamiento internacional
D36: Hasta 10 t | E36: Operación | F36: 33.877573 | G36: 6.610258146 | H36: 3.305129073 | I36: 28.91987939 | J36: 16.52564536 | K36: =+'supuesto demanda'!N82 -> 18.90106929
D37: Más de 10 t hasta 35 t | E37: t | F37: 500.8331765 | G37: 17.22610926 | H37: 1.914012139 | I37: 27.434174 | J37: 22.33014163 | K37: =+'supuesto demanda'!N83 -> 28.36801111
D38: Más de 35 t hasta 70 t | E38: t | F38: 521.0444486 | G38: 368.2381439 | H38: 10.02008555 | I38: 166.5839223 | J38: 38.8278315 | K38: =+'supuesto demanda'!N84 -> 17.36098216
D39: Más de 70 t hasta 105 t | E39: t | F39: 305.4209033 | G39: 632.8321116 | H39: 0 | I39: 10.12252137 | J39: 74.34817417 | K39: =+'supuesto demanda'!N85 -> 778.4000792
D40: Más de 105 t | E40: t | F40: 0 | G40: 0 | H40: 0 | I40: 0 | J40: 0 | K40: =+'supuesto demanda'!N86 -> 0
C42: 1.1.1.Mangas
D44: Servicio | E44: Unidad de cobro | F44: 2019 | G44: 2020 | H44: 2021 | I44: 2022 | J44: 2023 | K44: 2024*
D45: Uso de Mangas | E45: h | F45: 13004 | G45: 2431 | H45: 4677 | I45: 9220 | J45: 9808 | K45: =+'supuesto demanda'!H118 -> 13269.84879
B48: 1.1.2_CUZCO_ DEMANDA PROYECTADA
C50: 1.1.2.TUUA
D52: Servicio | E52: Unidad de cobro | F52: 2025 | G52: 2026 | H52: 2027
D53: TUUA Nacional | E53: Pasajero | F53: =+'supuesto demanda'!I9 -> 2181955.77 | G53: =+'supuesto demanda'!J9 -> 2334691.659 | H53: =+'supuesto demanda'!K9 -> 2498119.331
D54: TUUA Internacional | E54: Pasajero | F54: =+'supuesto demanda'!I10 -> 71331.61096 | G54: =+'supuesto demanda'!J10 -> 75611.0023 | H54: =+'supuesto demanda'!K10 -> 80147.2624
C56: 1.1.2.Aterrizaje y despegue
D58: Servicio | E58: Unidad de cobro | F58: 2025 | G58: 2026 | H58: 2027
D59: Aterrizaje y despegue nacional
D60: Hasta 10 t | E60: Operación | F60: =+'supuesto demanda'!I28 -> 2611.203822 | G60: =+'supuesto demanda'!J28 -> 2794.093418 | H60: =+'supuesto demanda'!K28 -> 2989.909766
D61: Más de 10 t hasta 35 t | E61: t | F61: =+'supuesto demanda'!I30 -> 2190.250438 | G61: =+'supuesto demanda'!J30 -> 2341.628438 | H61: =+'supuesto demanda'!K30 -> 2507.198125
D62: Más de 35 t hasta 70 t | E62: t | F62: =+'supuesto demanda'!I32 -> 363705.4273 | G62: =+'supuesto demanda'!J32 -> 389165.1697 | H62: =+'supuesto demanda'!K32 -> 416407.0488
D63: Más de 70 t hasta 105 t | E63: t | F63: =+'supuesto demanda'!I34 -> 1922335.909 | G63: =+'supuesto demanda'!J34 -> 2056898.7 | H63: =+'supuesto demanda'!K34 -> 2200881.138
D64: Más de 105 t | E64: t | F64: =+'supuesto demanda'!I36 -> 0 | G64: =+'supuesto demanda'!J36 -> 0 | H64: =+'supuesto demanda'!K36 -> 0
D65: Aterrizaje y despegue Internacional
D66: Hasta 10 t | E66: Operación | F66: =+'supuesto demanda'!I62 -> 31.79982166 | G66: =+'supuesto demanda'!J62 -> 33.70758569 | H66: =+'supuesto demanda'!K62 -> 35.72986249
D67: Más de 10 t hasta 35 t | E67: t | F67: =+'supuesto demanda'!I63 -> 785.455595 | G67: =+'supuesto demanda'!J63 -> 832.5773665 | H67: =+'supuesto demanda'!K63 -> 882.5276035
D68: Más de 35 t hasta 70 t | E68: t | F68: =+'supuesto demanda'!I64 -> 1738.390251 | G68: =+'supuesto demanda'!J64 -> 1842.681351 | H68: =+'supuesto demanda'!K64 -> 1953.232483
D69: Más de 70 t hasta 105 t | E69: t | F69: =+'supuesto demanda'!I65 -> 100759.8549 | G69: =+'supuesto demanda'!J65 -> 106804.7324 | H69: =+'supuesto demanda'!K65 -> 113212.4513
D70: Más de 105 t | E70: t | F70: =+'supuesto demanda'!I66 -> 0 | G70: =+'supuesto demanda'!J66 -> 0 | H70: =+'supuesto demanda'!K66 -> 0
C72: 1.1.2.Estacionamiento
D74: Servicio | E74: Unidad de cobro | F74: 2025 | G74: 2026 | H74: 2027
D75: Estacionamiento nacional
D76: Hasta 10 t | E76: Operación | F76: 1459.340457 | G76: 1561.295206 | H76: 1670.790987
D77: Más de 10 t hasta 35 t | E77: t | F77: 89.6028816 | G77: 95.9406464 | H77: 102.7154984
D78: Más de 35 t hasta 70 t | E78: t | F78: 2943.969588 | G78: 3150.046425 | H78: 3370.557223
D79: Más de 70 t hasta 105 t | E79: t | F79: 14283.07996 | G79: 15282.89213 | H79: 16352.69046
D80: Más de 105 t | E80: t | F80: 0 | G80: 0 | H80: 0
D81: Estacionamiento internacional
D82: Hasta 10 t | E82: Operación | F82: 20.65705671 | G82: 21.48333897 | H82: 22.30962124
D83: Más de 10 t hasta 35 t | E83: t | F83: 28.37788832 | G83: 30.04489542 | H83: 31.82820534
D84: Más de 35 t hasta 70 t | E84: t | F84: 49.37132396 | G84: 52.31760928 | H84: 55.45329865
D85: Más de 70 t hasta 105 t | E85: t | F85: 417.6844857 | G85: 442.7454641 | H85: 469.308105
D86: Más de 105 t | E86: t | F86: 0 | G86: 0 | H86: 0
C88: 1.1.2.Mangas
D90: Servicio | E90: Unidad de cobro | F90: 2025 | G90: 2026 | H90: 2027
D91: Uso de Mangas | E91: h | F91: =+'supuesto demanda'!I118 -> 14198.7382 | G91: =+'supuesto demanda'!J118 -> 15192.64327 | H91: =+'supuesto demanda'!K118 -> 16256.12346

Sheet 1.2_Demanda_G2
B2: 1.2.1.NAZCA__ DEMANDA HISTORICA | K2: Índice
C4: 1.2.1.TUUA
D6: Servicio | E6: Unidad de cobro | F6: 2019 | G6: 2020 | H6: 2021 | I6: 2022 | J6: 2023 | K6: 2024*
D7: TUUA Nacional | E7: Pasajero | F7: 0 | G7: 0 | H7: 0 | I7: 0 | J7: 0 | K7: 0
D8: TUUA Internacional | E8: Pasajero | F8: 0 | G8: 0 | H8: 0 | I8: 0 | J8: 0 | K8: 0
C10: 1.2.1.Aterrizaje y despegue
D12: Servicio | E12: Unidad de cobro | F12: 2019 | G12: 2020 | H12: 2021 | I12: 2022 | J12: 2023 | K12: 2024*
D13: Aterrizaje y despegue nacional
D14: Hasta 10 t | E14: Operación | F14: 36187 | G14: 6660 | H14: 9986 | I14: 23208 | J14: 20242 | K14: =+'supuesto demanda'!H39 -> 30363
D15: Más de 10 t hasta 35 t | E15: t | F15: 25 | G15: 0 | H15: 0 | I15: 0 | J15: 0 | K15: 0
D16: Más de 35 t hasta 70 t | E16: t | F16: 0 | G16: 0 | H16: 0 | I16: 0 | J16: 0 | K16: 0
D17: Más de 70 t hasta 105 t | E17: t | F17: 0 | G17: 0 | H17: 0 | I17: 0 | J17: 0 | K17: 0
D18: Más de 105 t | E18: t | F18: 0 | G18: 0 | H18: 0 | I18: 0 | J18: 0 | K18: 0
D19: Aterrizaje y despegue Internacional
D20: Hasta 10 t | E20: Operación | F20: 0 | G20: 0 | H20: 0 | I20: 0 | J20: 0 | K20: 0
D21: Más de 10 t hasta 35 t | E21: t | F21: 0 | G21: 0 | H21: 0 | I21: 0 | J21: 0 | K21: 0
D22: Más de 35 t hasta 70 t | E22: t | F22: 0 | G22: 0 | H22: 0 | I22: 0 | J22: 0 | K22: 0
D23: Más de 70 t hasta 105 t | E23: t | F23: 0 | G23: 0 | H23: 0 | I23: 0 | J23: 0 | K23: 0
D24: Más de 105 t | E24: t | F24: 0 | G24: 0 | H24: 0 | I24: 0 | J24: 0 | K24: 0
C26: 1.2.1.Estacionamiento nacional
D28: Servicio | E28: Unidad de cobro | F28: 2019 | G28: 2020 | H28: 2021 | I28: 2022 | J28: 2023 | K28: 2024*
D29: Estacionamiento nacional
D30: Hasta 10 t | E30: Operación | F30: 23215.8239 | G30: 4272.732947 | H30: 6406.533214 | I30: 14889.12706 | J30: 12986.28533 | K30: =+'supuesto demanda'!N88 -> 19129.77223
D31: Más de 10 t hasta 35 t | E31: t | F31: 0 | G31: 0 | H31: 0 | I31: 0 | J31: 0 | K31: 0
D32: Más de 35 t hasta 70 t | E32: t | F32: 0 | G32: 0 | H32: 0 | I32: 0 | J32: 0 | K32: 0
D33: Más de 70 t hasta 105 t | E33: t | F33: 0 | G33: 0 | H33: 0 | I33: 0 | J33: 0 | K33: 0
D34: Más de 105 t | E34: t | F34: 0 | G34: 0 | H34: 0 | I34: 0 | J34: 0 | K34: 0
D35: Estacionamiento internacional
D36: Hasta 10 t | E36: Operación | F36: 0 | G36: 0 | H36: 0 | I36: 0 | J36: 0 | K36: 0
D37: Más de 10 t hasta 35 t | E37: t | F37: 0 | G37: 0 | H37: 0 | I37: 0 | J37: 0 | K37: 0
D38: Más de 35 t hasta 70 t | E38: t | F38: 0 | G38: 0 | H38: 0 | I38: 0 | J38: 0 | K38: 0
D39: Más de 70 t hasta 105 t | E39: t | F39: 0 | G39: 0 | H39: 0 | I39: 0 | J39: 0 | K39: 0
D40: Más de 105 t | E40: t | F40: 0 | G40: 0 | H40: 0 | I40: 0 | J40: 0 | K40: 0
C42: 1.2.1.Mangas
D44: Servicio | E44: Unidad de cobro | F44: 2019 | G44: 2020 | H44: 2021 | I44: 2022 | J44: 2023 | K44: 2024*
D45: Uso de Mangas | E45: h | F45: 0 | G45: 0 | H45: 0 | I45: 0 | J45: 0 | K45: 0
B48: 1.2.2.NAZCA_DEMANDA PROYECTADA
C50: 1.2.2.TUUA
D52: Servicio | E52: Unidad de cobro | F52: 2025 | G52: 2026 | H52: 2027
D53: TUUA Nacional | E53: Pasajero | F53: 0 | G53: 0 | H53: 0
D54: TUUA Internacional | E54: Pasajero | F54: 0 | G54: 0 | H54: 0
C56: 1.2.2.Aterrizaje y despegue
D58: Servicio | E58: Unidad de cobro | F58: 2025 | G58: 2026 | H58: 2027
D59: Aterrizaje y despegue nacional
D60: Hasta 10 t | E60: Operación | F60: =+'supuesto demanda'!I39 -> 32488.38909 | G60: =+'supuesto demanda'!J39 -> 34762.21673 | H60: =+'supuesto demanda'!K39 -> 37195.35447
D61: Más de 10 t hasta 35 t | E61: t | F61: 0 | G61: 0 | H61: 0
D62: Más de 35 t hasta 70 t | E62: t | F62: 0 | G62: 0 | H62: 0
D63: Más de 70 t hasta 105 t | E63: t | F63: 0 | G63: 0 | H63: 0
D64: Más de 105 t | E64: t | F64: 0 | G64: 0 | H64: 0
D65: Aterrizaje y despegue Internacional
D66: Hasta 10 t | E66: Operación | F66: 0 | G66: 0 | H66: 0
D67: Más de 10 t hasta 35 t | E67: t | F67: 0 | G67: 0 | H67: 0
D68: Más de 35 t hasta 70 t | E68: t | F68: 0 | G68: 0 | H68: 0
D69: Más de 70 t hasta 105 t | E69: t | F69: 0 | G69: 0 | H69: 0
D70: Más de 105 t | E70: t | F70: 0 | G70: 0 | H70: 0
C72: 1.2.2.Estacionamiento nacional
D74: Servicio | E74: Unidad de cobro | F74: 2025 | G74: 2026 | H74: 2027
D75: Estacionamiento nacional
D76: Hasta 10 t | E76: Operación | F76: =+'supuesto demanda'!O88 -> 20468.84311 | G76: =+'supuesto demanda'!P88 -> 21901.43557 | H76: =+'supuesto demanda'!Q88 -> 23434.39907
D77: Más de 10 t hasta 35 t | E77: t | F77: 0 | G77: 0 | H77: 0
D78: Más de 35 t hasta 70 t | E78: t | F78: 0 | G78: 0 | H78: 0
D79: Más de 70 t hasta 105 t | E79: t | F79: 0 | G79: 0 | H79: 0
D80: Más de 105 t | E80: t | F80: 0 | G80: 0 | H80: 0
D81: Estacionamiento internacional
D82: Hasta 10 t | E82: Operación | F82: 0 | G82: 0 | H82: 0
D83: Más de 10 t hasta 35 t | E83: t | F83: 0 | G83: 0 | H83: 0
D84: Más de 35 t hasta 70 t | E84: t | F84: 0 | G84: 0 | H84: 0
D85: Más de 70 t hasta 105 t | E85: t | F85: 0 | G85: 0 | H85: 0
D86: Más de 105 t | E86: t | F86: 0 | G86: 0 | H86: 0
C88: 1.2.2.Mangas
D90: Servicio | E90: Unidad de cobro | F90: 2025 | G90: 2026 | H90: 2027
D91: Uso de Mangas | E91: h | F91: 0 | G91: 0 | H91: 0

Sheet 1.3_Demanda_G3
B2: 1.3.1.GRUPO V__ DEMANDA HISTORICA | K2: Índice
C4: 1.3.1.TUUA
D6: Servicio | E6: Unidad de cobro | F6: 2019 | G6: 2020 | H6: 2021 | I6: 2022 | J6: 2023 | K6: 2024*
D7: TUUA Nacional | E7: Pasajero | F7: =+'supuesto demanda'!C15 -> 330328 | G7: =+'supuesto demanda'!D15 -> 123244 | H7: =+'supuesto demanda'!E15 -> 252491 | I7: =+'supuesto demanda'!F15 -> 313183 | J7: =+'supuesto demanda'!G15 -> 273715 | K7: =+'supuesto demanda'!H15 -> 229651
D8: TUUA Internacional | E8: Pasajero | F8: 0 | G8: 0 | H8: 0 | I8: 0 | J8: 0 | K8: 0
C10: 1.3.1.Aterrizaje y despegue
D12: Servicio | E12: Unidad de cobro | F12: 2019 | G12: 2020 | H12: 2021 | I12: 2022 | J12: 2023 | K12: 2024*
D13: Aterrizaje y despegue nacional
D14: Hasta 10 t | E14: Operación | F14: 7462 | G14: 5841 | H14: 8221 | I14: 7961 | J14: 6351 | K14: =+'supuesto demanda'!H46 -> 5328.58448
D15: Más de 10 t hasta 35 t | E15: t | F15: 44828 | G15: 21930 | H15: 62926 | I15: 87032 | J15: 90651 | K15: =+'supuesto demanda'!H48 -> 76057.921
D16: Más de 35 t hasta 70 t | E16: t | F16: 160256 | G16: 47045 | H16: 67130 | I16: 100820 | J16: 103600 | K16: =+'supuesto demanda'!H50 -> 86921.95751
D17: Más de 70 t hasta 105 t | E17: t | F17: 179241 | G17: 68725 | H17: 170955 | I17: 110239 | J17: 77821 | K17: =+'supuesto demanda'!H52 -> 65293.49236
D18: Más de 105 t | E18: t | F18: 0 | G18: 0 | H18: 0 | I18: 0 | J18: 0 | K18: 0
D19: Aterrizaje y despegue Internacional
D20: Hasta 10 t | E20: Operación | F20: 0 | G20: 0 | H20: 0 | I20: 0 | J20: 0 | K20: 0
D21: Más de 10 t hasta 35 t | E21: t | F21: 0 | G21: 0 | H21: 0 | I21: 0 | J21: 0 | K21: 0
D22: Más de 35 t hasta 70 t | E22: t | F22: 0 | G22: 0 | H22: 0 | I22: 0 | J22: 0 | K22: 0
D23: Más de 70 t hasta 105 t | E23: t | F23: 0 | G23: 0 | H23: 0 | I23: 0 | J23: 0 | K23: 0
D24: Más de 105 t | E24: t | F24: 0 | G24: 0 | H24: 0 | I24: 0 | J24: 0 | K24: 0
C26: 1.3.1.Estacionamiento nacional
D28: Servicio | E28: Unidad de cobro | F28: 2019 | G28: 2020 | H28: 2021 | I28: 2022 | J28: 2023 | K28: 2024*
D29: Estacionamiento nacional
D30: Hasta 10 t | E30: Operación | F30: 4786.305728 | G30: 3746.557459 | H30: 5273.146528 | I30: 5106.376294 | J30: 4073.683688 | K30: =+'supuesto demanda'!N91 -> 3357.198149
D31: Más de 10 t hasta 35 t | E31: t | F31: 1417.383573 | G31: 842.7012271 | H31: 2002.038714 | I31: 2567.994864 | J31: 2779.29347 | K31: =+'supuesto demanda'!N92 -> 2357.069209
D32: Más de 35 t hasta 70 t | E32: t | F32: 1592.132514 | G32: 429.5825919 | H32: 611.2310173 | I32: 918.4399332 | J32: 943.2970861 | K32: =+'supuesto demanda'!N93 -> 782.341877
D33: Más de 70 t hasta 105 t | E33: t | F33: 1508.52484 | G33: 574.8892884 | H33: 1429.229766 | I33: 921.4855001 | J33: 646.5106458 | K33: =+'supuesto demanda'!N94 -> 534.4240795
D34: Más de 105 t | E34: t | F34: 0 | G34: 0 | H34: 0 | I34: 0 | J34: 0 | K34: =+'supuesto demanda'!N95 -> 0
D35: Estacionamiento internacional
D36: Hasta 10 t | E36: Operación | F36: 0 | G36: 0 | H36: 0 | I36: 0 | J36: 0 | K36: 0
D37: Más de 10 t hasta 35 t | E37: t | F37: 0 | G37: 0 | H37: 0 | I37: 0 | J37: 0 | K37: 0
D38: Más de 35 t hasta 70 t | E38: t | F38: 0 | G38: 0 | H38: 0 | I38: 0 | J38: 0 | K38: 0
D39: Más de 70 t hasta 105 t | E39: t | F39: 0 | G39: 0 | H39: 0 | I39: 0 | J39: 0 | K39: 0
D40: Más de 105 t | E40: t | F40: 0 | G40: 0 | H40: 0 | I40: 0 | J40: 0 | K40: 0
C42: 1.3.1.Mangas
D44: Servicio | E44: Unidad de cobro | F44: 2019 | G44: 2020 | H44: 2021 | I44: 2022 | J44: 2023 | K44: 2024*
D45: Uso de Mangas | E45: h | F45: 0 | G45: 0 | H45: 0 | I45: 0 | J45: 0 | K45: 0
B48: 1.3.2.GRUPO V_DEMANDA PROYECTADA
C50: 1.3.2.TUUA
D52: Servicio | E52: Unidad de cobro | F52: 2025 | G52: 2026 | H52: 2027
D53: TUUA Nacional | E53: Pasajero | F53: =+'supuesto demanda'!I15 -> 238836.5794 | G53: =+'supuesto demanda'!J15 -> 248389.8451 | H53: =+'supuesto demanda'!K15 -> 258324.7809
D54: TUUA Internacional | E54: Pasajero | F54: 0 | G54: 0
C56: 1.3.2.Aterrizaje y despegue
D58: Servicio | E58: Unidad de cobro | F58: 2025 | G58: 2026 | H58: 2027
D59: Aterrizaje y despegue nacional
D60: Hasta 10 t | E60: Operación | F60: =+'supuesto demanda'!I46 -> 5541.717171 | G60: =+'supuesto demanda'!J46 -> 5763.381278 | H60: =+'supuesto demanda'!K46 -> 5993.90126
D61: Más de 10 t hasta 35 t | E61: t | F61: =+'supuesto demanda'!I48 -> 79100.08529 | G61: =+'supuesto demanda'!J48 -> 82264.02332 | H61: =+'supuesto demanda'!K48 -> 85554.36631
D62: Más de 35 t hasta 70 t | E62: t | F62: =+'supuesto demanda'!I50 -> 90398.66146 | G62: =+'supuesto demanda'!J50 -> 94014.5332 | H62: =+'supuesto demanda'!K50 -> 97774.86546
D63: Más de 70 t hasta 105 t | E63: t | F63: =+'supuesto demanda'!I52 -> 67905.10109 | G63: =+'supuesto demanda'!J52 -> 70621.249 | H63: =+'supuesto demanda'!K52 -> 73445.91187
D64: Más de 105 t | E64: t | F64: 0 | G64: 0 | H64: 0
D65: Aterrizaje y despegue Internacional
D66: Hasta 10 t | E66: Operación | F66: 0 | G66: 0 | H66: 0
D67: Más de 10 t hasta 35 t | E67: t | F67: 0 | G67: 0 | H67: 0
D68: Más de 35 t hasta 70 t | E68: t | F68: 0 | G68: 0 | H68: 0
D69: Más de 70 t hasta 105 t | E69: t | F69: 0 | G69: 0 | H69: 0
D70: Más de 105 t | E70: t | F70: 0 | G70: 0 | H70: 0
C72: 1.3.2.Estacionamiento nacional
D74: Servicio | E74: Unidad de cobro | F74: 2025 | G74: 2026 | H74: 2027
D75: Estacionamiento nacional
D76: Hasta 10 t | E76: Operación | F76: =+'supuesto demanda'!O91 -> 3491.479341 | G76: =+'supuesto demanda'!P91 -> 3631.135629 | H76: =+'supuesto demanda'!Q91 -> 3776.371434
D77: Más de 10 t hasta 35 t | E77: t | F77: =+'supuesto demanda'!O92 -> 2451.34725 | G77: =+'supuesto demanda'!P92 -> 2549.399113 | H77: =+'supuesto demanda'!Q92 -> 2651.368324
D78: Más de 35 t hasta 70 t | E78: t | F78: =+'supuesto demanda'!O93 -> 813.6339828 | G78: =+'supuesto demanda'!P93 -> 846.1786696 | H78: =+'supuesto demanda'!Q93 -> 880.0235747
D79: Más de 70 t hasta 105 t | E79: t | F79: =+'supuesto demanda'!O94 -> 555.7999707 | G79: =+'supuesto demanda'!P94 -> 578.0315101 | H79: =+'supuesto demanda'!Q94 -> 601.1512392
D80: Más de 105 t | E80: t | F80: =+'supuesto demanda'!O95 -> 0 | G80: =+'supuesto demanda'!P95 -> 0 | H80: =+'supuesto demanda'!Q95 -> 0
D81: Estacionamiento internacional
D82: Hasta 10 t | E82: Operación | F82: 0 | G82: 0 | H82: 0
D83: Más de 10 t hasta 35 t | E83: t | F83: 0 | G83: 0 | H83: 0
D84: Más de 35 t hasta 70 t | E84: t | F84: 0 | G84: 0 | H84: 0
D85: Más de 70 t hasta 105 t | E85: t | F85: 0 | G85: 0 | H85: 0
D86: Más de 105 t | E86: t | F86: 0 | G86: 0 | H86: 0
C88: 1.3.2.Mangas
D90: Servicio | E90: Unidad de cobro | F90: 2025 | G90: 2026 | H90: 2027
D91: Uso de Mangas | E91: h | F91: 0 | G91: 0 | H91: 0

Sheet 2.1_Ingresos Regulados
A2: 2.1.Ingresos por servicios regulados | K2: Índice
A4: 2.0.TOTAL
B5: Montos expresados en USD
B6: Servicios aeroportuarios (USD) | C6: Historico | I6: Proyecciones
C7: 2019 | D7: 2020 | E7: 2021 | F7: 2022 | G7: 2023 | H7: 2024 | I7: =+H7+1 -> 2025 | J7: =+I7+1 -> 2026 | K7: =+J7+1 -> 2027
B9: TUUA Nacional | C9: =+C45+C81+C117 -> 7797195.76 | D9: =+D45+D81+D117 -> 2113601.68 | E9: 3545331.32 | F9: 8180268.14 | G9: 8644645.75 | H9: 11504958.56 | I9: =+I45+I81+I117 -> 11682810.54 | J9: 12472043.07 | K9: 13315379.06
B10: TUUA Internacional | C10: =+C46+C82+C118 -> 715300 | D10: 225580 | E10: 300 | F10: 108314.01 | G10: 167527.29 | H10: 967019.8095 | I10: =+I46+I82+I118 -> 975072.6241 | J10: 1033570.074 | K10: 1095578.81
B12: Aterrizaje y despegue nacional | C12: =+C48+C84+C120 -> 5356200.239 | D12: 1407384.351 | E12: 2212530.187 | F12: 5095006.693 | G12: 5328888.803 | H12: 7327437.293 | I12: =+I48+I84+I120 -> 7451204.593 | J12: 7965499.961 | K12: 8515515.516
B13: Hasta 10 t | C13: =+C49+C85+C121 -> 184592 | D13: 46914 | E13: 77058 | F13: 177553.76 | G13: 150059.36 | H13: 217717.6057 | I13: =+I49+I85+I121 -> 221165.9341 | J13: 236191.2604 | K13: 252252.2512
B14: Más de 10 t hasta 35 t | C14: =+C50+C86+C122 -> 35357.1357 | D14: 15465.3201 | E14: 47350.3854 | F14: 85040.899 | G14: 87938.502 | H14: 78083.7396 | I14: =+I50+I86+I122 -> 77401.84028 | J14: 80648.29044 | K14: 84043.65442
B15: Más de 35 t hasta 70 t | C15: =+C51+C87+C123 -> 1192269.423 | D15: 180792.8312 | E15: 194259.8864 | F15: 410505.9126 | G15: 855235.85 | H15: 1141519.184 | I15: =+I51+I87+I123 -> 1159382.811 | J15: 1237935.035 | K15: 1321881.393
B16: Más de 70 t hasta 105 t | C16: =+C52+C88+C124 -> 3943981.68 | D16: 1164212.2 | E16: 1893021.075 | F16: 4421906.121 | G16: 4235655.091 | H16: 5890116.764 | I16: =+I52+I88+I124 -> 5993254.007 | J16: 6410725.375 | K16: 6857338.217
B17: Más de 105 t | C17: =+C53+C89+C125 -> 0 | D17: 0 | E17: 840.84 | F17: 0 | G17: 0 | H17: 0 | I17: =+I53+I89+I125 -> 0 | J17: 0 | K17: 0
B18: Aterrizaje y despegue Internacional | C18: =+C54+C90+C126 -> 410805.48 | D18: 127215.12 | E18: 1479.34 | F18: 57927.21 | G18: 98413.24 | H18: 530393.52 | I18: =+I54+I90+I126 -> 534810.3485 | J18: 566895.1808 | K18: 600905.8924
B19: Hasta 10 t | C19: =+C55+C91+C127 -> 656 | D19: 128 | E19: 64 | F19: 740.95 | G19: 444.6 | H19: 690 | I19: =+I55+I91+I127 -> 695.7459444 | J19: 737.4857724 | K19: 781.7310169
B20: Más de 10 t hasta 35 t | C20: =+C56+C92+C128 -> 55544.94 | D20: 1000.89 | E20: 184.14 | F20: 3426.96 | G20: 2378.88 | H20: 3164.07 | I20: =+I56+I92+I128 -> 3190.418653 | J20: 3381.821171 | K20: 3584.712549
B21: Más de 35 t hasta 70 t | C21: =+C57+C93+C129 -> 102243.6 | D21: 37260 | E21: 1231.2 | F21: 42549.64 | G21: 9225 | H21: 8478.8 | I21: =+I57+I93+I129 -> 8549.406831 | J21: 9062.310677 | K21: 9606.001371
B22: Más de 70 t hasta 105 t | C22: =+C58+C94+C130 -> 252360.94 | D22: 88826.23 | E22: 0 | F22: 11209.66 | G22: 86364.76 | H22: 518060.65 | I22: =+I58+I94+I130 -> 522374.7771 | J22: 553713.5632 | K22: 586933.4474
B23: Más de 105 t | C23: =+C59+C95+C131 -> 0 | D23: 0 | E23: 0 | F23: 0 | G23: 0 | H23: 0 | I23: =+I59+I95+I131 -> 0 | J23: 0 | K23: 0
B25: Estacionamiento nacional | C25: =+C61+C97+C133 -> 4104.609343 | D25: 1050.108332 | E25: 1709.797275 | F25: 3830.667179 | G25: 3440.86403 | H25: 4672.689324 | I25: =+I61+I97+I133 -> 4572.069777 | J25: 4882.879205 | K25: 5215.198233
B26: Hasta 10 t | C26: =+C62+C98+C134 -> 2953.409882 | D26: 749.9328238 | E26: 1229.913068 | F26: 2814.110137 | G26: 2410.115566 | H26: 3343.662335 | I26: =+I62+I98+I134 -> 3347.149316 | J26: 3574.391655 | K26: 3817.381114
B27: Más de 10 t hasta 35 t | C27: =+C63+C99+C135 -> 29.2182322 | D27: 14.95996584 | E27: 39.58343569 | F27: 60.31900411 | G27: 59.78190678 | H27: 52.80603465 | I27: =+I63+I99+I135 -> 51.75138216 | J27: 53.97856471 | K27: 56.30522233
B28: Más de 35 t hasta 70 t | C28: =+C64+C100+C136 -> 293.9465662 | D28: 41.26899774 | E28: 44.31008477 | F28: 89.21974692 | G28: 179.3632064 | H28: 230.1566186 | I28: =+I64+I100+I136 -> 211.5126628 | J28: 225.8540822 | K28: 241.1813675
B29: Más de 70 t hasta 105 t | C29: =+C65+C101+C137 -> 828.0346628 | D29: 243.9465447 | E29: 395.9906867 | F29: 867.0182904 | G29: 791.6033513 | H29: 1046.064336 | I29: =+I65+I101+I137 -> 961.6564164 | J29: 1028.654904 | K29: 1100.330529
B30: Más de 105 t | C30: =+C66+C102+C138 -> 0 | D30: 0 | E30: 0 | F30: 0 | G30: 0 | H30: 0 | I30: =+I66+I102+I138 -> 0 | J30: 0 | K30: 0
B31: Estacionamiento internacional | C31: =+C67+C103+C139 -> 126.5705235 | D31: 97.0254174 | E31: 2.36597473 | F31: 39.37695192 | G31: 26.94373805 | H31: 119.381555 | I31: =+I67+I103+I139 -> 75.82758389 | J31: 80.14391405 | K31: 84.69471549
B32: Hasta 10 t | C32: =+C68+C104+C140 -> 13.5510292 | D32: 2.644103258 | E32: 1.322051629 | F32: 15.32753608 | G32: 9.254361404 | H32: 16.45344645 | I32: =+I68+I104+I140 -> 11.39710628 | J32: 11.85299054 | K32: 12.30887479
B33: Más de 10 t hasta 35 t | C33: =+C69+C105+C141 -> 37.18686335 | D33: 1.279038612 | E33: 0.1421154014 | F33: 2.7434174 | G33: 2.233014163 | H33: 1.736098216 | I33: =+I69+I105+I141 -> 2.69946834 | J33: 2.858043666 | K33: 3.027682386
B34: Más de 35 t hasta 70 t | C34: =+C70+C106+C142 -> 46.89400037 | D34: 33.14143296 | E34: 0.9018076995 | F34: 19.99007067 | G34: 5.047618096 | H34: 101.1920103 | I34: =+I70+I106+I142 -> 6.105430459 | J34: 6.469778398 | K34: 6.857548704
B35: Más de 70 t hasta 105 t | C35: =+C71+C107+C143 -> 28.93863059 | D35: 59.96084258 | E35: 0 | F35: 1.315927778 | G35: 10.40874438 | H35: 0 | I35: =+I71+I107+I143 -> 55.62557881 | J35: 58.96310145 | K35: 62.50060962
B36: Más de 105 t | C36: =+C72+C108+C144 -> 0 | D36: 0 | E36: 0 | F36: 0 | G36: 0 | H36: 0 | I36: =+I72+I108+I144 -> 0 | J36: 0 | K36: 0
B38: Uso de Mangas | C38: =+C74+C110+C146 -> 390120 | D38: 72930 | E38: 140310 | F38: 366034 | G38: 408797.44 | H38: 572328.5782 | I38: =+I74+I110+I146 -> 582542.1749 | J38: 623319.8562 | K38: 666952.0475
A40: 2.1.CUZCO | I40: =(I38+I31+I25+I18+I12+I10+I9)/1000 -> 21231.08817 | J40: =(J38+J31+J25+J18+J12+J10+J9)/1000 -> 22666.29116 | K40: 24199.63122
B41: Montos expresados en USD
B42: Servicios aeroportuarios (USD) | C42: Historico | I42: Proyecciones
C43: 2019 | D43: 2020 | E43: 2021 | F43: 2022 | G43: 2023 | H43: 2024 | I43: =+H43+1 -> 2025 | J43: 2026 | K43: 2027
B45: TUUA Nacional | C45: =+'1.Demanda'!D9*'8.TARIFAS'!D9 -> 6832638 | D45: =+'1.Demanda'!E9*'8.TARIFAS'!E9 -> 1753729.2 | E45: =+'1.Demanda'!F9*'8.TARIFAS'!F9 -> 2808057.6 | F45: =+'1.Demanda'!G9*'8.TARIFAS'!G9 -> 6971381.76 | G45: =+'1.Demanda'!H9*'8.TARIFAS'!H9 -> 7536100 | H45: =+'1.Demanda'!I9*'8.TARIFAS'!I9 -> 10542720.87 | I45: =+'1.Demanda'!J9*'8.TARIFAS'!J9 -> 10730862.97 | J45: =+'1.Demanda'!K9*'8.TARIFAS'!K9 -> 11482018.39 | K45: =+'1.Demanda'!L9*'8.TARIFAS'!L9 -> 12285756.01
B46: TUUA Internacional | C46: =+'1.Demanda'!D10*'8.TARIFAS'!D10 -> 715300 | D46: =+'1.Demanda'!E10*'8.TARIFAS'!E10 -> 225580 | E46: =+'1.Demanda'!F10*'8.TARIFAS'!F10 -> 300 | F46: =+'1.Demanda'!G10*'8.TARIFAS'!G10 -> 108314.01 | G46: =+'1.Demanda'!H10*'8.TARIFAS'!H10 -> 167527.29 | H46: =+'1.Demanda'!I10*'8.TARIFAS'!I10 -> 967019.8095 | I46: =+'1.Demanda'!J10*'8.TARIFAS'!J10 -> 975072.6241 | J46: =+'1.Demanda'!K10*'8.TARIFAS'!K10 -> 1033570.074 | K46: =+'1.Demanda'!L10*'8.TARIFAS'!L10 -> 1095578.81
B48: Aterrizaje y despegue nacional | C48: =SUM(C49:C53) -> 4923446.849 | D48: 1271268.501 | E48: 1942195.617 | F48: 4672986.813 | G48: 4933679.073 | H48: 6907789.466 | I48: =SUM(I49:I53) -> 7031070.582 | J48: 7523240.942 | K48: 8049873.713
B49: Hasta 10 t | C49: =+'1.Demanda'!D13*'8.TARIFAS'!D13 -> 24920 | D49: =+'1.Demanda'!E13*'8.TARIFAS'!E13 -> 8592 | E49: =+'1.Demanda'!F13*'8.TARIFAS'!F13 -> 20672 | F49: =+'1.Demanda'!G13*'8.TARIFAS'!G13 -> 33686.79 | G49: =+'1.Demanda'!H13*'8.TARIFAS'!H13 -> 20060.48 | H49: =+'1.Demanda'!I13*'8.TARIFAS'!I13 -> 28087.66239 | I49: =+'1.Demanda'!J13*'8.TARIFAS'!J13 -> 28590.00685 | J49: =+'1.Demanda'!K13*'8.TARIFAS'!K13 -> 30592.46057 | K49: =+'1.Demanda'!L13*'8.TARIFAS'!L13 -> 32736.44899
B50: Más de 10 t hasta 35 t | C50: =+'1.Demanda'!D14*'8.TARIFAS'!D14 -> 5300.8757 | D50: =+'1.Demanda'!E14*'8.TARIFAS'!E14 -> 772.2201 | E50: =+'1.Demanda'!F14*'8.TARIFAS'!F14 -> 5189.9654 | F50: =+'1.Demanda'!G14*'8.TARIFAS'!G14 -> 7582.419 | G50: =+'1.Demanda'!H14*'8.TARIFAS'!H14 -> 3633.072 | H50: =+'1.Demanda'!I14*'8.TARIFAS'!I14 -> 5068.13544 | I50: =+'1.Demanda'!J14*'8.TARIFAS'!J14 -> 5167.061369 | J50: =+'1.Demanda'!K14*'8.TARIFAS'!K14 -> 5524.180081 | K50: =+'1.Demanda'!L14*'8.TARIFAS'!L14 -> 5914.778673
B51: Más de 35 t hasta 70 t | C51: =+'1.Demanda'!D15*'8.TARIFAS'!D15 -> 1080090.223 | D51: =+'1.Demanda'!E15*'8.TARIFAS'!E15 -> 147861.3312 | E51: =+'1.Demanda'!F15*'8.TARIFAS'!F15 -> 147268.8864 | F51: =+'1.Demanda'!G15*'8.TARIFAS'!G15 -> 316743.3126 | G51: =+'1.Demanda'!H15*'8.TARIFAS'!H15 -> 753707.85 | H51: =+'1.Demanda'!I15*'8.TARIFAS'!I15 -> 1053728.006 | I51: =+'1.Demanda'!J15*'8.TARIFAS'!J15 -> 1072530.469 | J51: =+'1.Demanda'!K15*'8.TARIFAS'!K15 -> 1147608.671 | K51: =+'1.Demanda'!L15*'8.TARIFAS'!L15 -> 1227942.213
B52: Más de 70 t hasta 105 t | C52: =+'1.Demanda'!D16*'8.TARIFAS'!D16 -> 3813135.75 | D52: =+'1.Demanda'!E16*'8.TARIFAS'!E16 -> 1114042.95 | E52: =+'1.Demanda'!F16*'8.TARIFAS'!F16 -> 1768223.925 | F52: =+'1.Demanda'!G16*'8.TARIFAS'!G16 -> 4314974.291 | G52: =+'1.Demanda'!H16*'8.TARIFAS'!H16 -> 4156277.671 | H52: =+'1.Demanda'!I16*'8.TARIFAS'!I16 -> 5820905.662 | I52: =+'1.Demanda'!J16*'8.TARIFAS'!J16 -> 5924783.045 | J52: =+'1.Demanda'!K16*'8.TARIFAS'!K16 -> 6339515.631 | K52: =+'1.Demanda'!L16*'8.TARIFAS'!L16 -> 6783280.272
B53: Más de 105 t | C53: =+'1.Demanda'!D17*'8.TARIFAS'!D17 -> 0 | D53: =+'1.Demanda'!E17*'8.TARIFAS'!E17 -> 0 | E53: =+'1.Demanda'!F17*'8.TARIFAS'!F17 -> 840.84 | F53: =+'1.Demanda'!G17*'8.TARIFAS'!G17 -> 0 | G53: =+'1.Demanda'!H17*'8.TARIFAS'!H17 -> 0 | H53: =+'1.Demanda'!I17*'8.TARIFAS'!I17 -> 0 | I53: =+'1.Demanda'!J17*'8.TARIFAS'!J17 -> 0 | J53: =+'1.Demanda'!K17*'8.TARIFAS'!K17 -> 0 | K53: =+'1.Demanda'!L17*'8.TARIFAS'!L17 -> 0
B54: Aterrizaje y despegue Internacional | C54: =SUM(C55:C59) -> 410805.48 | D54: 127215.12 | E54: 1479.34 | F54: 57927.21 | G54: 98413.24 | H54: 530393.52 | I54: =SUM(I55:I59) -> 534810.3485 | J54: 566895.1808 | K54: 600905.8924
B55: Hasta 10 t | C55: =+'1.Demanda'!D19*'8.TARIFAS'!D19 -> 656 | D55: =+'1.Demanda'!E19*'8.TARIFAS'!E19 -> 128 | E55: =+'1.Demanda'!F19*'8.TARIFAS'!F19 -> 64 | F55: =+'1.Demanda'!G19*'8.TARIFAS'!G19 -> 740.95 | G55: =+'1.Demanda'!H19*'8.TARIFAS'!H19 -> 444.6 | H55: =+'1.Demanda'!I19*'8.TARIFAS'!I19 -> 690 | I55: =+'1.Demanda'!J19*'8.TARIFAS'!J19 -> 695.7459444 | J55: =+'1.Demanda'!K19*'8.TARIFAS'!K19 -> 737.4857724 | K55: =+'1.Demanda'!L19*'8.TARIFAS'!L19 -> 781.7310169
B56: Más de 10 t hasta 35 t | C56: =+'1.Demanda'!D20*'8.TARIFAS'!D20 -> 55544.94 | D56: =+'1.Demanda'!E20*'8.TARIFAS'!E20 -> 1000.89 | E56: =+'1.Demanda'!F20*'8.TARIFAS'!F20 -> 184.14 | F56: =+'1.Demanda'!G20*'8.TARIFAS'!G20 -> 3426.96 | G56: =+'1.Demanda'!H20*'8.TARIFAS'!H20 -> 2378.88 | H56: =+'1.Demanda'!I20*'8.TARIFAS'!I20 -> 3164.07 | I56: =+'1.Demanda'!J20*'8.TARIFAS'!J20 -> 3190.418653 | J56: =+'1.Demanda'!K20*'8.TARIFAS'!K20 -> 3381.821171 | K56: =+'1.Demanda'!L20*'8.TARIFAS'!L20 -> 3584.712549
B57: Más de 35 t hasta 70 t | C57: =+'1.Demanda'!D21*'8.TARIFAS'!D21 -> 102243.6 | D57: =+'1.Demanda'!E21*'8.TARIFAS'!E21 -> 37260 | E57: =+'1.Demanda'!F21*'8.TARIFAS'!F21 -> 1231.2 | F57: =+'1.Demanda'!G21*'8.TARIFAS'!G21 -> 42549.64 | G57: =+'1.Demanda'!H21*'8.TARIFAS'!H21 -> 9225 | H57: =+'1.Demanda'!I21*'8.TARIFAS'!I21 -> 8478.8 | I57: =+'1.Demanda'!J21*'8.TARIFAS'!J21 -> 8549.406831 | J57: =+'1.Demanda'!K21*'8.TARIFAS'!K21 -> 9062.310677 | K57: =+'1.Demanda'!L21*'8.TARIFAS'!L21 -> 9606.001371
B58: Más de 70 t hasta 105 t | C58: =+'1.Demanda'!D22*'8.TARIFAS'!D22 -> 252360.94 | D58: =+'1.Demanda'!E22*'8.TARIFAS'!E22 -> 88826.23 | E58: =+'1.Demanda'!F22*'8.TARIFAS'!F22 -> 0 | F58: =+'1.Demanda'!G22*'8.TARIFAS'!G22 -> 11209.66 | G58: =+'1.Demanda'!H22*'8.TARIFAS'!H22 -> 86364.76 | H58: =+'1.Demanda'!I22*'8.TARIFAS'!I22 -> 518060.65 | I58: =+'1.Demanda'!J22*'8.TARIFAS'!J22 -> 522374.7771 | J58: =+'1.Demanda'!K22*'8.TARIFAS'!K22 -> 553713.5632 | K58: =+'1.Demanda'!L22*'8.TARIFAS'!L22 -> 586933.4474
B59: Más de 105 t | C59: =+'1.Demanda'!D23*'8.TARIFAS'!D23 -> 0 | D59: =+'1.Demanda'!E23*'8.TARIFAS'!E23 -> 0 | E59: =+'1.Demanda'!F23*'8.TARIFAS'!F23 -> 0 | F59: =+'1.Demanda'!G23*'8.TARIFAS'!G23 -> 0 | G59: =+'1.Demanda'!H23*'8.TARIFAS'!H23 -> 0 | H59: =+'1.Demanda'!I23*'8.TARIFAS'!I23 -> 0 | I59: =+'1.Demanda'!J23*'8.TARIFAS'!J23 -> 0 | J59: =+'1.Demanda'!K23*'8.TARIFAS'!K23 -> 0 | K59: =+'1.Demanda'!L23*'8.TARIFAS'!L23 -> 0
B61: Estacionamiento nacional | C61: =SUM(C62:C66) -> 1464.577595 | D61: 403.382494 | E61: 735.172493 | F61: 1449.475914 | G61: 1250.244201 | H61: 1686.040638 | I61: =SUM(I62:I66) -> 1540.927972 | J61: 1648.743349 | K61: 1764.213612
B62: Hasta 10 t | C62: =+'1.Demanda'!D26*'8.TARIFAS'!D26 -> 392.5122056 | D62: =+'1.Demanda'!E26*'8.TARIFAS'!E26 -> 135.3316561 | E62: =+'1.Demanda'!F26*'8.TARIFAS'!F26 -> 325.6024203 | F62: =+'1.Demanda'!G26*'8.TARIFAS'!G26 -> 521.0772789 | G62: =+'1.Demanda'!H26*'8.TARIFAS'!H26 -> 306.877761 | H62: =+'1.Demanda'!I26*'8.TARIFAS'!I26 -> 430.4903528 | I62: =+'1.Demanda'!J26*'8.TARIFAS'!J26 -> 388.6984573 | J62: =+'1.Demanda'!K26*'8.TARIFAS'!K26 -> 415.8543231 | K62: =+'1.Demanda'!L26*'8.TARIFAS'!L26 -> 445.0187588
B63: Más de 10 t hasta 35 t | C63: =+'1.Demanda'!D27*'8.TARIFAS'!D27 -> 5.477057353 | D63: =+'1.Demanda'!E27*'8.TARIFAS'!E27 -> 0.8447202883 | E63: =+'1.Demanda'!F27*'8.TARIFAS'!F27 -> 6.049287226 | F63: =+'1.Demanda'!G27*'8.TARIFAS'!G27 -> 8.959106843 | G63: =+'1.Demanda'!H27*'8.TARIFAS'!H27 -> 4.196037382 | H63: =+'1.Demanda'!I27*'8.TARIFAS'!I27 -> 5.664650466 | I63: =+'1.Demanda'!J27*'8.TARIFAS'!J27 -> 5.114125603 | J63: =+'1.Demanda'!K27*'8.TARIFAS'!K27 -> 5.475856439 | K63: =+'1.Demanda'!L27*'8.TARIFAS'!L27 -> 5.862534228
B64: Más de 35 t hasta 70 t | C64: =+'1.Demanda'!D28*'8.TARIFAS'!D28 -> 266.0842472 | D64: =+'1.Demanda'!E28*'8.TARIFAS'!E28 -> 33.75130238 | E64: =+'1.Demanda'!F28*'8.TARIFAS'!F28 -> 33.61354197 | F64: =+'1.Demanda'!G28*'8.TARIFAS'!G28 -> 70.85094826 | G64: =+'1.Demanda'!H28*'8.TARIFAS'!H28 -> 160.4972646 | H64: =+'1.Demanda'!I28*'8.TARIFAS'!I28 -> 214.5097811 | I64: =+'1.Demanda'!J28*'8.TARIFAS'!J28 -> 196.0331517 | J64: =+'1.Demanda'!K28*'8.TARIFAS'!K28 -> 209.7554035 | K64: =+'1.Demanda'!L28*'8.TARIFAS'!L28 -> 224.4387844
B65: Más de 70 t hasta 105 t | C65: =+'1.Demanda'!D29*'8.TARIFAS'!D29 -> 800.5040845 | D65: =+'1.Demanda'!E29*'8.TARIFAS'!E29 -> 233.4548152 | E65: =+'1.Demanda'!F29*'8.TARIFAS'!F29 -> 369.9072435 | F65: =+'1.Demanda'!G29*'8.TARIFAS'!G29 -> 848.5885803 | G65: =+'1.Demanda'!H29*'8.TARIFAS'!H29 -> 778.6731384 | H65: =+'1.Demanda'!I29*'8.TARIFAS'!I29 -> 1035.375854 | I65: =+'1.Demanda'!J29*'8.TARIFAS'!J29 -> 951.0822369 | J65: =+'1.Demanda'!K29*'8.TARIFAS'!K29 -> 1017.657766 | K65: =+'1.Demanda'!L29*'8.TARIFAS'!L29 -> 1088.893535
B66: Más de 105 t | C66: =+'1.Demanda'!D30*'8.TARIFAS'!D30 -> 0 | D66: =+'1.Demanda'!E30*'8.TARIFAS'!E30 -> 0 | E66: =+'1.Demanda'!F30*'8.TARIFAS'!F30 -> 0 | F66: =+'1.Demanda'!G30*'8.TARIFAS'!G30 -> 0 | G66: =+'1.Demanda'!H30*'8.TARIFAS'!H30 -> 0 | H66: =+'1.Demanda'!I30*'8.TARIFAS'!I30 -> 0 | I66: =+'1.Demanda'!J30*'8.TARIFAS'!J30 -> 0 | J66: =+'1.Demanda'!K30*'8.TARIFAS'!K30 -> 0 | K66: =+'1.Demanda'!L30*'8.TARIFAS'!L30 -> 0
B67: Estacionamiento internacional | C67: =SUM(C68:C72) -> 126.5705235 | D67: 97.0254174 | E67: 2.36597473 | F67: 39.37695192 | G67: 26.94373805 | H67: 119.381555 | I67: =SUM(I68:I72) -> 75.82758389 | J67: 80.14391405 | K67: 84.69471549
B68: Hasta 10 t | C68: =+'1.Demanda'!D32*'8.TARIFAS'!D32 -> 13.5510292 | D68: =+'1.Demanda'!E32*'8.TARIFAS'!E32 -> 2.644103258 | E68: =+'1.Demanda'!F32*'8.TARIFAS'!F32 -> 1.322051629 | F68: =+'1.Demanda'!G32*'8.TARIFAS'!G32 -> 15.32753608 | G68: =+'1.Demanda'!H32*'8.TARIFAS'!H32 -> 9.254361404 | H68: =+'1.Demanda'!I32*'8.TARIFAS'!I32 -> 16.45344645 | I68: =+'1.Demanda'!J32*'8.TARIFAS'!J32 -> 11.39710628 | J68: =+'1.Demanda'!K32*'8.TARIFAS'!K32 -> 11.85299054 | K68: =+'1.Demanda'!L32*'8.TARIFAS'!L32 -> 12.30887479
B69: Más de 10 t hasta 35 t | C69: =+'1.Demanda'!D33*'8.TARIFAS'!D33 -> 37.18686335 | D69: =+'1.Demanda'!E33*'8.TARIFAS'!E33 -> 1.279038612 | E69: =+'1.Demanda'!F33*'8.TARIFAS'!F33 -> 0.1421154014 | F69: =+'1.Demanda'!G33*'8.TARIFAS'!G33 -> 2.7434174 | G69: =+'1.Demanda'!H33*'8.TARIFAS'!H33 -> 2.233014163 | H69: =+'1.Demanda'!I33*'8.TARIFAS'!I33 -> 1.736098216 | I69: =+'1.Demanda'!J33*'8.TARIFAS'!J33 -> 2.69946834 | J69: =+'1.Demanda'!K33*'8.TARIFAS'!K33 -> 2.858043666 | K69: =+'1.Demanda'!L33*'8.TARIFAS'!L33 -> 3.027682386
B70: Más de 35 t hasta 70 t | C70: =+'1.Demanda'!D34*'8.TARIFAS'!D34 -> 46.89400037 | D70: =+'1.Demanda'!E34*'8.TARIFAS'!E34 -> 33.14143296 | E70: =+'1.Demanda'!F34*'8.TARIFAS'!F34 -> 0.9018076995 | F70: =+'1.Demanda'!G34*'8.TARIFAS'!G34 -> 19.99007067 | G70: =+'1.Demanda'!H34*'8.TARIFAS'!H34 -> 5.047618096 | H70: =+'1.Demanda'!I34*'8.TARIFAS'!I34 -> 101.1920103 | I70: =+'1.Demanda'!J34*'8.TARIFAS'!J34 -> 6.105430459 | J70: =+'1.Demanda'!K34*'8.TARIFAS'!K34 -> 6.469778398 | K70: =+'1.Demanda'!L34*'8.TARIFAS'!L34 -> 6.857548704
B71: Más de 70 t hasta 105 t | C71: =+'1.Demanda'!D35*'8.TARIFAS'!D35 -> 28.93863059 | D71: =+'1.Demanda'!E35*'8.TARIFAS'!E35 -> 59.96084258 | E71: =+'1.Demanda'!F35*'8.TARIFAS'!F35 -> 0 | F71: =+'1.Demanda'!G35*'8.TARIFAS'!G35 -> 1.315927778 | G71: =+'1.Demanda'!H35*'8.TARIFAS'!H35 -> 10.40874438 | H71: =+'1.Demanda'!I35*'8.TARIFAS'!I35 -> 0 | I71: =+'1.Demanda'!J35*'8.TARIFAS'!J35 -> 55.62557881 | J71: =+'1.Demanda'!K35*'8.TARIFAS'!K35 -> 58.96310145 | K71: =+'1.Demanda'!L35*'8.TARIFAS'!L35 -> 62.50060962
B72: Más de 105 t | C72: =+'1.Demanda'!D36*'8.TARIFAS'!D36 -> 0 | D72: =+'1.Demanda'!E36*'8.TARIFAS'!E36 -> 0 | E72: =+'1.Demanda'!F36*'8.TARIFAS'!F36 -> 0 | F72: =+'1.Demanda'!G36*'8.TARIFAS'!G36 -> 0 | G72: =+'1.Demanda'!H36*'8.TARIFAS'!H36 -> 0 | H72: =+'1.Demanda'!I36*'8.TARIFAS'!I36 -> 0 | I72: =+'1.Demanda'!J36*'8.TARIFAS'!J36 -> 0 | J72: =+'1.Demanda'!K36*'8.TARIFAS'!K36 -> 0 | K72: =+'1.Demanda'!L36*'8.TARIFAS'!L36 -> 0
B74: Uso de Mangas | C74: =+'1.Demanda'!D38*'8.TARIFAS'!D38 -> 390120 | D74: =+'1.Demanda'!E38*'8.TARIFAS'!E38 -> 72930 | E74: =+'1.Demanda'!F38*'8.TARIFAS'!F38 -> 140310 | F74: =+'1.Demanda'!G38*'8.TARIFAS'!G38 -> 366034 | G74: =+'1.Demanda'!H38*'8.TARIFAS'!H38 -> 408797.44 | H74: =+'1.Demanda'!I38*'8.TARIFAS'!I38 -> 572328.5782 | I74: =+'1.Demanda'!J38*'8.TARIFAS'!J38 -> 582542.1749 | J74: =+'1.Demanda'!K38*'8.TARIFAS'!K38 -> 623319.8562 | K74: =+'1.Demanda'!L38*'8.TARIFAS'!L38 -> 666952.0475
A76: 2.2.NAZCA
B77: Montos expresados en USD
B78: Servicios aeroportuarios (USD) | C78: Historico | I78: Proyecciones
C79: 2019 | D79: 2020 | E79: 2021 | F79: 2022 | G79: 2023 | H79: 2024 | I79: =+H79+1 -> 2025 | J79: =+I79+1 -> 2026 | K79: =+J79+1 -> 2027
B81: TUUA Nacional | C81: =+'1.Demanda'!D45*'8.TARIFAS'!D45 -> 0 | D81: =+'1.Demanda'!E45*'8.TARIFAS'!E45 -> 0 | E81: =+'1.Demanda'!F45*'8.TARIFAS'!F45 -> 0 | F81: =+'1.Demanda'!G45*'8.TARIFAS'!G45 -> 0 | G81: =+'1.Demanda'!H45*'8.TARIFAS'!H45 -> 0 | H81: =+'1.Demanda'!I45*'8.TARIFAS'!I45 -> 0 | I81: =+'1.Demanda'!J45*'8.TARIFAS'!J45 -> 0 | J81: =+'1.Demanda'!K45*'8.TARIFAS'!K45 -> 0 | K81: =+'1.Demanda'!L45*'8.TARIFAS'!L45 -> 0
B82: TUUA Internacional | C82: =+'1.Demanda'!D46*'8.TARIFAS'!D46 -> 0 | D82: =+'1.Demanda'!E46*'8.TARIFAS'!E46 -> 0 | E82: =+'1.Demanda'!F46*'8.TARIFAS'!F46 -> 0 | F82: =+'1.Demanda'!G46*'8.TARIFAS'!G46 -> 0 | G82: =+'1.Demanda'!H46*'8.TARIFAS'!H46 -> 0 | H82: =+'1.Demanda'!I46*'8.TARIFAS'!I46 -> 0 | I82: =+'1.Demanda'!J46*'8.TARIFAS'!J46 -> 0 | J82: =+'1.Demanda'!K46*'8.TARIFAS'!K46 -> 0 | K82: =+'1.Demanda'!L46*'8.TARIFAS'!L46 -> 0
B84: Aterrizaje y despegue nacional | C84: =SUM(C85:C89) -> 144769.5 | D84: 26640 | E84: 39944 | F84: 122770.32 | G84: 112343.1 | H84: 174283.62 | I84: =SUM(I85:I89) -> 177393.7168 | J84: 189809.3135 | K84: 203094.7782
B85: Hasta 10 t | C85: =+'1.Demanda'!D49*'8.TARIFAS'!D49 -> 144748 | D85: =+'1.Demanda'!E49*'8.TARIFAS'!E49 -> 26640 | E85: =+'1.Demanda'!F49*'8.TARIFAS'!F49 -> 39944 | F85: =+'1.Demanda'!G49*'8.TARIFAS'!G49 -> 122770.32 | G85: =+'1.Demanda'!H49*'8.TARIFAS'!H49 -> 112343.1 | H85: =+'1.Demanda'!I49*'8.TARIFAS'!I49 -> 174283.62 | I85: =+'1.Demanda'!J49*'8.TARIFAS'!J49 -> 177393.7168 | J85: =+'1.Demanda'!K49*'8.TARIFAS'!K49 -> 189809.3135 | K85: =+'1.Demanda'!L49*'8.TARIFAS'!L49 -> 203094.7782
B86: Más de 10 t hasta 35 t | C86: =+'1.Demanda'!D50*'8.TARIFAS'!D50 -> 21.5 | D86: =+'1.Demanda'!E50*'8.TARIFAS'!E50 -> 0 | E86: =+'1.Demanda'!F50*'8.TARIFAS'!F50 -> 0 | F86: =+'1.Demanda'!G50*'8.TARIFAS'!G50 -> 0 | G86: =+'1.Demanda'!H50*'8.TARIFAS'!H50 -> 0 | H86: =+'1.Demanda'!I50*'8.TARIFAS'!I50 -> 0 | I86: =+'1.Demanda'!J50*'8.TARIFAS'!J50 -> 0 | J86: =+'1.Demanda'!K50*'8.TARIFAS'!K50 -> 0 | K86: =+'1.Demanda'!L50*'8.TARIFAS'!L50 -> 0
B87: Más de 35 t hasta 70 t | C87: =+'1.Demanda'!D51*'8.TARIFAS'!D51 -> 0 | D87: =+'1.Demanda'!E51*'8.TARIFAS'!E51 -> 0 | E87: =+'1.Demanda'!F51*'8.TARIFAS'!F51 -> 0 | F87: =+'1.Demanda'!G51*'8.TARIFAS'!G51 -> 0 | G87: =+'1.Demanda'!H51*'8.TARIFAS'!H51 -> 0 | H87: =+'1.Demanda'!I51*'8.TARIFAS'!I51 -> 0 | I87: =+'1.Demanda'!J51*'8.TARIFAS'!J51 -> 0 | J87: =+'1.Demanda'!K51*'8.TARIFAS'!K51 -> 0 | K87: =+'1.Demanda'!L51*'8.TARIFAS'!L51 -> 0
B88: Más de 70 t hasta 105 t | C88: =+'1.Demanda'!D52*'8.TARIFAS'!D52 -> 0 | D88: =+'1.Demanda'!E52*'8.TARIFAS'!E52 -> 0 | E88: =+'1.Demanda'!F52*'8.TARIFAS'!F52 -> 0 | F88: =+'1.Demanda'!G52*'8.TARIFAS'!G52 -> 0 | G88: =+'1.Demanda'!H52*'8.TARIFAS'!H52 -> 0 | H88: =+'1.Demanda'!I52*'8.TARIFAS'!I52 -> 0 | I88: =+'1.Demanda'!J52*'8.TARIFAS'!J52 -> 0 | J88: =+'1.Demanda'!K52*'8.TARIFAS'!K52 -> 0 | K88: =+'1.Demanda'!L52*'8.TARIFAS'!L52 -> 0
B89: Más de 105 t | C89: =+'1.Demanda'!D53*'8.TARIFAS'!D53 -> 0 | D89: =+'1.Demanda'!E53*'8.TARIFAS'!E53 -> 0 | E89: =+'1.Demanda'!F53*'8.TARIFAS'!F53 -> 0 | F89: =+'1.Demanda'!G53*'8.TARIFAS'!G53 -> 0 | G89: =+'1.Demanda'!H53*'8.TARIFAS'!H53 -> 0 | H89: =+'1.Demanda'!I53*'8.TARIFAS'!I53 -> 0 | I89: =+'1.Demanda'!J53*'8.TARIFAS'!J53 -> 0 | J89: =+'1.Demanda'!K53*'8.TARIFAS'!K53 -> 0 | K89: =+'1.Demanda'!L53*'8.TARIFAS'!L53 -> 0
B90: Aterrizaje y despegue Internacional | C90: =SUM(C91:C95) -> 0 | D90: 0 | E90: 0 | F90: 0 | G90: 0 | H90: 0 | I90: =SUM(I91:I95) -> 0 | J90: 0 | K90: 0
B91: Hasta 10 t | C91: =+'1.Demanda'!D55*'8.TARIFAS'!D55 -> 0 | D91: =+'1.Demanda'!E55*'8.TARIFAS'!E55 -> 0 | E91: =+'1.Demanda'!F55*'8.TARIFAS'!F55 -> 0 | F91: =+'1.Demanda'!G55*'8.TARIFAS'!G55 -> 0 | G91: =+'1.Demanda'!H55*'8.TARIFAS'!H55 -> 0 | H91: =+'1.Demanda'!I55*'8.TARIFAS'!I55 -> 0 | I91: =+'1.Demanda'!J55*'8.TARIFAS'!J55 -> 0 | J91: =+'1.Demanda'!K55*'8.TARIFAS'!K55 -> 0 | K91: =+'1.Demanda'!L55*'8.TARIFAS'!L55 -> 0
B92: Más de 10 t hasta 35 t | C92: =+'1.Demanda'!D56*'8.TARIFAS'!D56 -> 0 | D92: =+'1.Demanda'!E56*'8.TARIFAS'!E56 -> 0 | E92: =+'1.Demanda'!F56*'8.TARIFAS'!F56 -> 0 | F92: =+'1.Demanda'!G56*'8.TARIFAS'!G56 -> 0 | G92: =+'1.Demanda'!H56*'8.TARIFAS'!H56 -> 0 | H92: =+'1.Demanda'!I56*'8.TARIFAS'!I56 -> 0 | I92: =+'1.Demanda'!J56*'8.TARIFAS'!J56 -> 0 | J92: =+'1.Demanda'!K56*'8.TARIFAS'!K56 -> 0 | K92: =+'1.Demanda'!L56*'8.TARIFAS'!L56 -> 0
B93: Más de 35 t hasta 70 t | C93: =+'1.Demanda'!D57*'8.TARIFAS'!D57 -> 0 | D93: =+'1.Demanda'!E57*'8.TARIFAS'!E57 -> 0 | E93: =+'1.Demanda'!F57*'8.TARIFAS'!F57 -> 0 | F93: =+'1.Demanda'!G57*'8.TARIFAS'!G57 -> 0 | G93: =+'1.Demanda'!H57*'8.TARIFAS'!H57 -> 0 | H93: =+'1.Demanda'!I57*'8.TARIFAS'!I57 -> 0 | I93: =+'1.Demanda'!J57*'8.TARIFAS'!J57 -> 0 | J93: =+'1.Demanda'!K57*'8.TARIFAS'!K57 -> 0 | K93: =+'1.Demanda'!L57*'8.TARIFAS'!L57 -> 0
B94: Más de 70 t hasta 105 t | C94: =+'1.Demanda'!D58*'8.TARIFAS'!D58 -> 0 | D94: =+'1.Demanda'!E58*'8.TARIFAS'!E58 -> 0 | E94: =+'1.Demanda'!F58*'8.TARIFAS'!F58 -> 0 | F94: =+'1.Demanda'!G58*'8.TARIFAS'!G58 -> 0 | G94: =+'1.Demanda'!H58*'8.TARIFAS'!H58 -> 0 | H94: =+'1.Demanda'!I58*'8.TARIFAS'!I58 -> 0 | I94: =+'1.Demanda'!J58*'8.TARIFAS'!J58 -> 0 | J94: =+'1.Demanda'!K58*'8.TARIFAS'!K58 -> 0 | K94: =+'1.Demanda'!L58*'8.TARIFAS'!L58 -> 0
B95: Más de 105 t | C95: =+'1.Demanda'!D59*'8.TARIFAS'!D59 -> 0 | D95: =+'1.Demanda'!E59*'8.TARIFAS'!E59 -> 0 | E95: =+'1.Demanda'!F59*'8.TARIFAS'!F59 -> 0 | F95: =+'1.Demanda'!G59*'8.TARIFAS'!G59 -> 0 | G95: =+'1.Demanda'!H59*'8.TARIFAS'!H59 -> 0 | H95: =+'1.Demanda'!I59*'8.TARIFAS'!I59 -> 0 | I95: =+'1.Demanda'!J59*'8.TARIFAS'!J59 -> 0 | J95: =+'1.Demanda'!K59*'8.TARIFAS'!K59 -> 0 | K95: =+'1.Demanda'!L59*'8.TARIFAS'!L59 -> 0
B97: Estacionamiento nacional | C97: =SUM(C98:C102) -> 2321.58239 | D97: 427.2732947 | E97: 640.6533214 | F97: 1935.586518 | G97: 1818.079947 | H97: 2678.168112 | I97: =SUM(I98:I102) -> 2725.960108 | J97: 2916.747143 | K97: 3120.901199
B98: Hasta 10 t | C98: =+'1.Demanda'!D62*'8.TARIFAS'!D62 -> 2321.58239 | D98: =+'1.Demanda'!E62*'8.TARIFAS'!E62 -> 427.2732947 | E98: =+'1.Demanda'!F62*'8.TARIFAS'!F62 -> 640.6533214 | F98: =+'1.Demanda'!G62*'8.TARIFAS'!G62 -> 1935.586518 | G98: =+'1.Demanda'!H62*'8.TARIFAS'!H62 -> 1818.079947 | H98: =+'1.Demanda'!I62*'8.TARIFAS'!I62 -> 2678.168112 | I98: =+'1.Demanda'!J62*'8.TARIFAS'!J62 -> 2725.960108 | J98: =+'1.Demanda'!K62*'8.TARIFAS'!K62 -> 2916.747143 | K98: =+'1.Demanda'!L62*'8.TARIFAS'!L62 -> 3120.901199
B99: Más de 10 t hasta 35 t | C99: =+'1.Demanda'!D63*'8.TARIFAS'!D63 -> 0 | D99: =+'1.Demanda'!E63*'8.TARIFAS'!E63 -> 0 | E99: =+'1.Demanda'!F63*'8.TARIFAS'!F63 -> 0 | F99: =+'1.Demanda'!G63*'8.TARIFAS'!G63 -> 0 | G99: =+'1.Demanda'!H63*'8.TARIFAS'!H63 -> 0 | H99: =+'1.Demanda'!I63*'8.TARIFAS'!I63 -> 0 | I99: =+'1.Demanda'!J63*'8.TARIFAS'!J63 -> 0 | J99: =+'1.Demanda'!K63*'8.TARIFAS'!K63 -> 0 | K99: =+'1.Demanda'!L63*'8.TARIFAS'!L63 -> 0
B100: Más de 35 t hasta 70 t | C100: =+'1.Demanda'!D64*'8.TARIFAS'!D64 -> 0 | D100: =+'1.Demanda'!E64*'8.TARIFAS'!E64 -> 0 | E100: =+'1.Demanda'!F64*'8.TARIFAS'!F64 -> 0 | F100: =+'1.Demanda'!G64*'8.TARIFAS'!G64 -> 0 | G100: =+'1.Demanda'!H64*'8.TARIFAS'!H64 -> 0 | H100: =+'1.Demanda'!I64*'8.TARIFAS'!I64 -> 0 | I100: =+'1.Demanda'!J64*'8.TARIFAS'!J64 -> 0 | J100: =+'1.Demanda'!K64*'8.TARIFAS'!K64 -> 0 | K100: =+'1.Demanda'!L64*'8.TARIFAS'!L64 -> 0
B101: Más de 70 t hasta 105 t | C101: =+'1.Demanda'!D65*'8.TARIFAS'!D65 -> 0 | D101: =+'1.Demanda'!E65*'8.TARIFAS'!E65 -> 0 | E101: =+'1.Demanda'!F65*'8.TARIFAS'!F65 -> 0 | F101: =+'1.Demanda'!G65*'8.TARIFAS'!G65 -> 0 | G101: =+'1.Demanda'!H65*'8.TARIFAS'!H65 -> 0 | H101: =+'1.Demanda'!I65*'8.TARIFAS'!I65 -> 0 | I101: =+'1.Demanda'!J65*'8.TARIFAS'!J65 -> 0 | J101: =+'1.Demanda'!K65*'8.TARIFAS'!K65 -> 0 | K101: =+'1.Demanda'!L65*'8.TARIFAS'!L65 -> 0
B102: Más de 105 t | C102: =+'1.Demanda'!D66*'8.TARIFAS'!D66 -> 0 | D102: =+'1.Demanda'!E66*'8.TARIFAS'!E66 -> 0 | E102: =+'1.Demanda'!F66*'8.TARIFAS'!F66 -> 0 | F102: =+'1.Demanda'!G66*'8.TARIFAS'!G66 -> 0 | G102: =+'1.Demanda'!H66*'8.TARIFAS'!H66 -> 0 | H102: =+'1.Demanda'!I66*'8.TARIFAS'!I66 -> 0 | I102: =+'1.Demanda'!J66*'8.TARIFAS'!J66 -> 0 | J102: =+'1.Demanda'!K66*'8.TARIFAS'!K66 -> 0 | K102: =+'1.Demanda'!L66*'8.TARIFAS'!L66 -> 0
B103: Estacionamiento internacional | C103: =SUM(C104:C110) -> 0 | D103: =SUM(D104:D108) -> 0 | E103: =SUM(E104:E108) -> 0 | F103: =SUM(F104:F108) -> 0 | G103: =SUM(G104:G108) -> 0 | H103: =SUM(H104:H108) -> 0 | I103: =SUM(I104:I108) -> 0 | J103: 0 | K103: 0
B104: Hasta 10 t | C104: =+'1.Demanda'!D68*'8.TARIFAS'!D68 -> 0 | D104: =+'1.Demanda'!E68*'8.TARIFAS'!E68 -> 0 | E104: =+'1.Demanda'!F68*'8.TARIFAS'!F68 -> 0 | F104: =+'1.Demanda'!G68*'8.TARIFAS'!G68 -> 0 | G104: =+'1.Demanda'!H68*'8.TARIFAS'!H68 -> 0 | H104: =+'1.Demanda'!I68*'8.TARIFAS'!I68 -> 0 | I104: =+'1.Demanda'!J68*'8.TARIFAS'!J68 -> 0 | J104: =+'1.Demanda'!K68*'8.TARIFAS'!K68 -> 0 | K104: =+'1.Demanda'!L68*'8.TARIFAS'!L68 -> 0
B105: Más de 10 t hasta 35 t | C105: =+'1.Demanda'!D69*'8.TARIFAS'!D69 -> 0 | D105: =+'1.Demanda'!E69*'8.TARIFAS'!E69 -> 0 | E105: =+'1.Demanda'!F69*'8.TARIFAS'!F69 -> 0 | F105: =+'1.Demanda'!G69*'8.TARIFAS'!G69 -> 0 | G105: =+'1.Demanda'!H69*'8.TARIFAS'!H69 -> 0 | H105: =+'1.Demanda'!I69*'8.TARIFAS'!I69 -> 0 | I105: =+'1.Demanda'!J69*'8.TARIFAS'!J69 -> 0 | J105: =+'1.Demanda'!K69*'8.TARIFAS'!K69 -> 0 | K105: =+'1.Demanda'!L69*'8.TARIFAS'!L69 -> 0
B106: Más de 35 t hasta 70 t | C106: =+'1.Demanda'!D70*'8.TARIFAS'!D70 -> 0 | D106: =+'1.Demanda'!E70*'8.TARIFAS'!E70 -> 0 | E106: =+'1.Demanda'!F70*'8.TARIFAS'!F70 -> 0 | F106: =+'1.Demanda'!G70*'8.TARIFAS'!G70 -> 0 | G106: =+'1.Demanda'!H70*'8.TARIFAS'!H70 -> 0 | H106: =+'1.Demanda'!I70*'8.TARIFAS'!I70 -> 0 | I106: =+'1.Demanda'!J70*'8.TARIFAS'!J70 -> 0 | J106: =+'1.Demanda'!K70*'8.TARIFAS'!K70 -> 0 | K106: =+'1.Demanda'!L70*'8.TARIFAS'!L70 -> 0
B107: Más de 70 t hasta 105 t | C107: =+'1.Demanda'!D71*'8.TARIFAS'!D71 -> 0 | D107: =+'1.Demanda'!E71*'8.TARIFAS'!E71 -> 0 | E107: =+'1.Demanda'!F71*'8.TARIFAS'!F71 -> 0 | F107: =+'1.Demanda'!G71*'8.TARIFAS'!G71 -> 0 | G107: =+'1.Demanda'!H71*'8.TARIFAS'!H71 -> 0 | H107: =+'1.Demanda'!I71*'8.TARIFAS'!I71 -> 0 | I107: =+'1.Demanda'!J71*'8.TARIFAS'!J71 -> 0 | J107: =+'1.Demanda'!K71*'8.TARIFAS'!K71 -> 0 | K107: =+'1.Demanda'!L71*'8.TARIFAS'!L71 -> 0
B108: Más de 105 t | C108: =+'1.Demanda'!D72*'8.TARIFAS'!D72 -> 0 | D108: =+'1.Demanda'!E72*'8.TARIFAS'!E72 -> 0 | E108: =+'1.Demanda'!F72*'8.TARIFAS'!F72 -> 0 | F108: =+'1.Demanda'!G72*'8.TARIFAS'!G72 -> 0 | G108: =+'1.Demanda'!H72*'8.TARIFAS'!H72 -> 0 | H108: =+'1.Demanda'!I72*'8.TARIFAS'!I72 -> 0 | I108: =+'1.Demanda'!J72*'8.TARIFAS'!J72 -> 0 | J108: =+'1.Demanda'!K72*'8.TARIFAS'!K72 -> 0 | K108: =+'1.Demanda'!L72*'8.TARIFAS'!L72 -> 0
B110: Uso de Mangas | C110: =+'1.Demanda'!D74*'8.TARIFAS'!D74 -> 0 | D110: =+'1.Demanda'!E74*'8.TARIFAS'!E74 -> 0 | E110: =+'1.Demanda'!F74*'8.TARIFAS'!F74 -> 0 | F110: =+'1.Demanda'!G74*'8.TARIFAS'!G74 -> 0 | G110: =+'1.Demanda'!H74*'8.TARIFAS'!H74 -> 0 | H110: =+'1.Demanda'!I74*'8.TARIFAS'!I74 -> 0 | I110: =+'1.Demanda'!J74*'8.TARIFAS'!J74 -> 0 | J110: =+'1.Demanda'!K74*'8.TARIFAS'!K74 -> 0 | K110: =+'1.Demanda'!L74*'8.TARIFAS'!L74 -> 0
A112: 2.3.GRUPO V
B113: Montos expresados en USD
B114: Servicios aeroportuarios (USD) | C114: Historico | I114: Proyecciones
C115: 2019 | D115: 2020 | E115: 2021 | F115: 2022 | G115: 2023 | H115: 2024 | I115: =+H115+1 -> 2025 | J115: =+I115+1 -> 2026 | K115: =+J115+1 -> 2027
B117: TUUA Nacional | C117: =+'1.Demanda'!D81*'8.TARIFAS'!D81 -> 964557.76 | D117: =+'1.Demanda'!E81*'8.TARIFAS'!E81 -> 359872.48 | E117: =+'1.Demanda'!F81*'8.TARIFAS'!F81 -> 737273.72 | F117: =+'1.Demanda'!G81*'8.TARIFAS'!G81 -> 1208886.38 | G117: =+'1.Demanda'!H81*'8.TARIFAS'!H81 -> 1108545.75 | H117: =+'1.Demanda'!I81*'8.TARIFAS'!I81 -> 962237.69 | I117: =+'1.Demanda'!J81*'8.TARIFAS'!J81 -> 951947.5678 | J117: =+'1.Demanda'!K81*'8.TARIFAS'!K81 -> 990024.6837 | K117: =+'1.Demanda'!L81*'8.TARIFAS'!L81 -> 1029623.048
B118: TUUA Internacional | C118: =+'1.Demanda'!D82*'8.TARIFAS'!D82 -> 0 | D118: =+'1.Demanda'!E82*'8.TARIFAS'!E82 -> 0 | E118: =+'1.Demanda'!F82*'8.TARIFAS'!F82 -> 0 | F118: =+'1.Demanda'!G82*'8.TARIFAS'!G82 -> 0 | G118: =+'1.Demanda'!H82*'8.TARIFAS'!H82 -> 0 | H118: =+'1.Demanda'!I82*'8.TARIFAS'!I82 -> 0 | I118: =+'1.Demanda'!J82*'8.TARIFAS'!J82 -> 0 | J118: =+'1.Demanda'!K82*'8.TARIFAS'!K82 -> 0 | K118: =+'1.Demanda'!L82*'8.TARIFAS'!L82 -> 0
B120: Aterrizaje y despegue nacional | C120: =SUM(C121:C125) -> 287983.89 | D120: 109475.85 | E120: 230390.57 | F120: 299249.56 | G120: 282866.63 | H120: 245364.2065 | I120: =SUM(I121:I125) -> 242740.2938 | J120: 252449.7049 | K120: 262547.0243
B121: Hasta 10 t | C121: =+'1.Demanda'!D85*'8.TARIFAS'!D85 -> 14924 | D121: =+'1.Demanda'!E85*'8.TARIFAS'!E85 -> 11682 | E121: =+'1.Demanda'!F85*'8.TARIFAS'!F85 -> 16442 | F121: =+'1.Demanda'!G85*'8.TARIFAS'!G85 -> 21096.65 | G121: =+'1.Demanda'!H85*'8.TARIFAS'!H85 -> 17655.78 | H121: =+'1.Demanda'!I85*'8.TARIFAS'!I85 -> 15346.3233 | I121: =+'1.Demanda'!J85*'8.TARIFAS'!J85 -> 15182.21048 | J121: =+'1.Demanda'!K85*'8.TARIFAS'!K85 -> 15789.48635 | K121: =+'1.Demanda'!L85*'8.TARIFAS'!L85 -> 16421.02398
B122: Más de 10 t hasta 35 t | C122: =+'1.Demanda'!D86*'8.TARIFAS'!D86 -> 30034.76 | D122: =+'1.Demanda'!E86*'8.TARIFAS'!E86 -> 14693.1 | E122: =+'1.Demanda'!F86*'8.TARIFAS'!F86 -> 42160.42 | F122: =+'1.Demanda'!G86*'8.TARIFAS'!G86 -> 77458.48 | G122: =+'1.Demanda'!H86*'8.TARIFAS'!H86 -> 84305.43 | H122: =+'1.Demanda'!I86*'8.TARIFAS'!I86 -> 73015.60416 | I122: =+'1.Demanda'!J86*'8.TARIFAS'!J86 -> 72234.77891 | J122: =+'1.Demanda'!K86*'8.TARIFAS'!K86 -> 75124.11036 | K122: =+'1.Demanda'!L86*'8.TARIFAS'!L86 -> 78128.87575
B123: Más de 35 t hasta 70 t | C123: =+'1.Demanda'!D87*'8.TARIFAS'!D87 -> 112179.2 | D123: =+'1.Demanda'!E87*'8.TARIFAS'!E87 -> 32931.5 | E123: =+'1.Demanda'!F87*'8.TARIFAS'!F87 -> 46991 | F123: =+'1.Demanda'!G87*'8.TARIFAS'!G87 -> 93762.6 | G123: =+'1.Demanda'!H87*'8.TARIFAS'!H87 -> 101528 | H123: =+'1.Demanda'!I87*'8.TARIFAS'!I87 -> 87791.17709 | I123: =+'1.Demanda'!J87*'8.TARIFAS'!J87 -> 86852.34259 | J123: =+'1.Demanda'!K87*'8.TARIFAS'!K87 -> 90326.3645 | K123: =+'1.Demanda'!L87*'8.TARIFAS'!L87 -> 93939.17978
B124: Más de 70 t hasta 105 t | C124: =+'1.Demanda'!D88*'8.TARIFAS'!D88 -> 130845.93 | D124: =+'1.Demanda'!E88*'8.TARIFAS'!E88 -> 50169.25 | E124: =+'1.Demanda'!F88*'8.TARIFAS'!F88 -> 124797.15 | F124: =+'1.Demanda'!G88*'8.TARIFAS'!G88 -> 106931.83 | G124: =+'1.Demanda'!H88*'8.TARIFAS'!H88 -> 79377.42 | H124: =+'1.Demanda'!I88*'8.TARIFAS'!I88 -> 69211.1019 | I124: =+'1.Demanda'!J88*'8.TARIFAS'!J88 -> 68470.96181 | J124: =+'1.Demanda'!K88*'8.TARIFAS'!K88 -> 71209.74368 | K124: =+'1.Demanda'!L88*'8.TARIFAS'!L88 -> 74057.94478
B125: Más de 105 t | C125: =+'1.Demanda'!D89*'8.TARIFAS'!D89 -> 0 | D125: =+'1.Demanda'!E89*'8.TARIFAS'!E89 -> 0 | E125: =+'1.Demanda'!F89*'8.TARIFAS'!F89 -> 0 | F125: =+'1.Demanda'!G89*'8.TARIFAS'!G89 -> 0 | G125: =+'1.Demanda'!H89*'8.TARIFAS'!H89 -> 0 | H125: =+'1.Demanda'!I89*'8.TARIFAS'!I89 -> 0 | I125: =+'1.Demanda'!J89*'8.TARIFAS'!J89 -> 0 | J125: =+'1.Demanda'!K89*'8.TARIFAS'!K89 -> 0 | K125: =+'1.Demanda'!L89*'8.TARIFAS'!L89 -> 0
B126: Aterrizaje y despegue Internacional | C126: =SUM(C127:C131) -> 0 | D126: 0 | E126: 0 | F126: 0 | G126: 0 | H126: 0 | I126: =SUM(I127:I131) -> 0 | J126: 0 | K126: 0
B127: Hasta 10 t | C127: =+'1.Demanda'!D91*'8.TARIFAS'!D91 -> 0 | D127: =+'1.Demanda'!E91*'8.TARIFAS'!E91 -> 0 | E127: =+'1.Demanda'!F91*'8.TARIFAS'!F91 -> 0 | F127: =+'1.Demanda'!G91*'8.TARIFAS'!G91 -> 0 | G127: =+'1.Demanda'!H91*'8.TARIFAS'!H91 -> 0 | H127: =+'1.Demanda'!I91*'8.TARIFAS'!I91 -> 0 | I127: =+'1.Demanda'!J91*'8.TARIFAS'!J91 -> 0 | J127: =+'1.Demanda'!K91*'8.TARIFAS'!K91 -> 0 | K127: =+'1.Demanda'!L91*'8.TARIFAS'!L91 -> 0
B128: Más de 10 t hasta 35 t | C128: =+'1.Demanda'!D92*'8.TARIFAS'!D92 -> 0 | D128: =+'1.Demanda'!E92*'8.TARIFAS'!E92 -> 0 | E128: =+'1.Demanda'!F92*'8.TARIFAS'!F92 -> 0 | F128: =+'1.Demanda'!G92*'8.TARIFAS'!G92 -> 0 | G128: =+'1.Demanda'!H92*'8.TARIFAS'!H92 -> 0 | H128: =+'1.Demanda'!I92*'8.TARIFAS'!I92 -> 0 | I128: =+'1.Demanda'!J92*'8.TARIFAS'!J92 -> 0 | J128: =+'1.Demanda'!K92*'8.TARIFAS'!K92 -> 0 | K128: =+'1.Demanda'!L92*'8.TARIFAS'!L92 -> 0
B129: Más de 35 t hasta 70 t | C129: =+'1.Demanda'!D93*'8.TARIFAS'!D93 -> 0 | D129: =+'1.Demanda'!E93*'8.TARIFAS'!E93 -> 0 | E129: =+'1.Demanda'!F93*'8.TARIFAS'!F93 -> 0 | F129: =+'1.Demanda'!G93*'8.TARIFAS'!G93 -> 0 | G129: =+'1.Demanda'!H93*'8.TARIFAS'!H93 -> 0 | H129: =+'1.Demanda'!I93*'8.TARIFAS'!I93 -> 0 | I129: =+'1.Demanda'!J93*'8.TARIFAS'!J93 -> 0 | J129: =+'1.Demanda'!K93*'8.TARIFAS'!K93 -> 0 | K129: =+'1.Demanda'!L93*'8.TARIFAS'!L93 -> 0
B130: Más de 70 t hasta 105 t | C130: =+'1.Demanda'!D94*'8.TARIFAS'!D94 -> 0 | D130: =+'1.Demanda'!E94*'8.TARIFAS'!E94 -> 0 | E130: =+'1.Demanda'!F94*'8.TARIFAS'!F94 -> 0 | F130: =+'1.Demanda'!G94*'8.TARIFAS'!G94 -> 0 | G130: =+'1.Demanda'!H94*'8.TARIFAS'!H94 -> 0 | H130: =+'1.Demanda'!I94*'8.TARIFAS'!I94 -> 0 | I130: =+'1.Demanda'!J94*'8.TARIFAS'!J94 -> 0 | J130: =+'1.Demanda'!K94*'8.TARIFAS'!K94 -> 0 | K130: =+'1.Demanda'!L94*'8.TARIFAS'!L94 -> 0
B131: Más de 105 t | C131: =+'1.Demanda'!D95*'8.TARIFAS'!D95 -> 0 | D131: =+'1.Demanda'!E95*'8.TARIFAS'!E95 -> 0 | E131: =+'1.Demanda'!F95*'8.TARIFAS'!F95 -> 0 | F131: =+'1.Demanda'!G95*'8.TARIFAS'!G95 -> 0 | G131: =+'1.Demanda'!H95*'8.TARIFAS'!H95 -> 0 | H131: =+'1.Demanda'!I95*'8.TARIFAS'!I95 -> 0 | I131: =+'1.Demanda'!J95*'8.TARIFAS'!J95 -> 0 | J131: =+'1.Demanda'!K95*'8.TARIFAS'!K95 -> 0 | K131: =+'1.Demanda'!L95*'8.TARIFAS'!L95 -> 0
B133: Estacionamiento nacional | C133: =SUM(C134:C138) -> 318.4493586 | D133: 219.4525434 | E133: 333.9714609 | F133: 445.6047465 | G133: 372.5398822 | H133: 308.4805738 | I133: =SUM(I134:I138) -> 305.1816978 | J133: 317.3887134 | K133: 330.0834211
B134: Hasta 10 t | C134: =+'1.Demanda'!D98*'8.TARIFAS'!D98 -> 239.3152864 | D134: =+'1.Demanda'!E98*'8.TARIFAS'!E98 -> 187.3278729 | E134: =+'1.Demanda'!F98*'8.TARIFAS'!F98 -> 263.6573264 | F134: =+'1.Demanda'!G98*'8.TARIFAS'!G98 -> 357.4463406 | G134: =+'1.Demanda'!H98*'8.TARIFAS'!H98 -> 285.1578582 | H134: =+'1.Demanda'!I98*'8.TARIFAS'!I98 -> 235.0038704 | I134: =+'1.Demanda'!J98*'8.TARIFAS'!J98 -> 232.4907507 | J134: =+'1.Demanda'!K98*'8.TARIFAS'!K98 -> 241.7901885 | K134: =+'1.Demanda'!L98*'8.TARIFAS'!L98 -> 251.4611555
B135: Más de 10 t hasta 35 t | C135: =+'1.Demanda'!D99*'8.TARIFAS'!D99 -> 23.74117484 | D135: =+'1.Demanda'!E99*'8.TARIFAS'!E99 -> 14.11524555 | E135: =+'1.Demanda'!F99*'8.TARIFAS'!F99 -> 33.53414846 | F135: =+'1.Demanda'!G99*'8.TARIFAS'!G99 -> 51.35989727 | G135: =+'1.Demanda'!H99*'8.TARIFAS'!H99 -> 55.5858694 | H135: =+'1.Demanda'!I99*'8.TARIFAS'!I99 -> 47.14138418 | I135: =+'1.Demanda'!J99*'8.TARIFAS'!J99 -> 46.63725656 | J135: =+'1.Demanda'!K99*'8.TARIFAS'!K99 -> 48.50270827 | K135: =+'1.Demanda'!L99*'8.TARIFAS'!L99 -> 50.4426881
B136: Más de 35 t hasta 70 t | C136: =+'1.Demanda'!D100*'8.TARIFAS'!D100 -> 27.862319 | D136: =+'1.Demanda'!E100*'8.TARIFAS'!E100 -> 7.517695358 | E136: =+'1.Demanda'!F100*'8.TARIFAS'!F100 -> 10.6965428 | F136: =+'1.Demanda'!G100*'8.TARIFAS'!G100 -> 18.36879866 | G136: =+'1.Demanda'!H100*'8.TARIFAS'!H100 -> 18.86594172 | H136: =+'1.Demanda'!I100*'8.TARIFAS'!I100 -> 15.64683754 | I136: =+'1.Demanda'!J100*'8.TARIFAS'!J100 -> 15.47951103 | J136: =+'1.Demanda'!K100*'8.TARIFAS'!K100 -> 16.09867868 | K136: =+'1.Demanda'!L100*'8.TARIFAS'!L100 -> 16.74258318
B137: Más de 70 t hasta 105 t | C137: =+'1.Demanda'!D101*'8.TARIFAS'!D101 -> 27.53057833 | D137: =+'1.Demanda'!E101*'8.TARIFAS'!E101 -> 10.49172951 | E137: =+'1.Demanda'!F101*'8.TARIFAS'!F101 -> 26.08344323 | F137: =+'1.Demanda'!G101*'8.TARIFAS'!G101 -> 18.42971 | G137: =+'1.Demanda'!H101*'8.TARIFAS'!H101 -> 12.93021292 | H137: =+'1.Demanda'!I101*'8.TARIFAS'!I101 -> 10.68848159 | I137: =+'1.Demanda'!J101*'8.TARIFAS'!J101 -> 10.5741795 | J137: =+'1.Demanda'!K101*'8.TARIFAS'!K101 -> 10.99713794 | K137: =+'1.Demanda'!L101*'8.TARIFAS'!L101 -> 11.43699432
B138: Más de 105 t | C138: =+'1.Demanda'!D102*'8.TARIFAS'!D102 -> 0 | D138: =+'1.Demanda'!E102*'8.TARIFAS'!E102 -> 0 | E138: =+'1.Demanda'!F102*'8.TARIFAS'!F102 -> 0 | F138: =+'1.Demanda'!G102*'8.TARIFAS'!G102 -> 0 | G138: =+'1.Demanda'!H102*'8.TARIFAS'!H102 -> 0 | H138: =+'1.Demanda'!I102*'8.TARIFAS'!I102 -> 0 | I138: =+'1.Demanda'!J102*'8.TARIFAS'!J102 -> 0 | J138: =+'1.Demanda'!K102*'8.TARIFAS'!K102 -> 0 | K138: =+'1.Demanda'!L102*'8.TARIFAS'!L102 -> 0
B139: Estacionamiento internacional | C139: =SUM(C140:C144) -> 0 | D139: 0 | E139: 0 | F139: 0 | G139: 0 | H139: 0 | I139: =SUM(I140:I144) -> 0 | J139: 0 | K139: 0
B140: Hasta 10 t | C140: =+'1.Demanda'!D104*'8.TARIFAS'!D104 -> 0 | D140: =+'1.Demanda'!E104*'8.TARIFAS'!E104 -> 0 | E140: =+'1.Demanda'!F104*'8.TARIFAS'!F104 -> 0 | F140: =+'1.Demanda'!G104*'8.TARIFAS'!G104 -> 0 | G140: =+'1.Demanda'!H104*'8.TARIFAS'!H104 -> 0 | H140: =+'1.Demanda'!I104*'8.TARIFAS'!I104 -> 0 | I140: =+'1.Demanda'!J104*'8.TARIFAS'!J104 -> 0 | J140: =+'1.Demanda'!K104*'8.TARIFAS'!K104 -> 0 | K140: =+'1.Demanda'!L104*'8.TARIFAS'!L104 -> 0
B141: Más de 10 t hasta 35 t | C141: =+'1.Demanda'!D105*'8.TARIFAS'!D105 -> 0 | D141: =+'1.Demanda'!E105*'8.TARIFAS'!E105 -> 0 | E141: =+'1.Demanda'!F105*'8.TARIFAS'!F105 -> 0 | F141: =+'1.Demanda'!G105*'8.TARIFAS'!G105 -> 0 | G141: =+'1.Demanda'!H105*'8.TARIFAS'!H105 -> 0 | H141: =+'1.Demanda'!I105*'8.TARIFAS'!I105 -> 0 | I141: =+'1.Demanda'!J105*'8.TARIFAS'!J105 -> 0 | J141: =+'1.Demanda'!K105*'8.TARIFAS'!K105 -> 0 | K141: =+'1.Demanda'!L105*'8.TARIFAS'!L105 -> 0
B142: Más de 35 t hasta 70 t | C142: =+'1.Demanda'!D106*'8.TARIFAS'!D106 -> 0 | D142: =+'1.Demanda'!E106*'8.TARIFAS'!E106 -> 0 | E142: =+'1.Demanda'!F106*'8.TARIFAS'!F106 -> 0 | F142: =+'1.Demanda'!G106*'8.TARIFAS'!G106 -> 0 | G142: =+'1.Demanda'!H106*'8.TARIFAS'!H106 -> 0 | H142: =+'1.Demanda'!I106*'8.TARIFAS'!I106 -> 0 | I142: =+'1.Demanda'!J106*'8.TARIFAS'!J106 -> 0 | J142: =+'1.Demanda'!K106*'8.TARIFAS'!K106 -> 0 | K142: =+'1.Demanda'!L106*'8.TARIFAS'!L106 -> 0
B143: Más de 70 t hasta 105 t | C143: =+'1.Demanda'!D107*'8.TARIFAS'!D107 -> 0 | D143: =+'1.Demanda'!E107*'8.TARIFAS'!E107 -> 0 | E143: =+'1.Demanda'!F107*'8.TARIFAS'!F107 -> 0 | F143: =+'1.Demanda'!G107*'8.TARIFAS'!G107 -> 0 | G143: =+'1.Demanda'!H107*'8.TARIFAS'!H107 -> 0 | H143: =+'1.Demanda'!I107*'8.TARIFAS'!I107 -> 0 | I143: =+'1.Demanda'!J107*'8.TARIFAS'!J107 -> 0 | J143: =+'1.Demanda'!K107*'8.TARIFAS'!K107 -> 0 | K143: =+'1.Demanda'!L107*'8.TARIFAS'!L107 -> 0
B144: Más de 105 t | C144: =+'1.Demanda'!D108*'8.TARIFAS'!D108 -> 0 | D144: =+'1.Demanda'!E108*'8.TARIFAS'!E108 -> 0 | E144: =+'1.Demanda'!F108*'8.TARIFAS'!F108 -> 0 | F144: =+'1.Demanda'!G108*'8.TARIFAS'!G108 -> 0 | G144: =+'1.Demanda'!H108*'8.TARIFAS'!H108 -> 0 | H144: =+'1.Demanda'!I108*'8.TARIFAS'!I108 -> 0 | I144: =+'1.Demanda'!J108*'8.TARIFAS'!J108 -> 0 | J144: =+'1.Demanda'!K108*'8.TARIFAS'!K108 -> 0 | K144: =+'1.Demanda'!L108*'8.TARIFAS'!L108 -> 0
B146: Uso de Mangas | C146: =+'1.Demanda'!D110*'8.TARIFAS'!D110 -> 0 | D146: =+'1.Demanda'!E110*'8.TARIFAS'!E110 -> 0 | E146: =+'1.Demanda'!F110*'8.TARIFAS'!F110 -> 0 | F146: =+'1.Demanda'!G110*'8.TARIFAS'!G110 -> 0 | G146: =+'1.Demanda'!H110*'8.TARIFAS'!H110 -> 0 | H146: =+'1.Demanda'!I110*'8.TARIFAS'!I110 -> 0 | I146: =+'1.Demanda'!J110*'8.TARIFAS'!J110 -> 0 | J146: =+'1.Demanda'!K110*'8.TARIFAS'!K110 -> 0 | K146: =+'1.Demanda'!L110*'8.TARIFAS'!L110 -> 0

Sheet 2.2_Ingresos no atribuibles
A2: 2.2.Ingresos totales (Usuarios no atribuibles) | N2: Índice
B4: I. Ingresos 2017 - 2020
B6: Servicios | D6: 2013 | E6: =D6+1 -> 2014 | F6: 2015 | G6: 2016 | H6: 2017 | I6: 2018 | J6: 2019 | K6: 2020 | L6: =K6+1 -> 2021 | M6: =L6+1 -> 2022 | N6: =M6+1 -> 2023
B7: PEN
B8: SNAR Nacional | D8: 27567342.71 | E8: 30442559.42 | F8: 35829654.75 | G8: 40503543.98 | H8: 43052814.27 | I8: 41025757.85 | J8: 45909588.68 | K8: 18134529.4 | L8: 30272741.3 | M8: 38846816.78 | N8: 36013126.67
B9: SNAR Internacional | D9: 49743452.48 | E9: 55787699.61 | F9: 73887223.54 | G9: 84954054.25 | H9: 86951687.9 | I9: 78813976.16 | J9: 82295669.15 | K9: 27439909.27 | L9: 37252709.67 | M9: 58739578.96 | N9: 59880854.57
B10: Aproximación | D10: 8178529.21 | E10: 9353214.703 | F10: 12377551.35 | G10: 13775449 | H10: 14800188.8 | I10: 15928635.19 | J10: 17280854.52 | K10: 6441449.03 | L10: 10610934.72 | M10: 17495377.66 | N10: 21652974.44
B11: Sobrevuelo | D11: 63601150.73 | E11: 69564492.29 | F11: 76930967.8 | G11: 93586740.16 | H11: 95475429.82 | I11: 83463263.9 | J11: 88139139.92 | K11: 52119666.8 | L11: 71095450.25 | M11: 93723332.98 | N11: 84947876.58
B12: Pista y Rodadura | D12: 5140137.29 | E12: 5520901.73 | F12: 7679136.23 | G12: 9113523.256 | H12: 8934732.66 | I12: 10139230.24 | J12: 10111800.48 | K12: 2795176.5 | L12: 4673213.05 | M12: 9595331.091 | N12: 10031648.05
B13: TC Nominal | F13: =+Variables_Macro!C$69 -> 3.185516129 | G13: =+Variables_Macro!D$69 -> 3.374992032 | H13: =+Variables_Macro!E$69 -> 3.261108434 | I13: =+Variables_Macro!F$69 -> 3.28624187 | J13: =+Variables_Macro!G$69 -> 3.336917671 | K13: =+Variables_Macro!H$69 -> 3.496066929 | L13: =+Variables_Macro!I$69 -> 3.882629482 | M13: =+Variables_Macro!J$69 -> 3.834934263 | N13: =+Variables_Macro!K$69 -> 3.744106
B14: USD
B15: SNAR Nacional | F15: =+F8/$F$13 -> 11247676.45 | G15: =+G8/$G$13 -> 12001078.4 | H15: =+H8/$H$13 -> 13201895.96 | I15: =+I8/$I$13 -> 12484095.66 | J15: =+J8/$J$13 -> 13758082.52 | K15: =+K8/$K$13 -> 5187123.064 | L15: =+L8/$L$13 -> 7796968.896 | M15: =+M8/$M$13 -> 10129721.69 | N15: =+N8/$N$13 -> 9618618.349
B16: SNAR Internacional | F16: =+F9/$F$13 -> 23194741.62 | G16: =+G9/$G$13 -> 25171631.06 | H16: =+H9/$H$13 -> 26663231.13 | I16: =+I9/$I$13 -> 23983011.38 | J16: =+J9/$J$13 -> 24662181.47 | K16: =+K9/$K$13 -> 7848794.038 | L16: =+L9/$L$13 -> 9594711.48 | M16: =+M9/$M$13 -> 15316971.54 | N16: =+N9/$N$13 -> 15993365.19
B17: Aproximación | F17: =+F10/$F$13 -> 3885571.71 | G17: =+G10/$G$13 -> 4081624.156 | H17: =+H10/$H$13 -> 4538392.116 | I17: =+I10/$I$13 -> 4847067.205 | J17: =+J10/$J$13 -> 5178687.707 | K17: =+K10/$K$13 -> 1842484.472 | L17: =+L10/$L$13 -> 2732924.882 | M17: =+M10/$M$13 -> 4562106.274 | N17: =+N10/$N$13 -> 5783216.191
B18: Sobrevuelo | F18: =+F11/$F$13 -> 24150236.47 | G18: =+G11/$G$13 -> 27729469.96 | H18: =+H11/$H$13 -> 29276987.18 | I18: =+I11/$I$13 -> 25397784.83 | J18: =+J11/$J$13 -> 26413339.68 | K18: =+K11/$K$13 -> 14908086.1 | L18: =+L11/$L$13 -> 18311160.15 | M18: =+M11/$M$13 -> 24439358.42 | N18: =+N11/$N$13 -> 22688427.25
B19: Pista y Rodadura | F19: =+F12/$F$13 -> 2410641.139 | G19: =+G12/$G$13 -> 2700309.562 | H19: =+H12/$H$13 -> 2739783.985 | I19: =+I12/$I$13 -> 3085357.27 | J19: =+J12/$J$13 -> 3030281.678 | K19: =+K12/$K$13 -> 799520.3056 | L19: =+L12/$L$13 -> 1203620.658 | M19: =+M12/$M$13 -> 2502084.895 | N19: =+N12/$N$13 -> 2679317.318
B20: Total | H20: =SUM(H15:H19) -> 76420290.37 | I20: 69797316.34 | J20: 73042573.06 | K20: 30586007.98 | L20: 39639386.07 | M20: 56950242.82 | N20: 56762944.29
B22: II. Tarifa por operaciones de carácter permanente y circunstancial
B24: Servicios | H24: 2017 | I24: 2018 | J24: 2019 | K24: 2020 | L24: 2021 | M24: 2022 | N24: 2023
B25: SNAR Nacional | H25: =+H15/$H$20 -> 0.1727538053 | I25: =+I15/$I$20 -> 0.1788621155 | J25: =+J15/$J$20 -> 0.1883570354 | K25: =+K15/$K$20 -> 0.1695913722 | L25: =+L15/$L$20 -> 0.196697519 | M25: =+M15/$M$20 -> 0.1778696839 | N25: =+N15/$N$20 -> 0.1694524213
B26: SNAR Internacional | H26: =+H16/$H$20 -> 0.34890251 | I26: =+I16/$I$20 -> 0.3436093626 | J26: =+J16/$J$20 -> 0.3376411925 | K26: =+K16/$K$20 -> 0.2566138753 | L26: =+L16/$L$20 -> 0.2420499516 | M26: =+M16/$M$20 -> 0.2689535774 | N26: =+N16/$N$20 -> 0.2817571461
B27: Aproximación | H27: =+H17/$H$20 -> 0.05938726605 | I27: =+I17/$I$20 -> 0.06944489357 | J27: =+J17/$J$20 -> 0.07089957939 | K27: =+K17/$K$20 -> 0.06023945567 | L27: =+L17/$L$20 -> 0.06894468238 | M27: =+M17/$M$20 -> 0.08010688011 | N27: =+N17/$N$20 -> 0.1018836543
B28: Sobrevuelo | H28: =+H18/$H$20 -> 0.3831048932 | I28: =+I18/$I$20 -> 0.3638791025 | J28: =+J18/$J$20 -> 0.3616156794 | K28: =+K18/$K$20 -> 0.4874152296 | L28: =+L18/$L$20 -> 0.4619435861 | M28: =+M18/$M$20 -> 0.4291352804 | N28: =+N18/$N$20 -> 0.3997049048
B29: Pista y Rodadura | H29: =+H19/$H$20 -> 0.03585152545 | I29: =+I19/$I$20 -> 0.04420452579 | J29: =+J19/$J$20 -> 0.04148651329 | K29: =+K19/$K$20 -> 0.02614006725 | L29: =+L19/$L$20 -> 0.03036426083 | M29: =+M19/$M$20 -> 0.04393457816 | N29: =+N19/$N$20 -> 0.04720187354
B30: Total | H30: =SUM(H25:H29) -> 1 | I30: 1 | J30: 1 | K30: 1 | L30: 1 | M30: 1 | N30: 1
B33: Servicios | H33: 2017 | I33: 2018 | J33: 2019 | K33: 2020 | L33: 2021 | M33: 2022 | N33: 2023
B34: SNAR Nacional | H34: =+H15/($H$15+$H$17+$H$19) -> 0.6446215581 | I34: =+I15/(I$15+I$17+I$19) -> 0.6114702984 | J34: 0.6263053677 | K34: 0.6625416226 | L34: 0.664504138 | M34: 0.5891458084 | N34: 0.531969336
B35: SNAR Internacional
B36: Aproximación | H36: =+H17/(H$15+H$17+H$19) -> 0.2216003978 | I36: 0.2374090772 | J36: 0.2357479615 | K36: 0.2353371294 | L36: 0.2329161393 | M36: 0.265332639 | N36: 0.319847775
B37: Sobrevuelo
B38: Pista y Rodadura | H38: =+H19/(H$15+H$17+H$19) -> 0.1337780442 | I38: 0.1511206244 | J38: 0.1379466708 | K38: 0.102121248 | L38: 0.1025797227 | M38: 0.1455215526 | N38: 0.148182889
B39: Total | H39: =SUM(H34:H38) -> 1 | I39: 1 | J39: 1 | K39: 1 | L39: 1 | M39: 1 | N39: 1
B41: III. Fuente de ingreso en USD
B43: 3.1 con IGV
B44: Montos expresados en USD
B45: Fuente de ingresos | C45: Moneda | H45: 2017 | I45: 2018 | J45: 2019 | K45: 2020 | L45: 2021 | M45: 2022 | N45: 2023
B46: Tarifa por operaciones de carácter permanente y circunstancial | C46: USD | H46: 17428.6 | I46: 17013.24 | J46: 19428.7 | K46: 28620.9 | L46: 22427.24576 | M46: 18363.52 | N46: 6502
B47: Ingresos por cobro de tarifa por operaciones de servicio privado en la región amazonica y alto andina del Perú.** | C47: USD | H47: no registra | I47: no registra | J47: no registra | K47: 106.0584 | L47: 0 | M47: 0 | N47: 0
B48: Tarifa operacional anual por vuelos de prueba y/o entrenamiento aplicable solo en los aeropuertos de uso público administrados por CORPAC S.A. | C48: USD | H48: 7761.6034 | I48: 6876.8394 | J48: 11739.1946 | K48: 9499.7906 | L48: 9335.669492 | M48: 7016.34 | N48: 6640.26
B50: 3.2 sin IGV
B51: Montos expresados en USD
B52: Fuente de ingresos | C52: Moneda | H52: 2017 | I52: 2018 | J52: 2019 | K52: 2020 | L52: 2021 | M52: 2022 | N52: 2023
B53: Tarifa por operaciones de carácter permanente y circunstancial | C53: USD | H53: =+H46/1.18 -> 14770 | I53: 14418 | J53: 16465 | K53: 24255 | L53: 19006.14048 | M53: 15562.30508 | N53: 5510.169492
B54: Ingresos por cobro de tarifa por operaciones de servicio privado en la región amazonica y alto andina del Perú.** | C54: USD | H54: - | I54: - | J54: - | K54: =+K47/1.18 -> 89.88 | L54: 0 | M54: 0 | N54: 0
B55: Tarifa operacional anual por vuelos de prueba y/o entrenamiento aplicable solo en los aeropuertos de uso público administrados por CORPAC S.A. | C55: USD | H55: =+H48/1.18 -> 6577.63 | I55: =+I48/1.18 -> 5827.83 | J55: =+J48/1.18 -> 9948.47 | K55: 8050.67 | L55: 7911.584315 | M55: 5946.050847 | N55: 5627.338983
B57: IV. Servicos que comprende cada fuente de ingreso en USD. sin IGV
B59: Montos expresados en USD
B60: Fuente de ingresos | C60: Servicios que comprende | H60: 2017 | I60: 2018 | J60: 2019 | K60: 2020 | L60: 2021 | M60: 2022 | N60: 2023
B61: Tarifa por operaciones de carácter permanente y circunstancial | C61: SNAR Nacional | H61: =+H53*H25 -> 2551.573704 | I61: =+I53*I25 -> 2578.833981 | J61: 3101.298588 | K61: 4113.438732 | L61: 3738.460678 | M61: 2768.062286 | N61: 933.7115619
C62: SNAR Internacional | H62: =+H53*H26 -> 5153.290073 | I62: =+I53*I26 -> 4954.15979 | J62: 5559.262235 | K62: 6224.169545 | L62: 4600.435383 | M62: 4185.537625 | N62: 1552.529631
C63: Aproximación | H63: =+H53*H27 -> 877.1499195 | I63: =+I53*I27 -> 1001.256476 | J63: 1167.361575 | K63: 1461.107997 | L63: 1310.372319 | M63: 1246.647708 | N63: 561.3962034
C64: Sobrevuelo | H64: =+H53*H28 -> 5658.459273 | I64: 5246.4089 | J64: 5954.002161 | K64: 11822.25639 | L64: 8779.76469 | M64: 6678.334157 | N64: 2202.441772
C65: Pista y Rodadura | H65: =+H53*H29 -> 529.5270308 | I65: =+I53*I29 -> 637.3408528 | J65: 683.0754413 | K65: 634.0273312 | L65: 577.1074068 | M65: 683.7233092 | N65: 260.0903235
B66: Tarifa operacional anual por vuelos de prueba y/o entrenamiento aplicable solo en los aeropuertos de uso público administrados por CORPAC S.A. | C66: SNAR Nacional | H66: =+H55*H34 -> 4240.082099 | I66: =+I55*I34 -> 3563.544949 | J66: 6230.780161 | K66: 5333.903965 | L66: 5257.280515 | M66: 3503.090933 | N66: 2993.571782
C67: Aproximación | H67: =+H55*H36 -> 1457.605424 | I67: =+I55*I36 -> 1383.579743 | J67: 2345.331523 | K67: 1894.621568 | L67: 1842.735674 | M67: 1577.681363 | N67: 1799.891853
C68: Pista y Rodadura | H68: =+H55*H38 -> 879.9424766 | I68: =+I55*I38 -> 880.7053084 | J68: 1372.358316 | K68: 822.1444674 | L68: 811.5681255 | M68: 865.2785513 | N68: 833.8753478
B70: V. Ingresos por usuarios no atribuibles, por servicio aeroportuario sin IGV | M70: Pasajeros nacional | O70: =+'supuesto demanda'!S18 -> 0.5 | P70: =+'supuesto demanda'!T18 -> 0.07 | Q70: =+'supuesto demanda'!U18 -> 0.07 | R70: =+'supuesto demanda'!V18 -> 0.07
B72: Montos expresados en USD
B73: Servicio | C73: Moneda | H73: 2017 | I73: 2018 | J73: 2019 | K73: 2020 | L73: 2021 | M73: 2022 | N73: 2023 | O73: 2024 | P73: 2025 | Q73: 2026 | R73: 2027
B74: Pista y rodadura | C74: USD | H74: =+H65+H68 -> 1409.469507 | I74: =+I65+I68 -> 1518.046161 | J74: 2055.433757 | K74: 1456.171799 | L74: 1388.675532 | M74: 1549.00186 | N74: 1093.965671 | O74: =+N74*(1+O70) -> 1640.948507 | P74: =+O74*(1+P70) -> 1755.814902 | Q74: =+P74*(1+Q70) -> 1878.721946 | R74: =+Q74*(1+R70) -> 2010.232482
B75: Total ingresos por usuarios no atribuibles | H75: =SUM(H74:H74) -> 1409.469507 | I75: 1518.046161 | J75: 2055.433757 | K75: 1456.171799 | L75: 1388.675532 | M75: 1549.00186 | N75: 1093.965671 | O75: 1640.948507 | P75: 1755.814902 | Q75: 1878.721946 | R75: 2010.232482

Sheet 2.3_Ingresos_transferencias
A2: 2.3.Fuente Transferencias LAP | P2: Índice
A4: 2.3.1 Determinacion de las Transferncias de LAP
B5: I. Crecimiento promedio de los Pax salida de LAP (2013 - 2024)
D6: Historico | P6: Tasa promedio de crecimiento historico
C7: Año / Mes | D7: 2013 | E7: 2014 | F7: 2015 | G7: 2016 | H7: 2017 | I7: 2018 | J7: 2019 | K7: 2020 | L7: 2021 | M7: 2022 | N7: 2023 | O7: 2024
B8: PAX SALIDA | C8: 1 | D8: 234048 | E8: 242209 | F8: 257275 | G8: 277668 | H8: 300336 | I8: 325073 | J8: 364326 | K8: 366764 | L8: 74414 | M8: 208601 | N8: 295017 | O8: 333891
C9: 2 | D9: 209209 | E9: 220848 | F9: 231814 | G9: 256204 | H9: 264393 | I9: 285092 | J9: 322304 | K9: 342488 | L9: 44656 | M9: 205740 | N9: 266199 | O9: 318522
C10: 3 | D10: 233491 | E10: 240495 | F10: 250626 | G10: 274160 | H10: 284676 | I10: 308661 | J10: 340047 | K10: 170062 | L10: 62082 | M10: 242709 | N10: 287275 | O10: 344404
C11: 4 | D11: 229271 | E11: 231794 | F11: 249107 | G11: 255755 | H11: 285215 | I11: 313275 | J11: 341043 | K11: 0 | L11: 82062 | M11: 257507 | N11: 283604 | O11: 343234
C12: 5 | D12: 246808 | E12: 253751 | F12: 269571 | G12: 288104 | H12: 308182 | I12: 332234 | J12: 370581 | K12: 0 | L12: 111594 | M12: 275423 | N12: 297802 | O12: 360277
C13: 6 | D13: 226106 | E13: 223379 | F13: 240263 | G13: 264892 | H13: 280908 | I13: 308991 | J13: 334682 | K13: 0 | L13: 118014 | M13: 257278 | N13: 280778 | O13: 329361
C14: 7 | D14: 260179 | E14: 262337 | F14: 288591 | G14: 319852 | H14: 337122 | I14: 355097 | J14: 392512 | K14: 3 | L14: 143141 | M14: 304864 | N14: 337239 | O14: 379979
C15: 8 | D15: 272038 | E15: 281054 | F15: 297601 | G15: 321775 | H15: 348716 | I15: 374772 | J15: 403980 | K15: 5179 | L15: 143499 | M15: 316747 | N15: 341456 | O15: 388107
C16: 9 | D16: 240933 | E16: 244405 | F16: 263397 | G16: 284312 | H16: 309278 | I16: 334475 | J16: 356301 | K16: 7466 | L16: 142330 | M16: 294421 | N16: 316867 | O16: 360936
C17: 10 | D17: 261806 | E17: 259633 | F17: 281754 | G17: 299655 | H17: 330719 | I17: 352259 | J17: 380124 | K17: 15869 | L17: 174650 | M17: 315995 | N17: 341902 | O17: 384342
C18: 11 | D18: 239859 | E18: 235186 | F18: 252351 | G18: 271879 | H18: 291826 | I18: 323492 | J18: 354910 | K18: 45412 | L18: 193751 | M18: 303626 | N18: 322075 | O18: 353310
C19: 12 | D19: 217481 | E19: 224730 | F19: 237209 | G19: 258694 | H19: 284975 | I19: 323957 | J19: 339313 | K19: 69428 | L19: 206985 | M19: 300236 | N19: 320323 | O19: =+AVERAGE(O8:O18) -> 354214.8182
C20: Total | D20: =+SUM(D8:D19) -> 2871229 | E20: =+SUM(E8:E19) -> 2919821 | F20: 3119559 | G20: 3372950 | H20: 3626346 | I20: 3937378 | J20: 4300123 | K20: =+SUM(K8:K19) -> 1022671 | L20: =+SUM(L8:L19) -> 1497178 | M20: =+SUM(M8:M19) -> 3283147 | N20: =+SUM(N8:N19) -> 3690537 | O20: =+SUM(O8:O19) -> 4250577.818 | P20: =+(J20/D20)^(1/(J7-D7))-1 -> 0.06963475989
C21: Var% | E21: =+E20/D20-1 -> 0.01692376331 | F21: 0.06840761814 | G21: 0.08122654516 | H21: 0.07512592834 | I21: 0.08577008372 | J21: 0.09212856881 | K21: -0.7621763377 | L21: 0.4639879296 | M21: =+M20/L20-1 -> 1.192890224 | N21: =+N20/M20-1 -> 0.1240852146 | O21: =+O20/N20-1 -> 0.1517504954
B22: Tarifa TUU internaciol LAP USD | K22: 25.2 | L22: 24.27 | M22: 25.43 | N22: 26.77 | O22: 26.23
B25: Trasnferencias LAP - Estiamados sobre el flujo de pasajeros LAP - Montos expresados en USD
C26: Historico | G26: Proyecciones
C27: 2021 | D27: 2022 | E27: 2023 | F27: 2024 | G27: 2025 | H27: 2026 | I27: 2027
B28: Ingresos por Pasajeros Internacionales | C28: =+L20*L22 -> 36336510.06 | D28: =+M20*M22 -> 83490428.21 | E28: =+N20*N22 -> 98795675.49 | F28: =+O20*O22 -> 111492656.2 | G28: =+F28*(1+G29) -> 119297142.1 | H28: =+G28*(1+H29) -> 127647942.1 | I28: =+H28*(1+I29) -> 136583298
B29: Var% anual esperada del tráfico PAX Internacional | G29: 0.07 | H29: =+G29 -> 0.07 | I29: =+H29 -> 0.07
B30: Trasnferencias a Corpac 20% | C30: =+C28*20% -> 7267302.012 | D30: =+D28*20% -> 16698085.64 | E30: =+E28*20% -> 19759135.1 | F30: =+F28*20% -> 22298531.23 | G30: =+G28*20% -> 23859428.42 | H30: =+H28*20% -> 25529588.41 | I30: =+I28*20% -> 27316659.6
B34: Trasnferencias LAP - Fuente CR CORPAC - Montos expresados en USD
B35: Trasnferencias de LAP | C35: Historico | G35: Proyecciones
C36: 2021 | D36: 2022 | E36: 2023 | F36: 2024 | G36: 2025 | H36: 2026 | I36: 2027
C37: 7688199.664 | D37: 16976934.38 | E37: 19570369.39 | F37: =+F30 -> 22298531.23 | G37: =+G30 -> 23859428.42 | H37: =+H30 -> 25529588.41 | I37: 27316659.6
A40: 2.3.2 Determinacion del deficit operativo
B43: A. Determinación del Deficit por categoria de servicio
B45: EGYP Regulatorio - CR CORPAC - 2023 - Montos expresados en Soles
C46: Servicios de Navegación Aérea | G46: Servicios Aeroportuarios
C47: Servicios con Regulación Tarifaria | G47: Servicios con Regulación Tarifaria
C48: Snar Nacional | D48: Snar Internacional | E48: Aproximación | F48: Sobrevuelo | G48: Pista y Rodadura | H48: Mangas | I48: TUUA
B49: INGRESOS
B50: Ingresos por prestación de servicios | C50: 36013126.67 | D50: 59880854.57 | E50: 21652974.44 | F50: 84947876.58 | G50: 10031648.05 | H50: 1592797.85 | I50: 32557831.76
B51: Ingresos por transferencias de LAP | C51: 0 | D51: 0 | E51: 0 | F51: 0 | G51: 0 | H51: 0 | I51: 0
B52: Otros ingresos | C52: 0 | D52: 0 | E52: 0 | F52: 0 | G52: 0 | H52: 0 | I52: 0
B53: Total Ingresos | C53: 36013126.67 | D53: 59880854.57 | E53: 21652974.44 | F53: 84947876.58 | G53: 10031648.05 | H53: 1592797.85 | I53: 32557831.76
B54: GASTOS
B55: Total de Gastos | C55: 97640542.67 | D55: 34204443.95 | E55: 90110773.58 | F55: 43828735.14 | G55: 80980393.31 | H55: 1426925.173 | I55: 21095945.74
B56: Utilidad antes de contribución y aporte de regulación | C56: -61627416 | D56: 25676410.62 | E56: -68457799.14 | F56: 41119141.44 | G56: -70948745.26 | H56: 165872.6772 | I56: 11461886.02
B57: Utilidad (Pérdida) Operativa | C57: -70444635.82 | D57: 16993544.15 | E57: -69433617.05 | F57: 40654015.47 | G57: -71788553.49 | H57: 85109.21802 | I57: 11286892.39
B60: Suma de servicios con deficit operativo por tipo de servicio - CR CORPAC- 2023 - Montos expresados en soles
C61: Tipo de servicio | D61: Valor (S/.) | E61: Part %
B62: Total servicios con deficit operativo | C62: Aeronavegación | D62: =+C57+E57 -> -139878252.9 | E62: =+D62/SUM(D62:D63) -> 0.6608417034
C63: Aeroportuario | D63: =+G57 -> -71788553.49 | E63: =+D63/SUM(D62:D63) -> 0.3391582966
B66: B. Determinación de porcentaje por categoria de transferencia
B68: Transferncias de LAP - CR CORPAC- 2023 Montos expresados en soles
B69: Categoria | C69: Valor (S/.) | D69: Part %
B70: 50% A/D Concesión J.Chavez | C70: 63028108.67 | D70: =+C70/SUM(C70:C71) -> 0.4596524917
B71: 20% TUUA Int. Concesión J.Chavez | C71: 74093107.47 | D71: =+C71/SUM(C70:C71) -> 0.5403475083
B72: Total | C72: =+SUM(C70:C71) -> 137121216.1 | D72: =+SUM(D70:D71) -> 1
B75: C. Procentaje de asginación de transferecias según tipo de servicio
B77: Tipo de servicio \ Fuente de transferencia | C77: 50% A/D Concesión J.Chavez | D77: 20% TUUA Int. Concesión J.Chavez | E77: Asignación al déficit 2023 | F77: Part. %
B78: Aeronavegación | C78: 1 | D78: =+(C72*E62-C70)/C71 -> 0.3723330053 | E78: =+C78*C70+D78*C71 -> 90615418.05 | F78: =E78/E80 -> 0.6608417034
B79: Aeroportuario | C79: 0 | D79: =1-D78 -> 0.6276669947 | E79: =+C79*C70+C71*D79 -> 46505798.09 | F79: =E79/E80 -> 0.3391582966
B80: Total | C80: =+SUM(C78:C79) -> 1 | D80: =+SUM(D78:D79) -> 1 | E80: =+SUM(E78:E79) -> 137121216.1 | F80: =SUM(F78:F79) -> 1 | G80: =+IF(E80=C72,"ok","No") -> ok
A83: 2.3.3 Participacion de costos aeroportuarios en Aeropuertos Concesionarios
B85: Costos Operativos de pista y rodadura de la sedes distintas a Lima, Cusco, Nasca y Grupo V-Fuente CR CORPAC Monto exspresado en Soles
B86: Categgoria | C86: 2018 | D86: 2019 | E86: 2022 | F86: 2023
C87: Pista y Rodadura | D87: Pista y Rodadura | E87: Pista y Rodadura | F87: Pista y Rodadura
B88: Suministros y Materiales | C88: 242318.588 | D88: 133939.7832 | E88: 130868.5621 | F88: 163051.0432
B89: Gastos de Personal | C89: 7698527.195 | D89: 8373920.944 | E89: 6955604.392 | F89: 8358191.841
B90: Servicios Prestados por Terceros | C90: 2413048.194 | D90: 2431677.956 | E90: 2497837.87 | F90: 2463330.117
B91: Mantenimiento de Activos | C91: 161042.4527 | D91: 113039.745 | E91: 126069.4436 | F91: 282708.4565
B92: Depreciación | C92: 2232761.654 | D92: 1864507.15 | E92: 1605949.685 | F92: 2187392.255
B93: Amortización de Intangibles | C93: 33599.59452 | D93: 37396.38084 | E93: 3445.959508 | F93: 3928.268048
B94: Tributos y Seguros | C94: 128849.625 | D94: 147594.0985 | E94: 389817.3446 | F94: 601682.3072
B95: Otros Costos | C95: 91180.98243 | D95: 73094.87304 | E95: 267141.0266 | F95: 176882.0214
B96: Total | C96: =SUM(C88:C95) -> 13001328.29 | D96: =SUM(D88:D95) -> 13175170.93 | E96: =SUM(E88:E95) -> 11976734.28 | F96: =SUM(F88:F95) -> 14237166.31
C99: 2018 | D99: 2019 | E99: 2022 | F99: 2023
B100: Tipo de cambio real | C100: =+SupuestosGenerales!E16 -> 3.41692072 | D100: =+SupuestosGenerales!E16 -> 3.41692072 | E100: =+SupuestosGenerales!H16 -> 3.818798061 | F100: =+SupuestosGenerales!I16 -> 3.760094901
B104: Costos Operativos de pista y rodadura de la sedes distintas a Lima, Cusco, Nasca y Grupo V-Fuente CR CORPAC Monto exspresado en Dolares
C105: 2018 | D105: 2019 | E105: 2022 | F105: 2023
B106: Total | C106: =+C96/C100 -> 3804983.888 | D106: =+D96/D100 -> 3855860.878 | E106: =+E96/E100 -> 3136257.559 | F106: =+F96/F100 -> 3786384.834
B108: Gastos Operativos promedio por Pista y Rodadura Expresado en Dolares
B109: Gastos Operativos promedio por Pista y Rodadura | C109: =+AVERAGE(C106:F106) -> 3645871.79
B110: Aporte por regulación asociado a la contraprestación del AIJCh | C110: =+C111-C109 -> 36826.98777
B111: Total Gasto promedio por concepto de Pista y Rodadura | C111: =+C109/(1-1%) -> 3682698.777
A114: 2.3.4 Determinacion de las Transferencias destinadas al Flujo de caja de Cusco, Nazca y Grupo V
B117: Transferencias destinado al Flujo de caja de Cusco, Nazca y Grupo V - Expresado en Dolares
F118: 2025 | G118: =F118+1 -> 2026 | H118: =G118+1 -> 2027
B119: Total de transferencias LAP po TUUA internacional proyectadas | F119: =+G37 -> 23859428.42 | G119: =+H37 -> 25529588.41 | H119: =+I37 -> 27316659.6
B120: Procentaje de transferencias de LAP po TUUA internacional que le corresponde a servicios Aeroportuarios | D120: =+D79 -> 0.6276669947 | F120: =+F119*($D$120) -> 14975775.73 | G120: =+G119*($D$120) -> 16024080.03 | H120: 17145765.63
B121: Gasto operativo promedio por concepto de Pista y Rodadura en aeropuertos Concesionados distintos al AIJCh | F121: =+$C$111 -> 3682698.777 | G121: =+$C$111 -> 3682698.777 | H121: =+$C$111 -> 3682698.777
B122: Transferencias netas del AIJCh | F122: =F120-F121 -> 11293076.95 | G122: =G120-G121 -> 12341381.25 | H122: 13463066.86

Sheet 4.Opex
A2: 4.Costos de operación - OPEX | J2: Índice
D6: =+SupuestosGenerales!I16 -> 3.760094901 | E6: =+SupuestosGenerales!J16 -> 3.807640818 | F6: =+SupuestosGenerales!K16 -> 3.841398937 | G6: =+SupuestosGenerales!L16 -> 3.840634926 | H6: =+SupuestosGenerales!M16 -> 3.837678646
B8: A. Opex Base
C9: Unidad Monetaria | D9: 2023 | E9: 2024 | F9: 2025 | G9: 2026 | H9: 2027
B11: Proyeccion de gastos operativos base | C11: USD | D11: =SUM(D$12:D$19) -> 0 | E11: =SUM(E$12:E$19) -> 7082496.54 | F11: 24572116.7 | G11: 25048836.85 | H11: 25549772.16 | J11: Anula depreciación y amortización
B12: Suministros y Materiales | C12: USD | E12: =(E22)/E$6 -> 260308.5059 | F12: =(F22)/F$6 -> 263181.3397 | G12: 268498.3677 | H12: 274079.3041 | J12: 1
B13: Gastos de Personal | C13: USD | F13: =(F23)/F$6 -> 17411455.85 | G13: =(G23)/G$6 -> 17743509.83 | H13: 18092598.54 | J13: 1
B14: Servicios de terceros excepto mantenimiento | C14: USD | E14: =(E24)/E$6 -> 4227688.31 | F14: 4274346.2 | G14: 4360700.417 | H14: 4451340.789 | J14: 1
B15: Mantenimiento | C15: USD | E15: =(E25)/E$6 -> 942273.5453 | F15: 952672.7261 | G15: 971919.4844 | H15: 992121.547 | J15: 1
B16: Depreciación de activos | C16: USD | E16: =(E26)/E$6 -> 0 | F16: 0 | G16: 0 | H16: 0 | J16: 0
B17: Amortización de Intangibles | C17: USD | E17: =(E27)/E$6 -> 0 | F17: 0 | G17: 0 | H17: 0 | J17: 0
B18: Seguros y tributos | C18: USD | E18: =(E28)/E$6 -> 1269518.435 | F18: 1283529.177 | G18: 1309460.197 | H18: 1336678.292 | J18: 1
B19: Otros Costos | C19: USD | E19: =(E29)/E$6 -> 382707.7434 | F19: 386931.4076 | G19: 394748.5468 | H19: 402953.6862 | J19: 1
B21: Proyeccion de gastos operativos base | C21: PEN | D21: =SUM(D$22:D$29) -> 0 | E21: =SUM(E$22:E$29) -> 26967602.92 | F21: 94391302.98 | G21: 96203437.66 | H21: 98051815.03 | J21: Anula depreciación y amortización
B22: Suministros y Materiales | C22: PEN | E22: =+'4.2_OPEX_base'!H98*J22 -> 991161.2925 | F22: =+'4.2_OPEX_base'!E115*$J22 -> 1010984.518 | G22: =+'4.2_OPEX_base'!F115*$J22 -> 1031204.209 | H22: =+'4.2_OPEX_base'!G115*$J22 -> 1051828.293 | J22: 1
B23: Gastos de Personal | C23: PEN | F23: =+'4.1_OPEX_personal'!H113 -> 66884348 | G23: =+'4.1_OPEX_personal'!I113 -> 68146343.58 | H23: =+'4.1_OPEX_personal'!J113 -> 69433579.07 | J23: 1
B24: Servicios de terceros excepto mantenimiento | C24: PEN | E24: =+'4.2_OPEX_base'!H100*J24 -> 16097518.58 | F24: =+'4.2_OPEX_base'!E117*$J24 -> 16419468.95 | G24: =+'4.2_OPEX_base'!F117*$J24 -> 16747858.33 | H24: =+'4.2_OPEX_base'!G117*$J24 -> 17082815.49 | J24: 1
B25: Mantenimiento | C25: PEN | E25: =+'4.2_OPEX_base'!H101*J25 -> 3587839.213 | F25: =+'4.2_OPEX_base'!E118*$J25 -> 3659595.997 | G25: =+'4.2_OPEX_base'!F118*$J25 -> 3732787.917 | H25: =+'4.2_OPEX_base'!G118*$J25 -> 3807443.675 | J25: 1
B26: Depreciación de activos | C26: PEN | E26: =+'4.2_OPEX_base'!H102*J26 -> 0 | F26: =+'4.2_OPEX_base'!E119*$J26 -> 0 | G26: =+'4.2_OPEX_base'!F119*$J26 -> 0 | H26: =+'4.2_OPEX_base'!G119*$J26 -> 0 | J26: 0
B27: Amortización de Intangibles | C27: PEN | E27: =+'4.2_OPEX_base'!H103*J27 -> 0 | F27: =+'4.2_OPEX_base'!E120*$J27 -> 0 | G27: =+'4.2_OPEX_base'!F120*$J27 -> 0 | H27: =+'4.2_OPEX_base'!G120*$J27 -> 0 | J27: 0
B28: Seguros y tributos | C28: PEN | E28: =+'4.2_OPEX_base'!H104*J28 -> 4833870.212 | F28: =+'4.2_OPEX_base'!E121*$J28 -> 4930547.616 | G28: =+'4.2_OPEX_base'!F121*$J28 -> 5029158.568 | H28: =+'4.2_OPEX_base'!G121*$J28 -> 5129741.74 | J28: 1
B29: Otros Costos | C29: PEN | E29: =+'4.2_OPEX_base'!H105*J29 -> 1457213.625 | F29: =+'4.2_OPEX_base'!E122*$J29 -> 1486357.898 | G29: =+'4.2_OPEX_base'!F122*$J29 -> 1516085.056 | H29: =+'4.2_OPEX_base'!G122*$J29 -> 1546406.757 | J29: 1
B32: A. Opex Incremental
C33: Unidad Monetaria | D33: 2023 | E33: 2024 | F33: 2025 | G33: 2026 | H33: 2027
B35: Gastos operativos mantenimiento incremental | C35: USD
B36: Suministros y Materiales | C36: USD
B37: Gastos de Personal | C37: USD
B38: Servicios de terceros excepto mantenimiento | C38: USD
B39: Mantenimiento | C39: USD | F39: =F49/F6 -> 14317.70064 | G39: =G49/G6 -> 41659.77841 | H39: =H49/H6 -> 41691.8702
B40: Depreciación de activos | C40: USD
B41: Amortización de Intangibles | C41: USD
B42: Seguros y tributos | C42: USD
B43: Otros Costos | C43: USD
B45: Gastos operativos mantenimiento incremental | C45: PEN
B46: Suministros y Materiales | C46: PEN
B47: Gastos de Personal | C47: PEN
B48: Servicios de terceros excepto mantenimiento | C48: PEN
B49: Mantenimiento | C49: PEN | F49: =+'4.3_OPEX_Incremental'!N10 -> 55000 | G49: =+'4.3_OPEX_Incremental'!O10 -> 160000 | H49: =+'4.3_OPEX_Incremental'!P10 -> 160000
B50: Depreciación de activos | C50: PEN
B51: Amortización de Intangibles | C51: PEN
B52: Seguros y tributos | C52: PEN
B53: Otros Costos | C53: PEN

Sheet 4.1_OPEX_personal
B2: Fuente: CORPAC S.A. | R2: Índice
B3: (Expresado en soles)
B4: no se incluyo en el calculo aeroportuario 2022 | C4: Tipo de gasto de personal | D4: Subdivisión | E4: Rubros | F4: ¿Se incluye en tarifa? | G4: 2025 | K4: 2026 | O4: 2027
G5: Total | H5: Aeronavegación | I5: Aeroportuario | J5: Mixto | K5: Total | L5: Aeronavegación | M5: Aeroportuario | N5: Mixto | O5: Total | P5: Aeronavegación | Q5: Aeroportuario | R5: Mixto
C6: Sueldos y salarios | D6: Básica | E6: Sueldo Básico | F6: Sí | G6: 78361827 | H6: 49367949 | I6: 12537897 | J6: 16455981 | K6: 109832997 | L6: 69194788 | M6: 17573280 | N6: 23064929 | O6: 122346143 | P6: 77078071 | Q6: 19575383 | R6: 25692689
C7: Sueldos y salarios | D7: Básica | E7: Sueldo Vacacional | F7: Sí | G7: 7110541 | H7: 4479641 | I7: 1137687 | J7: 1493213 | K7: 6899902 | L7: 4346939 | M7: 1103984 | N7: 1448979 | O7: 6899902 | P7: 4346939 | Q7: 1103984 | R7: 1448979
C8: Sueldos y salarios | D8: Básica | E8: Ejercicios Anteriores Basico | F8: Sí | G8: 1638978 | H8: 1032556 | I8: 262236 | J8: 344186 | K8: 1638978 | L8: 1032556 | M8: 262236 | N8: 344186 | O8: 1638978 | P8: 1032556 | Q8: 262236 | R8: 344186
C9: Sueldos y salarios | D9: Bonificaciones | E9: Bonificacion por Retorno Vacacional | F9: Sí | G9: 7110541 | H9: 4479641 | I9: 1137687 | J9: 1493213 | K9: 6899902 | L9: 4346938 | M9: 1103985 | N9: 1448979 | O9: 6899902 | P9: 4346938 | Q9: 1103985 | R9: 1448979
C10: Sueldos y salarios | D10: Bonificaciones | E10: Quinquenio (Remuneracion por Tiempo de Servicio) | F10: Sí | G10: 10781374 | H10: 6792265 | I10: 1725020 | J10: 2264089 | K10: 12287710 | L10: 7741257 | M10: 1966034 | N10: 2580419 | O10: 12808751 | P10: 8069513 | Q10: 2049400 | R10: 2689838
C11: Sueldos y salarios | D11: Bonificaciones | E11: Bonificacion por Antigüedad 30% | F11: Sí | G11: 0 | H11: 0 | I11: 0 | J11: 0 | K11: 0 | L11: 0 | M11: 0 | N11: 0 | O11: 0 | P11: 0 | Q11: 0 | R11: 0
C12: Sueldos y salarios | D12: Bonificaciones | E12: Bonificacion Consolidada (Incremento 10.23 Remun) | F12: Sí | G12: 280903 | H12: 176969 | I12: 44944 | J12: 58990 | K12: 322839 | L12: 203388 | M12: 51654 | N12: 67797 | O12: 322839 | P12: 203388 | Q12: 51654 | R12: 67797
C13: Sueldos y salarios | D13: Bonificaciones | E13: Otras Bonificaciones (Bolsa de cierre y otro similares) | F13: No | G13: 8430000 | H13: 5310900 | I13: 1348800 | J13: 1770300 | K13: 7256000 | L13: 4571280 | M13: 1160960 | N13: 1523760 | O13: 7256000 | P13: 4571280 | Q13: 1160960 | R13: 1523760
C14: Sueldos y salarios | D14: Bonificaciones | E14: Bonificacion unica por productividad (por Norma Legal). | F14: Sí | G14: 0 | H14: 0 | I14: 0 | J14: 0 | K14: 0 | L14: 0 | M14: 0 | N14: 0 | O14: 0 | P14: 0 | Q14: 0 | R14: 0
C15: Sueldos y salarios | D15: Bonificaciones | E15: Bonificación Extraordinaria (Ley 29714) | F15: Sí | G15: 1939195 | H15: 1221693 | I15: 310271 | J15: 407231 | K15: 1826058 | L15: 1150417 | M15: 292169 | N15: 383472 | O15: 1826058 | P15: 1150417 | Q15: 292169 | R15: 383472
C16: Sueldos y salarios | D16: Bonificaciones | E16: Ejercicios Anteriores Bonificaciones | F16: Sí | G16: 415128 | H16: 261531 | I16: 66420 | J16: 87177 | K16: 415128 | L16: 261531 | M16: 66420 | N16: 87177 | O16: 415128 | P16: 261531 | Q16: 66420 | R16: 87177
C17: Sueldos y salarios | D17: Gratificaciones | E17: Gratificaciones Ordinarias (1er y 2do semestre) | F17: Sí | G17: 21546615 | H17: 13574367 | I17: 3447459 | J17: 4524789 | K17: 20289547 | L17: 12782415 | M17: 3246327 | N17: 4260805 | O17: 20289547 | P17: 12782415 | Q17: 3246327 | R17: 4260805
C18: Sueldos y salarios | D18: Gratificaciones | E18: Gratificacion Extraordinario por Antigüedad (Tiempo de Ss.) | F18: Sí | G18: 434726 | H18: 273877 | I18: 69557 | J18: 91292 | K18: 1775733 | L18: 1118712 | M18: 284117 | N18: 372904 | O18: 1278731 | P18: 805600 | Q18: 204597 | R18: 268534
C19: Sueldos y salarios | D19: Gratificaciones | E19: Gratificacion por Balance | F19: Sí | G19: 189156 | H19: 119168 | I19: 30265 | J19: 39723 | K19: 171306 | L19: 107923 | M19: 27409 | N19: 35974 | O19: 171306 | P19: 107923 | Q19: 27409 | R19: 35974
C20: Sueldos y salarios | D20: Gratificaciones | E20: Ejercicios Anteriores Gratificaciones | F20: Sí | G20: 242312 | H20: 152657 | I20: 38770 | J20: 50885 | K20: 242312 | L20: 152657 | M20: 38770 | N20: 50885 | O20: 242312 | P20: 152657 | Q20: 38770 | R20: 50885
C21: Sueldos y salarios | D21: Asignaciones | E21: Asignacion Familiar | F21: Sí | G21: 1429996 | H21: 900897 | I21: 228800 | J21: 300299 | K21: 1436660 | L21: 905096 | M21: 229865 | N21: 301699 | O21: 1436660 | P21: 905096 | Q21: 229865 | R21: 301699
C22: Sueldos y salarios | D22: Asignaciones | E22: Asignacion Escolar | F22: Sí | G22: 3886100 | H22: 2448243 | I22: 621776 | J22: 816081 | K22: 2800300 | L22: 1764189 | M22: 448048 | N22: 588063 | O22: 2800300 | P22: 1764189 | Q22: 448048 | R22: 588063
C23: Sueldos y salarios | D23: Asignaciones | E23: Asignación por Diferencia Remunerativa (Encargaturas) | F23: Sí | G23: 1680000 | H23: 1058400 | I23: 268800 | J23: 352800 | K23: 1680000 | L23: 1058400 | M23: 268800 | N23: 352800 | O23: 1680000 | P23: 1058400 | Q23: 268800 | R23: 352800
C24: Sueldos y salarios | D24: Asignaciones | E24: Asignacion Sepelio y Luto | F24: Sí | G24: 262175 | H24: 165170 | I24: 41948 | J24: 55057 | K24: 255017 | L24: 160660 | M24: 40803 | N24: 53554 | O24: 255017 | P24: 160660 | Q24: 40803 | R24: 53554
C25: Sueldos y salarios | D25: Asignaciones | E25: Asignación por Día 31 trabajado para Grupo CTA | F25: Sí | G25: 560691 | H25: 353235 | I25: 89711 | J25: 117745 | K25: 820478 | L25: 516901 | M25: 131277 | N25: 172300 | O25: 822279 | P25: 518036 | Q25: 131565 | R25: 172678
C26: Sueldos y salarios | D26: Asignaciones | E26: Años Anteriores Asignaciones | F26: Sí | G26: 27528 | H26: 17343 | I26: 4404 | J26: 5781 | K26: 27528 | L26: 17343 | M26: 4404 | N26: 5781 | O26: 27528 | P26: 17343 | Q26: 4404 | R26: 5781
C27: Sueldos y salarios | D27: Horas extras | E27: Horas Extraordinarias (25% -35%) | F27: Sí | G27: 4761668 | H27: 2999851 | I27: 761867 | J27: 999950 | K27: 4526083 | L27: 2851433 | M27: 724173 | N27: 950477 | O27: 4526083 | P27: 2851433 | Q27: 724173 | R27: 950477
C28: Sueldos y salarios | D28: Horas extras | E28: Feriados Trabajados | F28: Sí | G28: 1592780 | H28: 1003451 | I28: 254845 | J28: 334484 | K28: 1585674 | L28: 998975 | M28: 253708 | N28: 332991 | O28: 1585674 | P28: 998975 | Q28: 253708 | R28: 332991
C29: Sueldos y salarios | D29: Horas extras | E29: Horas Libres Laborados | F29: Sí | G29: 15184743 | H29: 9566388 | I29: 2429559 | J29: 3188796 | K29: 15546150 | L29: 9794074 | M29: 2487384 | N29: 3264692 | O29: 15546150 | P29: 9794074 | Q29: 2487384 | R29: 3264692
C30: Sueldos y salarios | D30: Horas extras | E30: Ejercicios Anteriores Horas Extras | F30: Sí | G30: 235780 | H30: 148541 | I30: 37725 | J30: 49514 | K30: 235780 | L30: 148541 | M30: 37725 | N30: 49514 | O30: 235780 | P30: 148541 | Q30: 37725 | R30: 49514
C31: CTS | D31: CTS | E31: Compensacion Tiempo Servicio Empleado Depositado | F31: Sí | G31: 13123120 | H31: 8267565 | I31: 2099700 | J31: 2755855 | K31: 12393388 | L31: 7807835 | M31: 1982942 | N31: 2602611 | O31: 12393388 | P31: 7807835 | Q31: 1982942 | R31: 2602611
C32: CTS | D32: CTS | E32: Ejercicios Anteriores CTS | F32: Sí | G32: 157297 | H32: 99097 | I32: 25168 | J32: 33032 | K32: 157297 | L32: 99097 | M32: 25168 | N32: 33032 | O32: 157297 | P32: 99097 | Q32: 25168 | R32: 33032
C33: Seguridad y previsión social | D33: Seguridad y previsión social | E33: Essalud - Seguro Social | F33: Sí | G33: 14032687 | H33: 8840592 | I33: 2245231 | J33: 2946864 | K33: 13287695 | L33: 8371248 | M33: 2126031 | N33: 2790416 | O33: 13287695 | P33: 8371248 | Q33: 2126031 | R33: 2790416
C34: Seguridad y previsión social | D34: Seguridad y previsión social | E34: Seguro de Vida Ley DL 688 | F34: Sí | G34: 948078 | H34: 597289 | I34: 151693 | J34: 199096 | K34: 2849479 | L34: 1795172 | M34: 455916 | N34: 598391 | O34: 2849479 | P34: 1795172 | Q34: 455916 | R34: 598391
C35: Seguridad y previsión social | D35: Seguridad y previsión social | E35: Seguro Accidente Personal (Seguro Accidente de Viaje) | F35: Sí | G35: 82658 | H35: 52075 | I35: 13225 | J35: 17358 | K35: 482360 | L35: 303887 | M35: 77177 | N35: 101296 | O35: 482360 | P35: 303887 | Q35: 77177 | R35: 101296
C36: Seguridad y previsión social | D36: Seguridad y previsión social | E36: Ejercicios Anteriores Seguridad y Prevision Social | F36: Sí | G36: 87456 | H36: 55097 | I36: 13993 | J36: 18366 | K36: 87456 | L36: 55097 | M36: 13993 | N36: 18366 | O36: 87456 | P36: 55097 | Q36: 13993 | R36: 18366
C37: Dietas del directorio | D37: Dietas del directorio | E37: Dietas del Directorio (Asignacion por Sesion) | F37: Sí | G37: 285000 | H37: 179550 | I37: 45600 | J37: 59850 | K37: 285000 | L37: 179550 | M37: 45600 | N37: 59850 | O37: 285000 | P37: 179550 | Q37: 45600 | R37: 59850
C38: Capacitación | D38: Capacitación | E38: Capacitacion Empleados (Personal Administrativo | F38: Sí | G38: 736000 | H38: 463680 | I38: 117760 | J38: 154560 | K38: 336000 | L38: 211680 | M38: 53760 | N38: 70560 | O38: 336000 | P38: 211680 | Q38: 53760 | R38: 70560
C39: Capacitación | D39: Capacitación | E39: Curso Basico Formacion C.T.A. | F39: Sí | G39: 6332566 | H39: 3989516 | I39: 1013211 | J39: 1329839 | K39: 4671625 | L39: 2943124 | M39: 747460 | N39: 981041 | O39: 4671625 | P39: 2943124 | Q39: 747460 | R39: 981041
C40: Capacitación | D40: Capacitación | E40: Capacitacion Personal Tecnico | F40: Sí | G40: 3524150 | H40: 2220214 | I40: 563865 | J40: 740071 | K40: 2267525 | L40: 1428541 | M40: 362804 | N40: 476180 | O40: 2267525 | P40: 1428541 | Q40: 362804 | R40: 476180
C41: Capacitación | D41: Capacitación | E41: Curso de Formación y Entrenamiento para Personal DGAC | F41: Sí | G41: 286470 | H41: 180476 | I41: 45835 | J41: 60159 | K41: 0 | L41: 0 | M41: 0 | N41: 0 | O41: 0 | P41: 0 | Q41: 0 | R41: 0
C42: Capacitación | D42: Capacitación | E42: Ejercicios Anteriores Capacitacion | F42: Sí | G42: 78760 | H42: 49619 | I42: 12601 | J42: 16540 | K42: 78760 | L42: 49619 | M42: 12602 | N42: 16539 | O42: 78760 | P42: 49619 | Q42: 12602 | R42: 16539
C43: Jubilaciones y pensiones | D43: Jubilaciones y pensiones | E43: Pension y Jubilacion | F43: Sí | G43: 0 | H43: 0 | I43: 0 | J43: 0 | K43: 0 | L43: 0 | M43: 0 | N43: 0 | O43: 0 | P43: 0 | Q43: 0 | R43: 0
C44: Laudos que aplican a SITE-SITPRUCOPR y SUCTA | D44: Laudo | E44: Laudo | F44: Sí | G44: 0 | H44: 0 | I44: 0 | J44: 0 | K44: 0 | L44: 0 | M44: 0 | N44: 0 | O44: 0 | P44: 0 | Q44: 0 | R44: 0
C45: Otros gastos de personal | D45: Refrigerio | E45: Alimentos por Vales | F45: No | G45: 45000 | H45: 28350 | I45: 7200 | J45: 9450 | K45: 45000 | L45: 28350 | M45: 7200 | N45: 9450 | O45: 45000 | P45: 28350 | Q45: 7200 | R45: 9450
C46: Otros gastos de personal | D46: UNIFORMES (compensación económica) | E46: Asignacion Vestuarios y Otros Implementos | F46: Sí | G46: 4033600 | H46: 2541168 | I46: 645376 | J46: 847056 | K46: 3036000 | L46: 1912680 | M46: 485760 | N46: 637560 | O46: 3036000 | P46: 1912680 | Q46: 485760 | R46: 637560
C47: Otros gastos de personal | D47: UNIFORMES (compensación económica) | E47: Ejercicios Anteriores Uniforme | F47: Sí | G47: 6780 | H47: 4271 | I47: 1085 | J47: 1424 | K47: 6781 | L47: 4272 | M47: 1085 | N47: 1424 | O47: 6781 | P47: 4272 | Q47: 1085 | R47: 1424
C48: Otros gastos de personal | D48: Asistencia médica | E48: (Auto) Seguro de Asistencia Medica Trabajadores | F48: Sí | G48: 13483240 | H48: 8494441 | I48: 2157319 | J48: 2831480 | K48: 12792724 | L48: 8059417 | M48: 2046836 | N48: 2686471 | O48: 12792724 | P48: 8059417 | Q48: 2046836 | R48: 2686471
C49: Otros gastos de personal | D49: Asistencia médica | E49: Seguro Medico Practicante | F49: Sí | G49: 369929 | H49: 233055 | I49: 59189 | J49: 77685 | K49: 508464 | L49: 320331 | M49: 81355 | N49: 106778 | O49: 508464 | P49: 320331 | Q49: 81355 | R49: 106778
C50: Otros gastos de personal | D50: Asistencia médica | E50: Servicio Médico Personal Aeronáutico | F50: Sí | G50: 668600 | H50: 421218 | I50: 106976 | J50: 140406 | K50: 300000 | L50: 189000 | M50: 48000 | N50: 63000 | O50: 300000 | P50: 189000 | Q50: 48000 | R50: 63000
C51: Otros gastos de personal | D51: Asistencia médica | E51: Habilitación y Renovacion Licencia Personal Aeronáutico | F51: Sí | G51: 54000 | H51: 34020 | I51: 8640 | J51: 11340 | K51: 54000 | L51: 34020 | M51: 8640 | N51: 11340 | O51: 54000 | P51: 34020 | Q51: 8640 | R51: 11340
C52: Otros gastos de personal | D52: Asistencia médica | E52: Examenes Médicos Ocupacionales Ley Nº 29783 | F52: Sí | G52: 367000 | H52: 231210 | I52: 58720 | J52: 77070 | K52: 475000 | L52: 299250 | M52: 76000 | N52: 99750 | O52: 475000 | P52: 299250 | Q52: 76000 | R52: 99750
C53: Otros gastos de personal | D53: Asistencia médica | E53: Programa Médico Oncologico (titulares) | F53: Sí | G53: 0 | H53: 0 | I53: 0 | J53: 0 | K53: 0 | L53: 0 | M53: 0 | N53: 0 | O53: 0 | P53: 0 | Q53: 0 | R53: 0
C54: Otros gastos de personal | D54: Asistencia médica | E54: Ejercicios Anteriores Asistencia Medica | F54: Sí | G54: 75000 | H54: 47250 | I54: 12000 | J54: 15750 | K54: 48181 | L54: 30354 | M54: 7709 | N54: 10118 | O54: 48181 | P54: 30354 | Q54: 7709 | R54: 10118
C55: Otros gastos de personal | D55: Asistencia médica | E55: Cobertura Seguro PIRV 2017 | F55: Sí | G55: 600000 | H55: 378000 | I55: 96000 | J55: 126000 | K55: 0 | L55: 0 | M55: 0 | N55: 0 | O55: 0 | P55: 0 | Q55: 0 | R55: 0
C56: Otros gastos de personal | D56: Seguro complementario de trabajo de riesgo | E56: Seguro Complementario de Trabajo de Alto Riesgo | F56: Sí | G56: 507763 | H56: 319891 | I56: 81242 | J56: 106630 | K56: 1701605 | L56: 1072013 | M56: 272258 | N56: 357334 | O56: 1701605 | P56: 1072013 | Q56: 272258 | R56: 357334
C57: Otros gastos de personal | D57: Seguro complementario de trabajo de riesgo | E57: Ejercicios Anteriores SCTR | F57: Sí | G57: 9980 | H57: 6287 | I57: 1597 | J57: 2096 | K57: 9980 | L57: 6287 | M57: 1597 | N57: 2096 | O57: 9980 | P57: 6287 | Q57: 1597 | R57: 2096
C58: Otros gastos de personal | D58: Pago de indemnización por cese de relación laboral | E58: Indemnizacion Especial según D.L. 728 | F58: No | G58: 0 | H58: 0 | I58: 0 | J58: 0 | K58: 0 | L58: 0 | M58: 0 | N58: 0 | O58: 0 | P58: 0 | Q58: 0 | R58: 0
C59: Otros gastos de personal | D59: Incentivos por retiro voluntario (GIP) | E59: Programa Retiro Voluntario con Incentivo | F59: Sí | G59: 13100000 | H59: 8253000 | I59: 2096000 | J59: 2751000 | K59: 0 | L59: 0 | M59: 0 | N59: 0 | O59: 0 | P59: 0 | Q59: 0 | R59: 0
C60: Otros gastos de personal | D60: Celebraciones | E60: Celebracion | F60: No | G60: 0 | H60: 0 | I60: 0 | J60: 0 | K60: 60352 | L60: 38022 | M60: 9656 | N60: 12674 | O60: 60352 | P60: 38022 | Q60: 9656 | R60: 12674
C61: Otros gastos de personal | D61: Bonos de productividad (Convenio de Gestión) | E61: Bono de Productividad | F61: Sí | G61: 0 | H61: 0 | I61: 0 | J61: 0 | K61: 0 | L61: 0 | M61: 0 | N61: 0 | O61: 0 | P61: 0 | Q61: 0 | R61: 0
C62: Otros gastos de personal | D62: Participación de trabajadores | E62: Participacion de Trabajadores | F62: No | G62: 700000 | H62: 441000 | I62: 112000 | J62: 147000 | K62: 1000000 | L62: 630000 | M62: 160000 | N62: 210000 | O62: 1000000 | P62: 630000 | Q62: 160000 | R62: 210000
C63: Otros (GIP) | D63: Otros (GIP) | E63: Gastos Rehabilitacion y Becas Hijos Trabajadores | F63: Sí | G63: 71186 | H63: 44847 | I63: 11390 | J63: 14949 | K63: 66000 | L63: 41580 | M63: 10560 | N63: 13860 | O63: 66000 | P63: 41580 | Q63: 10560 | R63: 13860
C64: Otros (GIP) | D64: Otros (GIP) | E64: Indemnizacion Vacaciones No Disfrutadas | F64: Sí | G64: 0 | H64: 0 | I64: 0 | J64: 0 | K64: 33000 | L64: 20790 | M64: 5280 | N64: 6930 | O64: 33000 | P64: 20790 | Q64: 5280 | R64: 6930
C65: Otros (GIP) | D65: Otros (GIP) | E65: Reduccion Periodo Vacacional | F65: Sí | G65: 120000 | H65: 75600 | I65: 19200 | J65: 25200 | K65: 220000 | L65: 138600 | M65: 35200 | N65: 46200 | O65: 220000 | P65: 138600 | Q65: 35200 | R65: 46200
C66: Otros (GIP) | D66: Otros (GIP) | E66: Programa de Asistencia Social | F66: Sí | G66: 1040136 | H66: 655286 | I66: 166422 | J66: 218428 | K66: 872497 | L66: 549673 | M66: 139600 | N66: 183224 | O66: 872497 | P66: 549673 | Q66: 139600 | R66: 183224
C67: Otros (GIP) | D67: Otros (GIP) | E67: Practicas Pro y Pre Profesionales | F67: Sí | G67: 1598025 | H67: 1006756 | I67: 255684 | J67: 335585 | K67: 1931150 | L67: 1216625 | M67: 308984 | N67: 405541 | O67: 1931150 | P67: 1216625 | Q67: 308984 | R67: 405541
C68: Otros (GIP) | D68: Otros (GIP) | E68: Canasta Navideña | F68: Sí | G68: 2635100 | H68: 1660113 | I68: 421616 | J68: 553371 | K68: 1814000 | L68: 1142820 | M68: 290240 | N68: 380940 | O68: 1814000 | P68: 1142820 | Q68: 290240 | R68: 380940
C69: Otros (GIP) | D69: Otros (GIP) | E69: Ejercicios Anteriores Otros | F69: Sí | G69: 25000 | H69: 15750 | I69: 4000 | J69: 5250 | K69: 25000 | L69: 15750 | M69: 4000 | N69: 5250 | O69: 25000 | P69: 15750 | Q69: 4000 | R69: 5250
C70: Otros (GIP) | D70: Otros (GIP) | E70: Vales de Prestación Alimentaria | F70: No | G70: 8636000 | H70: 5440680 | I70: 1381760 | J70: 1813560 | K70: 6530400 | L70: 4114152 | M70: 1044864 | N70: 1371384 | O70: 6530400 | P70: 4114152 | Q70: 1044864 | R70: 1371384
C71: TOTAL GASTOS DE PERSONAL (GIP) | G71: =+SUM(G6:G70) -> 255923338 | H71: 161231696 | I71: 40947746 | J71: 53743896 | K71: 267198801 | L71: 168335249 | M71: 42751809 | N71: 56111743 | O71: 279737787 | P71: 176234811 | Q71: 44758046 | R71: 58744930
E76: A.Gastos Total de Personal por categoria de servicio
E77: (Expresado en soles)
E78: Gasto de Personal Total | H78: Proyecciones
H79: 2025 | I79: =+H79+1 -> 2026 | J79: =+I79+1 -> 2027
E80: Aeronavegación | H80: =+H71 -> 161231696 | I80: =+L71 -> 168335249 | J80: =+P71 -> 176234811
E81: Aeroportuario | H81: =+I71 -> 40947746 | I81: =+M71 -> 42751809 | J81: =+Q71 -> 44758046
E82: Mixto | H82: =+J71 -> 53743896 | I82: =+N71 -> 56111743 | J82: =+R71 -> 58744930
E83: Total | H83: =SUM(H80:H82) -> 255923338 | I83: =SUM(I80:I82) -> 267198801 | J83: 279737787
E85: B.Gastos de Personal a incluirse en las tarifas
E86: (Expresado en soles) | G86: Sí
H87: Proyecciones
H88: 2025 | I88: =+H88+1 -> 2026 | J88: =+I88+1 -> 2027
E89: Aeronavegación | H89: =+SUMIF($F$6:$F$70,$G$86,H6:H70) -> 150010766 | I89: =+SUMIF($F$6:$F$70,$G$86,L6:L70) -> 158953445 | J89: =+SUMIF($F$6:$F$70,$G$86,P6:P70) -> 166853007
E90: Aeroportuario | H90: =+SUMIF($F$6:$F$70,$G$86,I6:I70) -> 38097986 | I90: =+SUMIF($F$6:$F$70,$G$86,M6:M70) -> 40369129 | J90: =+SUMIF($F$6:$F$70,$G$86,Q6:Q70) -> 42375366
E91: Mixto | H91: =+SUMIF($F$6:$F$70,$G$86,J6:J70) -> 50003586 | I91: =+SUMIF($F$6:$F$70,$G$86,N6:N70) -> 52984475 | J91: =+SUMIF($F$6:$F$70,$G$86,R6:R70) -> 55617662
E92: Total | H92: =SUM(H89:H91) -> 238112338 | I92: =SUM(I89:I91) -> 252307049 | J92: =SUM(J89:J91) -> 264846035
E94: C.Gastos de Personal a incluirse para los servicios de aeroporturios
E95: (Expresado en soles)
H96: Proyecciones
H97: 2025 | I97: =+H97+1 -> 2026 | J97: =+I97+1 -> 2027
E98: Aeroportuario | H98: =+H90 -> 38097986 | I98: =+H98*(SupuestosGenerales!L39) -> 38859945.72 | J98: =+I98*(SupuestosGenerales!M39) -> 39637144.63
E99: Mixto | H99: =+H91*0.5 -> 25001793 | I99: =+H99*(SupuestosGenerales!L39) -> 25501828.86 | J99: =+I99*(SupuestosGenerales!M39) -> 26011865.44
E100: Total | H100: =+H99+H98 -> 63099779 | I100: =+I99+I98 -> 64361774.58 | J100: =+J99+J98 -> 65649010.07
E102: D. personal aprobado
E103: (Expresado en soles)
H104: Proyecciones
H105: 2025 | I105: =+H105+1 -> 2026 | J105: =+I105+1 -> 2027
E106: Total | H106: =+'4.3_OPEX_Incremental'!F87 -> 3784569 | I106: =+'4.3_OPEX_Incremental'!G87 -> 3784569 | J106: =+'4.3_OPEX_Incremental'!H87 -> 3784569
E108: (Expresado en soles)
H109: Proyecciones
H110: 2025 | I110: =+H110+1 -> 2026 | J110: =+I110+1 -> 2027
E111: Aeroportuario | H111: =+H98+H106 -> 41882555 | I111: =+I98+I106 -> 42644514.72 | J111: =+J98+J106 -> 43421713.63
E112: Mixto | H112: =+H99 -> 25001793 | I112: =+I99 -> 25501828.86 | J112: 26011865.44
E113: Total | H113: =+H112+H111 -> 66884348 | I113: =+I112+I111 -> 68146343.58 | J113: =+J112+J111 -> 69433579.07

Sheet 4.2_OPEX_base
B3: A. Información histórica | P3: Índice
C5: (Expresado en soles. Fuente: Contabilidad regulatoria de CORPAC S.A.)
C7: Aeropuerto | D7: Categoria | E7: 2021 | I7: 2022 | M7: 2023
E8: TUUA | F8: Pista y Rodadura | G8: Mangas | H8: Total | I8: TUUA | J8: Pista y Rodadura | K8: Mangas | L8: Total | M8: TUUA | N8: Pista y Rodadura | O8: Mangas | P8: Total
C9: Cusco | D9: Suministros y Materiales | E9: 9735.258216 | F9: 664923.6492 | G9: 853.0602337 | H9: 675511.9677 | I9: 36073.71514 | J9: 371039.231 | K9: 7012.273271 | L9: 414125.2194 | M9: 32626.83175 | N9: 260166.897 | O9: 5286.3259 | P9: 298080.0547
D10: Gastos de Personal | E10: 886428.4745 | F10: 5426231.352 | G10: 417952.1472 | H10: 6730611.974 | I10: 968352.1074 | J10: 6653779.9 | K10: 625239.8756 | L10: 8247371.883 | M10: 1240781.304 | N10: 5648733.374 | O10: 619583.5318 | P10: 7509098.209
D11: Servicios Prestados por Terceros | E11: 1064236.969 | F11: 3861472.628 | G11: 173744.8756 | H11: 5099454.473 | I11: 1776761.781 | J11: 3603350.235 | K11: 327553.6678 | L11: 5707665.684 | M11: 1789525.613 | N11: 2568139.72 | O11: 277425.1443 | P11: 4635090.477
D12: Mantenimiento de Activos | E12: 142471.6967 | F12: 676420.9807 | G12: 4425.836263 | H12: 823318.5136 | I12: 92149.09008 | J12: 415727.7948 | K12: 4396.631179 | L12: 512273.516 | M12: 190844.089 | N12: 557342.8771 | O12: 3082.378002 | P12: 751269.3441
D13: Depreciación | E13: 389324.275 | F13: 12297885.55 | G13: 213268.604 | H13: 12900478.43 | I13: 386551.3557 | J13: 11752701.31 | K13: 213872.9525 | L13: 12353125.62 | M13: 831292.3818 | N13: 5756496.322 | O13: 382946.3612 | P13: 6970735.065
D14: Amortización de Intangibles | E14: 1636.780753 | F14: 121339.1202 | G14: 1.197777795 | H14: 122977.0987 | I14: 1016.840622 | J14: 117556.5806 | K14: 0 | L14: 118573.4212 | M14: 1623.743904 | N14: 50534.07651 | O14: 0 | P14: 52157.82042
D15: Tributos y Seguros | E15: 138930.4741 | F15: 693139.0004 | G15: 33813.21923 | H15: 865882.6938 | I15: 222257.0886 | J15: 1040360.875 | K15: 66836.4231 | L15: 1329454.386 | M15: 230352.1691 | N15: 1335682.244 | O15: 114575.5721 | P15: 1680609.985
D16: Otros Costos | E16: 78283.94125 | F16: 286358.3113 | G16: 3976.877766 | H16: 368619.1304 | I16: 22680.84001 | J16: 222860.1538 | K16: 1102.61403 | L16: 246643.6078 | M16: 119064.1872 | N16: 227820.7082 | O16: 24025.85951 | P16: 370910.7549
C17: Total | E17: 2711047.869 | F17: 24027770.59 | G17: 848035.8181 | H17: 27586854.28 | I17: 3505842.819 | J17: 24177376.08 | K17: 1246014.438 | L17: 28929233.33 | M17: 4436110.319 | N17: 16404916.22 | O17: 1426925.173 | P17: 22267951.71
C21: Aeropuerto | D21: Categoria | E21: 2021 | I21: 2022 | M21: 2023
E22: TUUA | F22: Pista y Rodadura | G22: Mangas | H22: Total | I22: TUUA | J22: Pista y Rodadura | K22: Mangas | L22: Total | M22: TUUA | N22: Pista y Rodadura | O22: Mangas | P22: Total
C23: Nasca | D23: Suministros y Materiales | E23: 4498.816575 | F23: 79823.10253 | G23: 0 | H23: 84321.9191 | I23: 955.7412463 | J23: 13054.22274 | K23: 0 | L23: 14009.96399 | M23: 1302.833431 | N23: 37602.23074 | O23: 0 | P23: 38905.06417
D24: Gastos de Personal | E24: 185249.2726 | F24: 1173488.986 | G24: 0 | H24: 1358738.258 | I24: 252787.6803 | J24: 1696751.083 | K24: 0 | L24: 1949538.763 | M24: 267401.1869 | N24: 2067755.74 | O24: 0 | P24: 2335156.927
D25: Servicios Prestados por Terceros | E25: 140049.4082 | F25: 533267.0886 | G25: 0 | H25: 673316.4968 | I25: 361977.3846 | J25: 524475.3735 | K25: 0 | L25: 886452.7581 | M25: 348837.3093 | N25: 567444.238 | O25: 0 | P25: 916281.5473
D26: Mantenimiento de Activos | E26: 12653.66787 | F26: 74599.7697 | G26: 0 | H26: 87253.43758 | I26: 9298.800958 | J26: 55619.98456 | K26: 0 | L26: 64918.78552 | M26: 55220.31568 | N26: 203189.5147 | O26: 0 | P26: 258409.8304
D27: Depreciación | E27: 76086.54735 | F27: 453683.3369 | G27: 0 | H27: 529769.8843 | I27: 69602.73292 | J27: 434941.2157 | K27: 0 | L27: 504543.9486 | M27: 51228.18806 | N27: 610132.0925 | O27: 0 | P27: 661360.2805
D28: Amortización de Intangibles | E28: 656.0416953 | F28: 19259.96562 | G28: 0 | H28: 19916.00732 | I28: 367.7579676 | J28: 16898.86765 | K28: 0 | L28: 17266.62561 | M28: 380.3920403 | N28: 13978.55705 | O28: 0 | P28: 14358.94909
D29: Tributos y Seguros | E29: 18796.25786 | F29: 84592.9763 | G29: 0 | H29: 103389.2342 | I29: 21905.56167 | J29: 100962.8263 | K29: 0 | L29: 122868.388 | M29: 41659.26545 | N29: 173901.3766 | O29: 0 | P29: 215560.6421
D30: Otros Costos | E30: 10782.54554 | F30: 32878.98892 | G30: 0 | H30: 43661.53446 | I30: 4808.41816 | J30: 67250.92542 | K30: 0 | L30: 72059.34358 | M30: 21303.44654 | N30: 56720.95912 | O30: 0 | P30: 78024.40567
C31: Total | E31: 448772.5577 | F31: 2451594.214 | G31: 0 | H31: 2900366.772 | I31: 721704.0778 | J31: 2909954.498 | K31: 0 | L31: 3631658.576 | M31: 787332.9374 | N31: 3730724.709 | O31: 0 | P31: 4518057.647
C35: Aeropuerto | D35: Categoria | E35: 2021 | I35: 2022 | M35: 2023
E36: TUUA | F36: Pista y Rodadura | G36: Mangas | H36: Total | I36: TUUA | J36: Pista y Rodadura | K36: Mangas | L36: Total | M36: TUUA | N36: Pista y Rodadura | O36: Mangas | P36: Total
C37: Grupo V | D37: Suministros y Materiales | E37: 140709.1462 | F37: 986278.2653 | G37: 0 | H37: 1126987.412 | I37: 168156.2633 | J37: 356240.3528 | K37: 0 | L37: 524396.6161 | M37: 199820.186 | N37: 436224.2859 | O37: 0 | P37: 636044.4719
D38: Gastos de Personal | E38: 3763565.036 | F38: 8129415.567 | G38: 0 | H38: 11892980.6 | I38: 4754772.665 | J38: 9948158.662 | K38: 0 | L38: 14702931.33 | M38: 5261006.762 | N38: 9915743.796 | O38: 0 | P38: 15176750.56
D39: Servicios Prestados por Terceros | E39: 5064558.848 | F39: 4965988.966 | G39: 0 | H39: 10030547.81 | I39: 5745982.656 | J39: 5710508.077 | K39: 0 | L39: 11456490.73 | M39: 5702365.78 | N39: 4876980.461 | O39: 0 | P39: 10579346.24
D40: Mantenimiento de Activos | E40: 319509.8556 | F40: 1354249.438 | G40: 0 | H40: 1673759.294 | I40: 720683.2239 | J40: 1173817.543 | K40: 0 | L40: 1894500.767 | M40: 841062.1437 | N40: 1721968.422 | O40: 0 | P40: 2563030.566
D41: Depreciación | E41: 1862781.072 | F41: 11612726.12 | G41: 0 | H41: 13475507.19 | I41: 1998635.763 | J41: 12302405.02 | K41: 0 | L41: 14301040.78 | M41: 2236844.309 | N41: 8794271.867 | O41: 0 | P41: 11031116.18
D42: Amortización de Intangibles | E42: 9800.713839 | F42: 179956.998 | G42: 0 | H42: 189757.7119 | I42: 7096.374475 | J42: 164830.149 | K42: 0 | L42: 171926.5235 | M42: 9206.537042 | N42: 93417.39472 | O42: 0 | P42: 102623.9318
D43: Tributos y Seguros | E43: 599337.2982 | F43: 991402.9491 | G43: 0 | H43: 1590740.247 | I43: 976475.2378 | J43: 1419063.435 | K43: 0 | L43: 2395538.673 | M43: 1140521.981 | N43: 1744055.1 | O43: 0 | P43: 2884577.081
D44: Otros Costos | E44: 238921.0541 | F44: 332061.1209 | G44: 0 | H44: 570982.175 | I44: 113737.3293 | J44: 378075.5833 | K44: 0 | L44: 491812.9125 | M44: 481674.7789 | N44: 519334.3161 | O44: 0 | P44: 1001009.095
C45: Total | E45: 11999183.02 | F45: 28552079.42 | G45: 0 | H45: 40551262.45 | I45: 14485539.51 | J45: 31453098.82 | K45: 0 | L45: 45938638.33 | M45: 15872502.48 | N45: 28101995.64 | O45: 0 | P45: 43974498.12
C50: 4.2.1. Cusco
D52: Categoria
E53: 2021 | F53: =+E53+1 -> 2022 | G53: =+F53+1 -> 2023
D54: Suministros y Materiales | E54: =+H9 -> 675511.9677 | F54: =+L9 -> 414125.2194 | G54: =+P9 -> 298080.0547
D55: Gastos de Personal | E55: 6730611.974 | F55: 8247371.883 | G55: 7509098.209
D56: Servicios Prestados por Terceros | E56: 5099454.473 | F56: 5707665.684 | G56: 4635090.477
D57: Mantenimiento de Activos | E57: 823318.5136 | F57: 512273.516 | G57: 751269.3441
D58: Depreciación | E58: 12900478.43 | F58: 12353125.62 | G58: 6970735.065
D59: Amortización de Intangibles | E59: 122977.0987 | F59: 118573.4212 | G59: 52157.82042
D60: Tributos y Seguros | E60: 865882.6938 | F60: 1329454.386 | G60: 1680609.985
D61: Otros Costos | E61: 368619.1304 | F61: 246643.6078 | G61: 370910.7549
D62: Total | E62: =+SUM(E54:E61) -> 27586854.28 | F62: =+SUM(F54:F61) -> 28929233.33 | G62: =+SUM(G54:G61) -> 22267951.71
C64: 4.2.2. Nasca - sin considerar costos de TUUA -según la fijación 2022
D66: Categoria
E67: 2021 | F67: =+E67+1 -> 2022 | G67: =+F67+1 -> 2023
D68: Suministros y Materiales | E68: =+F23 -> 79823.10253 | F68: =+J23 -> 13054.22274 | G68: =+N23 -> 37602.23074
D69: Gastos de Personal | E69: 1173488.986 | F69: 1696751.083 | G69: 2067755.74
D70: Servicios Prestados por Terceros | E70: 533267.0886 | F70: 524475.3735 | G70: 567444.238
D71: Mantenimiento de Activos | E71: 74599.7697 | F71: 55619.98456 | G71: 203189.5147
D72: Depreciación | E72: 453683.3369 | F72: 434941.2157 | G72: 610132.0925
D73: Amortización de Intangibles | E73: 19259.96562 | F73: 16898.86765 | G73: 13978.55705
D74: Tributos y Seguros | E74: 84592.9763 | F74: 100962.8263 | G74: 173901.3766
D75: Otros Costos | E75: 32878.98892 | F75: 67250.92542 | G75: 56720.95912
D76: Total | E76: =+SUM(E68:E75) -> 2451594.214 | F76: =+SUM(F68:F75) -> 2909954.498 | G76: =+SUM(G68:G75) -> 3730724.709
C78: 4.2.2. Grupo V
D80: Categoria
E81: 2021 | F81: =+E81+1 -> 2022 | G81: =+F81+1 -> 2023
D82: Suministros y Materiales | E82: =+H37 -> 1126987.412 | F82: =+L37 -> 524396.6161 | G82: =+P37 -> 636044.4719
D83: Gastos de Personal | E83: 11892980.6 | F83: 14702931.33 | G83: 15176750.56
D84: Servicios Prestados por Terceros | E84: 10030547.81 | F84: 11456490.73 | G84: 10579346.24
D85: Mantenimiento de Activos | E85: 1673759.294 | F85: 1894500.767 | G85: 2563030.566
D86: Depreciación | E86: 13475507.19 | F86: 14301040.78 | G86: 11031116.18
D87: Amortización de Intangibles | E87: 189757.7119 | F87: 171926.5235 | G87: 102623.9318
D88: Tributos y Seguros | E88: 1590740.247 | F88: 2395538.673 | G88: 2884577.081
D89: Otros Costos | E89: 570982.175 | F89: 491812.9125 | G89: 1001009.095
D90: Total | E90: =+SUM(E82:E89) -> 40551262.45 | F90: =+SUM(F82:F89) -> 45938638.33 | G90: =+SUM(G82:G89) -> 43974498.12
C94: 4.2.3. TOTAL
D96: Categoria
E97: 2021 | F97: =+E97+1 -> 2022 | G97: =+F97+1 -> 2023 | H97: 2024*
D98: Suministros y Materiales | E98: =+E54+E68+E82 -> 1882322.482 | F98: 951576.0582 | G98: 971726.7573 | H98: =+G98*SupuestosGenerales!J38 -> 991161.2925
D99: Gastos de Personal | E99: 19797081.56 | F99: 24647054.29 | G99: 24753604.51
D100: Servicios Prestados por Terceros | E100: 15663269.38 | F100: 17688631.79 | G100: 15781880.96 | H100: =+G100*SupuestosGenerales!J40 -> 16097518.58
D101: Mantenimiento de Activos | E101: 2571677.577 | F101: 2462394.267 | G101: 3517489.424 | H101: =+G101*SupuestosGenerales!J41 -> 3587839.213
D102: Depreciación | E102: 26829668.96 | F102: 27089107.61 | G102: 18611983.33 | H102: =+G102*SupuestosGenerales!J42 -> 18984223
D103: Amortización de Intangibles | E103: 331994.7762 | F103: 307398.8123 | G103: 168760.3092 | H103: =+G103*SupuestosGenerales!J43 -> 172135.5154
D104: Tributos y Seguros | E104: 2541215.917 | F104: 3825955.885 | G104: 4739088.443 | H104: =+G104*SupuestosGenerales!J44 -> 4833870.212
D105: Otros Costos | E105: 972480.2943 | F105: 805707.4458 | G105: 1428640.809 | H105: =+G105*SupuestosGenerales!J45 -> 1457213.625
D106: Total | E106: =+SUM(E98:E105) -> 70589710.94 | F106: =+SUM(F98:F105) -> 77777826.16 | G106: =+SUM(G98:G105) -> 69973174.54 | H106: =+SUM(H98:H105) -> 46123961.43
D107: *Valor proyectado
C111: A. Información Proyectada
D112: (Expresado en soles)
D113: Categoria | E113: Proyecciones
E114: 2025 | F114: 2026 | G114: 2027
D115: Suministros y Materiales | E115: =+H98*SupuestosGenerales!K38 -> 1010984.518 | F115: =+E115*SupuestosGenerales!L38 -> 1031204.209 | G115: =+F115*SupuestosGenerales!M38 -> 1051828.293
D116: Gastos de Personal
D117: Servicios Prestados por Terceros | E117: =+H100*SupuestosGenerales!K40 -> 16419468.95 | F117: =+E117*SupuestosGenerales!L40 -> 16747858.33 | G117: =+F117*SupuestosGenerales!M40 -> 17082815.49
D118: Mantenimiento de Activos | E118: =+H101*SupuestosGenerales!K41 -> 3659595.997 | F118: =+E118*SupuestosGenerales!L41 -> 3732787.917 | G118: =+F118*SupuestosGenerales!M41 -> 3807443.675
D119: Depreciación | E119: =+H102*SupuestosGenerales!K42 -> 19363907.46 | F119: =+E119*SupuestosGenerales!L42 -> 19751185.61 | G119: =+F119*SupuestosGenerales!M42 -> 20146209.32
D120: Amortización de Intangibles | E120: =+H103*SupuestosGenerales!K43 -> 175578.2257 | F120: =+E120*SupuestosGenerales!L43 -> 179089.7902 | G120: =+F120*SupuestosGenerales!M43 -> 182671.586
D121: Tributos y Seguros | E121: =+H104*SupuestosGenerales!K44 -> 4930547.616 | F121: =+E121*SupuestosGenerales!L44 -> 5029158.568 | G121: =+F121*SupuestosGenerales!M44 -> 5129741.74
D122: Otros Costos | E122: =+H105*SupuestosGenerales!K45 -> 1486357.898 | F122: =+E122*SupuestosGenerales!L45 -> 1516085.056 | G122: =+F122*SupuestosGenerales!M45 -> 1546406.757
D123: Total | E123: =+SUM(E115:E122) -> 47046440.66 | F123: =+SUM(F115:F122) -> 47987369.47 | G123: =+SUM(G115:G122) -> 48947116.86

Sheet 4.3_OPEX_Incremental
B2: (Expresado en soles) | P2: Índice
B3: Tipo de Gasto | C3: Tipo de mantenimiento | D3: Aeropuerto | E3: Moneda | F3: Programación de Mantenimiento Anual | L3: (Expresado en soles)
F4: 2025 | G4: 2026 | H4: 2027
B5: Mantenimiento | C5: Torre de control | D5: Aeropuerto de Pisco | E5: S/. | F5: 0 | G5: 40000 | H5: 0 | L5: Gastos operativos mantenimiento incremental | M5: PEN | N5: Proyección
D6: Aeropuerto de Iquitos | E6: S/. | F6: 0 | G6: 0 | H6: 0 | N6: 2025 | O6: 2026 | P6: 2027
D7: Aeropuerto de Tarapoto | E7: S/. | F7: 0 | G7: 0 | H7: 0 | L7: Suministros y Materiales | M7: PEN
D8: Aeropuerto de Puerto Maldonado | E8: S/. | F8: 0 | G8: 40000 | H8: 0 | L8: Gastos de Personal | M8: PEN
D9: Aeropuerto de Jaen | E9: S/. | F9: 0 | G9: 0 | H9: 0 | L9: Servicios de terceros excepto mantenimiento | M9: PEN
D10: Aeropuerto de Jauja | E10: S/. | F10: 0 | G10: 0 | H10: 40000 | L10: Mantenimiento | M10: PEN | N10: =+F30 -> 55000 | O10: =+G30 -> 160000 | P10: 160000
D11: Aeropuerto de Mazamari | E11: S/. | F11: 0 | G11: 0 | H11: 0 | L11: Depreciación de activos | M11: PEN
D12: Aeropuerto de Huanuco | E12: S/. | F12: 0 | G12: 0 | H12: 0 | L12: Amortización de Intangibles | M12: PEN
D13: Aeropuerto de Tocache | E13: S/. | F13: 0 | G13: 0 | H13: 0 | L13: Seguros y tributos | M13: PEN
D14: Aeropuerto de Atalaya | E14: S/. | F14: 0 | G14: 0 | H14: 0 | L14: Otros Costos | M14: PEN
C15: Cercos perimetricos | D15: Aeropuerto de Rodriguez de Mendoza | E15: S/. | F15: 0 | G15: 0 | H15: 0 | L15: Total | M15: PEN | N15: =+SUM(N7:N14) -> 55000 | O15: =+SUM(O7:O14) -> 160000 | P15: 160000
D16: Aeropuerto de Saposoa | E16: S/. | F16: 0 | G16: 0 | H16: 40000
D17: Aeropuerto de Tocache | E17: S/. | F17: 0 | G17: 40000 | H17: 0
D18: Aeropuerto de Jauja | E18: S/. | F18: 0 | G18: 0 | H18: 0
D19: Aeropuerto de Tingo Maria | E19: S/. | F19: 0 | G19: 0 | H19: 0
D20: Aeropuerto de Chimbote | E20: S/. | F20: 40000 | G20: 0 | H20: 0
D21: Aeropuerto de Iñapari | E21: S/. | F21: 0 | G21: 0 | H21: 0
D22: Estacion Ventanilla | E22: S/. | F22: 15000 | G22: 0 | H22: 0
C23: Cuarteles SEI | D23: Aeropuerto de Chimbote | E23: S/. | F23: 0 | G23: 40000 | H23: 0
D24: Aeropuerto de Rioja | E24: S/. | F24: 0 | G24: 0 | H24: 40000
D25: Aeropuerto de Tocache | E25: S/. | F25: 0 | G25: 0 | H25: 0
D26: Aeropuerto de Juanjui | E26: S/. | F26: 0 | G26: 0 | H26: 0
D27: Aeropuerto de Mazamari | E27: S/. | F27: 0 | G27: 0 | H27: 40000
D28: Aeropuerto de Saposoa | E28: S/. | F28: 0 | G28: 0 | H28: 0
D29: Aeropuerto de Jaen | E29: S/. | F29: 0 | G29: 0 | H29: 0
B30: Total | E30: S/. | F30: 55000 | G30: 160000 | H30: 160000
B36: Proyección Cuadro de Asignación de Personal 2024-2027
B37: Año | C37: Órgano | D37: Unidad Orgánica | E37: Plaza | F37: Categoria | G37: Tipo Servicio | H37: N° plaza
B38: 2025 | C38: Gerencia de Gestión Aeroportuaria | D38: JEFATURA ZONA NORTE | E38: Asistente Administrativo I | F38: A1 | G38: aeroportuario | H38: 1
B39: 2025 | C39: Gerencia de Gestión Aeroportuaria | D39: JEFATURA DE AEROPUERTO DE JAÉN | E39: Administrador de Aeropuerto I | F39: F1 | G39: aeroportuario | H39: 1
B40: 2025 | C40: Gerencia de Gestión Aeroportuaria | D40: JEFATURA DE AEROPUERTO DE JAÉN | E40: Asistente Administrativo I | F40: A1 | G40: aeroportuario | H40: 2
B41: 2025 | C41: Gerencia de Gestión Aeroportuaria | D41: JEFATURA DE AEROPUERTO DE JAÉN | E41: Médico de Servicios Aeroportuarios | F41: P1 | G41: aeroportuario | H41: 1
B42: 2025 | C42: Gerencia de Gestión Aeroportuaria | D42: JEFATURA DE AEROPUERTO DE CHIMBOTE | E42: Administrador de Aeropuerto II | F42: F2 | G42: aeroportuario | H42: 1
B43: 2025 | C43: Gerencia de Gestión Aeroportuaria | D43: JEFATURA DE AEROPUERTO DE CHIMBOTE | E43: Asistente Administrativo I | F43: A1 | G43: aeroportuario | H43: 1
B44: 2025 | C44: Gerencia de Gestión Aeroportuaria | D44: JEFATURA ZONA SUR | E44: Asistente Administrativo I | F44: A1 | G44: aeroportuario | H44: 1
B45: 2025 | C45: Gerencia de Gestión Aeroportuaria | D45: JEFATURA DE AEROPUERTO DE NAZCA | E45: Asistente Administrativo I | F45: A1 | G45: aeroportuario | H45: 1
B46: 2025 | C46: Gerencia de Gestión Aeroportuaria | D46: JEFATURA DE AEROPUERTO DE NAZCA | E46: Jefe de Equipo de Seguridad | F46: F2 | G46: aeroportuario | H46: 1
B47: 2025 | C47: Gerencia de Gestión Aeroportuaria | D47: JEFATURA DE AEROPUERTO DE ANDAHUAYLAS | E47: Asistente Administrativo I | F47: A1 | G47: aeroportuario | H47: 1
B48: 2025 | C48: Gerencia de Gestión Aeroportuaria | D48: JEFATURA DE AEROPUERTO DE ILO | E48: Administrador de Aeropuerto I | F48: F1 | G48: aeroportuario | H48: 1
B49: 2025 | C49: Gerencia de Gestión Aeroportuaria | D49: JEFATURA DE AEROPUERTO DE ILO | E49: Asistente Administrativo I | F49: A1 | G49: aeroportuario | H49: 1
B50: 2025 | C50: Gerencia de Gestión Aeroportuaria | D50: JEFATURA DE AEROPUERTO DE MOQUEGUA | E50: Administrador de Aeropuerto I | F50: F1 | G50: aeroportuario | H50: 1
B51: 2025 | C51: Gerencia de Gestión Aeroportuaria | D51: JEFATURA DE AEROPUERTO DE MOQUEGUA | E51: Asistente Administrativo I | F51: A1 | G51: aeroportuario | H51: 1
B52: 2025 | C52: Gerencia de Gestión Aeroportuaria | D52: JEFATURA DE AEROPUERTO DE MOQUEGUA | E52: Oficial de Control de Fauna | F52: P1 | G52: aeroportuario | H52: 1
B53: 2025 | C53: Gerencia de Gestión Aeroportuaria | D53: JEFATURA ZONA ORIENTE | E53: Jefe de Zona Oriente | F53: F1 | G53: aeroportuario | H53: 1
B54: 2025 | C54: Gerencia de Gestión Aeroportuaria | D54: JEFATURA ZONA ORIENTE | E54: Asistente Administrativo I | F54: A1 | G54: aeroportuario | H54: 1
B55: 2025 | C55: Gerencia de Gestión Aeroportuaria | D55: JEFATURA ZONA ORIENTE | E55: Analista Administrativo I | F55: P1 | G55: aeroportuario | H55: 1
B56: 2025 | C56: Gerencia de Gestión Aeroportuaria | D56: JEFATURA DE AEROPUERTO DE JUANJUI | E56: Administrador de Aeropuerto I | F56: F1 | G56: aeroportuario | H56: 1
B57: 2025 | C57: Gerencia de Gestión Aeroportuaria | D57: JEFATURA DE AEROPUERTO DE JUANJUI | E57: Asistente Administrativo I | F57: A1 | G57: aeroportuario | H57: 1
B58: 2025 | C58: Gerencia de Gestión Aeroportuaria | D58: JEFATURA DE AEROPUERTO DE JAUJA | E58: Administrador de Aeropuerto I | F58: F1 | G58: aeroportuario | H58: 1
B59: 2025 | C59: Gerencia de Gestión Aeroportuaria | D59: JEFATURA DE AEROPUERTO DE JAUJA | E59: Asistente Administrativo I | F59: A1 | G59: aeroportuario | H59: 2
B60: 2025 | C60: Gerencia de Gestión Aeroportuaria | D60: JEFATURA DE AEROPUERTO DE JAUJA | E60: Analista Administrativo I | F60: P1 | G60: aeroportuario | H60: 1
B61: 2025 | C61: Gerencia de Gestión Aeroportuaria | D61: JEFATURA DE AEROPUERTO DE JAUJA | E61: Médico de Servicios Aeroportuarios | F61: P1 | G61: aeroportuario | H61: 1
B62: 2025 | C62: Gerencia de Gestión Aeroportuaria | D62: JEFATURA DE AEROPUERTO DE JAUJA | E62: Jefe de Equipo de Seguridad | F62: F2 | G62: aeroportuario | H62: 1
B63: 2025 | C63: Gerencia de Gestión Aeroportuaria | D63: JEFATURA DE AEROPUERTO DE YURIMAGUAS | E63: Administrador de Aeropuerto I | F63: F1 | G63: aeroportuario | H63: 1
B64: 2025 | C64: Gerencia de Gestión Aeroportuaria | D64: JEFATURA DE AEROPUERTO DE HUÁNUCO | E64: Administrador de Aeropuerto I | F64: F1 | G64: aeroportuario | H64: 1
B65: 2025 | C65: Gerencia de Gestión Aeroportuaria | D65: JEFATURA DE AEROPUERTO DE HUÁNUCO | E65: Analista Administrativo I | F65: P1 | G65: aeroportuario | H65: 1
B66: 2025 | C66: Gerencia de Gestión Aeroportuaria | D66: JEFATURA DE AEROPUERTO DE HUÁNUCO | E66: Médico de Servicios Aeroportuarios | F66: P1 | G66: aeroportuario | H66: 1
B67: 2025 | C67: Gerencia de Gestión Aeroportuaria | D67: JEFATURA DE AEROPUERTO DE TINGO MARÍA | E67: Administrador de Aeropuerto I | F67: F1 | G67: aeroportuario | H67: 1
B68: 2025 | C68: Gerencia de Gestión Aeroportuaria | D68: JEFATURA DE AEROPUERTO DE RIOJA | E68: Administrador de Aeropuerto I | F68: F1 | G68: aeroportuario | H68: 1
B69: 2025 | C69: Gerencia de Gestión Aeroportuaria | D69: JEFATURA DE AEROPUERTO DE RIOJA | E69: Asistente Administrativo I | F69: A1 | G69: aeroportuario | H69: 1
B70: 2025 | C70: Gerencia de Gestión Aeroportuaria | D70: JEFATURA DE AEROPUERTO DE RIOJA | E70: Oficial de Control de Fauna | F70: P1 | G70: aeroportuario | H70: 1
B71: 2025 | C71: Gerencia de Gestión Aeroportuaria | D71: JEFATURA DE AEROPUERTO DE MAZAMARI | E71: Administrador de Aeropuerto I | F71: F1 | G71: aeroportuario | H71: 1
B72: 2025 | C72: Gerencia de Gestión Aeroportuaria | D72: JEFATURA DE AEROPUERTO DE MAZAMARI | E72: Asistente Administrativo I | F72: A1 | G72: aeroportuario | H72: 1
B73: 2025 | C73: Gerencia de Gestión Aeroportuaria | D73: JEFATURA DE AEROPUERTO DE ATALAYA | E73: Administrador de Aeropuerto I | F73: F1 | G73: aeroportuario | H73: 1
B74: 2025 | C74: Gerencia de Gestión Aeroportuaria | D74: JEFATURA DE AEROPUERTO DE ATALAYA | E74: Asistente Administrativo I | F74: A1 | G74: aeroportuario | H74: 1
A75: cusco | B75: 2025 | C75: GERENCIA DEL AEROPUERTO INTERNACIONAL DEL CUSCO | D75: GERENCIA DEL AEROPUERTO INTERNACIONAL DEL CUSCO | E75: Asistente Administrativo I | F75: A1 | G75: aeroportuario | H75: 1
B76: 2025 | C76: GERENCIA DEL AEROPUERTO INTERNACIONAL DEL CUSCO | D76: ÁREA DE ADMINISTRACIÓN | E76: Analista Administrativo I | F76: P1 | G76: aeroportuario | H76: 2
B77: 2025 | C77: GERENCIA DEL AEROPUERTO INTERNACIONAL DEL CUSCO | D77: ÁREA DE ADMINISTRACIÓN | E77: Asistente Administrativo IV | F77: A4 | G77: aeroportuario | H77: 1
B78: 2025 | C78: GERENCIA DEL AEROPUERTO INTERNACIONAL DEL CUSCO | D78: ÁREA DE SEGURIDAD | E78: Jefe de Área de Seguridad | F78: F1 | G78: aeroportuario | H78: 1
B79: TOTAL | H79: =+SUM(H38:H78) -> 44
C82: (Expresado en soles)
C83: DETALLE | D83: Cantidad de pesonal agregado a partir del 2025 | F83: Gasto de personal adicional
F84: 2025 | G84: 2026 | H84: 2027
C85: Necesidades-GCAP | D85: 39 | F85: 3407080 | G85: 3407080 | H85: 3407080
C86: Necesidades - GAI del Cusco | D86: 45 | F86: 377489 | G86: 377489 | H86: 377489
C87: TOTAL | D87: =SUM(D85:D86) -> 84 | F87: =SUM(F85:F86) -> 3784569 | G87: =SUM(G85:G86) -> 3784569 | H87: 3784569

Sheet 5.CAPEX
A2: 5. Gastos de Capital - CAPEX Total | I2: Índice
A4: 5.1. Activos existentes e inversiones proyectadas
B6: A. Activos existentes
B8: Activos Existentes Por categoria- (Expresado en dólares)
B9: Tipo de activo | C9: Valor Neto activos 2024
B11: A. Aeroportuario | C11: =SUM(C12:C17) -> 31130006.07
B12: Concesiones, licencias y otros derechos | C12: =+'5.1.ACTIVO INCIAL'!C34-'5.1.ACTIVO INCIAL'!E34-'5.1.ACTIVO INCIAL'!C91 -> 0
B13: Edificaciones y construcciones | C13: =+'5.1.ACTIVO INCIAL'!C35-'5.1.ACTIVO INCIAL'!E35-'5.1.ACTIVO INCIAL'!C92 -> 24762678.06
B14: Maquinaria y Equipo | C14: =+'5.1.ACTIVO INCIAL'!C36-'5.1.ACTIVO INCIAL'!E36-'5.1.ACTIVO INCIAL'!C93 -> 81283.12977
B15: Otros | C15: =+'5.1.ACTIVO INCIAL'!C37-'5.1.ACTIVO INCIAL'!E37-'5.1.ACTIVO INCIAL'!C94 -> 6286044.88
B16: Intangible | C16: =+'5.1.ACTIVO INCIAL'!C38-'5.1.ACTIVO INCIAL'!E38-'5.1.ACTIVO INCIAL'!C95 -> 0
B17: Terrenos | C17: =+'5.1.ACTIVO INCIAL'!C39-'5.1.ACTIVO INCIAL'!E39-'5.1.ACTIVO INCIAL'!C96 -> 0
B18: B. Aeronavegación/Aeroportuarios (Mixto) | C18: =SUM(C19:C24) -> 27907435.96
B19: Concesiones, licencias y otros derechos | C19: =+'5.1.ACTIVO INCIAL'!C41-'5.1.ACTIVO INCIAL'!E41-'5.1.ACTIVO INCIAL'!C98 -> 0
B20: Edificaciones y construcciones | C20: =+'5.1.ACTIVO INCIAL'!C42-'5.1.ACTIVO INCIAL'!E42-'5.1.ACTIVO INCIAL'!C99 -> 147004.57
B21: Maquinaria y Equipo | C21: =+'5.1.ACTIVO INCIAL'!C43-'5.1.ACTIVO INCIAL'!E43-'5.1.ACTIVO INCIAL'!C100 -> 7281.392454
B22: Otros | C22: =+'5.1.ACTIVO INCIAL'!C44-'5.1.ACTIVO INCIAL'!E44-'5.1.ACTIVO INCIAL'!C101 -> 72094.12409
B23: Intangible | C23: =+'5.1.ACTIVO INCIAL'!C45-'5.1.ACTIVO INCIAL'!E45-'5.1.ACTIVO INCIAL'!C102 -> 14345.04505
B24: Terrenos | C24: =+'5.1.ACTIVO INCIAL'!C46-'5.1.ACTIVO INCIAL'!E46-'5.1.ACTIVO INCIAL'!C103 -> 27666710.83
B25: Total general | C25: =C11+C18 -> 59037442.03
B27: Activos Existentes Por categoria Asignado a servicios Aeroportuarios- sin considerar las inversiones 2024 (Expresado en dólares)
B28: Tipo de activo | C28: Valor Neto activos 2024
B30: Total asignado a servicios Aeroportuarios
B31: Concesiones, licencias y otros derechos | C31: =+C12+C19 -> 0
B32: Edificaciones y construcciones | C32: =+C13+C20 -> 24909682.63
B33: Maquinaria y Equipo | C33: =+C14+C21 -> 88564.52222
B34: Otros | C34: 6358139.004
B35: Intangible | C35: 14345.04505
B36: Terrenos | C36: 27666710.83
B37: Total general | C37: =+SUM(C31:C36) -> 59037442.03
B40: B. Inversiones Proyectadas
B42: Inversiones Proyectadas por categoria- (Expresado en dólares)
B43: Tipo de activo | C43: Inversiones Proyectadas activos
C44: 2024 | D44: 2025 | E44: 2026 | F44: 2027
B45: Total asignado a servicios Aeroportuarios
B46: Concesiones, licencias y otros derechos | C46: =+'5.3_INVERS.PROGRAMADAS'!G119 -> 0 | D46: =+'5.3_INVERS.PROGRAMADAS'!H119 -> 0 | E46: =+'5.3_INVERS.PROGRAMADAS'!I119 -> 0 | F46: =+'5.3_INVERS.PROGRAMADAS'!J119 -> 0
B47: Edificaciones y construcciones | C47: =+'5.3_INVERS.PROGRAMADAS'!G120 -> 420585.6764 | D47: =+'5.3_INVERS.PROGRAMADAS'!H120 -> 845198.8605 | E47: =+'5.3_INVERS.PROGRAMADAS'!I120 -> 627620.9503 | F47: =+'5.3_INVERS.PROGRAMADAS'!J120 -> 1166479.648
B48: Maquinaria y Equipo | C48: =+'5.3_INVERS.PROGRAMADAS'!G121 -> 310432.8912 | D48: =+'5.3_INVERS.PROGRAMADAS'!H121 -> 239970.9094 | E48: =+'5.3_INVERS.PROGRAMADAS'!I121 -> 492812.0689 | F48: =+'5.3_INVERS.PROGRAMADAS'!J121 -> 429545.6833
B49: Otros | C49: =+'5.3_INVERS.PROGRAMADAS'!G122 -> 638411.9363 | D49: =+'5.3_INVERS.PROGRAMADAS'!H122 -> 0 | E49: =+'5.3_INVERS.PROGRAMADAS'!I122 -> 0 | F49: =+'5.3_INVERS.PROGRAMADAS'!J122 -> 192276.865
B50: Intangible | C50: =+'5.3_INVERS.PROGRAMADAS'!G123 -> 0 | D50: =+'5.3_INVERS.PROGRAMADAS'!H123 -> 0 | E50: =+'5.3_INVERS.PROGRAMADAS'!I123 -> 0 | F50: =+'5.3_INVERS.PROGRAMADAS'!J123 -> 0
B51: Terrenos | C51: =+'5.3_INVERS.PROGRAMADAS'!G124 -> 0 | D51: =+'5.3_INVERS.PROGRAMADAS'!H124 -> 0 | E51: =+'5.3_INVERS.PROGRAMADAS'!I124 -> 0 | F51: =+'5.3_INVERS.PROGRAMADAS'!J124 -> 0
B52: Total | C52: =+SUM(C46:C51) -> 1369430.504 | D52: =+SUM(D46:D51) -> 1085169.77 | E52: =+SUM(E46:E51) -> 1120433.019 | F52: 1788302.196
A55: 5.2. Depreciación y amortización de activos existentes e inversiones proyectadas
B57: A. Depreciación de Activos base 2024:
B59: (Expresado en Dolares)
B60: Tipo de activo | C60: Depreciacion Proyectada activo Base 2024
D61: 2025 | E61: 2026 | F61: 2027
B62: A. Aeroportuario | D62: =SUM(D63:D68) -> 2886581.556 | E62: 2777337.687 | F62: 2653617.632
B63: Concesiones, licencias y otros derechos | D63: =+'5.1.ACTIVO INCIAL'!F34-'5.1.ACTIVO INCIAL'!F91 -> 0 | E63: =+'5.1.ACTIVO INCIAL'!G34-'5.1.ACTIVO INCIAL'!G91 -> 0 | F63: =+'5.1.ACTIVO INCIAL'!H34-'5.1.ACTIVO INCIAL'!H91 -> 0
B64: Edificaciones y construcciones | D64: =+'5.1.ACTIVO INCIAL'!F35-'5.1.ACTIVO INCIAL'!F92 -> 1514795.46 | E64: =+'5.1.ACTIVO INCIAL'!G35-'5.1.ACTIVO INCIAL'!G92 -> 1468868.877 | F64: =+'5.1.ACTIVO INCIAL'!H35-'5.1.ACTIVO INCIAL'!H92 -> 1427412.237
B65: Maquinaria y Equipo | D65: =+'5.1.ACTIVO INCIAL'!F36-'5.1.ACTIVO INCIAL'!F93 -> 57904.77289 | E65: =+'5.1.ACTIVO INCIAL'!G36-'5.1.ACTIVO INCIAL'!G93 -> 22565.3947 | F65: =+'5.1.ACTIVO INCIAL'!H36-'5.1.ACTIVO INCIAL'!H93 -> -63.91806678
B66: Otros | D66: =+'5.1.ACTIVO INCIAL'!F37-'5.1.ACTIVO INCIAL'!F94 -> 1313881.323 | E66: =+'5.1.ACTIVO INCIAL'!G37-'5.1.ACTIVO INCIAL'!G94 -> 1285903.415 | F66: =+'5.1.ACTIVO INCIAL'!H37-'5.1.ACTIVO INCIAL'!H94 -> 1226269.313
B67: Intangible | D67: =+'5.1.ACTIVO INCIAL'!F38-'5.1.ACTIVO INCIAL'!F95 -> 0 | E67: =+'5.1.ACTIVO INCIAL'!G38-'5.1.ACTIVO INCIAL'!G95 -> 0 | F67: =+'5.1.ACTIVO INCIAL'!H38-'5.1.ACTIVO INCIAL'!H95 -> 0
B68: Terrenos | D68: =+'5.1.ACTIVO INCIAL'!F39-'5.1.ACTIVO INCIAL'!F96 -> 0 | E68: =+'5.1.ACTIVO INCIAL'!G39-'5.1.ACTIVO INCIAL'!G96 -> 0 | F68: =+'5.1.ACTIVO INCIAL'!H39-'5.1.ACTIVO INCIAL'!H96 -> 0
B69: B. Aeronavegación/Aeroportuarios (Mixto) | D69: =SUM(D70:D75) -> 36855.024 | E69: 31263.98299 | F69: 22574.44877
B70: Concesiones, licencias y otros derechos | D70: =+'5.1.ACTIVO INCIAL'!F41-'5.1.ACTIVO INCIAL'!F98 -> 0 | E70: =+'5.1.ACTIVO INCIAL'!G41-'5.1.ACTIVO INCIAL'!G98 -> 0 | F70: =+'5.1.ACTIVO INCIAL'!H41-'5.1.ACTIVO INCIAL'!H98 -> 0
B71: Edificaciones y construcciones | D71: =+'5.1.ACTIVO INCIAL'!F42-'5.1.ACTIVO INCIAL'!F99 -> 6702.127382 | E71: =+'5.1.ACTIVO INCIAL'!G42-'5.1.ACTIVO INCIAL'!G99 -> 6703.460624 | F71: =+'5.1.ACTIVO INCIAL'!H42-'5.1.ACTIVO INCIAL'!H99 -> 6708.624503
B72: Maquinaria y Equipo | D72: =+'5.1.ACTIVO INCIAL'!F43-'5.1.ACTIVO INCIAL'!F100 -> 4634.021302 | E72: =+'5.1.ACTIVO INCIAL'!G43-'5.1.ACTIVO INCIAL'!G100 -> 2085.036629 | F72: =+'5.1.ACTIVO INCIAL'!H43-'5.1.ACTIVO INCIAL'!H100 -> -53.96374191
B73: Otros | D73: =+'5.1.ACTIVO INCIAL'!F44-'5.1.ACTIVO INCIAL'!F101 -> 22717.58543 | E73: =+'5.1.ACTIVO INCIAL'!G44-'5.1.ACTIVO INCIAL'!G101 -> 19673.63859 | F73: =+'5.1.ACTIVO INCIAL'!H44-'5.1.ACTIVO INCIAL'!H101 -> 13115.78252
B74: Intangible | D74: =+'5.1.ACTIVO INCIAL'!F45-'5.1.ACTIVO INCIAL'!F102 -> 2801.289889 | E74: =+'5.1.ACTIVO INCIAL'!G45-'5.1.ACTIVO INCIAL'!G102 -> 2801.847144 | F74: =+'5.1.ACTIVO INCIAL'!H45-'5.1.ACTIVO INCIAL'!H102 -> 2804.005492
B75: Terrenos | D75: =+'5.1.ACTIVO INCIAL'!F46-'5.1.ACTIVO INCIAL'!F103 -> 0 | E75: =+'5.1.ACTIVO INCIAL'!G46-'5.1.ACTIVO INCIAL'!G103 -> 0 | F75: =+'5.1.ACTIVO INCIAL'!H46-'5.1.ACTIVO INCIAL'!H103 -> 0
B76: Total | D76: =+D69+D62 -> 2923436.58 | E76: =+E69+E62 -> 2808601.67 | F76: 2676192.081
B79: B. Depreciación de Activos 20205-2027(Inversiones proyectadas), por categoria:
B81: (Expresado en Dolares)
B82: Tipo de activo | C82: Depreciacion Proyectada Activos 20205-2027 (Inversiones proyectadas)
C83: 2024 | D83: 2025 | E83: 2026 | F83: 2027
B84: Total asignado a servicios Aeroportuarios
B85: Concesiones, licencias y otros derechos | D85: =+'5.3_INVERS.PROGRAMADAS'!G23+'5.3_INVERS.PROGRAMADAS'!G47+'5.3_INVERS.PROGRAMADAS'!G68+'5.3_INVERS.PROGRAMADAS'!G88 -> 21029.28382 | E85: =+'5.3_INVERS.PROGRAMADAS'!H23+'5.3_INVERS.PROGRAMADAS'!H47+'5.3_INVERS.PROGRAMADAS'!H68+'5.3_INVERS.PROGRAMADAS'!H88 -> 63289.22684 | F85: =+'5.3_INVERS.PROGRAMADAS'!I23+'5.3_INVERS.PROGRAMADAS'!I47+'5.3_INVERS.PROGRAMADAS'!I68+'5.3_INVERS.PROGRAMADAS'!I88 -> 94670.27436
B86: Edificaciones y construcciones | D86: =+'5.3_INVERS.PROGRAMADAS'!G24+'5.3_INVERS.PROGRAMADAS'!G48+'5.3_INVERS.PROGRAMADAS'!G69+'5.3_INVERS.PROGRAMADAS'!G89 -> 31043.28912 | E86: =+'5.3_INVERS.PROGRAMADAS'!H24+'5.3_INVERS.PROGRAMADAS'!H48+'5.3_INVERS.PROGRAMADAS'!H69+'5.3_INVERS.PROGRAMADAS'!H89 -> 55040.38007 | F86: =+'5.3_INVERS.PROGRAMADAS'!I24+'5.3_INVERS.PROGRAMADAS'!I48+'5.3_INVERS.PROGRAMADAS'!I69+'5.3_INVERS.PROGRAMADAS'!I89 -> 104321.587
B87: Maquinaria y Equipo | D87: =+'5.3_INVERS.PROGRAMADAS'!G25+'5.3_INVERS.PROGRAMADAS'!G49+'5.3_INVERS.PROGRAMADAS'!G70+'5.3_INVERS.PROGRAMADAS'!G90 -> 0 | E87: =+'5.3_INVERS.PROGRAMADAS'!H25+'5.3_INVERS.PROGRAMADAS'!H49+'5.3_INVERS.PROGRAMADAS'!H70+'5.3_INVERS.PROGRAMADAS'!H90 -> 0 | F87: =+'5.3_INVERS.PROGRAMADAS'!I25+'5.3_INVERS.PROGRAMADAS'!I49+'5.3_INVERS.PROGRAMADAS'!I70+'5.3_INVERS.PROGRAMADAS'!I90 -> 0
B88: Otros | D88: =+SUM('5.3_INVERS.PROGRAMADAS'!G25:G29)+SUM('5.3_INVERS.PROGRAMADAS'!G50:G53)+SUM('5.3_INVERS.PROGRAMADAS'!G71:G74)+SUM('5.3_INVERS.PROGRAMADAS'!G91:G94) -> 104020.0265 | E88: =+SUM('5.3_INVERS.PROGRAMADAS'!H25:H29)+SUM('5.3_INVERS.PROGRAMADAS'!H50:H53)+SUM('5.3_INVERS.PROGRAMADAS'!H71:H74)+SUM('5.3_INVERS.PROGRAMADAS'!H91:H94) -> 104020.0265 | F88: =+SUM('5.3_INVERS.PROGRAMADAS'!I25:I29)+SUM('5.3_INVERS.PROGRAMADAS'!I50:I53)+SUM('5.3_INVERS.PROGRAMADAS'!I71:I74)+SUM('5.3_INVERS.PROGRAMADAS'!I91:I94) -> 104020.0265
B89: Intangible | E89: =+'5.3_INVERS.PROGRAMADAS'!H54+'5.3_INVERS.PROGRAMADAS'!H75+'5.3_INVERS.PROGRAMADAS'!H95 -> 0 | F89: =+'5.3_INVERS.PROGRAMADAS'!I54+'5.3_INVERS.PROGRAMADAS'!I75+'5.3_INVERS.PROGRAMADAS'!I95 -> 0
B90: Terrenos | E90: =+'5.3_INVERS.PROGRAMADAS'!H55+'5.3_INVERS.PROGRAMADAS'!H76+'5.3_INVERS.PROGRAMADAS'!H96 -> 0 | F90: =+'5.3_INVERS.PROGRAMADAS'!I55+'5.3_INVERS.PROGRAMADAS'!I76+'5.3_INVERS.PROGRAMADAS'!I96 -> 0
B91: Total | C91: =+SUM(C85:C90) -> 0 | D91: =+SUM(D85:D90) -> 156092.5995 | E91: =+SUM(E85:E90) -> 222349.6334 | F91: 303011.8878
B94: C. Total de Depreciación por Categoria:
B96: (Expresado en Dolares)
B97: Tipo de activo | C97: Depreciacion Proyectada Total
C98: 2024 | D98: 2025 | E98: 2026 | F98: 2027
B99: Total asignado a servicios Aeroportuarios
B100: Concesiones, licencias y otros derechos | D100: =+D63+D70+D85 -> 21029.28382 | E100: =+E63+E70+E85 -> 63289.22684 | F100: 94670.27436
B101: Edificaciones y construcciones | D101: =+D64+D71+D86 -> 1552540.877 | E101: 1530612.717 | F101: 1538442.448
B102: Maquinaria y Equipo | D102: 62538.79419 | E102: 24650.43133 | F102: -117.8818087
B103: Otros | D103: 1440618.935 | E103: 1409597.08 | F103: 1343405.122
B104: Intangible | D104: 2801.289889 | E104: 2801.847144 | F104: 2804.005492
B105: Terrenos | D105: 0 | E105: 0 | F105: 0
B106: Total | C106: =+SUM(C100:C105) -> 0 | D106: =+SUM(D100:D105) -> 3079529.18 | E106: =+SUM(E100:E105) -> 3030951.303 | F106: =+SUM(F100:F105) -> 2979203.969

Sheet 5.1.ACTIVO INCIAL
A2: 5.1 Activos Fijos Base (Existentes) al 2023 | I2: Índice
A4: 5.1.1. Activos Fijos Base Contabilidad Regulatoria
C6: 2023 | D6: 2023 | E6: 2024 | F6: 2025 | G6: 2026 | H6: 2027
B7: Tipo de cambio real | C7: =+D7 -> 3.760094901 | D7: =+SupuestosGenerales!$I$16 -> 3.760094901 | E7: =+SupuestosGenerales!$J$16 -> 3.807640818 | F7: =+SupuestosGenerales!$K$16 -> 3.841398937 | G7: =+SupuestosGenerales!$L$16 -> 3.840634926 | H7: =+SupuestosGenerales!$M$16 -> 3.837678646
B9: Por categoria-(Expresado en soles)
B10: Tipo de activo | C10: Valor Neto activos 2023 | D10: Depreciación activos
D11: 2023 | E11: 2024 | F11: 2025 | G11: 2026 | H11: 2027
A12: AEROPORTUARIO | B12: A. Aeroportuario | C12: =SUM(C13:C18) -> 128453272.4 | D12: 16610118.86 | E12: 11440127.15 | F12: 11098933.39 | G12: 10677162.19 | H12: 10194153.79
A13: SI | B13: Concesiones, licencias y otros derechos | C13: =+SUMIFS('5.2.BASE ACTIV.'!$AM:$AM,'5.2.BASE ACTIV.'!$G:$G,'5.1.ACTIVO INCIAL'!$A$12,'5.2.BASE ACTIV.'!$F:$F,'5.1.ACTIVO INCIAL'!$A$13,'5.2.BASE ACTIV.'!$K:$K,'5.1.ACTIVO INCIAL'!$B13) -> 0 | D13: =+SUMIFS('5.2.BASE ACTIV.'!AN:AN,'5.2.BASE ACTIV.'!$G:$G,'5.1.ACTIVO INCIAL'!$A$12,'5.2.BASE ACTIV.'!$F:$F,'5.1.ACTIVO INCIAL'!$A$13,'5.2.BASE ACTIV.'!$K:$K,'5.1.ACTIVO INCIAL'!$B13) -> 0 | E13: =+SUMIFS('5.2.BASE ACTIV.'!AP:AP,'5.2.BASE ACTIV.'!$G:$G,'5.1.ACTIVO INCIAL'!$A$12,'5.2.BASE ACTIV.'!$F:$F,'5.1.ACTIVO INCIAL'!$A$13,'5.2.BASE ACTIV.'!$K:$K,'5.1.ACTIVO INCIAL'!$B13) -> 0 | F13: =+SUMIFS('5.2.BASE ACTIV.'!AQ:AQ,'5.2.BASE ACTIV.'!$G:$G,'5.1.ACTIVO INCIAL'!$A$12,'5.2.BASE ACTIV.'!$F:$F,'5.1.ACTIVO INCIAL'!$A$13,'5.2.BASE ACTIV.'!$K:$K,'5.1.ACTIVO INCIAL'!$B13) -> 0 | G13: =+SUMIFS('5.2.BASE ACTIV.'!AR:AR,'5.2.BASE ACTIV.'!$G:$G,'5.1.ACTIVO INCIAL'!$A$12,'5.2.BASE ACTIV.'!$F:$F,'5.1.ACTIVO INCIAL'!$A$13,'5.2.BASE ACTIV.'!$K:$K,'5.1.ACTIVO INCIAL'!$B13) -> 0 | H13: =+SUMIFS('5.2.BASE ACTIV.'!AS:AS,'5.2.BASE ACTIV.'!$G:$G,'5.1.ACTIVO INCIAL'!$A$12,'5.2.BASE ACTIV.'!$F:$F,'5.1.ACTIVO INCIAL'!$A$13,'5.2.BASE ACTIV.'!$K:$K,'5.1.ACTIVO INCIAL'!$B13) -> 0
B14: Edificaciones y construcciones | C14: =+SUMIFS('5.2.BASE ACTIV.'!$AM:$AM,'5.2.BASE ACTIV.'!$G:$G,'5.1.ACTIVO INCIAL'!$A$12,'5.2.BASE ACTIV.'!$F:$F,'5.1.ACTIVO INCIAL'!$A$13,'5.2.BASE ACTIV.'!$K:$K,'5.1.ACTIVO INCIAL'!$B14) -> 98983272.46 | D14: =+SUMIFS('5.2.BASE ACTIV.'!AN:AN,'5.2.BASE ACTIV.'!$G:$G,'5.1.ACTIVO INCIAL'!$A$12,'5.2.BASE ACTIV.'!$F:$F,'5.1.ACTIVO INCIAL'!$A$13,'5.2.BASE ACTIV.'!$K:$K,'5.1.ACTIVO INCIAL'!$B14) -> 10769746.3 | E14: =+SUMIFS('5.2.BASE ACTIV.'!AP:AP,'5.2.BASE ACTIV.'!$G:$G,'5.1.ACTIVO INCIAL'!$A$12,'5.2.BASE ACTIV.'!$F:$F,'5.1.ACTIVO INCIAL'!$A$13,'5.2.BASE ACTIV.'!$K:$K,'5.1.ACTIVO INCIAL'!$B14) -> 5947519.46 | F14: =+SUMIFS('5.2.BASE ACTIV.'!AQ:AQ,'5.2.BASE ACTIV.'!$G:$G,'5.1.ACTIVO INCIAL'!$A$12,'5.2.BASE ACTIV.'!$F:$F,'5.1.ACTIVO INCIAL'!$A$13,'5.2.BASE ACTIV.'!$K:$K,'5.1.ACTIVO INCIAL'!$B14) -> 5818933.67 | G14: =+SUMIFS('5.2.BASE ACTIV.'!AR:AR,'5.2.BASE ACTIV.'!$G:$G,'5.1.ACTIVO INCIAL'!$A$12,'5.2.BASE ACTIV.'!$F:$F,'5.1.ACTIVO INCIAL'!$A$13,'5.2.BASE ACTIV.'!$K:$K,'5.1.ACTIVO INCIAL'!$B14) -> 5641389.11 | H14: =+SUMIFS('5.2.BASE ACTIV.'!AS:AS,'5.2.BASE ACTIV.'!$G:$G,'5.1.ACTIVO INCIAL'!$A$12,'5.2.BASE ACTIV.'!$F:$F,'5.1.ACTIVO INCIAL'!$A$13,'5.2.BASE ACTIV.'!$K:$K,'5.1.ACTIVO INCIAL'!$B14) -> 5477949.46
B15: Maquinaria y Equipo | C15: =+SUMIFS('5.2.BASE ACTIV.'!$AM:$AM,'5.2.BASE ACTIV.'!$G:$G,'5.1.ACTIVO INCIAL'!$A$12,'5.2.BASE ACTIV.'!$F:$F,'5.1.ACTIVO INCIAL'!$A$13,'5.2.BASE ACTIV.'!$K:$K,'5.1.ACTIVO INCIAL'!$B15) -> 568854.26 | D15: =+SUMIFS('5.2.BASE ACTIV.'!AN:AN,'5.2.BASE ACTIV.'!$G:$G,'5.1.ACTIVO INCIAL'!$A$12,'5.2.BASE ACTIV.'!$F:$F,'5.1.ACTIVO INCIAL'!$A$13,'5.2.BASE ACTIV.'!$K:$K,'5.1.ACTIVO INCIAL'!$B15) -> 556282.73 | E15: =+SUMIFS('5.2.BASE ACTIV.'!AP:AP,'5.2.BASE ACTIV.'!$G:$G,'5.1.ACTIVO INCIAL'!$A$12,'5.2.BASE ACTIV.'!$F:$F,'5.1.ACTIVO INCIAL'!$A$13,'5.2.BASE ACTIV.'!$K:$K,'5.1.ACTIVO INCIAL'!$B15) -> 244241.04 | F15: =+SUMIFS('5.2.BASE ACTIV.'!AQ:AQ,'5.2.BASE ACTIV.'!$G:$G,'5.1.ACTIVO INCIAL'!$A$12,'5.2.BASE ACTIV.'!$F:$F,'5.1.ACTIVO INCIAL'!$A$13,'5.2.BASE ACTIV.'!$K:$K,'5.1.ACTIVO INCIAL'!$B15) -> 224638.41 | G15: =+SUMIFS('5.2.BASE ACTIV.'!AR:AR,'5.2.BASE ACTIV.'!$G:$G,'5.1.ACTIVO INCIAL'!$A$12,'5.2.BASE ACTIV.'!$F:$F,'5.1.ACTIVO INCIAL'!$A$13,'5.2.BASE ACTIV.'!$K:$K,'5.1.ACTIVO INCIAL'!$B15) -> 88868.52 | H15: =+SUMIFS('5.2.BASE ACTIV.'!AS:AS,'5.2.BASE ACTIV.'!$G:$G,'5.1.ACTIVO INCIAL'!$A$12,'5.2.BASE ACTIV.'!$F:$F,'5.1.ACTIVO INCIAL'!$A$13,'5.2.BASE ACTIV.'!$K:$K,'5.1.ACTIVO INCIAL'!$B15) -> 1957.78
B16: Otros | C16: =+SUMIFS('5.2.BASE ACTIV.'!$AM:$AM,'5.2.BASE ACTIV.'!$G:$G,'5.1.ACTIVO INCIAL'!$A$12,'5.2.BASE ACTIV.'!$F:$F,'5.1.ACTIVO INCIAL'!$A$13,'5.2.BASE ACTIV.'!$K:$K,'5.1.ACTIVO INCIAL'!$B16) -> 28901145.65 | D16: =+SUMIFS('5.2.BASE ACTIV.'!AN:AN,'5.2.BASE ACTIV.'!$G:$G,'5.1.ACTIVO INCIAL'!$A$12,'5.2.BASE ACTIV.'!$F:$F,'5.1.ACTIVO INCIAL'!$A$13,'5.2.BASE ACTIV.'!$K:$K,'5.1.ACTIVO INCIAL'!$B16) -> 5284089.83 | E16: =+SUMIFS('5.2.BASE ACTIV.'!AP:AP,'5.2.BASE ACTIV.'!$G:$G,'5.1.ACTIVO INCIAL'!$A$12,'5.2.BASE ACTIV.'!$F:$F,'5.1.ACTIVO INCIAL'!$A$13,'5.2.BASE ACTIV.'!$K:$K,'5.1.ACTIVO INCIAL'!$B16) -> 5248366.65 | F16: =+SUMIFS('5.2.BASE ACTIV.'!AQ:AQ,'5.2.BASE ACTIV.'!$G:$G,'5.1.ACTIVO INCIAL'!$A$12,'5.2.BASE ACTIV.'!$F:$F,'5.1.ACTIVO INCIAL'!$A$13,'5.2.BASE ACTIV.'!$K:$K,'5.1.ACTIVO INCIAL'!$B16) -> 5055361.31 | G16: =+SUMIFS('5.2.BASE ACTIV.'!AR:AR,'5.2.BASE ACTIV.'!$G:$G,'5.1.ACTIVO INCIAL'!$A$12,'5.2.BASE ACTIV.'!$F:$F,'5.1.ACTIVO INCIAL'!$A$13,'5.2.BASE ACTIV.'!$K:$K,'5.1.ACTIVO INCIAL'!$B16) -> 4946904.56 | H16: =+SUMIFS('5.2.BASE ACTIV.'!AS:AS,'5.2.BASE ACTIV.'!$G:$G,'5.1.ACTIVO INCIAL'!$A$12,'5.2.BASE ACTIV.'!$F:$F,'5.1.ACTIVO INCIAL'!$A$13,'5.2.BASE ACTIV.'!$K:$K,'5.1.ACTIVO INCIAL'!$B16) -> 4714246.55
B17: Intangible | C17: =+SUMIFS('5.2.BASE ACTIV.'!$AM:$AM,'5.2.BASE ACTIV.'!$G:$G,'5.1.ACTIVO INCIAL'!$A$12,'5.2.BASE ACTIV.'!$F:$F,'5.1.ACTIVO INCIAL'!$A$13,'5.2.BASE ACTIV.'!$K:$K,'5.1.ACTIVO INCIAL'!$B17) -> 0 | D17: =+SUMIFS('5.2.BASE ACTIV.'!AN:AN,'5.2.BASE ACTIV.'!$G:$G,'5.1.ACTIVO INCIAL'!$A$12,'5.2.BASE ACTIV.'!$F:$F,'5.1.ACTIVO INCIAL'!$A$13,'5.2.BASE ACTIV.'!$K:$K,'5.1.ACTIVO INCIAL'!$B17) -> 0 | E17: =+SUMIFS('5.2.BASE ACTIV.'!AP:AP,'5.2.BASE ACTIV.'!$G:$G,'5.1.ACTIVO INCIAL'!$A$12,'5.2.BASE ACTIV.'!$F:$F,'5.1.ACTIVO INCIAL'!$A$13,'5.2.BASE ACTIV.'!$K:$K,'5.1.ACTIVO INCIAL'!$B17) -> 0 | F17: =+SUMIFS('5.2.BASE ACTIV.'!AQ:AQ,'5.2.BASE ACTIV.'!$G:$G,'5.1.ACTIVO INCIAL'!$A$12,'5.2.BASE ACTIV.'!$F:$F,'5.1.ACTIVO INCIAL'!$A$13,'5.2.BASE ACTIV.'!$K:$K,'5.1.ACTIVO INCIAL'!$B17) -> 0 | G17: =+SUMIFS('5.2.BASE ACTIV.'!AR:AR,'5.2.BASE ACTIV.'!$G:$G,'5.1.ACTIVO INCIAL'!$A$12,'5.2.BASE ACTIV.'!$F:$F,'5.1.ACTIVO INCIAL'!$A$13,'5.2.BASE ACTIV.'!$K:$K,'5.1.ACTIVO INCIAL'!$B17) -> 0 | H17: =+SUMIFS('5.2.BASE ACTIV.'!AS:AS,'5.2.BASE ACTIV.'!$G:$G,'5.1.ACTIVO INCIAL'!$A$12,'5.2.BASE ACTIV.'!$F:$F,'5.1.ACTIVO INCIAL'!$A$13,'5.2.BASE ACTIV.'!$K:$K,'5.1.ACTIVO INCIAL'!$B17) -> 0
B18: Terrenos | C18: =+SUMIFS('5.2.BASE ACTIV.'!$AM:$AM,'5.2.BASE ACTIV.'!$G:$G,'5.1.ACTIVO INCIAL'!$A$12,'5.2.BASE ACTIV.'!$F:$F,'5.1.ACTIVO INCIAL'!$A$13,'5.2.BASE ACTIV.'!$K:$K,'5.1.ACTIVO INCIAL'!$B18) -> 0 | D18: =+SUMIFS('5.2.BASE ACTIV.'!AN:AN,'5.2.BASE ACTIV.'!$G:$G,'5.1.ACTIVO INCIAL'!$A$12,'5.2.BASE ACTIV.'!$F:$F,'5.1.ACTIVO INCIAL'!$A$13,'5.2.BASE ACTIV.'!$K:$K,'5.1.ACTIVO INCIAL'!$B18) -> 0 | E18: =+SUMIFS('5.2.BASE ACTIV.'!AP:AP,'5.2.BASE ACTIV.'!$G:$G,'5.1.ACTIVO INCIAL'!$A$12,'5.2.BASE ACTIV.'!$F:$F,'5.1.ACTIVO INCIAL'!$A$13,'5.2.BASE ACTIV.'!$K:$K,'5.1.ACTIVO INCIAL'!$B18) -> 0 | F18: =+SUMIFS('5.2.BASE ACTIV.'!AQ:AQ,'5.2.BASE ACTIV.'!$G:$G,'5.1.ACTIVO INCIAL'!$A$12,'5.2.BASE ACTIV.'!$F:$F,'5.1.ACTIVO INCIAL'!$A$13,'5.2.BASE ACTIV.'!$K:$K,'5.1.ACTIVO INCIAL'!$B18) -> 0 | G18: =+SUMIFS('5.2.BASE ACTIV.'!AR:AR,'5.2.BASE ACTIV.'!$G:$G,'5.1.ACTIVO INCIAL'!$A$12,'5.2.BASE ACTIV.'!$F:$F,'5.1.ACTIVO INCIAL'!$A$13,'5.2.BASE ACTIV.'!$K:$K,'5.1.ACTIVO INCIAL'!$B18) -> 0 | H18: =+SUMIFS('5.2.BASE ACTIV.'!AS:AS,'5.2.BASE ACTIV.'!$G:$G,'5.1.ACTIVO INCIAL'!$A$12,'5.2.BASE ACTIV.'!$F:$F,'5.1.ACTIVO INCIAL'!$A$13,'5.2.BASE ACTIV.'!$K:$K,'5.1.ACTIVO INCIAL'!$B18) -> 0
A19: AERONAVEGACIÓN/AEROPORTUARIO | B19: B. Aeronavegación/Aeroportuarios (Mixto) | C19: =SUM(C20:C25) -> 105101265.6 | D19: 229891.917 | E19: 152462.447 | F19: 143184.777 | G19: 121683.472 | H19: 88243.407
A20: SI | B20: Concesiones, licencias y otros derechos | C20: =+SUMIFS('5.2.BASE ACTIV.'!$AM:$AM,'5.2.BASE ACTIV.'!$G:$G,'5.1.ACTIVO INCIAL'!$A$19,'5.2.BASE ACTIV.'!$F:$F,'5.1.ACTIVO INCIAL'!$A$20,'5.2.BASE ACTIV.'!$K:$K,'5.1.ACTIVO INCIAL'!$B20) -> 0 | D20: =+SUMIFS('5.2.BASE ACTIV.'!$AN:$AN,'5.2.BASE ACTIV.'!$G:$G,'5.1.ACTIVO INCIAL'!$A$19,'5.2.BASE ACTIV.'!$F:$F,'5.1.ACTIVO INCIAL'!$A$20,'5.2.BASE ACTIV.'!$K:$K,'5.1.ACTIVO INCIAL'!$B20) -> 0 | E20: =+SUMIFS('5.2.BASE ACTIV.'!AP:AP,'5.2.BASE ACTIV.'!$G:$G,'5.1.ACTIVO INCIAL'!$A$19,'5.2.BASE ACTIV.'!$F:$F,'5.1.ACTIVO INCIAL'!$A$20,'5.2.BASE ACTIV.'!$K:$K,'5.1.ACTIVO INCIAL'!$B20) -> 0 | F20: =+SUMIFS('5.2.BASE ACTIV.'!AQ:AQ,'5.2.BASE ACTIV.'!$G:$G,'5.1.ACTIVO INCIAL'!$A$19,'5.2.BASE ACTIV.'!$F:$F,'5.1.ACTIVO INCIAL'!$A$20,'5.2.BASE ACTIV.'!$K:$K,'5.1.ACTIVO INCIAL'!$B20) -> 0 | G20: =+SUMIFS('5.2.BASE ACTIV.'!AR:AR,'5.2.BASE ACTIV.'!$G:$G,'5.1.ACTIVO INCIAL'!$A$19,'5.2.BASE ACTIV.'!$F:$F,'5.1.ACTIVO INCIAL'!$A$20,'5.2.BASE ACTIV.'!$K:$K,'5.1.ACTIVO INCIAL'!$B20) -> 0 | H20: =+SUMIFS('5.2.BASE ACTIV.'!AS:AS,'5.2.BASE ACTIV.'!$G:$G,'5.1.ACTIVO INCIAL'!$A$19,'5.2.BASE ACTIV.'!$F:$F,'5.1.ACTIVO INCIAL'!$A$20,'5.2.BASE ACTIV.'!$K:$K,'5.1.ACTIVO INCIAL'!$B20) -> 0
B21: Edificaciones y construcciones | C21: =+SUMIFS('5.2.BASE ACTIV.'!$AM:$AM,'5.2.BASE ACTIV.'!$G:$G,'5.1.ACTIVO INCIAL'!$A$19,'5.2.BASE ACTIV.'!$F:$F,'5.1.ACTIVO INCIAL'!$A$20,'5.2.BASE ACTIV.'!$K:$K,'5.1.ACTIVO INCIAL'!$B21) -> 578175.195 | D21: =+SUMIFS('5.2.BASE ACTIV.'!$AN:$AN,'5.2.BASE ACTIV.'!$G:$G,'5.1.ACTIVO INCIAL'!$A$19,'5.2.BASE ACTIV.'!$F:$F,'5.1.ACTIVO INCIAL'!$A$20,'5.2.BASE ACTIV.'!$K:$K,'5.1.ACTIVO INCIAL'!$B21) -> 25745.545 | E21: =+SUMIFS('5.2.BASE ACTIV.'!AP:AP,'5.2.BASE ACTIV.'!$G:$G,'5.1.ACTIVO INCIAL'!$A$19,'5.2.BASE ACTIV.'!$F:$F,'5.1.ACTIVO INCIAL'!$A$20,'5.2.BASE ACTIV.'!$K:$K,'5.1.ACTIVO INCIAL'!$B21) -> 25745.545 | F21: =+SUMIFS('5.2.BASE ACTIV.'!AQ:AQ,'5.2.BASE ACTIV.'!$G:$G,'5.1.ACTIVO INCIAL'!$A$19,'5.2.BASE ACTIV.'!$F:$F,'5.1.ACTIVO INCIAL'!$A$20,'5.2.BASE ACTIV.'!$K:$K,'5.1.ACTIVO INCIAL'!$B21) -> 25745.545 | G21: =+SUMIFS('5.2.BASE ACTIV.'!AR:AR,'5.2.BASE ACTIV.'!$G:$G,'5.1.ACTIVO INCIAL'!$A$19,'5.2.BASE ACTIV.'!$F:$F,'5.1.ACTIVO INCIAL'!$A$20,'5.2.BASE ACTIV.'!$K:$K,'5.1.ACTIVO INCIAL'!$B21) -> 25745.545 | H21: =+SUMIFS('5.2.BASE ACTIV.'!AS:AS,'5.2.BASE ACTIV.'!$G:$G,'5.1.ACTIVO INCIAL'!$A$19,'5.2.BASE ACTIV.'!$F:$F,'5.1.ACTIVO INCIAL'!$A$20,'5.2.BASE ACTIV.'!$K:$K,'5.1.ACTIVO INCIAL'!$B21) -> 25745.545
B22: Maquinaria y Equipo | C22: =+SUMIFS('5.2.BASE ACTIV.'!$AM:$AM,'5.2.BASE ACTIV.'!$G:$G,'5.1.ACTIVO INCIAL'!$A$19,'5.2.BASE ACTIV.'!$F:$F,'5.1.ACTIVO INCIAL'!$A$20,'5.2.BASE ACTIV.'!$K:$K,'5.1.ACTIVO INCIAL'!$B22) -> 59343.7 | D22: =+SUMIFS('5.2.BASE ACTIV.'!$AN:$AN,'5.2.BASE ACTIV.'!$G:$G,'5.1.ACTIVO INCIAL'!$A$19,'5.2.BASE ACTIV.'!$F:$F,'5.1.ACTIVO INCIAL'!$A$20,'5.2.BASE ACTIV.'!$K:$K,'5.1.ACTIVO INCIAL'!$B22) -> 96441.94 | E22: =+SUMIFS('5.2.BASE ACTIV.'!AP:AP,'5.2.BASE ACTIV.'!$G:$G,'5.1.ACTIVO INCIAL'!$A$19,'5.2.BASE ACTIV.'!$F:$F,'5.1.ACTIVO INCIAL'!$A$20,'5.2.BASE ACTIV.'!$K:$K,'5.1.ACTIVO INCIAL'!$B22) -> 24509.67 | F22: =+SUMIFS('5.2.BASE ACTIV.'!AQ:AQ,'5.2.BASE ACTIV.'!$G:$G,'5.1.ACTIVO INCIAL'!$A$19,'5.2.BASE ACTIV.'!$F:$F,'5.1.ACTIVO INCIAL'!$A$20,'5.2.BASE ACTIV.'!$K:$K,'5.1.ACTIVO INCIAL'!$B22) -> 18577.26 | G22: =+SUMIFS('5.2.BASE ACTIV.'!AR:AR,'5.2.BASE ACTIV.'!$G:$G,'5.1.ACTIVO INCIAL'!$A$19,'5.2.BASE ACTIV.'!$F:$F,'5.1.ACTIVO INCIAL'!$A$20,'5.2.BASE ACTIV.'!$K:$K,'5.1.ACTIVO INCIAL'!$B22) -> 8784 | H22: =+SUMIFS('5.2.BASE ACTIV.'!AS:AS,'5.2.BASE ACTIV.'!$G:$G,'5.1.ACTIVO INCIAL'!$A$19,'5.2.BASE ACTIV.'!$F:$F,'5.1.ACTIVO INCIAL'!$A$20,'5.2.BASE ACTIV.'!$K:$K,'5.1.ACTIVO INCIAL'!$B22) -> 569.04
B23: Otros | C23: =+SUMIFS('5.2.BASE ACTIV.'!$AM:$AM,'5.2.BASE ACTIV.'!$G:$G,'5.1.ACTIVO INCIAL'!$A$19,'5.2.BASE ACTIV.'!$F:$F,'5.1.ACTIVO INCIAL'!$A$20,'5.2.BASE ACTIV.'!$K:$K,'5.1.ACTIVO INCIAL'!$B23) -> 369723.135 | D23: =+SUMIFS('5.2.BASE ACTIV.'!$AN:$AN,'5.2.BASE ACTIV.'!$G:$G,'5.1.ACTIVO INCIAL'!$A$19,'5.2.BASE ACTIV.'!$F:$F,'5.1.ACTIVO INCIAL'!$A$20,'5.2.BASE ACTIV.'!$K:$K,'5.1.ACTIVO INCIAL'!$B23) -> 96943.56 | E23: =+SUMIFS('5.2.BASE ACTIV.'!AP:AP,'5.2.BASE ACTIV.'!$G:$G,'5.1.ACTIVO INCIAL'!$A$19,'5.2.BASE ACTIV.'!$F:$F,'5.1.ACTIVO INCIAL'!$A$20,'5.2.BASE ACTIV.'!$K:$K,'5.1.ACTIVO INCIAL'!$B23) -> 91446.36 | F23: =+SUMIFS('5.2.BASE ACTIV.'!AQ:AQ,'5.2.BASE ACTIV.'!$G:$G,'5.1.ACTIVO INCIAL'!$A$19,'5.2.BASE ACTIV.'!$F:$F,'5.1.ACTIVO INCIAL'!$A$20,'5.2.BASE ACTIV.'!$K:$K,'5.1.ACTIVO INCIAL'!$B23) -> 88101.1 | G23: =+SUMIFS('5.2.BASE ACTIV.'!AR:AR,'5.2.BASE ACTIV.'!$G:$G,'5.1.ACTIVO INCIAL'!$A$19,'5.2.BASE ACTIV.'!$F:$F,'5.1.ACTIVO INCIAL'!$A$20,'5.2.BASE ACTIV.'!$K:$K,'5.1.ACTIVO INCIAL'!$B23) -> 76393.055 | H23: =+SUMIFS('5.2.BASE ACTIV.'!AS:AS,'5.2.BASE ACTIV.'!$G:$G,'5.1.ACTIVO INCIAL'!$A$19,'5.2.BASE ACTIV.'!$F:$F,'5.1.ACTIVO INCIAL'!$A$20,'5.2.BASE ACTIV.'!$K:$K,'5.1.ACTIVO INCIAL'!$B23) -> 51167.95
B24: Intangible | C24: =+SUMIFS('5.2.BASE ACTIV.'!$AM:$AM,'5.2.BASE ACTIV.'!$G:$G,'5.1.ACTIVO INCIAL'!$A$19,'5.2.BASE ACTIV.'!$F:$F,'5.1.ACTIVO INCIAL'!$A$20,'5.2.BASE ACTIV.'!$K:$K,'5.1.ACTIVO INCIAL'!$B24) -> 64565.232 | D24: =+SUMIFS('5.2.BASE ACTIV.'!$AN:$AN,'5.2.BASE ACTIV.'!$G:$G,'5.1.ACTIVO INCIAL'!$A$19,'5.2.BASE ACTIV.'!$F:$F,'5.1.ACTIVO INCIAL'!$A$20,'5.2.BASE ACTIV.'!$K:$K,'5.1.ACTIVO INCIAL'!$B24) -> 10760.872 | E24: =+SUMIFS('5.2.BASE ACTIV.'!AP:AP,'5.2.BASE ACTIV.'!$G:$G,'5.1.ACTIVO INCIAL'!$A$19,'5.2.BASE ACTIV.'!$F:$F,'5.1.ACTIVO INCIAL'!$A$20,'5.2.BASE ACTIV.'!$K:$K,'5.1.ACTIVO INCIAL'!$B24) -> 10760.872 | F24: =+SUMIFS('5.2.BASE ACTIV.'!AQ:AQ,'5.2.BASE ACTIV.'!$G:$G,'5.1.ACTIVO INCIAL'!$A$19,'5.2.BASE ACTIV.'!$F:$F,'5.1.ACTIVO INCIAL'!$A$20,'5.2.BASE ACTIV.'!$K:$K,'5.1.ACTIVO INCIAL'!$B24) -> 10760.872 | G24: =+SUMIFS('5.2.BASE ACTIV.'!AR:AR,'5.2.BASE ACTIV.'!$G:$G,'5.1.ACTIVO INCIAL'!$A$19,'5.2.BASE ACTIV.'!$F:$F,'5.1.ACTIVO INCIAL'!$A$20,'5.2.BASE ACTIV.'!$K:$K,'5.1.ACTIVO INCIAL'!$B24) -> 10760.872 | H24: =+SUMIFS('5.2.BASE ACTIV.'!AS:AS,'5.2.BASE ACTIV.'!$G:$G,'5.1.ACTIVO INCIAL'!$A$19,'5.2.BASE ACTIV.'!$F:$F,'5.1.ACTIVO INCIAL'!$A$20,'5.2.BASE ACTIV.'!$K:$K,'5.1.ACTIVO INCIAL'!$B24) -> 10760.872
B25: Terrenos | C25: =+SUMIFS('5.2.BASE ACTIV.'!$AM:$AM,'5.2.BASE ACTIV.'!$G:$G,'5.1.ACTIVO INCIAL'!$A$19,'5.2.BASE ACTIV.'!$F:$F,'5.1.ACTIVO INCIAL'!$A$20,'5.2.BASE ACTIV.'!$K:$K,'5.1.ACTIVO INCIAL'!$B25) -> 104029458.3 | D25: =+SUMIFS('5.2.BASE ACTIV.'!$AN:$AN,'5.2.BASE ACTIV.'!$G:$G,'5.1.ACTIVO INCIAL'!$A$19,'5.2.BASE ACTIV.'!$F:$F,'5.1.ACTIVO INCIAL'!$A$20,'5.2.BASE ACTIV.'!$K:$K,'5.1.ACTIVO INCIAL'!$B25) -> 0 | E25: =+SUMIFS('5.2.BASE ACTIV.'!AP:AP,'5.2.BASE ACTIV.'!$G:$G,'5.1.ACTIVO INCIAL'!$A$19,'5.2.BASE ACTIV.'!$F:$F,'5.1.ACTIVO INCIAL'!$A$20,'5.2.BASE ACTIV.'!$K:$K,'5.1.ACTIVO INCIAL'!$B25) -> 0 | F25: =+SUMIFS('5.2.BASE ACTIV.'!AQ:AQ,'5.2.BASE ACTIV.'!$G:$G,'5.1.ACTIVO INCIAL'!$A$19,'5.2.BASE ACTIV.'!$F:$F,'5.1.ACTIVO INCIAL'!$A$20,'5.2.BASE ACTIV.'!$K:$K,'5.1.ACTIVO INCIAL'!$B25) -> 0 | G25: =+SUMIFS('5.2.BASE ACTIV.'!AR:AR,'5.2.BASE ACTIV.'!$G:$G,'5.1.ACTIVO INCIAL'!$A$19,'5.2.BASE ACTIV.'!$F:$F,'5.1.ACTIVO INCIAL'!$A$20,'5.2.BASE ACTIV.'!$K:$K,'5.1.ACTIVO INCIAL'!$B25) -> 0 | H25: =+SUMIFS('5.2.BASE ACTIV.'!AS:AS,'5.2.BASE ACTIV.'!$G:$G,'5.1.ACTIVO INCIAL'!$A$19,'5.2.BASE ACTIV.'!$F:$F,'5.1.ACTIVO INCIAL'!$A$20,'5.2.BASE ACTIV.'!$K:$K,'5.1.ACTIVO INCIAL'!$B25) -> 0
B26: Total general | C26: =C12+C19 -> 233554538 | D26: 16840010.78 | E26: 11592589.6 | F26: 11242118.17 | G26: 10798845.66 | H26: 10282397.2
B30: Por categoria- (Expresado en dólares)
B31: Tipo de activo | C31: Valor Neto activos 2023 | D31: Depreciación activos
D32: 2023 | E32: 2024 | F32: 2025 | G32: 2026 | H32: 2027
B33: A. Aeroportuario | C33: =SUM(C34:C39) -> 34162242.11 | D33: 4417473.307 | E33: 3004518.466 | F33: 2889294.648 | G33: 2780051.318 | H33: 2656333.354
B34: Concesiones, licencias y otros derechos | C34: =+C13/C$7 -> 0 | D34: =+D13/D$7 -> 0 | E34: 0 | F34: 0 | G34: 0 | H34: 0
B35: Edificaciones y construcciones | C35: =+C14/C$7 -> 26324673.99 | D35: 2864221.936 | E35: 1561995.93 | F35: 1514795.46 | G35: 1468868.877 | H35: 1427412.237
B36: Maquinaria y Equipo | C36: =+C15/C$7 -> 151287.2081 | D36: 147943.8005 | E36: 64144.97892 | F36: 58478.28192 | G36: 23139.01782 | H36: 510.1469353
B37: Otros | C37: =+C16/C$7 -> 7686280.907 | D37: 1405307.57 | E37: 1378377.557 | F37: 1316020.906 | G37: 1288043.424 | H37: 1228410.97
B38: Intangible | C38: =+C17/C$7 -> 0 | D38: 0 | E38: 0 | F38: 0 | G38: 0 | H38: 0
B39: Terrenos | C39: =+C18/C$7 -> 0 | D39: 0 | E39: 0 | F39: 0 | G39: 0 | H39: 0
B40: B. Aeronavegación/Aeroportuarios (Mixto) | C40: =SUM(C41:C46) -> 27951758.76 | D40: 61139.92413 | E40: 40041.1841 | F40: 37274.12314 | G40: 31683.1655 | H40: 22993.95419
B41: Concesiones, licencias y otros derechos | C41: =+C20/C$7 -> 0 | D41: =+D20/D$7 -> 0 | E41: 0 | F41: 0 | G41: 0 | H41: 0
B42: Edificaciones y construcciones | C42: =+C21/C$7 -> 153766.1177 | D42: 6847.046597 | E42: =+E21/E$7 -> 6761.547696 | F42: 6702.127382 | G42: 6703.460624 | H42: 6708.624503
B43: Maquinaria y Equipo | C43: =+C22/C$7 -> 15782.50059 | D43: 25648.80476 | E43: 6436.970074 | F43: 4836.066315 | G43: 2287.121835 | H43: 148.2771364
B44: Otros | C44: =+C23/C$7 -> 98328.13923 | D44: 25782.21097 | E44: 24016.54052 | F44: 22934.63956 | G44: 19890.7359 | H44: 13333.04706
B45: Intangible | C45: =+C24/C$7 -> 17171.17086 | D45: 2861.86181 | E45: 2826.125812 | F45: 2801.289889 | G45: 2801.847144 | H45: 2804.005492
B46: Terrenos | C46: =+C25/C$7 -> 27666710.83 | D46: 0 | E46: 0 | F46: 0 | G46: 0 | H46: 0
B47: Total general | C47: =C33+C40 -> 62114000.86 | D47: 4478613.231 | E47: 3044559.65 | F47: 2926568.772 | G47: 2811734.484 | H47: 2679327.308
B51: Total -(Expresado en dólares)
B52: Tipo de activo | C52: Valor Neto activos 2023 | D52: Depreciación activos
D53: 2023 | E53: 2024 | F53: 2025 | G53: 2026 | H53: 2027
B54: Asignado Aeroportuario | C54: =SUM(C55:C60) -> 62114000.86 | D54: 4478613.231 | E54: 3044559.65 | F54: 2926568.772 | G54: 2811734.484 | H54: 2679327.308
B55: Concesiones, licencias y otros derechos | C55: =+C34+C41 -> 0 | D55: =+D34+D41 -> 0 | E55: 0 | F55: 0 | G55: 0 | H55: 0
B56: Edificaciones y construcciones | C56: =+C35+C42 -> 26478440.11 | D56: 2871068.983 | E56: 1568757.478 | F56: 1521497.588 | G56: 1475572.337 | H56: 1434120.861
B57: Maquinaria y Equipo | C57: 167069.7087 | D57: 173592.6053 | E57: 70581.94899 | F57: 63314.34824 | G57: 25426.13966 | H57: 658.4240717
B58: Otros | C58: 7784609.046 | D58: 1431089.781 | E58: 1402394.098 | F58: 1338955.546 | G58: 1307934.16 | H58: 1241744.018
B59: Intangible | C59: 17171.17086 | D59: 2861.86181 | E59: 2826.125812 | F59: 2801.289889 | G59: 2801.847144 | H59: 2804.005492
B60: Terrenos | C60: 27666710.83 | D60: 0 | E60: 0 | F60: 0 | G60: 0 | H60: 0
C63: =+C33-E33-C90 -> 31130006.07
A64: 5.1.2. Activos de Ajuste por Conciliación de Inventario
B67: Total -(Expresado en soles)
B68: Tipo de activo | C68: Valor Neto activos faltantes 2023 | D68: Depreciación activos
D69: 2023 | E69: 2024 | F69: 2025 | G69: 2026 | H69: 2027
B70: A. Aeroportuario | C70: =SUM(C71:C76) -> 104220.69
B71: Concesiones, licencias y otros derechos
B72: Edificaciones y construcciones
B73: Maquinaria y Equipo | C73: 22030.77 | E73: =+C73*10% -> 2203.077 | F73: =+E73 -> 2203.077 | G73: =+F73 -> 2203.077 | H73: 2203.077
B74: Otros | C74: 82189.92 | E74: =+C74*10% -> 8218.992 | F74: =+E74 -> 8218.992 | G74: =+F74 -> 8218.992 | H74: 8218.992
B75: Intangible
B76: Terrenos
B77: B. Aeronavegación/Aeroportuarios (Mixto) | C77: =SUM(C78:C83) -> 16099.27
B78: Concesiones, licencias y otros derechos
B79: Edificaciones y construcciones
B80: Maquinaria y Equipo | C80: =15522.71/2 -> 7761.355 | E80: =+C80*10% -> 776.1355 | F80: =+E80 -> 776.1355 | G80: =+F80 -> 776.1355 | H80: 776.1355
B81: Otros | C81: =16675.83/2 -> 8337.915 | E81: =+C81*10% -> 833.7915 | F81: =+E81 -> 833.7915 | G81: =+F81 -> 833.7915 | H81: 833.7915
B82: Intangible
B83: Terrenos
B87: Total -(Expresado en dólares)
B88: Tipo de activo | C88: Valor Neto activos faltantes 2023 | D88: Depreciación activos
D89: 2023 | E89: 2024 | F89: 2025 | G89: 2026 | H89: 2027
B90: A. Aeroportuario | C90: =SUM(C91:C96) -> 27717.56903
B91: Concesiones, licencias y otros derechos
B92: Edificaciones y construcciones
B93: Maquinaria y Equipo | C93: =+C73/C$7 -> 5859.099458 | D93: =+E93 -> 578.5937028 | E93: =+E73/E$7 -> 578.5937028 | F93: 573.5090357 | G93: 573.6231228 | H93: 574.0650021
B94: Otros | C94: =+C74/C$7 -> 21858.46957 | D94: =+E94 -> 2158.552341 | E94: 2158.552341 | F94: 2139.583036 | G94: 2140.008659 | H94: 2141.657173
B95: Intangible
B96: Terrenos
B97: B. Aeronavegación/Aeroportuarios (Mixto) | C97: =SUM(C98:C103) -> 4281.612678
B98: Concesiones, licencias y otros derechos
B99: Edificaciones y construcciones
B100: Maquinaria y Equipo | C100: =+C80/C$7 -> 2064.138061 | D100: =+E100 -> 203.836322 | E100: =+E80/E$7 -> 203.836322 | F100: 202.0450135 | G100: 202.0852059 | H100: 202.2408783
B101: Otros | C101: =+C81/C$7 -> 2217.474617 | D101: =+E101 -> 218.9785066 | E101: 218.9785066 | F101: 217.0541289 | G101: 217.0973071 | H101: 217.2645437
B102: Intangible
B103: Terrenos
B107: Total -(Expresado en dólares)
B108: Tipo de activo | C108: Valor Neto activos 2023 | D108: Depreciación activos
D109: 2023 | E109: 2024 | F109: 2025 | G109: 2026 | H109: 2027
B110: Asignado Aeroportuario | C110: =SUM(C111:C116) -> 31999.18171 | D110: 2948.553458 | E110: 2948.553458 | F110: 2922.641643 | G110: 2923.223039 | H110: 2925.474886
B111: Concesiones, licencias y otros derechos | C111: =+C91+C98 -> 0 | D111: =+D91+D98*0.5 -> 0 | E111: 0 | F111: 0 | G111: 0 | H111: 0
B112: Edificaciones y construcciones | C112: =+C92+C99 -> 0 | D112: =+D92+D99*0.5 -> 0 | E112: 0 | F112: 0 | G112: 0 | H112: 0
B113: Maquinaria y Equipo | C113: 7923.237519 | D113: 680.5118639 | E113: 680.5118639 | F113: 674.5315425 | G113: 674.6657258 | H113: 675.1854412
B114: Otros | C114: 24075.94419 | D114: 2268.041594 | E114: 2268.041594 | F114: 2248.110101 | G114: 2248.557313 | H114: 2250.289445
B115: Intangible | C115: 0 | D115: 0 | E115: 0 | F115: 0 | G115: 0 | H115: 0
B116: Terrenos | C116: 0 | D116: 0 | E116: 0 | F116: 0 | G116: 0 | H116: 0

Sheet 5.2.BASE ACTIV.
B1: Formato 12: | D1: Detalle de activos | S1: Concesiones, licencias y otros derechos
B2: Periodo: | D2: Al 31 de diciembre del 2023 | H2: TERRENOS | I2: Terrenos | J2: Índice
B3: Moneda: | D3: (Expresado en Soles) | H3: EDIFICACIONES Y CONSTRUCCIONES | I3: Edificaciones y construcciones
H4: MAQUINARIAS Y EQUIPOS | I4: Maquinaria y Equipo
H5: OTROS | I5: Otros
H6: MUEBLES Y ENSERES | I6: Otros | W6: Diferencia
H7: EQUIPOS DE INFORMATICA | I7: Otros | W7: Saldos Data plana | X7: 1562186313 | AC7: 871412551.3 | AD7: 57781837.58 | AG7: 133070.34 | AH7: 6981959.4 | AI7: 625876894.5
H8: VEHICULOS | I8: Otros | X8: =+SUBTOTAL(9,X11:X36067) -> 1591153345 | Y8: =+SUBTOTAL(9,Y11:Y36067) -> 0 | Z8: 0 | AC8: 936309418.6 | AD8: 61506591.25 | AF8: 0 | AG8: =+SUBTOTAL(9,AG11:AG36067) -> 28665.03 | AH8: 0 | AI8: =+SUBTOTAL(9,AI11:AI36067) -> 593308670.1
B10: CTA | C10: Cuenta | D10: Aeropuerto | E10: Grupo de Aeropuerto | F10: Base Aeroportuaria | G10: Uso del activo | H10: Nombre del Activo | I10: Descripción del Producto | J10: Tipo de asignación | K10: Clasificación del Activo desagregado_2 | L10: Clasificación del Activo | M10: CÓDIGO RELACIONADO CON EL ACTIVO FIJO | N10: LOCALIDAD | O10: LOCALIDAD DESCRIPCION | P10: Estado | Q10: ¿Se toma en Cuenta en los Estados Financieros Auditados? | R10: ¿Se toma en Cuenta en los Estados Regulatorios? | S10: Fecha de Adquisición | T10: Fecha de Inicio de Operaciones | U10: Fecha de Reconocimiento del Activo | V10: Válido de: | W10: Válido hasta: | X10: Valor Base (de Adquisión) | Y10: Fecha de Revaluación | Z10: Valor de Revaluación | AA10: SALDO INICIAL al 01.01.2023 | AB10: ADQUISICIONES ADICIONES | AC10: Depreciación/ Amortización Acumulada al Ejercicio Previo 12.2022 | AD10: Depreciación del Presente Ejercicio 2023 | AE10: MEJORAS | AF10: bajas | AG10: ajustes | AH10: deterioro anterior y del ejercicio | AI10: Valor Neto del Activo en el Ejercicio al 31.12.2023 | AJ10: comprobacion del valor neto | AK10: Clasificación del Activo desagregado | AL10: Driver Aeroportuario | AM10: Valor Neto del Activoa asignado a aeroportuario el Ejercicio al 31.12.2023 | AN10: Depreciación + deterioro del ejercicio asignada a aeroportuario | AO10: Depreciación: | AP10: 2024 | AQ10: 2025 | AR10: 2026 | AS10: 2027
B11: 331 | C11: 3311111 | D11: 9.LIMA | E11: NO | F11: NO | G11: AERONAVEGACIÓN/AEROPORTUARIO | H11: CALLAO | I11: TERRENOS INSCRITOS | K11: Terrenos | L11: TERRENOS | M11: CC0000001-1 | N11: 001 | O11: Callao | P11: - | Q11: SI | R11: SI | S11: 1950-12-01 | T11: 1950-12-01 | U11: 1950-12-01 | X11: 20572005.46 | AA11: 20572005.46 | AC11: 0 | AD11: 0 | AF11: 0 | AG11: 0 | AH11: 0 | AI11: 20572005.46 | AK11: TERRENOS | AL11: 0.67 | AM11: =IF(AI11<0.1,0,AI11)*AL11 -> 13783243.66 | AN11: =+IF(AD11<0.1,0,AD11)*AL11 -> 0 | AP11: =+IF($AM11<=0,0,IF(($AM11-SUM($AO11:AO11))<$AN11,$AM11-SUM($AO11:AO11),IF(SUM($AO11:AO11)<$AM11,$AN11,0))) -> 0 | AQ11: =+IF($AM11<=0,0,IF(($AM11-SUM($AO11:AP11))<$AN11,$AM11-SUM($AO11:AP11),IF(SUM($AO11:AP11)<$AM11,$AN11,0))) -> 0 | AR11: =+IF($AM11<=0,0,IF(($AM11-SUM($AO11:AQ11))<$AN11,$AM11-SUM($AO11:AQ11),IF(SUM($AO11:AQ11)<$AM11,$AN11,0))) -> 0 | AS11: =+IF($AM11<=0,0,IF(($AM11-SUM($AO11:AR11))<$AN11,$AM11-SUM($AO11:AR11),IF(SUM($AO11:AR11)<$AM11,$AN11,0))) -> 0
B12: 331 | C12: 3311111 | D12: 9.LIMA | E12: NO | F12: NO | G12: AERONAVEGACIÓN/AEROPORTUARIO | H12: CALLAO | I12: TERRENOS INSCRITOS | K12: Terrenos | L12: TERRENOS | M12: CC0000001-2 | N12: 001 | O12: Callao | P12: - | Q12: SI | R12: SI | S12: 1950-12-01 | T12: 1950-12-01 | U12: 1950-12-01 | X12: 21227574.21 | AA12: 21227574.21 | AC12: 0 | AD12: 0 | AF12: 0 | AG12: 0 | AH12: 0 | AI12: 21227574.21 | AK12: TERRENOS | AL12: 0.67 | AM12: =IF(AI12<0.1,0,AI12)*AL12 -> 14222474.72 | AN12: =+AD12*AL12 -> 0 | AP12: =+IF($AM12<=0,0,IF(($AM12-SUM($AO12:AO12))<$AN12,$AM12-SUM($AO12:AO12),IF(SUM($AO12:AO12)<$AM12,$AN12,0))) -> 0 | AQ12: =+IF($AM12<=0,0,IF(($AM12-SUM($AO12:AP12))<$AN12,$AM12-SUM($AO12:AP12),IF(SUM($AO12:AP12)<$AM12,$AN12,0))) -> 0 | AR12: =+IF($AM12<=0,0,IF(($AM12-SUM($AO12:AQ12))<$AN12,$AM12-SUM($AO12:AQ12),IF(SUM($AO12:AQ12)<$AM12,$AN12,0))) -> 0 | AS12: =+IF($AM12<=0,0,IF(($AM12-SUM($AO12:AR12))<$AN12,$AM12-SUM($AO12:AR12),IF(SUM($AO12:AR12)<$AM12,$AN12,0))) -> 0
B13: 331 | C13: 3311111 | D13: 9.LIMA | E13: NO | F13: NO | G13: AERONAVEGACIÓN | H13: LAS SALINAS - HUACHO | I13: TERRENOS INSCRITOS | K13: Terrenos | L13: TERRENOS | P13: - | Q13: SI | R13: SI | S13: 1950-12-01 | T13: 1950-12-01 | U13: 1950-12-01 | X13: 70326.13 | AC13: 0 | AD13: 0 | AF13: 0 | AG13: 0 | AH13: 0 | AI13: 70326.13 | AK13: TERRENOS | AL13: 0 | AM13: 0 | AN13: 0 | AP13: =+IF($AM13<=0,0,IF(($AM13-SUM($AO13:AO13))<$AN13,$AM13-SUM($AO13:AO13),IF(SUM($AO13:AO13)<$AM13,$AN13,0))) -> 0 | AQ13: =+IF($AM13<=0,0,IF(($AM13-SUM($AO13:AP13))<$AN13,$AM13-SUM($AO13:AP13),IF(SUM($AO13:AP13)<$AM13,$AN13,0))) -> 0 | AR13: =+IF($AM13<=0,0,IF(($AM13-SUM($AO13:AQ13))<$AN13,$AM13-SUM($AO13:AQ13),IF(SUM($AO13:AQ13)<$AM13,$AN13,0))) -> 0 | AS13: =+IF($AM13<=0,0,IF(($AM13-SUM($AO13:AR13))<$AN13,$AM13-SUM($AO13:AR13),IF(SUM($AO13:AR13)<$AM13,$AN13,0))) -> 0
B14: 331 | C14: 3311111 | D14: 9.LIMA | E14: NO | F14: NO | G14: AERONAVEGACIÓN | H14: MALA - BUJAMA | I14: TERRENOS INSCRITOS | K14: Terrenos | L14: TERRENOS | P14: - | Q14: SI | R14: SI | S14: 1950-12-01 | T14: 1950-12-01 | U14: 1950-12-01 | X14: 514235.74 | AC14: 0 | AD14: 0 | AF14: 0 | AG14: 0 | AH14: 0 | AI14: 514235.74 | AK14: TERRENOS | AL14: 0 | AM14: 0 | AN14: 0 | AP14: =+IF($AM14<=0,0,IF(($AM14-SUM($AO14:AO14))<$AN14,$AM14-SUM($AO14:AO14),IF(SUM($AO14:AO14)<$AM14,$AN14,0))) -> 0 | AQ14: =+IF($AM14<=0,0,IF(($AM14-SUM($AO14:AP14))<$AN14,$AM14-SUM($AO14:AP14),IF(SUM($AO14:AP14)<$AM14,$AN14,0))) -> 0 | AR14: =+IF($AM14<=0,0,IF(($AM14-SUM($AO14:AQ14))<$AN14,$AM14-SUM($AO14:AQ14),IF(SUM($AO14:AQ14)<$AM14,$AN14,0))) -> 0 | AS14: =+IF($AM14<=0,0,IF(($AM14-SUM($AO14:AR14))<$AN14,$AM14-SUM($AO14:AR14),IF(SUM($AO14:AR14)<$AM14,$AN14,0))) -> 0
B15: 331 | C15: 3311111 | D15: 9.LIMA | E15: NO | F15: NO | G15: AERONAVEGACIÓN | H15: OYON | I15: TERRENOS INSCRITOS | K15: Terrenos | L15: TERRENOS | P15: - | Q15: SI | R15: SI | S15: 1950-12-01 | T15: 1950-12-01 | U15: 1950-12-01 | X15: 518837.1 | AC15: 0 | AD15: 0 | AF15: 0 | AG15: 0 | AH15: 0 | AI15: 518837.1 | AK15: TERRENOS | AL15: 0 | AM15: 0 | AN15: 0 | AP15: =+IF($AM15<=0,0,IF(($AM15-SUM($AO15:AO15))<$AN15,$AM15-SUM($AO15:AO15),IF(SUM($AO15:AO15)<$AM15,$AN15,0))) -> 0 | AQ15: =+IF($AM15<=0,0,IF(($AM15-SUM($AO15:AP15))<$AN15,$AM15-SUM($AO15:AP15),IF(SUM($AO15:AP15)<$AM15,$AN15,0))) -> 0 | AR15: =+IF($AM15<=0,0,IF(($AM15-SUM($AO15:AQ15))<$AN15,$AM15-SUM($AO15:AQ15),IF(SUM($AO15:AQ15)<$AM15,$AN15,0))) -> 0 | AS15: =+IF($AM15<=0,0,IF(($AM15-SUM($AO15:AR15))<$AN15,$AM15-SUM($AO15:AR15),IF(SUM($AO15:AR15)<$AM15,$AN15,0))) -> 0
B16: 331 | C16: 3311111 | D16: 9.LIMA | E16: NO | F16: NO | G16: AERONAVEGACIÓN/AEROPORTUARIO | H16: SURQUILLO | I16: TERRENOS INSCRITOS | K16: Terrenos | L16: TERRENOS | M16: CC0000005 | N16: 001 | O16: Callao | P16: - | Q16: SI | R16: SI | S16: 1950-12-01 | T16: 1950-12-01 | U16: 1950-12-01 | X16: 371378.25 | AA16: 371378.25 | AC16: 0 | AD16: 0 | AF16: 0 | AG16: 0 | AH16: 0 | AI16: 371378.25 | AK16: TERRENOS | AL16: 0 | AM16: 0 | AN16: 0 | AP16: =+IF($AM16<=0,0,IF(($AM16-SUM($AO16:AO16))<$AN16,$AM16-SUM($AO16:AO16),IF(SUM($AO16:AO16)<$AM16,$AN16,0))) -> 0 | AQ16: =+IF($AM16<=0,0,IF(($AM16-SUM($AO16:AP16))<$AN16,$AM16-SUM($AO16:AP16),IF(SUM($AO16:AP16)<$AM16,$AN16,0))) -> 0 | AR16: =+IF($AM16<=0,0,IF(($AM16-SUM($AO16:AQ16))<$AN16,$AM16-SUM($AO16:AQ16),IF(SUM($AO16:AQ16)<$AM16,$AN16,0))) -> 0 | AS16: =+IF($AM16<=0,0,IF(($AM16-SUM($AO16:AR16))<$AN16,$AM16-SUM($AO16:AR16),IF(SUM($AO16:AR16)<$AM16,$AN16,0))) -> 0
B17: 331 | C17: 3311111 | D17: 9.LIMA | E17: NO | F17: NO | G17: AERONAVEGACIÓN | H17: VENTANILLA | I17: TERRENOS INSCRITOS | K17: Terrenos | L17: TERRENOS | P17: - | Q17: SI | R17: SI | S17: 1950-12-01 | T17: 1950-12-01 | U17: 1950-12-01 | X17: 41687.71 | AC17: 0 | AD17: 0 | AF17: 0 | AG17: 0 | AH17: 0 | AI17: 41687.71 | AK17: TERRENOS | AL17: 0 | AM17: 0 | AN17: 0 | AP17: =+IF($AM17<=0,0,IF(($AM17-SUM($AO17:AO17))<$AN17,$AM17-SUM($AO17:AO17),IF(SUM($AO17:AO17)<$AM17,$AN17,0))) -> 0 | AQ17: =+IF($AM17<=0,0,IF(($AM17-SUM($AO17:AP17))<$AN17,$AM17-SUM($AO17:AP17),IF(SUM($AO17:AP17)<$AM17,$AN17,0))) -> 0 | AR17: =+IF($AM17<=0,0,IF(($AM17-SUM($AO17:AQ17))<$AN17,$AM17-SUM($AO17:AQ17),IF(SUM($AO17:AQ17)<$AM17,$AN17,0))) -> 0 | AS17: =+IF($AM17<=0,0,IF(($AM17-SUM($AO17:AR17))<$AN17,$AM17-SUM($AO17:AR17),IF(SUM($AO17:AR17)<$AM17,$AN17,0))) -> 0
B18: 331 | C18: 3311111 | D18: 9.LIMA | E18: NO | F18: NO | G18: AERONAVEGACIÓN | H18: SAN ISIDRO | I18: TERRENOS INSCRITOS | K18: Terrenos | L18: TERRENOS | P18: - | Q18: SI | R18: SI | S18: 1950-12-01 | T18: 1950-12-01 | U18: 1950-12-01 | X18: 4736906.04 | AC18: 0 | AD18: 0 | AF18: 0 | AG18: 0 | AH18: 0 | AI18: 4736906.04 | AK18: TERRENOS | AL18: 0 | AM18: 0 | AN18: 0 | AP18: =+IF($AM18<=0,0,IF(($AM18-SUM($AO18:AO18))<$AN18,$AM18-SUM($AO18:AO18),IF(SUM($AO18:AO18)<$AM18,$AN18,0))) -> 0 | AQ18: =+IF($AM18<=0,0,IF(($AM18-SUM($AO18:AP18))<$AN18,$AM18-SUM($AO18:AP18),IF(SUM($AO18:AP18)<$AM18,$AN18,0))) -> 0 | AR18: =+IF($AM18<=0,0,IF(($AM18-SUM($AO18:AQ18))<$AN18,$AM18-SUM($AO18:AQ18),IF(SUM($AO18:AQ18)<$AM18,$AN18,0))) -> 0 | AS18: =+IF($AM18<=0,0,IF(($AM18-SUM($AO18:AR18))<$AN18,$AM18-SUM($AO18:AR18),IF(SUM($AO18:AR18)<$AM18,$AN18,0))) -> 0
B19: 331 | C19: 3311111 | D19: 9.LIMA | E19: NO | F19: NO | G19: AERONAVEGACIÓN/AEROPORTUARIO | H19: SAN ISIDRO | I19: TERRENOS INSCRITOS | K19: Terrenos | L19: TERRENOS | M19: CC0000008 | N19: 007 | O19: San Isidro | P19: - | Q19: SI | R19: SI | S19: 1950-12-01 | T19: 1950-12-01 | U19: 1950-12-01 | X19: 1102643 | AA19: 1102643 | AC19: 0 | AD19: 0 | AF19: 0 | AG19: 0 | AH19: 0 | AI19: 1102643 | AK19: TERRENOS | AL19: 0 | AM19: 0 | AN19: 0 | AP19: =+IF($AM19<=0,0,IF(($AM19-SUM($AO19:AO19))<$AN19,$AM19-SUM($AO19:AO19),IF(SUM($AO19:AO19)<$AM19,$AN19,0))) -> 0 | AQ19: =+IF($AM19<=0,0,IF(($AM19-SUM($AO19:AP19))<$AN19,$AM19-SUM($AO19:AP19),IF(SUM($AO19:AP19)<$AM19,$AN19,0))) -> 0 | AR19: =+IF($AM19<=0,0,IF(($AM19-SUM($AO19:AQ19))<$AN19,$AM19-SUM($AO19:AQ19),IF(SUM($AO19:AQ19)<$AM19,$AN19,0))) -> 0 | AS19: =+IF($AM19<=0,0,IF(($AM19-SUM($AO19:AR19))<$AN19,$AM19-SUM($AO19:AR19),IF(SUM($AO19:AR19)<$AM19,$AN19,0))) -> 0
B20: 331 | C20: 3311111 | D20: 21.OTROS | E20: GRUPO V | F20: SI | G20: AERONAVEGACIÓN/AEROPORTUARIO | H20: RODRIGUEZ DE MENDOZA | I20: TERRENOS INSCRITOS | K20: Terrenos | L20: TERRENOS | M20: CC0000009-1 | N20: 010 | O20: Rodriguez de Mendoza (Amazonas) | P20: - | Q20: SI | R20: SI | S20: 1950-12-01 | T20: 1950-12-01 | U20: 1950-12-01 | X20: 478694.35 | AA20: 478694.35 | AC20: 0 | AD20: 0 | AF20: 0 | AG20: 0 | AH20: 0 | AI20: 478694.35 | AK20: TERRENOS | AL20: 0.89 | AM20: 426037.9715 | AN20: 0 | AP20: =+IF($AM20<=0,0,IF(($AM20-SUM($AO20:AO20))<$AN20,$AM20-SUM($AO20:AO20),IF(SUM($AO20:AO20)<$AM20,$AN20,0))) -> 0 | AQ20: =+IF($AM20<=0,0,IF(($AM20-SUM($AO20:AP20))<$AN20,$AM20-SUM($AO20:AP20),IF(SUM($AO20:AP20)<$AM20,$AN20,0))) -> 0 | AR20: =+IF($AM20<=0,0,IF(($AM20-SUM($AO20:AQ20))<$AN20,$AM20-SUM($AO20:AQ20),IF(SUM($AO20:AQ20)<$AM20,$AN20,0))) -> 0 | AS20: =+IF($AM20<=0,0,IF(($AM20-SUM($AO20:AR20))<$AN20,$AM20-SUM($AO20:AR20),IF(SUM($AO20:AR20)<$AM20,$AN20,0))) -> 0
B21: 331 | C21: 3311111 | D21: 21.OTROS | E21: GRUPO V | F21: SI | G21: AERONAVEGACIÓN/AEROPORTUARIO | H21: RODRIGUEZ DE MENDOZA | I21: TERRENOS INSCRITOS | K21: Terrenos | L21: TERRENOS | M21: CC0000009-2 | N21: 010 | O21: Rodriguez de Mendoza (Amazonas) | P21: - | Q21: SI | R21: SI | S21: 1950-12-01 | T21: 1950-12-01 | U21: 1950-12-01 | X21: 879.46 | AA21: 879.46 | AC21: 0 | AD21: 0 | AF21: 0 | AG21: 0 | AH21: 0 | AI21: 879.46 | AK21: TERRENOS | AL21: 0.89 | AM21: 782.7194 | AN21: 0 | AP21: =+IF($AM21<=0,0,IF(($AM21-SUM($AO21:AO21))<$AN21,$AM21-SUM($AO21:AO21),IF(SUM($AO21:AO21)<$AM21,$AN21,0))) -> 0 | AQ21: =+IF($AM21<=0,0,IF(($AM21-SUM($AO21:AP21))<$AN21,$AM21-SUM($AO21:AP21),IF(SUM($AO21:AP21)<$AM21,$AN21,0))) -> 0 | AR21: =+IF($AM21<=0,0,IF(($AM21-SUM($AO21:AQ21))<$AN21,$AM21-SUM($AO21:AQ21),IF(SUM($AO21:AQ21)<$AM21,$AN21,0))) -> 0 | AS21: =+IF($AM21<=0,0,IF(($AM21-SUM($AO21:AR21))<$AN21,$AM21-SUM($AO21:AR21),IF(SUM($AO21:AR21)<$AM21,$AN21,0))) -> 0
B22: 331 | C22: 3311111 | D22: 7.IQUITOS | E22: NO | F22: NO | G22: AERONAVEGACIÓN | H22: IQUITOS (TRANSMISORA - RECEPTORA) | I22: TERRENOS INSCRITOS | K22: Terrenos | L22: TERRENOS | P22: - | Q22: SI | R22: SI | S22: 1950-12-01 | T22: 1950-12-01 | U22: 1950-12-01 | X22: 1219781.77 | AC22: 0 | AD22: 0 | AF22: 0 | AG22: 0 | AH22: 0 | AI22: 1219781.77 | AK22: TERRENOS | AL22: 0 | AM22: 0 | AN22: 0 | AP22: =+IF($AM22<=0,0,IF(($AM22-SUM($AO22:AO22))<$AN22,$AM22-SUM($AO22:AO22),IF(SUM($AO22:AO22)<$AM22,$AN22,0))) -> 0 | AQ22: =+IF($AM22<=0,0,IF(($AM22-SUM($AO22:AP22))<$AN22,$AM22-SUM($AO22:AP22),IF(SUM($AO22:AP22)<$AM22,$AN22,0))) -> 0 | AR22: =+IF($AM22<=0,0,IF(($AM22-SUM($AO22:AQ22))<$AN22,$AM22-SUM($AO22:AQ22),IF(SUM($AO22:AQ22)<$AM22,$AN22,0))) -> 0 | AS22: =+IF($AM22<=0,0,IF(($AM22-SUM($AO22:AR22))<$AN22,$AM22-SUM($AO22:AR22),IF(SUM($AO22:AR22)<$AM22,$AN22,0))) -> 0
B23: 331 | C23: 3311111 | D23: 9.LIMA | E23: NO | F23: NO | G23: AERONAVEGACIÓN | H23: VENTANILLA - CHILLON | I23: TERRENOS INSCRITOS | K23: Terrenos | L23: TERRENOS | P23: - | Q23: SI | R23: SI | S23: 1950-12-01 | T23: 1950-12-01 | U23: 1950-12-01 | X23: 592125.47 | AC23: 0 | AD23: 0 | AF23: 0 | AG23: 0 | AH23: 0 | AI23: 592125.47 | AK23: TERRENOS | AL23: 0 | AM23: 0 | AN23: 0 | AP23: =+IF($AM23<=0,0,IF(($AM23-SUM($AO23:AO23))<$AN23,$AM23-SUM($AO23:AO23),IF(SUM($AO23:AO23)<$AM23,$AN23,0))) -> 0 | AQ23: =+IF($AM23<=0,0,IF(($AM23-SUM($AO23:AP23))<$AN23,$AM23-SUM($AO23:AP23),IF(SUM($AO23:AP23)<$AM23,$AN23,0))) -> 0 | AR23: =+IF($AM23<=0,0,IF(($AM23-SUM($AO23:AQ23))<$AN23,$AM23-SUM($AO23:AQ23),IF(SUM($AO23:AQ23)<$AM23,$AN23,0))) -> 0 | AS23: =+IF($AM23<=0,0,IF(($AM23-SUM($AO23:AR23))<$AN23,$AM23-SUM($AO23:AR23),IF(SUM($AO23:AR23)<$AM23,$AN23,0))) -> 0
B24: 331 | C24: 3311111 | D24: 21.OTROS | E24: GRUPO V | F24: SI | G24: AERONAVEGACIÓN/AEROPORTUARIO | H24: JAEN | I24: TERRENOS INSCRITOS | K24: Terrenos | L24: TERRENOS | M24: CC0000012-1 | N24: 020 | O24: Jaen | P24: - | Q24: SI | R24: SI | S24: 1950-12-01 | T24: 1950-12-01 | U24: 1950-12-01 | X24: 390734.32 | AA24: 390734.32 | AC24: 0 | AD24: 0 | AF24: 0 | AG24: 0 | AH24: 0 | AI24: 390734.32 | AK24: TERRENOS | AL24: 0.5 | AM24: 195367.16 | AN24: 0 | AP24: =+IF($AM24<=0,0,IF(($AM24-SUM($AO24:AO24))<$AN24,$AM24-SUM($AO24:AO24),IF(SUM($AO24:AO24)<$AM24,$AN24,0))) -> 0 | AQ24: =+IF($AM24<=0,0,IF(($AM24-SUM($AO24:AP24))<$AN24,$AM24-SUM($AO24:AP24),IF(SUM($AO24:AP24)<$AM24,$AN24,0))) -> 0 | AR24: =+IF($AM24<=0,0,IF(($AM24-SUM($AO24:AQ24))<$AN24,$AM24-SUM($AO24:AQ24),IF(SUM($AO24:AQ24)<$AM24,$AN24,0))) -> 0 | AS24: =+IF($AM24<=0,0,IF(($AM24-SUM($AO24:AR24))<$AN24,$AM24-SUM($AO24:AR24),IF(SUM($AO24:AR24)<$AM24,$AN24,0))) -> 0
B25: 331 | C25: 3311111 | D25: 21.OTROS | E25: GRUPO V | F25: SI | G25: AERONAVEGACIÓN/AEROPORTUARIO | H25: JAEN | I25: TERRENOS INSCRITOS | K25: Terrenos | L25: TERRENOS | M25: CC0000012-2 | N25: 020 | O25: Jaen | P25: - | Q25: SI | R25: SI | S25: 1950-12-01 | T25: 1950-12-01 | U25: 1950-12-01 | X25: 3946.81 | AA25: 3946.81 | AC25: 0 | AD25: 0 | AF25: 0 | AG25: 0 | AH25: 0 | AI25: 3946.81 | AK25: TERRENOS | AL25: 0.5 | AM25: 1973.405 | AN25: 0 | AP25: =+IF($AM25<=0,0,IF(($AM25-SUM($AO25:AO25))<$AN25,$AM25-SUM($AO25:AO25),IF(SUM($AO25:AO25)<$AM25,$AN25,0))) -> 0 | AQ25: =+IF($AM25<=0,0,IF(($AM25-SUM($AO25:AP25))<$AN25,$AM25-SUM($AO25:AP25),IF(SUM($AO25:AP25)<$AM25,$AN25,0))) -> 0 | AR25: =+IF($AM25<=0,0,IF(($AM25-SUM($AO25:AQ25))<$AN25,$AM25-SUM($AO25:AQ25),IF(SUM($AO25:AQ25)<$AM25,$AN25,0))) -> 0 | AS25: =+IF($AM25<=0,0,IF(($AM25-SUM($AO25:AR25))<$AN25,$AM25-SUM($AO25:AR25),IF(SUM($AO25:AR25)<$AM25,$AN25,0))) -> 0
B26: 331 | C26: 3311111 | D26: 3.AREQUIPA | E26: NO | F26: NO | G26: AERONAVEGACIÓN | H26: AREQUIPA | I26: TERRENOS INSCRITOS | K26: Terrenos | L26: TERRENOS | P26: - | Q26: SI | R26: SI | S26: 1950-12-01 | T26: 1950-12-01 | U26: 1950-12-01 | X26: 570025.3 | AC26: 0 | AD26: 0 | AF26: 0 | AG26: 0 | AH26: 0 | AI26: 570025.3 | AK26: TERRENOS | AL26: 0 | AM26: 0 | AN26: 0 | AP26: =+IF($AM26<=0,0,IF(($AM26-SUM($AO26:AO26))<$AN26,$AM26-SUM($AO26:AO26),IF(SUM($AO26:AO26)<$AM26,$AN26,0))) -> 0 | AQ26: =+IF($AM26<=0,0,IF(($AM26-SUM($AO26:AP26))<$AN26,$AM26-SUM($AO26:AP26),IF(SUM($AO26:AP26)<$AM26,$AN26,0))) -> 0 | AR26: =+IF($AM26<=0,0,IF(($AM26-SUM($AO26:AQ26))<$AN26,$AM26-SUM($AO26:AQ26),IF(SUM($AO26:AQ26)<$AM26,$AN26,0))) -> 0 | AS26: =+IF($AM26<=0,0,IF(($AM26-SUM($AO26:AR26))<$AN26,$AM26-SUM($AO26:AR26),IF(SUM($AO26:AR26)<$AM26,$AN26,0))) -> 0
B27: 331 | C27: 3311111 | D27: 19.CUSCO | E27: Cusco | F27: SI | G27: AERONAVEGACIÓN/AEROPORTUARIO | H27: CUSCO | I27: TERRENOS INSCRITOS | K27: Terrenos | L27: TERRENOS | M27: CC0000014-1 | N27: 023 | O27: Cuzco | P27: - | Q27: SI | R27: SI | S27: 1950-12-01 | T27: 1950-12-01 | U27: 1950-12-01 | X27: 101290471.8 | AA27: 101290471.8 | AC27: 0 | AD27: 0 | AF27: 0 | AG27: 0 | AH27: 0 | AI27: 101290471.8 | AK27: TERRENOS | AL27: 0.49 | AM27: 49632331.2 | AN27: 0 | AP27: =+IF($AM27<=0,0,IF(($AM27-SUM($AO27:AO27))<$AN27,$AM27-SUM($AO27:AO27),IF(SUM($AO27:AO27)<$AM27,$AN27,0))) -> 0 | AQ27: =+IF($AM27<=0,0,IF(($AM27-SUM($AO27:AP27))<$AN27,$AM27-SUM($AO27:AP27),IF(SUM($AO27:AP27)<$AM27,$AN27,0))) -> 0 | AR27: =+IF($AM27<=0,0,IF(($AM27-SUM($AO27:AQ27))<$AN27,$AM27-SUM($AO27:AQ27),IF(SUM($AO27:AQ27)<$AM27,$AN27,0))) -> 0 | AS27: =+IF($AM27<=0,0,IF(($AM27-SUM($AO27:AR27))<$AN27,$AM27-SUM($AO27:AR27),IF(SUM($AO27:AR27)<$AM27,$AN27,0))) -> 0
B28: 331 | C28: 3311111 | D28: 19.CUSCO | E28: Cusco | F28: SI | G28: AERONAVEGACIÓN/AEROPORTUARIO | H28: CUSCO | I28: TERRENOS INSCRITOS | K28: Terrenos | L28: TERRENOS | M28: CC0000014-2 | N28: 023 | O28: Cuzco | P28: - | Q28: SI | R28: SI | S28: 1950-12-01 | T28: 1950-12-01 | U28: 1950-12-01 | X28: 19758.09 | AA28: 19758.09 | AC28: 0 | AD28: 0 | AF28: 0 | AG28: 0 | AH28: 0 | AI28: 19758.09 | AK28: TERRENOS | AL28: 0.49 | AM28: 9681.4641 | AN28: 0 | AP28: =+IF($AM28<=0,0,IF(($AM28-SUM($AO28:AO28))<$AN28,$AM28-SUM($AO28:AO28),IF(SUM($AO28:AO28)<$AM28,$AN28,0))) -> 0 | AQ28: =+IF($AM28<=0,0,IF(($AM28-SUM($AO28:AP28))<$AN28,$AM28-SUM($AO28:AP28),IF(SUM($AO28:AP28)<$AM28,$AN28,0))) -> 0 | AR28: =+IF($AM28<=0,0,IF(($AM28-SUM($AO28:AQ28))<$AN28,$AM28-SUM($AO28:AQ28),IF(SUM($AO28:AQ28)<$AM28,$AN28,0))) -> 0 | AS28: =+IF($AM28<=0,0,IF(($AM28-SUM($AO28:AR28))<$AN28,$AM28-SUM($AO28:AR28),IF(SUM($AO28:AR28)<$AM28,$AN28,0))) -> 0
B29: 331 | C29: 3311111 | D29: 19.CUSCO | E29: Cusco | F29: SI | G29: AERONAVEGACIÓN/AEROPORTUARIO | H29: CHIRIORCO (CUSCO) | I29: TERRENOS INSCRITOS | K29: Terrenos | L29: TERRENOS | M29: CC0000015 | N29: 023 | O29: Cuzco | P29: - | Q29: SI | R29: SI | S29: 1950-12-01 | T29: 1950-12-01 | U29: 1950-12-01 | X29: 17479.95 | AA29: 17479.95 | AC29: 0 | AD29: 0 | AF29: 0 | AG29: 0 | AH29: 0 | AI29: 17479.95 | AK29: TERRENOS | AL29: 0.5 | AM29: 8739.975 | AN29: 0 | AP29: =+IF($AM29<=0,0,IF(($AM29-SUM($AO29:AO29))<$AN29,$AM29-SUM($AO29:AO29),IF(SUM($AO29:AO29)<$AM29,$AN29,0))) -> 0 | AQ29: =+IF($AM29<=0,0,IF(($AM29-SUM($AO29:AP29))<$AN29,$AM29-SUM($AO29:AP29),IF(SUM($AO29:AP29)<$AM29,$AN29,0))) -> 0 | AR29: =+IF($AM29<=0,0,IF(($AM29-SUM($AO29:AQ29))<$AN29,$AM29-SUM($AO29:AQ29),IF(SUM($AO29:AQ29)<$AM29,$AN29,0))) -> 0 | AS29: =+IF($AM29<=0,0,IF(($AM29-SUM($AO29:AR29))<$AN29,$AM29-SUM($AO29:AR29),IF(SUM($AO29:AR29)<$AM29,$AN29,0))) -> 0
B30: 331 | C30: 3311111 | D30: 11.PIURA | E30: NO | F30: NO | G30: AERONAVEGACIÓN | H30: PIURA (BAYOBAR) | I30: TERRENOS INSCRITOS | K30: Terrenos | L30: TERRENOS | P30: - | Q30: SI | R30: SI | S30: 1950-12-01 | T30: 1950-12-01 | U30: 1950-12-01 | X30: 327648.44 | AC30: 0 | AD30: 0 | AF30: 0 | AG30: 0 | AH30: 0 | AI30: 327648.44 | AK30: TERRENOS | AL30: 0 | AM30: 0 | AN30: 0 | AP30: =+IF($AM30<=0,0,IF(($AM30-SUM($AO30:AO30))<$AN30,$AM30-SUM($AO30:AO30),IF(SUM($AO30:AO30)<$AM30,$AN30,0))) -> 0 | AQ30: =+IF($AM30<=0,0,IF(($AM30-SUM($AO30:AP30))<$AN30,$AM30-SUM($AO30:AP30),IF(SUM($AO30:AP30)<$AM30,$AN30,0))) -> 0 | AR30: =+IF($AM30<=0,0,IF(($AM30-SUM($AO30:AQ30))<$AN30,$AM30-SUM($AO30:AQ30),IF(SUM($AO30:AQ30)<$AM30,$AN30,0))) -> 0 | AS30: =+IF($AM30<=0,0,IF(($AM30-SUM($AO30:AR30))<$AN30,$AM30-SUM($AO30:AR30),IF(SUM($AO30:AR30)<$AM30,$AN30,0))) -> 0
B31: 331 | C31: 3311111 | D31: 21.OTROS | E31: GRUPO V | F31: SI | G31: AERONAVEGACIÓN/AEROPORTUARIO | H31: ATALAYA | I31: TERRENOS INSCRITOS | K31: Terrenos | L31: TERRENOS | M31: CC0000017-1 | N31: 018 | O31: Atalaya | P31: - | Q31: SI | R31: SI | S31: 1950-12-01 | T31: 1950-12-01 | U31: 1950-12-01 | X31: 859588.23 | AA31: 859588.23 | AC31: 0 | AD31: 0 | AF31: 0 | AG31: 0 | AH31: 0 | AI31: 859588.23 | AK31: TERRENOS | AL31: 0.24 | AM31: 206301.1752 | AN31: 0 | AP31: =+IF($AM31<=0,0,IF(($AM31-SUM($AO31:AO31))<$AN31,$AM31-SUM($AO31:AO31),IF(SUM($AO31:AO31)<$AM31,$AN31,0))) -> 0 | AQ31: =+IF($AM31<=0,0,IF(($AM31-SUM($AO31:AP31))<$AN31,$AM31-SUM($AO31:AP31),IF(SUM($AO31:AP31)<$AM31,$AN31,0))) -> 0 | AR31: =+IF($AM31<=0,0,IF(($AM31-SUM($AO31:AQ31))<$AN31,$AM31-SUM($AO31:AQ31),IF(SUM($AO31:AQ31)<$AM31,$AN31,0))) -> 0 | AS31: =+IF($AM31<=0,0,IF(($AM31-SUM($AO31:AR31))<$AN31,$AM31-SUM($AO31:AR31),IF(SUM($AO31:AR31)<$AM31,$AN31,0))) -> 0
B32: 331 | C32: 3311111 | D32: 21.OTROS | E32: GRUPO V | F32: SI | G32: AERONAVEGACIÓN/AEROPORTUARIO | H32: ATALAYA | I32: TERRENOS INSCRITOS | K32: Terrenos | L32: TERRENOS | M32: CC0000017-2 | N32: 018 | O32: Atalaya | P32: - | Q32: SI | R32: SI | S32: 1950-12-01 | T32: 1950-12-01 | U32: 1950-12-01 | X32: 167.85 | AA32: 167.85 | AC32: 0 | AD32: 0 | AF32: 0 | AG32: 0 | AH32: 0 | AI32: 167.85 | AK32: TERRENOS | AL32: 0.24 | AM32: 40.284 | AN32: 0 | AP32: =+IF($AM32<=0,0,IF(($AM32-SUM($AO32:AO32))<$AN32,$AM32-SUM($AO32:AO32),IF(SUM($AO32:AO32)<$AM32,$AN32,0))) -> 0 | AQ32: =+IF($AM32<=0,0,IF(($AM32-SUM($AO32:AP32))<$AN32,$AM32-SUM($AO32:AP32),IF(SUM($AO32:AP32)<$AM32,$AN32,0))) -> 0 | AR32: =+IF($AM32<=0,0,IF(($AM32-SUM($AO32:AQ32))<$AN32,$AM32-SUM($AO32:AQ32),IF(SUM($AO32:AQ32)<$AM32,$AN32,0))) -> 0 | AS32: =+IF($AM32<=0,0,IF(($AM32-SUM($AO32:AR32))<$AN32,$AM32-SUM($AO32:AR32),IF(SUM($AO32:AR32)<$AM32,$AN32,0))) -> 0
B33: 331 | C33: 3311111 | D33: 12.PUCALLPA | E33: NO | F33: NO | G33: AERONAVEGACIÓN | H33: CONTAMANA | I33: TERRENOS INSCRITOS | K33: Terrenos | L33: TERRENOS | P33: - | Q33: SI | R33: SI | S33: 1950-12-01 | T33: 1950-12-01 | U33: 1950-12-01 | X33: 28184.7 | AC33: 0 | AD33: 0 | AF33: 0 | AG33: 0 | AH33: 0 | AI33: 28184.7 | AK33: TERRENOS | AL33: 0 | AM33: 0 | AN33: 0 | AP33: =+IF($AM33<=0,0,IF(($AM33-SUM($AO33:AO33))<$AN33,$AM33-SUM($AO33:AO33),IF(SUM($AO33:AO33)<$AM33,$AN33,0))) -> 0 | AQ33: =+IF($AM33<=0,0,IF(($AM33-SUM($AO33:AP33))<$AN33,$AM33-SUM($AO33:AP33),IF(SUM($AO33:AP33)<$AM33,$AN33,0))) -> 0 | AR33: =+IF($AM33<=0,0,IF(($AM33-SUM($AO33:AQ33))<$AN33,$AM33-SUM($AO33:AQ33),IF(SUM($AO33:AQ33)<$AM33,$AN33,0))) -> 0 | AS33: =+IF($AM33<=0,0,IF(($AM33-SUM($AO33:AR33))<$AN33,$AM33-SUM($AO33:AR33),IF(SUM($AO33:AR33)<$AM33,$AN33,0))) -> 0
B34: 331 | C34: 3311111 | D34: 16.TARAPOTO | E34: NO | F34: NO | G34: AERONAVEGACIÓN | H34: TARAPOTO (CERRO MIRADOR9 | I34: TERRENOS INSCRITOS | K34: Terrenos | L34: TERRENOS | P34: - | Q34: SI | R34: SI | S34: 1950-12-01 | T34: 1950-12-01 | U34: 1950-12-01 | X34: 19700.44 | AC34: 0 | AD34: 0 | AF34: 0 | AG34: 0 | AH34: 0 | AI34: 19700.44 | AK34: TERRENOS | AL34: 0 | AM34: 0 | AN34: 0 | AP34: =+IF($AM34<=0,0,IF(($AM34-SUM($AO34:AO34))<$AN34,$AM34-SUM($AO34:AO34),IF(SUM($AO34:AO34)<$AM34,$AN34,0))) -> 0 | AQ34: =+IF($AM34<=0,0,IF(($AM34-SUM($AO34:AP34))<$AN34,$AM34-SUM($AO34:AP34),IF(SUM($AO34:AP34)<$AM34,$AN34,0))) -> 0 | AR34: =+IF($AM34<=0,0,IF(($AM34-SUM($AO34:AQ34))<$AN34,$AM34-SUM($AO34:AQ34),IF(SUM($AO34:AQ34)<$AM34,$AN34,0))) -> 0 | AS34: =+IF($AM34<=0,0,IF(($AM34-SUM($AO34:AR34))<$AN34,$AM34-SUM($AO34:AR34),IF(SUM($AO34:AR34)<$AM34,$AN34,0))) -> 0
B35: 331 | C35: 3311111 | D35: 20. NAZCA | E35: Nazca | F35: SI | G35: AERONAVEGACIÓN | H35: NAZCA | I35: TERRENOS INSCRITOS | K35: Terrenos | L35: TERRENOS | P35: - | Q35: SI | R35: SI | S35: 1950-12-01 | T35: 1950-12-01 | U35: 1950-12-01 | X35: 144927.02 | AC35: 0 | AD35: 0 | AF35: 0 | AG35: 0 | AH35: 0 | AI35: 144927.02 | AK35: TERRENOS | AL35: 0 | AM35: 0 | AN35: 0 | AP35: =+IF($AM35<=0,0,IF(($AM35-SUM($AO35:AO35))<$AN35,$AM35-SUM($AO35:AO35),IF(SUM($AO35:AO35)<$AM35,$AN35,0))) -> 0 | AQ35: =+IF($AM35<=0,0,IF(($AM35-SUM($AO35:AP35))<$AN35,$AM35-SUM($AO35:AP35),IF(SUM($AO35:AP35)<$AM35,$AN35,0))) -> 0 | AR35: =+IF($AM35<=0,0,IF(($AM35-SUM($AO35:AQ35))<$AN35,$AM35-SUM($AO35:AQ35),IF(SUM($AO35:AQ35)<$AM35,$AN35,0))) -> 0 | AS35: =+IF($AM35<=0,0,IF(($AM35-SUM($AO35:AR35))<$AN35,$AM35-SUM($AO35:AR35),IF(SUM($AO35:AR35)<$AM35,$AN35,0))) -> 0
B36: 331 | C36: 3311111 | D36: 21.OTROS | E36: GRUPO V | F36: SI | G36: AERONAVEGACIÓN/AEROPORTUARIO | H36: CABALLOCOCHA | I36: TERRENOS INSCRITOS | K36: Terrenos | L36: TERRENOS | M36: CC0000021-1 | N36: 072 | O36: Caballococha (Loreto) | P36: - | Q36: SI | R36: SI | S36: 1950-12-01 | T36: 1950-12-01 | U36: 1950-12-01 | X36: 728892.89 | AA36: 728892.89 | AC36: 0 | AD36: 0 | AF36: 0 | AG36: 0 | AH36: 0 | AI36: 728892.89 | AK36: TERRENOS | AL36: 0.5 | AM36: 364446.445 | AN36: 0 | AP36: =+IF($AM36<=0,0,IF(($AM36-SUM($AO36:AO36))<$AN36,$AM36-SUM($AO36:AO36),IF(SUM($AO36:AO36)<$AM36,$AN36,0))) -> 0 | AQ36: =+IF($AM36<=0,0,IF(($AM36-SUM($AO36:AP36))<$AN36,$AM36-SUM($AO36:AP36),IF(SUM($AO36:AP36)<$AM36,$AN36,0))) -> 0 | AR36: =+IF($AM36<=0,0,IF(($AM36-SUM($AO36:AQ36))<$AN36,$AM36-SUM($AO36:AQ36),IF(SUM($AO36:AQ36)<$AM36,$AN36,0))) -> 0 | AS36: =+IF($AM36<=0,0,IF(($AM36-SUM($AO36:AR36))<$AN36,$AM36-SUM($AO36:AR36),IF(SUM($AO36:AR36)<$AM36,$AN36,0))) -> 0
B37: 331 | C37: 3311111 | D37: 21.OTROS | E37: GRUPO V | F37: SI | G37: AERONAVEGACIÓN/AEROPORTUARIO | H37: CABALLOCOCHA | I37: TERRENOS INSCRITOS | K37: Terrenos | L37: TERRENOS | M37: CC0000021-2 | N37: 072 | O37: Caballococha (Loreto) | P37: - | Q37: SI | R37: SI | S37: 1950-12-01 | T37: 1950-12-01 | U37: 1950-12-01 | X37: 40990.62 | AA37: 40990.62 | AC37: 0 | AD37: 0 | AF37: 0 | AG37: 0 | AH37: 0 | AI37: 40990.62 | AK37: TERRENOS | AL37: 0.5 | AM37: 20495.31 | AN37: 0 | AP37: =+IF($AM37<=0,0,IF(($AM37-SUM($AO37:AO37))<$AN37,$AM37-SUM($AO37:AO37),IF(SUM($AO37:AO37)<$AM37,$AN37,0))) -> 0 | AQ37: =+IF($AM37<=0,0,IF(($AM37-SUM($AO37:AP37))<$AN37,$AM37-SUM($AO37:AP37),IF(SUM($AO37:AP37)<$AM37,$AN37,0))) -> 0 | AR37: =+IF($AM37<=0,0,IF(($AM37-SUM($AO37:AQ37))<$AN37,$AM37-SUM($AO37:AQ37),IF(SUM($AO37:AQ37)<$AM37,$AN37,0))) -> 0 | AS37: =+IF($AM37<=0,0,IF(($AM37-SUM($AO37:AR37))<$AN37,$AM37-SUM($AO37:AR37),IF(SUM($AO37:AR37)<$AM37,$AN37,0))) -> 0
B38: 331 | C38: 3311111 | D38: 21.OTROS | E38: GRUPO V | F38: SI | G38: AERONAVEGACIÓN | H38: SHAPAJILLA | I38: TERRENOS INSCRITOS | K38: Terrenos | L38: TERRENOS | P38: - | Q38: SI | R38: SI | S38: 1950-12-01 | T38: 1950-12-01 | U38: 1950-12-01 | X38: 2521.76 | AC38: 0 | AD38: 0 | AF38: 0 | AG38: 0 | AH38: 0 | AI38: 2521.76 | AK38: TERRENOS | AL38: 0 | AM38: 0 | AN38: 0 | AP38: =+IF($AM38<=0,0,IF(($AM38-SUM($AO38:AO38))<$AN38,$AM38-SUM($AO38:AO38),IF(SUM($AO38:AO38)<$AM38,$AN38,0))) -> 0 | AQ38: =+IF($AM38<=0,0,IF(($AM38-SUM($AO38:AP38))<$AN38,$AM38-SUM($AO38:AP38),IF(SUM($AO38:AP38)<$AM38,$AN38,0))) -> 0 | AR38: =+IF($AM38<=0,0,IF(($AM38-SUM($AO38:AQ38))<$AN38,$AM38-SUM($AO38:AQ38),IF(SUM($AO38:AQ38)<$AM38,$AN38,0))) -> 0 | AS38: =+IF($AM38<=0,0,IF(($AM38-SUM($AO38:AR38))<$AN38,$AM38-SUM($AO38:AR38),IF(SUM($AO38:AR38)<$AM38,$AN38,0))) -> 0
B39: 331 | C39: 3311111 | D39: 21.OTROS | E39: GRUPO V | F39: SI | G39: AERONAVEGACIÓN/AEROPORTUARIO | H39: ANDAHUAYLAS | I39: TERRENOS INSCRITOS | K39: Terrenos | L39: TERRENOS | M39: CC0000023-1 | N39: 052 | O39: Andahuaylas | P39: - | Q39: SI | R39: SI | S39: 1950-12-01 | T39: 1950-12-01 | U39: 1950-12-01 | X39: 8749544.36 | AA39: 8749544.36 | AC39: 0 | AD39: 0 | AF39: 0 | AG39: 0 | AH39: 0 | AI39: 8749544.36 | AK39: TERRENOS | AL39: 0.58 | AM39: 5074735.729 | AN39: 0 | AP39: =+IF($AM39<=0,0,IF(($AM39-SUM($AO39:AO39))<$AN39,$AM39-SUM($AO39:AO39),IF(SUM($AO39:AO39)<$AM39,$AN39,0))) -> 0 | AQ39: =+IF($AM39<=0,0,IF(($AM39-SUM($AO39:AP39))<$AN39,$AM39-SUM($AO39:AP39),IF(SUM($AO39:AP39)<$AM39,$AN39,0))) -> 0 | AR39: =+IF($AM39<=0,0,IF(($AM39-SUM($AO39:AQ39))<$AN39,$AM39-SUM($AO39:AQ39),IF(SUM($AO39:AQ39)<$AM39,$AN39,0))) -> 0 | AS39: =+IF($AM39<=0,0,IF(($AM39-SUM($AO39:AR39))<$AN39,$AM39-SUM($AO39:AR39),IF(SUM($AO39:AR39)<$AM39,$AN39,0))) -> 0
B40: 331 | C40: 3311111 | D40: 21.OTROS | E40: GRUPO V | F40: SI | G40: AERONAVEGACIÓN/AEROPORTUARIO | H40: ANDAHUAYLAS | I40: TERRENOS INSCRITOS | K40: Terrenos | L40: TERRENOS | M40: CC0000023-2 | N40: 052 | O40: Andahuaylas | P40: - | Q40: SI | R40: SI | S40: 1950-12-01 | T40: 1950-12-01 | U40: 1950-12-01 | X40: 1893.23 | AA40: 1893.23 | AC40: 0 | AD40: 0 | AF40: 0 | AG40: 0 | AH40: 0 | AI40: 1893.23 | AK40: TERRENOS | AL40: 0.58 | AM40: 1098.0734 | AN40: 0 | AP40: =+IF($AM40<=0,0,IF(($AM40-SUM($AO40:AO40))<$AN40,$AM40-SUM($AO40:AO40),IF(SUM($AO40:AO40)<$AM40,$AN40,0))) -> 0 | AQ40: =+IF($AM40<=0,0,IF(($AM40-SUM($AO40:AP40))<$AN40,$AM40-SUM($AO40:AP40),IF(SUM($AO40:AP40)<$AM40,$AN40,0))) -> 0 | AR40: =+IF($AM40<=0,0,IF(($AM40-SUM($AO40:AQ40))<$AN40,$AM40-SUM($AO40:AQ40),IF(SUM($AO40:AQ40)<$AM40,$AN40,0))) -> 0 | AS40: =+IF($AM40<=0,0,IF(($AM40-SUM($AO40:AR40))<$AN40,$AM40-SUM($AO40:AR40),IF(SUM($AO40:AR40)<$AM40,$AN40,0))) -> 0
B41: 331 | C41: 3311111 | D41: 4.CAJAMARCA | E41: NO | F41: NO | G41: AERONAVEGACIÓN | H41: CAJAMARCA (LLACANORA) | I41: TERRENOS INSCRITOS | K41: Terrenos | L41: TERRENOS | P41: - | Q41: SI | R41: SI | S41: 1950-12-01 | T41: 1950-12-01 | U41: 1950-12-01 | X41: 411322.9 | AC41: 0 | AD41: 0 | AF41: 0 | AG41: 0 | AH41: 0 | AI41: 411322.9 | AK41: TERRENOS | AL41: 0 | AM41: 0 | AN41: 0 | AP41: =+IF($AM41<=0,0,IF(($AM41-SUM($AO41:AO41))<$AN41,$AM41-SUM($AO41:AO41),IF(SUM($AO41:AO41)<$AM41,$AN41,0))) -> 0 | AQ41: =+IF($AM41<=0,0,IF(($AM41-SUM($AO41:AP41))<$AN41,$AM41-SUM($AO41:AP41),IF(SUM($AO41:AP41)<$AM41,$AN41,0))) -> 0 | AR41: =+IF($AM41<=0,0,IF(($AM41-SUM($AO41:AQ41))<$AN41,$AM41-SUM($AO41:AQ41),IF(SUM($AO41:AQ41)<$AM41,$AN41,0))) -> 0 | AS41: =+IF($AM41<=0,0,IF(($AM41-SUM($AO41:AR41))<$AN41,$AM41-SUM($AO41:AR41),IF(SUM($AO41:AR41)<$AM41,$AN41,0))) -> 0
B42: 331 | C42: 3311111 | D42: 21.OTROS | E42: GRUPO V | F42: SI | G42: AERONAVEGACIÓN/AEROPORTUARIO | H42: CHIMBOTE | I42: TERRENOS INSCRITOS | K42: Terrenos | L42: TERRENOS | M42: CC0000025-1 | N42: 055 | O42: Chimbote | P42: - | Q42: SI | R42: SI | S42: 1950-12-01 | T42: 1950-12-01 | U42: 1950-12-01 | X42: 29888887.53 | AA42: 29888887.53 | AC42: 0 | AD42: 0 | AF42: 0 | AG42: 0 | AH42: 0 | AI42: 29888887.53 | AK42: TERRENOS | AL42: 0.73 | AM42: 21818887.9 | AN42: 0 | AP42: =+IF($AM42<=0,0,IF(($AM42-SUM($AO42:AO42))<$AN42,$AM42-SUM($AO42:AO42),IF(SUM($AO42:AO42)<$AM42,$AN42,0))) -> 0 | AQ42: =+IF($AM42<=0,0,IF(($AM42-SUM($AO42:AP42))<$AN42,$AM42-SUM($AO42:AP42),IF(SUM($AO42:AP42)<$AM42,$AN42,0))) -> 0 | AR42: =+IF($AM42<=0,0,IF(($AM42-SUM($AO42:AQ42))<$AN42,$AM42-SUM($AO42:AQ42),IF(SUM($AO42:AQ42)<$AM42,$AN42,0))) -> 0 | AS42: =+IF($AM42<=0,0,IF(($AM42-SUM($AO42:AR42))<$AN42,$AM42-SUM($AO42:AR42),IF(SUM($AO42:AR42)<$AM42,$AN42,0))) -> 0
B43: 331 | C43: 3311111 | D43: 21.OTROS | E43: GRUPO V | F43: SI | G43: AERONAVEGACIÓN/AEROPORTUARIO | H43: CHIMBOTE | I43: TERRENOS INSCRITOS | K43: Terrenos | L43: TERRENOS | M43: CC0000025-2 | N43: 055 | O43: Chimbote | P43: - | Q43: SI | R43: SI | S43: 1950-12-01 | T43: 1950-12-01 | U43: 1950-12-01 | X43: 5245.33 | AA43: 5245.33 | AC43: 0 | AD43: 0 | AF43: 0 | AG43: 0 | AH43: 0 | AI43: 5245.33 | AK43: TERRENOS | AL43: 0.73 | AM43: 3829.0909 | AN43: 0 | AP43: =+IF($AM43<=0,0,IF(($AM43-SUM($AO43:AO43))<$AN43,$AM43-SUM($AO43:AO43),IF(SUM($AO43:AO43)<$AM43,$AN43,0))) -> 0 | AQ43: =+IF($AM43<=0,0,IF(($AM43-SUM($AO43:AP43))<$AN43,$AM43-SUM($AO43:AP43),IF(SUM($AO43:AP43)<$AM43,$AN43,0))) -> 0 | AR43: =+IF($AM43<=0,0,IF(($AM43-SUM($AO43:AQ43))<$AN43,$AM43-SUM($AO43:AQ43),IF(SUM($AO43:AQ43)<$AM43,$AN43,0))) -> 0 | AS43: =+IF($AM43<=0,0,IF(($AM43-SUM($AO43:AR43))<$AN43,$AM43-SUM($AO43:AR43),IF(SUM($AO43:AR43)<$AM43,$AN43,0))) -> 0
B44: 331 | C44: 3311111 | D44: 21.OTROS | E44: GRUPO V | F44: SI | G44: AERONAVEGACIÓN/AEROPORTUARIO | H44: HUANUCO | I44: TERRENOS INSCRITOS | K44: Terrenos | L44: TERRENOS | M44: CC0000026-1 | N44: 056 | O44: Huánuco | P44: - | Q44: SI | R44: SI | S44: 1950-12-01 | T44: 1950-12-01 | U44: 1950-12-01 | X44: 2864563.56 | AA44: 2864563.56 | AC44: 0 | AD44: 0 | AF44: 0 | AG44: 0 | AH44: 0 | AI44: 2864563.56 | AK44: TERRENOS | AL44: 0.77 | AM44: 2205713.941 | AN44: 0 | AP44: =+IF($AM44<=0,0,IF(($AM44-SUM($AO44:AO44))<$AN44,$AM44-SUM($AO44:AO44),IF(SUM($AO44:AO44)<$AM44,$AN44,0))) -> 0 | AQ44: =+IF($AM44<=0,0,IF(($AM44-SUM($AO44:AP44))<$AN44,$AM44-SUM($AO44:AP44),IF(SUM($AO44:AP44)<$AM44,$AN44,0))) -> 0 | AR44: =+IF($AM44<=0,0,IF(($AM44-SUM($AO44:AQ44))<$AN44,$AM44-SUM($AO44:AQ44),IF(SUM($AO44:AQ44)<$AM44,$AN44,0))) -> 0 | AS44: =+IF($AM44<=0,0,IF(($AM44-SUM($AO44:AR44))<$AN44,$AM44-SUM($AO44:AR44),IF(SUM($AO44:AR44)<$AM44,$AN44,0))) -> 0
B45: 331 | C45: 3311111 | D45: 21.OTROS | E45: GRUPO V | F45: SI | G45: AERONAVEGACIÓN/AEROPORTUARIO | H45: HUANUCO | I45: TERRENOS INSCRITOS | K45: Terrenos | L45: TERRENOS | M45: CC0000026-2 | N45: 056 | O45: Huánuco | P45: - | Q45: SI | R45: SI | S45: 1950-12-01 | T45: 1950-12-01 | U45: 1950-12-01 | X45: 2280.88 | AA45: 2280.88 | AC45: 0 | AD45: 0 | AF45: 0 | AG45: 0 | AH45: 0 | AI45: 2280.88 | AK45: TERRENOS | AL45: 0.77 | AM45: 1756.2776 | AN45: 0 | AP45: =+IF($AM45<=0,0,IF(($AM45-SUM($AO45:AO45))<$AN45,$AM45-SUM($AO45:AO45),IF(SUM($AO45:AO45)<$AM45,$AN45,0))) -> 0 | AQ45: =+IF($AM45<=0,0,IF(($AM45-SUM($AO45:AP45))<$AN45,$AM45-SUM($AO45:AP45),IF(SUM($AO45:AP45)<$AM45,$AN45,0))) -> 0 | AR45: =+IF($AM45<=0,0,IF(($AM45-SUM($AO45:AQ45))<$AN45,$AM45-SUM($AO45:AQ45),IF(SUM($AO45:AQ45)<$AM45,$AN45,0))) -> 0 | AS45: =+IF($AM45<=0,0,IF(($AM45-SUM($AO45:AR45))<$AN45,$AM45-SUM($AO45:AR45),IF(SUM($AO45:AR45)<$AM45,$AN45,0))) -> 0
B46: 331 | C46: 3311111 | D46: 21.OTROS | E46: GRUPO V | F46: SI | G46: AERONAVEGACIÓN/AEROPORTUARIO | H46: JAUJA | I46: TERRENOS INSCRITOS | K46: Terrenos | L46: TERRENOS | M46: CC0000027-1 | N46: 059 | O46: Jauja | P46: - | Q46: SI | R46: SI | S46: 1950-12-01 | T46: 1950-12-01 | U46: 1950-12-01 | X46: 3989529.7 | AA46: 3989529.7 | AC46: 0 | AD46: 0 | AF46: 0 | AG46: 0 | AH46: 0 | AI46: 3989529.7 | AK46: TERRENOS | AL46: 0.5 | AM46: 1994764.85 | AN46: 0 | AP46: =+IF($AM46<=0,0,IF(($AM46-SUM($AO46:AO46))<$AN46,$AM46-SUM($AO46:AO46),IF(SUM($AO46:AO46)<$AM46,$AN46,0))) -> 0 | AQ46: =+IF($AM46<=0,0,IF(($AM46-SUM($AO46:AP46))<$AN46,$AM46-SUM($AO46:AP46),IF(SUM($AO46:AP46)<$AM46,$AN46,0))) -> 0 | AR46: =+IF($AM46<=0,0,IF(($AM46-SUM($AO46:AQ46))<$AN46,$AM46-SUM($AO46:AQ46),IF(SUM($AO46:AQ46)<$AM46,$AN46,0))) -> 0 | AS46: =+IF($AM46<=0,0,IF(($AM46-SUM($AO46:AR46))<$AN46,$AM46-SUM($AO46:AR46),IF(SUM($AO46:AR46)<$AM46,$AN46,0))) -> 0
B47: 331 | C47: 3311111 | D47: 21.OTROS | E47: GRUPO V | F47: SI | G47: AERONAVEGACIÓN/AEROPORTUARIO | H47: JAUJA | I47: TERRENOS INSCRITOS | K47: Terrenos | L47: TERRENOS | M47: CC0000027-2 | N47: 059 | O47: Jauja | P47: - | Q47: SI | R47: SI | S47: 1950-12-01 | T47: 1950-12-01 | U47: 1950-12-01 | X47: 52419.49 | AA47: 52419.49 | AC47: 0 | AD47: 0 | AF47: 0 | AG47: 0 | AH47: 0 | AI47: 52419.49 | AK47: TERRENOS | AL47: 0.5 | AM47: 26209.745 | AN47: 0 | AP47: =+IF($AM47<=0,0,IF(($AM47-SUM($AO47:AO47))<$AN47,$AM47-SUM($AO47:AO47),IF(SUM($AO47:AO47)<$AM47,$AN47,0))) -> 0 | AQ47: =+IF($AM47<=0,0,IF(($AM47-SUM($AO47:AP47))<$AN47,$AM47-SUM($AO47:AP47),IF(SUM($AO47:AP47)<$AM47,$AN47,0))) -> 0 | AR47: =+IF($AM47<=0,0,IF(($AM47-SUM($AO47:AQ47))<$AN47,$AM47-SUM($AO47:AQ47),IF(SUM($AO47:AQ47)<$AM47,$AN47,0))) -> 0 | AS47: =+IF($AM47<=0,0,IF(($AM47-SUM($AO47:AR47))<$AN47,$AM47-SUM($AO47:AR47),IF(SUM($AO47:AR47)<$AM47,$AN47,0))) -> 0
B48: 331 | C48: 3311111 | D48: 21.OTROS | E48: GRUPO V | F48: SI | G48: AERONAVEGACIÓN/AEROPORTUARIO | H48: JUANJUI | I48: TERRENOS INSCRITOS | K48: Terrenos | L48: TERRENOS | M48: CC0000028-1 | N48: 060 | O48: Juanjui | P48: - | Q48: SI | R48: SI | S48: 1950-12-01 | T48: 1950-12-01 | U48: 1950-12-01 | X48: 6592926.05 | AA48: 6592926.05 | AC48: 0 | AD48: 0 | AF48: 0 | AG48: 0 | AH48: 0 | AI48: 6592926.05 | AK48: TERRENOS | AL48: 0.48 | AM48: 3164604.504 | AN48: 0 | AP48: =+IF($AM48<=0,0,IF(($AM48-SUM($AO48:AO48))<$AN48,$AM48-SUM($AO48:AO48),IF(SUM($AO48:AO48)<$AM48,$AN48,0))) -> 0 | AQ48: =+IF($AM48<=0,0,IF(($AM48-SUM($AO48:AP48))<$AN48,$AM48-SUM($AO48:AP48),IF(SUM($AO48:AP48)<$AM48,$AN48,0))) -> 0 | AR48: =+IF($AM48<=0,0,IF(($AM48-SUM($AO48:AQ48))<$AN48,$AM48-SUM($AO48:AQ48),IF(SUM($AO48:AQ48)<$AM48,$AN48,0))) -> 0 | AS48: =+IF($AM48<=0,0,IF(($AM48-SUM($AO48:AR48))<$AN48,$AM48-SUM($AO48:AR48),IF(SUM($AO48:AR48)<$AM48,$AN48,0))) -> 0
B49: 331 | C49: 3311111 | D49: 21.OTROS | E49: GRUPO V | F49: SI | G49: AERONAVEGACIÓN/AEROPORTUARIO | H49: JUANJUI | I49: TERRENOS INSCRITOS | K49: Terrenos | L49: TERRENOS | M49: CC0000028-2 | N49: 060 | O49: Juanjui | P49: - | Q49: SI | R49: SI | S49: 1950-12-01 | T49: 1950-12-01 | U49: 1950-12-01 | X49: 306655.17 | AA49: 306655.17 | AC49: 0 | AD49: 0 | AF49: 0 | AG49: 0 | AH49: 0 | AI49: 306655.17 | AK49: TERRENOS | AL49: 0.48 | AM49: 147194.4816 | AN49: 0 | AP49: =+IF($AM49<=0,0,IF(($AM49-SUM($AO49:AO49))<$AN49,$AM49-SUM($AO49:AO49),IF(SUM($AO49:AO49)<$AM49,$AN49,0))) -> 0 | AQ49: =+IF($AM49<=0,0,IF(($AM49-SUM($AO49:AP49))<$AN49,$AM49-SUM($AO49:AP49),IF(SUM($AO49:AP49)<$AM49,$AN49,0))) -> 0 | AR49: =+IF($AM49<=0,0,IF(($AM49-SUM($AO49:AQ49))<$AN49,$AM49-SUM($AO49:AQ49),IF(SUM($AO49:AQ49)<$AM49,$AN49,0))) -> 0 | AS49: =+IF($AM49<=0,0,IF(($AM49-SUM($AO49:AR49))<$AN49,$AM49-SUM($AO49:AR49),IF(SUM($AO49:AR49)<$AM49,$AN49,0))) -> 0
B50: 331 | C50: 3311111 | D50: 21.OTROS | E50: GRUPO V | F50: SI | G50: AERONAVEGACIÓN | H50: MOYOBAMBA | I50: TERRENOS INSCRITOS | K50: Terrenos | L50: TERRENOS | P50: - | Q50: SI | R50: SI | S50: 1950-12-01 | T50: 1950-12-01 | U50: 1950-12-01 | X50: 228391.98 | AC50: 0 | AD50: 0 | AF50: 0 | AG50: 0 | AH50: 0 | AI50: 228391.98 | AK50: TERRENOS | AL50: 0 | AM50: 0 | AN50: 0 | AP50: =+IF($AM50<=0,0,IF(($AM50-SUM($AO50:AO50))<$AN50,$AM50-SUM($AO50:AO50),IF(SUM($AO50:AO50)<$AM50,$AN50,0))) -> 0 | AQ50: =+IF($AM50<=0,0,IF(($AM50-SUM($AO50:AP50))<$AN50,$AM50-SUM($AO50:AP50),IF(SUM($AO50:AP50)<$AM50,$AN50,0))) -> 0 | AR50: =+IF($AM50<=0,0,IF(($AM50-SUM($AO50:AQ50))<$AN50,$AM50-SUM($AO50:AQ50),IF(SUM($AO50:AQ50)<$AM50,$AN50,0))) -> 0 | AS50: =+IF($AM50<=0,0,IF(($AM50-SUM($AO50:AR50))<$AN50,$AM50-SUM($AO50:AR50),IF(SUM($AO50:AR50)<$AM50,$AN50,0))) -> 0
B51: 331 | C51: 3311111 | D51: 21.OTROS | E51: GRUPO V | F51: SI | G51: AERONAVEGACIÓN | H51: IBERIA | I51: TERRENOS INSCRITOS | K51: Terrenos | L51: TERRENOS | P51: - | Q51: SI | R51: SI | S51: 1950-12-01 | T51: 1950-12-01 | U51: 1950-12-01 | X51: 338204.35 | AC51: 0 | AD51: 0 | AF51: 0 | AG51: 0 | AH51: 0 | AI51: 338204.35 | AK51: TERRENOS | AL51: 0 | AM51: 0 | AN51: 0 | AP51: =+IF($AM51<=0,0,IF(($AM51-SUM($AO51:AO51))<$AN51,$AM51-SUM($AO51:AO51),IF(SUM($AO51:AO51)<$AM51,$AN51,0))) -> 0 | AQ51: =+IF($AM51<=0,0,IF(($AM51-SUM($AO51:AP51))<$AN51,$AM51-SUM($AO51:AP51),IF(SUM($AO51:AP51)<$AM51,$AN51,0))) -> 0 | AR51: =+IF($AM51<=0,0,IF(($AM51-SUM($AO51:AQ51))<$AN51,$AM51-SUM($AO51:AQ51),IF(SUM($AO51:AQ51)<$AM51,$AN51,0))) -> 0 | AS51: =+IF($AM51<=0,0,IF(($AM51-SUM($AO51:AR51))<$AN51,$AM51-SUM($AO51:AR51),IF(SUM($AO51:AR51)<$AM51,$AN51,0))) -> 0
B52: 331 | C52: 3311111 | D52: 19.CUSCO | E52: Cusco | F52: SI | G52: AERONAVEGACIÓN/AEROPORTUARIO | H52: QUINCEMIL | I52: TERRENOS INSCRITOS | K52: Terrenos | L52: TERRENOS | M52: CC0000031 | N52: 065 | O52: Quincemil (Cuzco) | P52: - | Q52: SI | R52: SI | S52: 1950-12-01 | T52: 1950-12-01 | U52: 1950-12-01 | X52: 628773.19 | AA52: 628773.19 | AC52: 0 | AD52: 0 | AF52: 0 | AG52: 0 | AH52: 0 | AI52: 628773.19 | AK52: TERRENOS | AL52: 0.49 | AM52: 308098.8631 | AN52: 0 | AP52: =+IF($AM52<=0,0,IF(($AM52-SUM($AO52:AO52))<$AN52,$AM52-SUM($AO52:AO52),IF(SUM($AO52:AO52)<$AM52,$AN52,0))) -> 0 | AQ52: =+IF($AM52<=0,0,IF(($AM52-SUM($AO52:AP52))<$AN52,$AM52-SUM($AO52:AP52),IF(SUM($AO52:AP52)<$AM52,$AN52,0))) -> 0 | AR52: =+IF($AM52<=0,0,IF(($AM52-SUM($AO52:AQ52))<$AN52,$AM52-SUM($AO52:AQ52),IF(SUM($AO52:AQ52)<$AM52,$AN52,0))) -> 0 | AS52: =+IF($AM52<=0,0,IF(($AM52-SUM($AO52:AR52))<$AN52,$AM52-SUM($AO52:AR52),IF(SUM($AO52:AR52)<$AM52,$AN52,0))) -> 0
B53: 331 | C53: 3311111 | D53: 21.OTROS | E53: GRUPO V | F53: SI | G53: AERONAVEGACIÓN/AEROPORTUARIO | H53: RIOJA | I53: TERRENOS INSCRITOS | K53: Terrenos | L53: TERRENOS | M53: CC0000032-1 | N53: 066 | O53: Rioja | P53: - | Q53: SI | R53: SI | S53: 1950-12-01 | T53: 1950-12-01 | U53: 1950-12-01 | X53: 582109.81 | AA53: 582109.81 | AC53: 0 | AD53: 0 | AF53: 0 | AG53: 0 | AH53: 0 | AI53: 582109.81 | AK53: TERRENOS | AL53: 0.47 | AM53: 273591.6107 | AN53: 0 | AP53: =+IF($AM53<=0,0,IF(($AM53-SUM($AO53:AO53))<$AN53,$AM53-SUM($AO53:AO53),IF(SUM($AO53:AO53)<$AM53,$AN53,0))) -> 0 | AQ53: =+IF($AM53<=0,0,IF(($AM53-SUM($AO53:AP53))<$AN53,$AM53-SUM($AO53:AP53),IF(SUM($AO53:AP53)<$AM53,$AN53,0))) -> 0 | AR53: =+IF($AM53<=0,0,IF(($AM53-SUM($AO53:AQ53))<$AN53,$AM53-SUM($AO53:AQ53),IF(SUM($AO53:AQ53)<$AM53,$AN53,0))) -> 0 | AS53: =+IF($AM53<=0,0,IF(($AM53-SUM($AO53:AR53))<$AN53,$AM53-SUM($AO53:AR53),IF(SUM($AO53:AR53)<$AM53,$AN53,0))) -> 0
B54: 331 | C54: 3311111 | D54: 21.OTROS | E54: GRUPO V | F54: SI | G54: AERONAVEGACIÓN/AEROPORTUARIO | H54: RIOJA | I54: TERRENOS INSCRITOS | K54: Terrenos | L54: TERRENOS | M54: CC0000032-2 | N54: 066 | O54: Rioja | P54: - | Q54: SI | R54: SI | S54: 1950-12-01 | T54: 1950-12-01 | U54: 1950-12-01 | X54: 44197.09 | AA54: 44197.09 | AC54: 0 | AD54: 0 | AF54: 0 | AG54: 0 | AH54: 0 | AI54: 44197.09 | AK54: TERRENOS | AL54: 0.47 | AM54: 20772.6323 | AN54: 0 | AP54: =+IF($AM54<=0,0,IF(($AM54-SUM($AO54:AO54))<$AN54,$AM54-SUM($AO54:AO54),IF(SUM($AO54:AO54)<$AM54,$AN54,0))) -> 0 | AQ54: =+IF($AM54<=0,0,IF(($AM54-SUM($AO54:AP54))<$AN54,$AM54-SUM($AO54:AP54),IF(SUM($AO54:AP54)<$AM54,$AN54,0))) -> 0 | AR54: =+IF($AM54<=0,0,IF(($AM54-SUM($AO54:AQ54))<$AN54,$AM54-SUM($AO54:AQ54),IF(SUM($AO54:AQ54)<$AM54,$AN54,0))) -> 0 | AS54: =+IF($AM54<=0,0,IF(($AM54-SUM($AO54:AR54))<$AN54,$AM54-SUM($AO54:AR54),IF(SUM($AO54:AR54)<$AM54,$AN54,0))) -> 0
B55: 331 | C55: 3311111 | D55: 21.OTROS | E55: GRUPO V | F55: SI | G55: AERONAVEGACIÓN | H55: SAN JUAN DE MARCONA | I55: TERRENOS INSCRITOS | K55: Terrenos | L55: TERRENOS | P55: - | Q55: SI | R55: SI | S55: 1950-12-01 | T55: 1950-12-01 | U55: 1950-12-01 | X55: 307631.24 | AC55: 0 | AD55: 0 | AF55: 0 | AG55: 0 | AH55: 0 | AI55: 307631.24 | AK55: TERRENOS | AL55: 0 | AM55: 0 | AN55: 0 | AP55: =+IF($AM55<=0,0,IF(($AM55-SUM($AO55:AO55))<$AN55,$AM55-SUM($AO55:AO55),IF(SUM($AO55:AO55)<$AM55,$AN55,0))) -> 0 | AQ55: =+IF($AM55<=0,0,IF(($AM55-SUM($AO55:AP55))<$AN55,$AM55-SUM($AO55:AP55),IF(SUM($AO55:AP55)<$AM55,$AN55,0))) -> 0 | AR55: =+IF($AM55<=0,0,IF(($AM55-SUM($AO55:AQ55))<$AN55,$AM55-SUM($AO55:AQ55),IF(SUM($AO55:AQ55)<$AM55,$AN55,0))) -> 0 | AS55: =+IF($AM55<=0,0,IF(($AM55-SUM($AO55:AR55))<$AN55,$AM55-SUM($AO55:AR55),IF(SUM($AO55:AR55)<$AM55,$AN55,0))) -> 0
B56: 331 | C56: 3311111 | D56: 21.OTROS | E56: GRUPO V | F56: SI | G56: AERONAVEGACIÓN/AEROPORTUARIO | H56: TINGO MARIA | I56: TERRENOS INSCRITOS | K56: Terrenos | L56: TERRENOS | M56: CC0000034-1 | N56: 068 | O56: Shapajilla | P56: - | Q56: SI | R56: SI | S56: 1950-12-01 | T56: 1950-12-01 | U56: 1950-12-01 | X56: 6976642.46 | AA56: 6976642.46 | AC56: 0 | AD56: 0 | AF56: 0 | AG56: 0 | AH56: 0 | AI56: 6976642.46 | AK56: TERRENOS | AL56: 0.54 | AM56: 3767386.928 | AN56: 0 | AP56: =+IF($AM56<=0,0,IF(($AM56-SUM($AO56:AO56))<$AN56,$AM56-SUM($AO56:AO56),IF(SUM($AO56:AO56)<$AM56,$AN56,0))) -> 0 | AQ56: =+IF($AM56<=0,0,IF(($AM56-SUM($AO56:AP56))<$AN56,$AM56-SUM($AO56:AP56),IF(SUM($AO56:AP56)<$AM56,$AN56,0))) -> 0 | AR56: =+IF($AM56<=0,0,IF(($AM56-SUM($AO56:AQ56))<$AN56,$AM56-SUM($AO56:AQ56),IF(SUM($AO56:AQ56)<$AM56,$AN56,0))) -> 0 | AS56: =+IF($AM56<=0,0,IF(($AM56-SUM($AO56:AR56))<$AN56,$AM56-SUM($AO56:AR56),IF(SUM($AO56:AR56)<$AM56,$AN56,0))) -> 0
B57: 331 | C57: 3311111 | D57: 21.OTROS | E57: GRUPO V | F57: SI | G57: AERONAVEGACIÓN/AEROPORTUARIO | H57: TINGO MARIA | I57: TERRENOS INSCRITOS | K57: Terrenos | L57: TERRENOS | M57: CC0000034-2 | N57: 068 | O57: Shapajilla | P57: - | Q57: SI | R57: SI | S57: 1950-12-01 | T57: 1950-12-01 | U57: 1950-12-01 | X57: 571.37 | AA57: 571.37 | AC57: 0 | AD57: 0 | AF57: 0 | AG57: 0 | AH57: 0 | AI57: 571.37 | AK57: TERRENOS | AL57: 0.54 | AM57: 308.5398 | AN57: 0 | AP57: =+IF($AM57<=0,0,IF(($AM57-SUM($AO57:AO57))<$AN57,$AM57-SUM($AO57:AO57),IF(SUM($AO57:AO57)<$AM57,$AN57,0))) -> 0 | AQ57: =+IF($AM57<=0,0,IF(($AM57-SUM($AO57:AP57))<$AN57,$AM57-SUM($AO57:AP57),IF(SUM($AO57:AP57)<$AM57,$AN57,0))) -> 0 | AR57: =+IF($AM57<=0,0,IF(($AM57-SUM($AO57:AQ57))<$AN57,$AM57-SUM($AO57:AQ57),IF(SUM($AO57:AQ57)<$AM57,$AN57,0))) -> 0 | AS57: =+IF($AM57<=0,0,IF(($AM57-SUM($AO57:AR57))<$AN57,$AM57-SUM($AO57:AR57),IF(SUM($AO57:AR57)<$AM57,$AN57,0))) -> 0
B58: 331 | C58: 3311111 | D58: 21.OTROS | E58: GRUPO V | F58: SI | G58: AERONAVEGACIÓN/AEROPORTUARIO | H58: YURIMAGUAS | I58: TERRENOS INSCRITOS | K58: Terrenos | L58: TERRENOS | M58: CC0000035-1 | N58: 070 | O58: Yurimaguas | P58: - | Q58: SI | R58: SI | S58: 1950-12-01 | T58: 1950-12-01 | U58: 1950-12-01 | X58: 10811591.84 | AA58: 10811591.84 | AC58: 0 | AD58: 0 | AF58: 0 | AG58: 0 | AH58: 0 | AI58: 10811591.84 | AK58: TERRENOS | AL58: 0.49 | AM58: 5297680.002 | AN58: 0 | AP58: =+IF($AM58<=0,0,IF(($AM58-SUM($AO58:AO58))<$AN58,$AM58-SUM($AO58:AO58),IF(SUM($AO58:AO58)<$AM58,$AN58,0))) -> 0 | AQ58: =+IF($AM58<=0,0,IF(($AM58-SUM($AO58:AP58))<$AN58,$AM58-SUM($AO58:AP58),IF(SUM($AO58:AP58)<$AM58,$AN58,0))) -> 0 | AR58: =+IF($AM58<=0,0,IF(($AM58-SUM($AO58:AQ58))<$AN58,$AM58-SUM($AO58:AQ58),IF(SUM($AO58:AQ58)<$AM58,$AN58,0))) -> 0 | AS58: =+IF($AM58<=0,0,IF(($AM58-SUM($AO58:AR58))<$AN58,$AM58-SUM($AO58:AR58),IF(SUM($AO58:AR58)<$AM58,$AN58,0))) -> 0
B59: 331 | C59: 3311111 | D59: 21.OTROS | E59: GRUPO V | F59: SI | G59: AERONAVEGACIÓN/AEROPORTUARIO | H59: YURIMAGUAS | I59: TERRENOS INSCRITOS | K59: Terrenos | L59: TERRENOS | M59: CC0000035-2 | N59: 070 | O59: Yurimaguas | P59: - | Q59: SI | R59: SI | S59: 1950-12-01 | T59: 1950-12-01 | U59: 1950-12-01 | X59: 12473.9 | AA59: 12473.9 | AC59: 0 | AD59: 0 | AF59: 0 | AG59: 0 | AH59: 0 | AI59: 12473.9 | AK59: TERRENOS | AL59: 0.49 | AM59: 6112.211 | AN59: 0 | AP59: =+IF($AM59<=0,0,IF(($AM59-SUM($AO59:AO59))<$AN59,$AM59-SUM($AO59:AO59),IF(SUM($AO59:AO59)<$AM59,$AN59,0))) -> 0 | AQ59: =+IF($AM59<=0,0,IF(($AM59-SUM($AO59:AP59))<$AN59,$AM59-SUM($AO59:AP59),IF(SUM($AO59:AP59)<$AM59,$AN59,0))) -> 0 | AR59: =+IF($AM59<=0,0,IF(($AM59-SUM($AO59:AQ59))<$AN59,$AM59-SUM($AO59:AQ59),IF(SUM($AO59:AQ59)<$AM59,$AN59,0))) -> 0 | AS59: =+IF($AM59<=0,0,IF(($AM59-SUM($AO59:AR59))<$AN59,$AM59-SUM($AO59:AR59),IF(SUM($AO59:AR59)<$AM59,$AN59,0))) -> 0
B60: 331 | C60: 3311111 | D60: 21.OTROS | E60: GRUPO V | F60: SI | G60: AERONAVEGACIÓN | H60: REQUENA | I60: TERRENOS INSCRITOS | K60: Terrenos | L60: TERRENOS | P60: - | Q60: SI | R60: SI | S60: 1950-12-01 | T60: 1950-12-01 | U60: 1950-12-01 | X60: 45228.39 | AC60: 0 | AD60: 0 | AF60: 0 | AG60: 0 | AH60: 0 | AI60: 45228.39 | AK60: TERRENOS | AL60: 0 | AM60: 0 | AN60: 0 | AP60: =+IF($AM60<=0,0,IF(($AM60-SUM($AO60:AO60))<$AN60,$AM60-SUM($AO60:AO60),IF(SUM($AO60:AO60)<$AM60,$AN60,0))) -> 0 | AQ60: =+IF($AM60<=0,0,IF(($AM60-SUM($AO60:AP60))<$AN60,$AM60-SUM($AO60:AP60),IF(SUM($AO60:AP60)<$AM60,$AN60,0))) -> 0 | AR60: =+IF($AM60<=0,0,IF(($AM60-SUM($AO60:AQ60))<$AN60,$AM60-SUM($AO60:AQ60),IF(SUM($AO60:AQ60)<$AM60,$AN60,0))) -> 0 | AS60: =+IF($AM60<=0,0,IF(($AM60-SUM($AO60:AR60))<$AN60,$AM60-SUM($AO60:AR60),IF(SUM($AO60:AR60)<$AM60,$AN60,0))) -> 0
B61: 331 | C61: 3311111 | D61: 21.OTROS | E61: GRUPO V | F61: SI | G61: AERONAVEGACIÓN | H61: REQUENA | I61: TERRENOS INSCRITOS | K61: Terrenos | L61: TERRENOS | P61: - | Q61: SI | R61: SI | S61: 1950-12-01 | T61: 1950-12-01 | U61: 1950-12-01 | X61: 2543.5 | AC61: 0 | AD61: 0 | AF61: 0 | AG61: 0 | AH61: 0 | AI61: 2543.5 | AK61: TERRENOS | AL61: 0 | AM61: 0 | AN61: 0 | AP61: =+IF($AM61<=0,0,IF(($AM61-SUM($AO61:AO61))<$AN61,$AM61-SUM($AO61:AO61),IF(SUM($AO61:AO61)<$AM61,$AN61,0))) -> 0 | AQ61: =+IF($AM61<=0,0,IF(($AM61-SUM($AO61:AP61))<$AN61,$AM61-SUM($AO61:AP61),IF(SUM($AO61:AP61)<$AM61,$AN61,0))) -> 0 | AR61: =+IF($AM61<=0,0,IF(($AM61-SUM($AO61:AQ61))<$AN61,$AM61-SUM($AO61:AQ61),IF(SUM($AO61:AQ61)<$AM61,$AN61,0))) -> 0 | AS61: =+IF($AM61<=0,0,IF(($AM61-SUM($AO61:AR61))<$AN61,$AM61-SUM($AO61:AR61),IF(SUM($AO61:AR61)<$AM61,$AN61,0))) -> 0
B62: 331 | C62: 3311111 | D62: 18.TUMBES | E62: NO | F62: NO | G62: AERONAVEGACIÓN | H62: PAMPA HERMOZA | I62: TERRENOS INSCRITOS | K62: Terrenos | L62: TERRENOS | P62: - | Q62: SI | R62: SI | S62: 1950-12-01 | T62: 1950-12-01 | U62: 1950-12-01 | X62: 32412.03 | AC62: 0 | AD62: 0 | AF62: 0 | AG62: 0 | AH62: 0 | AI62: 32412.03 | AK62: TERRENOS | AL62: 0 | AM62: 0 | AN62: 0 | AP62: =+IF($AM62<=0,0,IF(($AM62-SUM($AO62:AO62))<$AN62,$AM62-SUM($AO62:AO62),IF(SUM($AO62:AO62)<$AM62,$AN62,0))) -> 0 | AQ62: =+IF($AM62<=0,0,IF(($AM62-SUM($AO62:AP62))<$AN62,$AM62-SUM($AO62:AP62),IF(SUM($AO62:AP62)<$AM62,$AN62,0))) -> 0 | AR62: =+IF($AM62<=0,0,IF(($AM62-SUM($AO62:AQ62))<$AN62,$AM62-SUM($AO62:AQ62),IF(SUM($AO62:AQ62)<$AM62,$AN62,0))) -> 0 | AS62: =+IF($AM62<=0,0,IF(($AM62-SUM($AO62:AR62))<$AN62,$AM62-SUM($AO62:AR62),IF(SUM($AO62:AR62)<$AM62,$AN62,0))) -> 0
B63: 331 | C63: 3311111 | D63: 18.TUMBES | E63: NO | F63: NO | G63: AERONAVEGACIÓN | H63: PAMPA HERMOZA | I63: TERRENOS INSCRITOS | K63: Terrenos | L63: TERRENOS | P63: - | Q63: SI | R63: SI | S63: 1950-12-01 | T63: 1950-12-01 | U63: 1950-12-01 | X63: 1822.75 | AC63: 0 | AD63: 0 | AF63: 0 | AG63: 0 | AH63: 0 | AI63: 1822.75 | AK63: TERRENOS | AL63: 0 | AM63: 0 | AN63: 0 | AP63: =+IF($AM63<=0,0,IF(($AM63-SUM($AO63:AO63))<$AN63,$AM63-SUM($AO63:AO63),IF(SUM($AO63:AO63)<$AM63,$AN63,0))) -> 0 | AQ63: =+IF($AM63<=0,0,IF(($AM63-SUM($AO63:AP63))<$AN63,$AM63-SUM($AO63:AP63),IF(SUM($AO63:AP63)<$AM63,$AN63,0))) -> 0 | AR63: =+IF($AM63<=0,0,IF(($AM63-SUM($AO63:AQ63))<$AN63,$AM63-SUM($AO63:AQ63),IF(SUM($AO63:AQ63)<$AM63,$AN63,0))) -> 0 | AS63: =+IF($AM63<=0,0,IF(($AM63-SUM($AO63:AR63))<$AN63,$AM63-SUM($AO63:AR63),IF(SUM($AO63:AR63)<$AM63,$AN63,0))) -> 0
B64: 331 | C64: 3311111 | D64: 21.OTROS | E64: GRUPO V | F64: SI | G64: AERONAVEGACIÓN/AEROPORTUARIO | H64: SAPOSOA | I64: TERRENOS INSCRITOS | K64: Terrenos | L64: TERRENOS | M64: CC0000038 | N64: 088 | O64: Saposoa (San Martin) | P64: - | Q64: SI | R64: SI | S64: 1950-12-01 | T64: 1950-12-01 | U64: 1950-12-01 | X64: 213244.69 | AA64: 213244.69 | AC64: 0 | AD64: 0 | AF64: 0 | AG64: 0 | AH64: 0 | AI64: 213244.69 | AK64: TERRENOS | AL64: 0.5 | AM64: 106622.345 | AN64: 0 | AP64: =+IF($AM64<=0,0,IF(($AM64-SUM($AO64:AO64))<$AN64,$AM64-SUM($AO64:AO64),IF(SUM($AO64:AO64)<$AM64,$AN64,0))) -> 0 | AQ64: =+IF($AM64<=0,0,IF(($AM64-SUM($AO64:AP64))<$AN64,$AM64-SUM($AO64:AP64),IF(SUM($AO64:AP64)<$AM64,$AN64,0))) -> 0 | AR64: =+IF($AM64<=0,0,IF(($AM64-SUM($AO64:AQ64))<$AN64,$AM64-SUM($AO64:AQ64),IF(SUM($AO64:AQ64)<$AM64,$AN64,0))) -> 0 | AS64: =+IF($AM64<=0,0,IF(($AM64-SUM($AO64:AR64))<$AN64,$AM64-SUM($AO64:AR64),IF(SUM($AO64:AR64)<$AM64,$AN64,0))) -> 0
B65: 331 | C65: 3311111 | D65: 21.OTROS | E65: GRUPO V | F65: SI | G65: AERONAVEGACIÓN/AEROPORTUARIO | H65: TOCACHE | I65: TERRENOS INSCRITOS | K65: Terrenos | L65: TERRENOS | M65: CC0000039-1 | N65: 089 | O65: Tocache | P65: - | Q65: SI | R65: SI | S65: 1950-12-01 | T65: 1950-12-01 | U65: 1950-12-01 | X65: 5228369.1 | AA65: 5228369.1 | AC65: 0 | AD65: 0 | AF65: 0 | AG65: 0 | AH65: 0 | AI65: 5228369.1 | AK65: TERRENOS | AL65: 0.5 | AM65: 2614184.55 | AN65: 0 | AP65: =+IF($AM65<=0,0,IF(($AM65-SUM($AO65:AO65))<$AN65,$AM65-SUM($AO65:AO65),IF(SUM($AO65:AO65)<$AM65,$AN65,0))) -> 0 | AQ65: =+IF($AM65<=0,0,IF(($AM65-SUM($AO65:AP65))<$AN65,$AM65-SUM($AO65:AP65),IF(SUM($AO65:AP65)<$AM65,$AN65,0))) -> 0 | AR65: =+IF($AM65<=0,0,IF(($AM65-SUM($AO65:AQ65))<$AN65,$AM65-SUM($AO65:AQ65),IF(SUM($AO65:AQ65)<$AM65,$AN65,0))) -> 0 | AS65: =+IF($AM65<=0,0,IF(($AM65-SUM($AO65:AR65))<$AN65,$AM65-SUM($AO65:AR65),IF(SUM($AO65:AR65)<$AM65,$AN65,0))) -> 0
B66: 331 | C66: 3311111 | D66: 21.OTROS | E66: GRUPO V | F66: SI | G66: AERONAVEGACIÓN/AEROPORTUARIO | H66: TOCACHE | I66: TERRENOS INSCRITOS | K66: Terrenos | L66: TERRENOS | M66: CC0000039-2 | N66: 089 | O66: Tocache | P66: - | Q66: SI | R66: SI | S66: 1950-12-01 | T66: 1950-12-01 | U66: 1950-12-01 | X66: 17603.94 | AA66: 17603.94 | AC66: 0 | AD66: 0 | AF66: 0 | AG66: 0 | AH66: 0 | AI66: 17603.94 | AK66: TERRENOS | AL66: 0.5 | AM66: 8801.97 | AN66: 0 | AP66: =+IF($AM66<=0,0,IF(($AM66-SUM($AO66:AO66))<$AN66,$AM66-SUM($AO66:AO66),IF(SUM($AO66:AO66)<$AM66,$AN66,0))) -> 0 | AQ66: =+IF($AM66<=0,0,IF(($AM66-SUM($AO66:AP66))<$AN66,$AM66-SUM($AO66:AP66),IF(SUM($AO66:AP66)<$AM66,$AN66,0))) -> 0 | AR66: =+IF($AM66<=0,0,IF(($AM66-SUM($AO66:AQ66))<$AN66,$AM66-SUM($AO66:AQ66),IF(SUM($AO66:AQ66)<$AM66,$AN66,0))) -> 0 | AS66: =+IF($AM66<=0,0,IF(($AM66-SUM($AO66:AR66))<$AN66,$AM66-SUM($AO66:AR66),IF(SUM($AO66:AR66)<$AM66,$AN66,0))) -> 0
B67: 331 | C67: 3311111 | D67: 21.OTROS | E67: GRUPO V | F67: SI | G67: AERONAVEGACIÓN | H67: UCHIZA | I67: TERRENOS INSCRITOS | K67: Terrenos | L67: TERRENOS | P67: - | Q67: SI | R67: SI | S67: 1950-12-01 | T67: 1950-12-01 | U67: 1950-12-01 | X67: 512640.71 | AC67: 0 | AD67: 0 | AF67: 0 | AG67: 0 | AH67: 0 | AI67: 512640.71 | AK67: TERRENOS | AL67: 0 | AM67: 0 | AN67: 0 | AP67: =+IF($AM67<=0,0,IF(($AM67-SUM($AO67:AO67))<$AN67,$AM67-SUM($AO67:AO67),IF(SUM($AO67:AO67)<$AM67,$AN67,0))) -> 0 | AQ67: =+IF($AM67<=0,0,IF(($AM67-SUM($AO67:AP67))<$AN67,$AM67-SUM($AO67:AP67),IF(SUM($AO67:AP67)<$AM67,$AN67,0))) -> 0 | AR67: =+IF($AM67<=0,0,IF(($AM67-SUM($AO67:AQ67))<$AN67,$AM67-SUM($AO67:AQ67),IF(SUM($AO67:AQ67)<$AM67,$AN67,0))) -> 0 | AS67: =+IF($AM67<=0,0,IF(($AM67-SUM($AO67:AR67))<$AN67,$AM67-SUM($AO67:AR67),IF(SUM($AO67:AR67)<$AM67,$AN67,0))) -> 0
B68: 331 | C68: 3311111 | D68: 19.CUSCO | E68: Cusco | F68: SI | G68: AERONAVEGACIÓN | H68: PATRIA | I68: TERRENOS INSCRITOS | K68: Terrenos | L68: TERRENOS | P68: - | Q68: SI | R68: SI | S68: 1950-12-01 | T68: 1950-12-01 | U68: 1950-12-01 | X68: 823.85 | AC68: 0 | AD68: 0 | AF68: 0 | AG68: 0 | AH68: 0 | AI68: 823.85 | AK68: TERRENOS | AL68: 0 | AM68: 0 | AN68: 0 | AP68: =+IF($AM68<=0,0,IF(($AM68-SUM($AO68:AO68))<$AN68,$AM68-SUM($AO68:AO68),IF(SUM($AO68:AO68)<$AM68,$AN68,0))) -> 0 | AQ68: =+IF($AM68<=0,0,IF(($AM68-SUM($AO68:AP68))<$AN68,$AM68-SUM($AO68:AP68),IF(SUM($AO68:AP68)<$AM68,$AN68,0))) -> 0 | AR68: =+IF($AM68<=0,0,IF(($AM68-SUM($AO68:AQ68))<$AN68,$AM68-SUM($AO68:AQ68),IF(SUM($AO68:AQ68)<$AM68,$AN68,0))) -> 0 | AS68: =+IF($AM68<=0,0,IF(($AM68-SUM($AO68:AR68))<$AN68,$AM68-SUM($AO68:AR68),IF(SUM($AO68:AR68)<$AM68,$AN68,0))) -> 0
B69: 331 | C69: 3311111 | D69: 21.OTROS | E69: GRUPO V | F69: SI | G69: AERONAVEGACIÓN/AEROPORTUARIO | H69: ILO | I69: TERRENOS INSCRITOS | K69: Terrenos | L69: TERRENOS | M69: CC0000042-1 | N69: 092 | O69: Ilo | P69: - | Q69: SI | R69: SI | S69: 1950-12-01 | T69: 1950-12-01 | U69: 1950-12-01 | X69: 7566459.57 | AA69: 7566459.57 | AC69: 0 | AD69: 0 | AF69: 0 | AG69: 0 | AH69: 0 | AI69: 7566459.57 | AK69: TERRENOS | AL69: 0.67 | AM69: 5069527.912 | AN69: 0 | AP69: =+IF($AM69<=0,0,IF(($AM69-SUM($AO69:AO69))<$AN69,$AM69-SUM($AO69:AO69),IF(SUM($AO69:AO69)<$AM69,$AN69,0))) -> 0 | AQ69: =+IF($AM69<=0,0,IF(($AM69-SUM($AO69:AP69))<$AN69,$AM69-SUM($AO69:AP69),IF(SUM($AO69:AP69)<$AM69,$AN69,0))) -> 0 | AR69: =+IF($AM69<=0,0,IF(($AM69-SUM($AO69:AQ69))<$AN69,$AM69-SUM($AO69:AQ69),IF(SUM($AO69:AQ69)<$AM69,$AN69,0))) -> 0 | AS69: =+IF($AM69<=0,0,IF(($AM69-SUM($AO69:AR69))<$AN69,$AM69-SUM($AO69:AR69),IF(SUM($AO69:AR69)<$AM69,$AN69,0))) -> 0
B70: 331 | C70: 3311111 | D70: 21.OTROS | E70: GRUPO V | F70: SI | G70: AERONAVEGACIÓN/AEROPORTUARIO | H70: ILO | I70: TERRENOS INSCRITOS | K70: Terrenos | L70: TERRENOS | M70: CC0000042-2 | N70: 092 | O70: Ilo | P70: - | Q70: SI | R70: SI | S70: 1950-12-01 | T70: 1950-12-01 | U70: 1950-12-01 | X70: 777.71 | AA70: 777.71 | AC70: 0 | AD70: 0 | AF70: 0 | AG70: 0 | AH70: 0 | AI70: 777.71 | AK70: TERRENOS | AL70: 0.67 | AM70: 521.0657 | AN70: 0 | AP70: =+IF($AM70<=0,0,IF(($AM70-SUM($AO70:AO70))<$AN70,$AM70-SUM($AO70:AO70),IF(SUM($AO70:AO70)<$AM70,$AN70,0))) -> 0 | AQ70: =+IF($AM70<=0,0,IF(($AM70-SUM($AO70:AP70))<$AN70,$AM70-SUM($AO70:AP70),IF(SUM($AO70:AP70)<$AM70,$AN70,0))) -> 0 | AR70: =+IF($AM70<=0,0,IF(($AM70-SUM($AO70:AQ70))<$AN70,$AM70-SUM($AO70:AQ70),IF(SUM($AO70:AQ70)<$AM70,$AN70,0))) -> 0 | AS70: =+IF($AM70<=0,0,IF(($AM70-SUM($AO70:AR70))<$AN70,$AM70-SUM($AO70:AR70),IF(SUM($AO70:AR70)<$AM70,$AN70,0))) -> 0
B71: 331 | C71: 3311111 | D71: 21.OTROS | E71: GRUPO V | F71: SI | G71: AERONAVEGACIÓN/AEROPORTUARIO | H71: MOQUEGUA | I71: TERRENOS INSCRITOS | K71: Terrenos | L71: TERRENOS | M71: CC0000043-1 | N71: 093 | O71: Moquegua (Moquegua) | P71: - | Q71: SI | R71: SI | S71: 1950-12-01 | T71: 1950-12-01 | U71: 1950-12-01 | X71: 1147758.12 | AA71: 1147758.12 | AC71: 0 | AD71: 0 | AF71: 0 | AG71: 0 | AH71: 0 | AI71: 1147758.12 | AK71: TERRENOS | AL71: 0.5 | AM71: 573879.06 | AN71: 0 | AP71: =+IF($AM71<=0,0,IF(($AM71-SUM($AO71:AO71))<$AN71,$AM71-SUM($AO71:AO71),IF(SUM($AO71:AO71)<$AM71,$AN71,0))) -> 0 | AQ71: =+IF($AM71<=0,0,IF(($AM71-SUM($AO71:AP71))<$AN71,$AM71-SUM($AO71:AP71),IF(SUM($AO71:AP71)<$AM71,$AN71,0))) -> 0 | AR71: =+IF($AM71<=0,0,IF(($AM71-SUM($AO71:AQ71))<$AN71,$AM71-SUM($AO71:AQ71),IF(SUM($AO71:AQ71)<$AM71,$AN71,0))) -> 0 | AS71: =+IF($AM71<=0,0,IF(($AM71-SUM($AO71:AR71))<$AN71,$AM71-SUM($AO71:AR71),IF(SUM($AO71:AR71)<$AM71,$AN71,0))) -> 0
B72: 331 | C72: 3311111 | D72: 21.OTROS | E72: GRUPO V | F72: SI | G72: AERONAVEGACIÓN/AEROPORTUARIO | H72: MOQUEGUA | I72: TERRENOS INSCRITOS | K72: Terrenos | L72: TERRENOS | M72: CC0000043-2 | N72: 093 | O72: Moquegua (Moquegua) | P72: - | Q72: SI | R72: SI | S72: 1950-12-01 | T72: 1950-12-01 | U72: 1950-12-01 | X72: 60408.32 | AA72: 60408.32 | AC72: 0 | AD72: 0 | AF72: 0 | AG72: 0 | AH72: 0 | AI72: 60408.32 | AK72: TERRENOS | AL72: 0.5 | AM72: 30204.16 | AN72: 0 | AP72: =+IF($AM72<=0,0,IF(($AM72-SUM($AO72:AO72))<$AN72,$AM72-SUM($AO72:AO72),IF(SUM($AO72:AO72)<$AM72,$AN72,0))) -> 0 | AQ72: =+IF($AM72<=0,0,IF(($AM72-SUM($AO72:AP72))<$AN72,$AM72-SUM($AO72:AP72),IF(SUM($AO72:AP72)<$AM72,$AN72,0))) -> 0 | AR72: =+IF($AM72<=0,0,IF(($AM72-SUM($AO72:AQ72))<$AN72,$AM72-SUM($AO72:AQ72),IF(SUM($AO72:AQ72)<$AM72,$AN72,0))) -> 0 | AS72: =+IF($AM72<=0,0,IF(($AM72-SUM($AO72:AR72))<$AN72,$AM72-SUM($AO72:AR72),IF(SUM($AO72:AR72)<$AM72,$AN72,0))) -> 0
B73: 331 | C73: 3311111 | D73: 21.OTROS | E73: GRUPO V | F73: SI | G73: AERONAVEGACIÓN/AEROPORTUARIO | H73: IÑAPARI | I73: TERRENOS INSCRITOS | K73: Terrenos | L73: TERRENOS | M73: CC0000044-1 | N73: 096 | O73: Iñapari (Madre de Dios) | P73: - | Q73: SI | R73: SI | S73: 1950-12-01 | T73: 1950-12-01 | U73: 1950-12-01 | X73: 260420.14 | AA73: 260420.14 | AC73: 0 | AD73: 0 | AF73: 0 | AG73: 0 | AH73: 0 | AI73: 260420.14 | AK73: TERRENOS | AL73: 0.5 | AM73: 130210.07 | AN73: 0 | AP73: =+IF($AM73<=0,0,IF(($AM73-SUM($AO73:AO73))<$AN73,$AM73-SUM($AO73:AO73),IF(SUM($AO73:AO73)<$AM73,$AN73,0))) -> 0 | AQ73: =+IF($AM73<=0,0,IF(($AM73-SUM($AO73:AP73))<$AN73,$AM73-SUM($AO73:AP73),IF(SUM($AO73:AP73)<$AM73,$AN73,0))) -> 0 | AR73: =+IF($AM73<=0,0,IF(($AM73-SUM($AO73:AQ73))<$AN73,$AM73-SUM($AO73:AQ73),IF(SUM($AO73:AQ73)<$AM73,$AN73,0))) -> 0 | AS73: =+IF($AM73<=0,0,IF(($AM73-SUM($AO73:AR73))<$AN73,$AM73-SUM($AO73:AR73),IF(SUM($AO73:AR73)<$AM73,$AN73,0))) -> 0
B74: 331 | C74: 3311111 | D74: 21.OTROS | E74: GRUPO V | F74: SI | G74: AERONAVEGACIÓN/AEROPORTUARIO | H74: IÑAPARI | I74: TERRENOS INSCRITOS | K74: Terrenos | L74: TERRENOS | M74: CC0000044-2 | N74: 096 | O74: Iñapari (Madre de Dios) | P74: - | Q74: SI | R74: SI | S74: 1950-12-01 | T74: 1950-12-01 | U74: 1950-12-01 | X74: 2630.51 | AA74: 2630.51 | AC74: 0 | AD74: 0 | AF74: 0 | AG74: 0 | AH74: 0 | AI74: 2630.51 | AK74: TERRENOS | AL74: 0.5 | AM74: 1315.255 | AN74: 0 | AP74: =+IF($AM74<=0,0,IF(($AM74-SUM($AO74:AO74))<$AN74,$AM74-SUM($AO74:AO74),IF(SUM($AO74:AO74)<$AM74,$AN74,0))) -> 0 | AQ74: =+IF($AM74<=0,0,IF(($AM74-SUM($AO74:AP74))<$AN74,$AM74-SUM($AO74:AP74),IF(SUM($AO74:AP74)<$AM74,$AN74,0))) -> 0 | AR74: =+IF($AM74<=0,0,IF(($AM74-SUM($AO74:AQ74))<$AN74,$AM74-SUM($AO74:AQ74),IF(SUM($AO74:AQ74)<$AM74,$AN74,0))) -> 0 | AS74: =+IF($AM74<=0,0,IF(($AM74-SUM($AO74:AR74))<$AN74,$AM74-SUM($AO74:AR74),IF(SUM($AO74:AR74)<$AM74,$AN74,0))) -> 0
B75: 331 | C75: 3311111 | D75: 21.OTROS | E75: GRUPO V | F75: SI | G75: AERONAVEGACIÓN | H75: INTUTO | I75: TERRENOS INSCRITOS | K75: Terrenos | L75: TERRENOS | P75: - | Q75: SI | R75: SI | S75: 1950-12-01 | T75: 1950-12-01 | U75: 1950-12-01 | X75: 1661.87 | AC75: 0 | AD75: 0 | AF75: 0 | AG75: 0 | AH75: 0 | AI75: 1661.87 | AK75: TERRENOS | AL75: 0 | AM75: 0 | AN75: 0 | AP75: =+IF($AM75<=0,0,IF(($AM75-SUM($AO75:AO75))<$AN75,$AM75-SUM($AO75:AO75),IF(SUM($AO75:AO75)<$AM75,$AN75,0))) -> 0 | AQ75: =+IF($AM75<=0,0,IF(($AM75-SUM($AO75:AP75))<$AN75,$AM75-SUM($AO75:AP75),IF(SUM($AO75:AP75)<$AM75,$AN75,0))) -> 0 | AR75: =+IF($AM75<=0,0,IF(($AM75-SUM($AO75:AQ75))<$AN75,$AM75-SUM($AO75:AQ75),IF(SUM($AO75:AQ75)<$AM75,$AN75,0))) -> 0 | AS75: =+IF($AM75<=0,0,IF(($AM75-SUM($AO75:AR75))<$AN75,$AM75-SUM($AO75:AR75),IF(SUM($AO75:AR75)<$AM75,$AN75,0))) -> 0
B76: 331 | C76: 3311111 | D76: 21.OTROS | E76: GRUPO V | F76: SI | G76: AERONAVEGACIÓN | H76: INTUTO | I76: TERRENOS INSCRITOS | K76: Terrenos | L76: TERRENOS | P76: - | Q76: SI | R76: SI | S76: 1950-12-01 | T76: 1950-12-01 | U76: 1950-12-01 | X76: 93.46 | AC76: 0 | AD76: 0 | AF76: 0 | AG76: 0 | AH76: 0 | AI76: 93.46 | AK76: TERRENOS | AL76: 0 | AM76: =IF(AI76<0.1,0,AI76)*AL76 -> 0 | AN76: =+AD76*AL76 -> 0 | AP76: =+IF($AM76<=0,0,IF(($AM76-SUM($AO76:AO76))<$AN76,$AM76-SUM($AO76:AO76),IF(SUM($AO76:AO76)<$AM76,$AN76,0))) -> 0 | AQ76: =+IF($AM76<=0,0,IF(($AM76-SUM($AO76:AP76))<$AN76,$AM76-SUM($AO76:AP76),IF(SUM($AO76:AP76)<$AM76,$AN76,0))) -> 0 | AR76: =+IF($AM76<=0,0,IF(($AM76-SUM($AO76:AQ76))<$AN76,$AM76-SUM($AO76:AQ76),IF(SUM($AO76:AQ76)<$AM76,$AN76,0))) -> 0 | AS76: =+IF($AM76<=0,0,IF(($AM76-SUM($AO76:AR76))<$AN76,$AM76-SUM($AO76:AR76),IF(SUM($AO76:AR76)<$AM76,$AN76,0))) -> 0
B77: 331 | C77: 3311111 | D77: 21.OTROS | E77: GRUPO V | F77: SI | G77: AERONAVEGACIÓN | H77: CIRO ALEGRIA | I77: TERRENOS INSCRITOS | K77: Terrenos | L77: TERRENOS | P77: - | Q77: SI | R77: SI | S77: 1950-12-01 | T77: 1950-12-01 | U77: 1950-12-01 | X77: 42329.63 | AC77: 0 | AD77: 0 | AF77: 0 | AG77: 0 | AH77: 0 | AI77: 42329.63 | AK77: TERRENOS | AL77: 0 | AM77: 0 | AN77: 0 | AP77: =+IF($AM77<=0,0,IF(($AM77-SUM($AO77:AO77))<$AN77,$AM77-SUM($AO77:AO77),IF(SUM($AO77:AO77)<$AM77,$AN77,0))) -> 0 | AQ77: =+IF($AM77<=0,0,IF(($AM77-SUM($AO77:AP77))<$AN77,$AM77-SUM($AO77:AP77),IF(SUM($AO77:AP77)<$AM77,$AN77,0))) -> 0 | AR77: =+IF($AM77<=0,0,IF(($AM77-SUM($AO77:AQ77))<$AN77,$AM77-SUM($AO77:AQ77),IF(SUM($AO77:AQ77)<$AM77,$AN77,0))) -> 0 | AS77: =+IF($AM77<=0,0,IF(($AM77-SUM($AO77:AR77))<$AN77,$AM77-SUM($AO77:AR77),IF(SUM($AO77:AR77)<$AM77,$AN77,0))) -> 0
B78: 331 | C78: 3311111 | D78: 21.OTROS | E78: GRUPO V | F78: SI | G78: AERONAVEGACIÓN | H78: GALILEA | I78: TERRENOS INSCRITOS | K78: Terrenos | L78: TERRENOS | P78: - | Q78: SI | R78: SI | S78: 1950-12-01 | T78: 1950-12-01 | U78: 1950-12-01 | X78: 576.73 | AC78: 0 | AD78: 0 | AF78: 0 | AG78: 0 | AH78: 0 | AI78: 576.73 | AK78: TERRENOS | AL78: 0 | AM78: 0 | AN78: 0 | AP78: =+IF($AM78<=0,0,IF(($AM78-SUM($AO78:AO78))<$AN78,$AM78-SUM($AO78:AO78),IF(SUM($AO78:AO78)<$AM78,$AN78,0))) -> 0 | AQ78: =+IF($AM78<=0,0,IF(($AM78-SUM($AO78:AP78))<$AN78,$AM78-SUM($AO78:AP78),IF(SUM($AO78:AP78)<$AM78,$AN78,0))) -> 0 | AR78: =+IF($AM78<=0,0,IF(($AM78-SUM($AO78:AQ78))<$AN78,$AM78-SUM($AO78:AQ78),IF(SUM($AO78:AQ78)<$AM78,$AN78,0))) -> 0 | AS78: =+IF($AM78<=0,0,IF(($AM78-SUM($AO78:AR78))<$AN78,$AM78-SUM($AO78:AR78),IF(SUM($AO78:AR78)<$AM78,$AN78,0))) -> 0
B79: 331 | C79: 3311111 | D79: 21.OTROS | E79: GRUPO V | F79: SI | G79: AERONAVEGACIÓN | H79: BREU | I79: TERRENOS INSCRITOS | K79: Terrenos | L79: TERRENOS | P79: - | Q79: SI | R79: SI | S79: 1950-12-01 | T79: 1950-12-01 | U79: 1950-12-01 | X79: 48427.44 | AC79: 0 | AD79: 0 | AF79: 0 | AG79: 0 | AH79: 0 | AI79: 48427.44 | AK79: TERRENOS | AL79: 0 | AM79: 0 | AN79: 0 | AP79: =+IF($AM79<=0,0,IF(($AM79-SUM($AO79:AO79))<$AN79,$AM79-SUM($AO79:AO79),IF(SUM($AO79:AO79)<$AM79,$AN79,0))) -> 0 | AQ79: =+IF($AM79<=0,0,IF(($AM79-SUM($AO79:AP79))<$AN79,$AM79-SUM($AO79:AP79),IF(SUM($AO79:AP79)<$AM79,$AN79,0))) -> 0 | AR79: =+IF($AM79<=0,0,IF(($AM79-SUM($AO79:AQ79))<$AN79,$AM79-SUM($AO79:AQ79),IF(SUM($AO79:AQ79)<$AM79,$AN79,0))) -> 0 | AS79: =+IF($AM79<=0,0,IF(($AM79-SUM($AO79:AR79))<$AN79,$AM79-SUM($AO79:AR79),IF(SUM($AO79:AR79)<$AM79,$AN79,0))) -> 0
B80: 331 | C80: 3311111 | D80: 21.OTROS | E80: GRUPO V | F80: SI | G80: AERONAVEGACIÓN | H80: BREU | I80: TERRENOS INSCRITOS | K80: Terrenos | L80: TERRENOS | P80: - | Q80: SI | R80: SI | S80: 1950-12-01 | T80: 1950-12-01 | U80: 1950-12-01 | X80: 489.17 | AC80: 0 | AD80: 0 | AF80: 0 | AG80: 0 | AH80: 0 | AI80: 489.17 | AK80: TERRENOS | AL80: 0 | AM80: 0 | AN80: 0 | AP80: =+IF($AM80<=0,0,IF(($AM80-SUM($AO80:AO80))<$AN80,$AM80-SUM($AO80:AO80),IF(SUM($AO80:AO80)<$AM80,$AN80,0))) -> 0 | AQ80: =+IF($AM80<=0,0,IF(($AM80-SUM($AO80:AP80))<$AN80,$AM80-SUM($AO80:AP80),IF(SUM($AO80:AP80)<$AM80,$AN80,0))) -> 0 | AR80: =+IF($AM80<=0,0,IF(($AM80-SUM($AO80:AQ80))<$AN80,$AM80-SUM($AO80:AQ80),IF(SUM($AO80:AQ80)<$AM80,$AN80,0))) -> 0 | AS80: =+IF($AM80<=0,0,IF(($AM80-SUM($AO80:AR80))<$AN80,$AM80-SUM($AO80:AR80),IF(SUM($AO80:AR80)<$AM80,$AN80,0))) -> 0
B81: 331 | C81: 3311111 | D81: 21.OTROS | E81: GRUPO V | F81: SI | G81: AERONAVEGACIÓN | H81: GUEIPPI | I81: TERRENOS INSCRITOS | K81: Terrenos | L81: TERRENOS | P81: - | Q81: SI | R81: SI | S81: 1950-12-01 | T81: 1950-12-01 | U81: 1950-12-01 | X81: 7596.65 | AC81: 0 | AD81: 0 | AF81: 0 | AG81: 0 | AH81: 0 | AI81: 7596.65 | AK81: TERRENOS | AL81: 0 | AM81: 0 | AN81: 0 | AP81: =+IF($AM81<=0,0,IF(($AM81-SUM($AO81:AO81))<$AN81,$AM81-SUM($AO81:AO81),IF(SUM($AO81:AO81)<$AM81,$AN81,0))) -> 0 | AQ81: =+IF($AM81<=0,0,IF(($AM81-SUM($AO81:AP81))<$AN81,$AM81-SUM($AO81:AP81),IF(SUM($AO81:AP81)<$AM81,$AN81,0))) -> 0 | AR81: =+IF($AM81<=0,0,IF(($AM81-SUM($AO81:AQ81))<$AN81,$AM81-SUM($AO81:AQ81),IF(SUM($AO81:AQ81)<$AM81,$AN81,0))) -> 0 | AS81: =+IF($AM81<=0,0,IF(($AM81-SUM($AO81:AR81))<$AN81,$AM81-SUM($AO81:AR81),IF(SUM($AO81:AR81)<$AM81,$AN81,0))) -> 0
B82: 331 | C82: 3311111 | D82: 21.OTROS | E82: GRUPO V | F82: SI | G82: AERONAVEGACIÓN | H82: GUEIPPI | I82: TERRENOS INSCRITOS | K82: Terrenos | L82: TERRENOS | P82: - | Q82: SI | R82: SI | S82: 1950-12-01 | T82: 1950-12-01 | U82: 1950-12-01 | X82: 427.21 | AC82: 0 | AD82: 0 | AF82: 0 | AG82: 0 | AH82: 0 | AI82: 427.21 | AK82: TERRENOS | AL82: 0 | AM82: 0 | AN82: 0 | AP82: =+IF($AM82<=0,0,IF(($AM82-SUM($AO82:AO82))<$AN82,$AM82-SUM($AO82:AO82),IF(SUM($AO82:AO82)<$AM82,$AN82,0))) -> 0 | AQ82: =+IF($AM82<=0,0,IF(($AM82-SUM($AO82:AP82))<$AN82,$AM82-SUM($AO82:AP82),IF(SUM($AO82:AP82)<$AM82,$AN82,0))) -> 0 | AR82: =+IF($AM82<=0,0,IF(($AM82-SUM($AO82:AQ82))<$AN82,$AM82-SUM($AO82:AQ82),IF(SUM($AO82:AQ82)<$AM82,$AN82,0))) -> 0 | AS82: =+IF($AM82<=0,0,IF(($AM82-SUM($AO82:AR82))<$AN82,$AM82-SUM($AO82:AR82),IF(SUM($AO82:AR82)<$AM82,$AN82,0))) -> 0
B83: 331 | C83: 3311111 | D83: 21.OTROS | E83: GRUPO V | F83: SI | G83: AERONAVEGACIÓN/AEROPORTUARIO | H83: PTO. ESPERANZA | I83: TERRENOS INSCRITOS | K83: Terrenos | L83: TERRENOS | M83: CC0000050-1 | N83: 012 | O83: Pto. Esperanza | P83: - | Q83: SI | R83: SI | S83: 1950-12-01 | T83: 1950-12-01 | U83: 1950-12-01 | X83: 986886.48 | AA83: 986886.48 | AC83: 0 | AD83: 0 | AF83: 0 | AG83: 0 | AH83: 0 | AI83: 986886.48 | AK83: TERRENOS | AL83: 0.5 | AM83: 493443.24 | AN83: 0 | AP83: =+IF($AM83<=0,0,IF(($AM83-SUM($AO83:AO83))<$AN83,$AM83-SUM($AO83:AO83),IF(SUM($AO83:AO83)<$AM83,$AN83,0))) -> 0 | AQ83: =+IF($AM83<=0,0,IF(($AM83-SUM($AO83:AP83))<$AN83,$AM83-SUM($AO83:AP83),IF(SUM($AO83:AP83)<$AM83,$AN83,0))) -> 0 | AR83: =+IF($AM83<=0,0,IF(($AM83-SUM($AO83:AQ83))<$AN83,$AM83-SUM($AO83:AQ83),IF(SUM($AO83:AQ83)<$AM83,$AN83,0))) -> 0 | AS83: =+IF($AM83<=0,0,IF(($AM83-SUM($AO83:AR83))<$AN83,$AM83-SUM($AO83:AR83),IF(SUM($AO83:AR83)<$AM83,$AN83,0))) -> 0
B84: 331 | C84: 3311111 | D84: 21.OTROS | E84: GRUPO V | F84: SI | G84: AERONAVEGACIÓN/AEROPORTUARIO | H84: PTO. ESPERANZA | I84: TERRENOS INSCRITOS | K84: Terrenos | L84: TERRENOS | M84: CC0000050-2 | N84: 012 | O84: Pto. Esperanza | P84: - | Q84: SI | R84: SI | S84: 1950-12-01 | T84: 1950-12-01 | U84: 1950-12-01 | X84: 43612.41 | AA84: 43612.41 | AC84: 0 | AD84: 0 | AF84: 0 | AG84: 0 | AH84: 0 | AI84: 43612.41 | AK84: TERRENOS | AL84: 0.5 | AM84: 21806.205 | AN84: 0 | AP84: =+IF($AM84<=0,0,IF(($AM84-SUM($AO84:AO84))<$AN84,$AM84-SUM($AO84:AO84),IF(SUM($AO84:AO84)<$AM84,$AN84,0))) -> 0 | AQ84: =+IF($AM84<=0,0,IF(($AM84-SUM($AO84:AP84))<$AN84,$AM84-SUM($AO84:AP84),IF(SUM($AO84:AP84)<$AM84,$AN84,0))) -> 0 | AR84: =+IF($AM84<=0,0,IF(($AM84-SUM($AO84:AQ84))<$AN84,$AM84-SUM($AO84:AQ84),IF(SUM($AO84:AQ84)<$AM84,$AN84,0))) -> 0 | AS84: =+IF($AM84<=0,0,IF(($AM84-SUM($AO84:AR84))<$AN84,$AM84-SUM($AO84:AR84),IF(SUM($AO84:AR84)<$AM84,$AN84,0))) -> 0
B85: 332 | C85: 3321111 | D85: 9.LIMA | E85: NO | F85: NO | G85: AERONAVEGACIÓN/AEROPORTUARIO | H85: ESTUDIO MEJORAMIENTO DEL ABASTECIMIENTO DE AGUA ING. CONSTRUCTORES | I85: EDIFICIOS EN AEROPUERTOS-Administrativas | J85: INDIRECTO | K85: Edificaciones y construcciones | L85: EDIFICACIONES Y CONSTRUCCIONES | P85: - | Q85: SI | R85: SI | S85: 1977-01-31 | T85: 1977-01-31 | U85: 1977-01-31 | X85: 149428.49 | AC85: 54782.45 | AD85: 6734.07 | AF85: 0 | AG85: 0 | AH85: 0 | AI85: 87911.97 | AK85: EDIFICACIONES Y CONSTRUCCIONES | AL85: 0.5 | AM85: 43955.985 | AN85: =+AD85*AL85 -> 3367.035 | AP85: =+IF($AM85<=0,0,IF(($AM85-SUM($AO85:AO85))<$AN85,$AM85-SUM($AO85:AO85),IF(SUM($AO85:AO85)<$AM85,$AN85,0))) -> 3367.035 | AQ85: =+IF($AM85<=0,0,IF(($AM85-SUM($AO85:AP85))<$AN85,$AM85-SUM($AO85:AP85),IF(SUM($AO85:AP85)<$AM85,$AN85,0))) -> 3367.035 | AR85: =+IF($AM85<=0,0,IF(($AM85-SUM($AO85:AQ85))<$AN85,$AM85-SUM($AO85:AQ85),IF(SUM($AO85:AQ85)<$AM85,$AN85,0))) -> 3367.035 | AS85: =+IF($AM85<=0,0,IF(($AM85-SUM($AO85:AR85))<$AN85,$AM85-SUM($AO85:AR85),IF(SUM($AO85:AR85)<$AM85,$AN85,0))) -> 3367.035
B86: 332 | C86: 3321111 | D86: 9.LIMA | E86: NO | F86: NO | G86: AERONAVEGACIÓN | H86: CONSTRUCCION DOS PARABOLOIDES HIPERBOLICAS | I86: EDIFICIOS EN AEROPUERTOS-Administrativas | J86: INDIRECTO | K86: Edificaciones y construcciones | L86: EDIFICACIONES Y CONSTRUCCIONES | P86: - | Q86: SI | R86: SI | S86: 1977-12-31 | T86: 1977-12-31 | U86: 1977-12-31 | X86: 149428.49 | AC86: 54782.45 | AD86: 6322.44 | AF86: 0 | AG86: 0 | AH86: 0 | AI86: 88323.6 | AK86: EDIFICACIONES Y CONSTRUCCIONES | AL86: 1 | AM86: 88323.6 | AN86: 6322.44 | AP86: =+IF($AM86<=0,0,IF(($AM86-SUM($AO86:AO86))<$AN86,$AM86-SUM($AO86:AO86),IF(SUM($AO86:AO86)<$AM86,$AN86,0))) -> 6322.44 | AQ86: =+IF($AM86<=0,0,IF(($AM86-SUM($AO86:AP86))<$AN86,$AM86-SUM($AO86:AP86),IF(SUM($AO86:AP86)<$AM86,$AN86,0))) -> 6322.44 | AR86: =+IF($AM86<=0,0,IF(($AM86-SUM($AO86:AQ86))<$AN86,$AM86-SUM($AO86:AQ86),IF(SUM($AO86:AQ86)<$AM86,$AN86,0))) -> 6322.44 | AS86: =+IF($AM86<=0,0,IF(($AM86-SUM($AO86:AR86))<$AN86,$AM86-SUM($AO86:AR86),IF(SUM($AO86:AR86)<$AM86,$AN86,0))) -> 6322.44
B87: 332 | C87: 3321111 | D87: 9.LIMA | E87: NO | F87: NO | G87: AERONAVEGACIÓN/AEROPORTUARIO | H87: HASTA 1976 D.V 2974-10498205 | I87: EDIFICIOS EN AEROPUERTOS-Administrativas | J87: INDIRECTO | K87: Edificaciones y construcciones | L87: EDIFICACIONES Y CONSTRUCCIONES | P87: - | Q87: SI | R87: SI | S87: 1977-01-31 | T87: 1977-01-31 | U87: 1977-01-31 | X87: 471526.69 | AC87: 172867.87 | AD87: 21249.6 | AF87: 0 | AG87: 0 | AH87: 0 | AI87: 277409.22 | AK87: EDIFICACIONES Y CONSTRUCCIONES | AL87: 0.5 | AM87: 138704.61 | AN87: 10624.8 | AP87: =+IF($AM87<=0,0,IF(($AM87-SUM($AO87:AO87))<$AN87,$AM87-SUM($AO87:AO87),IF(SUM($AO87:AO87)<$AM87,$AN87,0))) -> 10624.8 | AQ87: =+IF($AM87<=0,0,IF(($AM87-SUM($AO87:AP87))<$AN87,$AM87-SUM($AO87:AP87),IF(SUM($AO87:AP87)<$AM87,$AN87,0))) -> 10624.8 | AR87: =+IF($AM87<=0,0,IF(($AM87-SUM($AO87:AQ87))<$AN87,$AM87-SUM($AO87:AQ87),IF(SUM($AO87:AQ87)<$AM87,$AN87,0))) -> 10624.8 | AS87: =+IF($AM87<=0,0,IF(($AM87-SUM($AO87:AR87))<$AN87,$AM87-SUM($AO87:AR87),IF(SUM($AO87:AR87)<$AM87,$AN87,0))) -> 10624.8
B88: 332 | C88: 3321111 | D88: 21.OTROS | E88: GRUPO V | F88: SI | G88: AERONAVEGACIÓN | H88: CONST POZO DE AGUA Y TANQUE ELEVADO RESOLUCION D.L 21694-16-11-76 | I88: EDIFICIOS EN AEROPUERTOS-Administrativas | J88: DIRECTO | K88: Edificaciones y construcciones | L88: EDIFICACIONES Y CONSTRUCCIONES | P88: - | Q88: SI | R88: SI | S88: 1979-12-31 | T88: 1979-12-31 | U88: 1979-12-31 | X88: 50291.85 | AC88: 32683.8 | AD88: 1037.61 | AF88: 0 | AG88: 0 | AH88: 0 | AI88: 16570.44 | AK88: EDIFICACIONES Y CONSTRUCCIONES | AL88: 1 | AM88: 16570.44 | AN88: 1037.61 | AP88: =+IF($AM88<=0,0,IF(($AM88-SUM($AO88:AO88))<$AN88,$AM88-SUM($AO88:AO88),IF(SUM($AO88:AO88)<$AM88,$AN88,0))) -> 1037.61 | AQ88: =+IF($AM88<=0,0,IF(($AM88-SUM($AO88:AP88))<$AN88,$AM88-SUM($AO88:AP88),IF(SUM($AO88:AP88)<$AM88,$AN88,0))) -> 1037.61 | AR88: =+IF($AM88<=0,0,IF(($AM88-SUM($AO88:AQ88))<$AN88,$AM88-SUM($AO88:AQ88),IF(SUM($AO88:AQ88)<$AM88,$AN88,0))) -> 1037.61 | AS88: =+IF($AM88<=0,0,IF(($AM88-SUM($AO88:AR88))<$AN88,$AM88-SUM($AO88:AR88),IF(SUM($AO88:AR88)<$AM88,$AN88,0))) -> 1037.61
B89: 332 | C89: 3321111 | D89: 9.LIMA | E89: NO | F89: NO | G89: AERONAVEGACIÓN/AEROPORTUARIO | H89: CONSIDERANDO MENOR COSTO EN EL AÑO 1976 | I89: EDIFICIOS EN AEROPUERTOS-Administrativas | J89: INDIRECTO | K89: Edificaciones y construcciones | L89: EDIFICACIONES Y CONSTRUCCIONES | P89: - | Q89: SI | R89: SI | S89: 1977-01-31 | T89: 1977-01-31 | U89: 1977-01-31 | X89: 149428.49 | AC89: 54782.45 | AD89: 6734.07 | AF89: 0 | AG89: 0 | AH89: 0 | AI89: 87911.97 | AK89: EDIFICACIONES Y CONSTRUCCIONES | AL89: 0.5 | AM89: 43955.985 | AN89: 3367.035 | AP89: =+IF($AM89<=0,0,IF(($AM89-SUM($AO89:AO89))<$AN89,$AM89-SUM($AO89:AO89),IF(SUM($AO89:AO89)<$AM89,$AN89,0))) -> 3367.035 | AQ89: =+IF($AM89<=0,0,IF(($AM89-SUM($AO89:AP89))<$AN89,$AM89-SUM($AO89:AP89),IF(SUM($AO89:AP89)<$AM89,$AN89,0))) -> 3367.035 | AR89: =+IF($AM89<=0,0,IF(($AM89-SUM($AO89:AQ89))<$AN89,$AM89-SUM($AO89:AQ89),IF(SUM($AO89:AQ89)<$AM89,$AN89,0))) -> 3367.035 | AS89: =+IF($AM89<=0,0,IF(($AM89-SUM($AO89:AR89))<$AN89,$AM89-SUM($AO89:AR89),IF(SUM($AO89:AR89)<$AM89,$AN89,0))) -> 3367.035
B90: 332 | C90: 3321111 | D90: 9.LIMA | E90: NO | F90: NO | G90: AERONAVEGACIÓN/AEROPORTUARIO | H90: POR REVALUACION D.L 21694 16-11-76 | I90: EDIFICIOS EN AEROPUERTOS-Administrativas | J90: INDIRECTO | K90: Edificaciones y construcciones | L90: EDIFICACIONES Y CONSTRUCCIONES | P90: - | Q90: SI | R90: SI | S90: 1977-01-31 | T90: 1977-01-31 | U90: 1977-01-31 | X90: 149428.49 | AC90: 54782.45 | AD90: 6734.07 | AF90: 0 | AG90: 0 | AH90: 0 | AI90: 87911.97 | AK90: EDIFICACIONES Y CONSTRUCCIONES | AL90: 0.5 | AM90: 43955.985 | AN90: 3367.035 | AP90: =+IF($AM90<=0,0,IF(($AM90-SUM($AO90:AO90))<$AN90,$AM90-SUM($AO90:AO90),IF(SUM($AO90:AO90)<$AM90,$AN90,0))) -> 3367.035 | AQ90: =+IF($AM90<=0,0,IF(($AM90-SUM($AO90:AP90))<$AN90,$AM90-SUM($AO90:AP90),IF(SUM($AO90:AP90)<$AM90,$AN90,0))) -> 3367.035 | AR90: =+IF($AM90<=0,0,IF(($AM90-SUM($AO90:AQ90))<$AN90,$AM90-SUM($AO90:AQ90),IF(SUM($AO90:AQ90)<$AM90,$AN90,0))) -> 3367.035 | AS90: =+IF($AM90<=0,0,IF(($AM90-SUM($AO90:AR90))<$AN90,$AM90-SUM($AO90:AR90),IF(SUM($AO90:AR90)<$AM90,$AN90,0))) -> 3367.035
B91: 332 | C91: 3321111 | D91: 21.OTROS | E91: GRUPO V | F91: SI | G91: AERONAVEGACIÓN | H91: POR LA CONFECCION DE REJAS ORNAMENTALES PARA LA TERRAZA | I91: EDIFICIOS EN AEROPUERTOS-Administrativas | J91: DIRECTO | K91: Edificaciones y construcciones | L91: EDIFICACIONES Y CONSTRUCCIONES | P91: - | Q91: SI | R91: SI | S91: 1977-01-31 | T91: 1977-01-31 | U91: 1977-01-31 | X91: 249674.16 | AC91: 249674.16 | AD91: 0 | AF91: 0 | AG91: 0 | AH91: 0 | AI91: 0 | AK91: EDIFICACIONES Y CONSTRUCCIONES | AL91: 1 | AM91: 0 | AN91: 0 | AP91: =+IF($AM91<=0,0,IF(($AM91-SUM($AO91:AO91))<$AN91,$AM91-SUM($AO91:AO91),IF(SUM($AO91:AO91)<$AM91,$AN91,0))) -> 0 | AQ91: =+IF($AM91<=0,0,IF(($AM91-SUM($AO91:AP91))<$AN91,$AM91-SUM($AO91:AP91),IF(SUM($AO91:AP91)<$AM91,$AN91,0))) -> 0 | AR91: =+IF($AM91<=0,0,IF(($AM91-SUM($AO91:AQ91))<$AN91,$AM91-SUM($AO91:AQ91),IF(SUM($AO91:AQ91)<$AM91,$AN91,0))) -> 0 | AS91: =+IF($AM91<=0,0,IF(($AM91-SUM($AO91:AR91))<$AN91,$AM91-SUM($AO91:AR91),IF(SUM($AO91:AR91)<$AM91,$AN91,0))) -> 0
B92: 332 | C92: 3325111 | D92: 6.CHICLAYO | E92: NO | F92: NO | G92: AERONAVEGACIÓN | H92: REPARACION PISTAS DE ATERRIZAJES | I92: PISTAS DE ATERRIZAJE Y CALLES DE RODAJE | J92: INDIRECTO | K92: Edificaciones y construcciones | L92: EDIFICACIONES Y CONSTRUCCIONES | P92: - | Q92: SI | R92: SI | S92: 1975-12-31 | T92: 1975-12-31 | U92: 1975-12-31 | X92: 324760.14 | AC92: 324612.63 | AD92: 147.51 | AF92: 0 | AG92: 0 | AH92: 0 | AI92: 9.322320693e-12 | AK92: EDIFICACIONES Y CONSTRUCCIONES | AL92: 1 | AM92: 0 | AN92: 147.51 | AP92: =+IF($AM92<=0,0,IF(($AM92-SUM($AO92:AO92))<$AN92,$AM92-SUM($AO92:AO92),IF(SUM($AO92:AO92)<$AM92,$AN92,0))) -> 0 | AQ92: =+IF($AM92<=0,0,IF(($AM92-SUM($AO92:AP92))<$AN92,$AM92-SUM($AO92:AP92),IF(SUM($AO92:AP92)<$AM92,$AN92,0))) -> 0 | AR92: =+IF($AM92<=0,0,IF(($AM92-SUM($AO92:AQ92))<$AN92,$AM92-SUM($AO92:AQ92),IF(SUM($AO92:AQ92)<$AM92,$AN92,0))) -> 0 | AS92: =+IF($AM92<=0,0,IF(($AM92-SUM($AO92:AR92))<$AN92,$AM92-SUM($AO92:AR92),IF(SUM($AO92:AR92)<$AM92,$AN92,0))) -> 0
B93: 332 | C93: 3321111 | D93: 9.LIMA | E93: NO | F93: NO | G93: AERONAVEGACIÓN/AEROPORTUARIO | H93: HABILITACION ZONA URBANA.SUR-ESTE DIC 13-D.V.2306 AXO 2304 COD. REF. 41 | I93: EDIFICIOS EN AEROPUERTOS-Administrativas | J93: INDIRECTO | K93: Edificaciones y construcciones | L93: EDIFICACIONES Y CONSTRUCCIONES | P93: - | Q93: SI | R93: SI | S93: 1981-12-31 | T93: 1981-12-31 | U93: 1981-12-31 | X93: 58984.92 | AC93: 21624.64 | AD93: 1969.17 | AF93: 0 | AG93: 0 | AH93: 0 | AI93: 35391.11 | AK93: EDIFICACIONES Y CONSTRUCCIONES | AL93: 0.5 | AM93: 17695.555 | AN93: 984.585 | AP93: =+IF($AM93<=0,0,IF(($AM93-SUM($AO93:AO93))<$AN93,$AM93-SUM($AO93:AO93),IF(SUM($AO93:AO93)<$AM93,$AN93,0))) -> 984.585 | AQ93: =+IF($AM93<=0,0,IF(($AM93-SUM($AO93:AP93))<$AN93,$AM93-SUM($AO93:AP93),IF(SUM($AO93:AP93)<$AM93,$AN93,0))) -> 984.585 | AR93: =+IF($AM93<=0,0,IF(($AM93-SUM($AO93:AQ93))<$AN93,$AM93-SUM($AO93:AQ93),IF(SUM($AO93:AQ93)<$AM93,$AN93,0))) -> 984.585 | AS93: =+IF($AM93<=0,0,IF(($AM93-SUM($AO93:AR93))<$AN93,$AM93-SUM($AO93:AR93),IF(SUM($AO93:AR93)<$AM93,$AN93,0))) -> 984.585
B94: 332 | C94: 3321111 | D94: 21.OTROS | E94: Otros | F94: SI | G94: AEROPORTUARIO | H94: REAJUSTE PARA ALZA DE MATERIALES PARTIDA N 302 DE OBRA TERMINAL DE | I94: EDIFICIOS EN AEROPUERTOS-Administrativas | J94: DIRECTO | K94: Edificaciones y construcciones | L94: EDIFICACIONES Y CONSTRUCCIONES | P94: - | Q94: SI | R94: SI | S94: 1979-12-31 | T94: 1979-12-31 | U94: 1979-12-31 | X94: 434410.9 | AC94: 266030.2 | AD94: 9922.34 | AF94: 0 | AG94: 0 | AH94: 0 | AI94: 158458.36 | AK94: EDIFICACIONES Y CONSTRUCCIONES | AL94: 1 | AM94: 158458.36 | AN94: 9922.34 | AP94: =+IF($AM94<=0,0,IF(($AM94-SUM($AO94:AO94))<$AN94,$AM94-SUM($AO94:AO94),IF(SUM($AO94:AO94)<$AM94,$AN94,0))) -> 9922.34 | AQ94: =+IF($AM94<=0,0,IF(($AM94-SUM($AO94:AP94))<$AN94,$AM94-SUM($AO94:AP94),IF(SUM($AO94:AP94)<$AM94,$AN94,0))) -> 9922.34 | AR94: =+IF($AM94<=0,0,IF(($AM94-SUM($AO94:AQ94))<$AN94,$AM94-SUM($AO94:AQ94),IF(SUM($AO94:AQ94)<$AM94,$AN94,0))) -> 9922.34 | AS94: =+IF($AM94<=0,0,IF(($AM94-SUM($AO94:AR94))<$AN94,$AM94-SUM($AO94:AR94),IF(SUM($AO94:AR94)<$AM94,$AN94,0))) -> 9922.34
B95: 332 | C95: 3321111 | D95: 21.OTROS | E95: Otros | F95: SI | G95: AEROPORTUARIO | H95: TERMINAL DE PASAJEROS DIC 11-D.V.2249 AXO 2237 | I95: EDIFICIOS EN AEROPUERTOS-Administrativas | J95: DIRECTO | K95: Edificaciones y construcciones | L95: EDIFICACIONES Y CONSTRUCCIONES | P95: - | Q95: SI | R95: SI | S95: 1979-12-31 | T95: 1979-12-31 | U95: 1979-12-31 | X95: 56801.51 | AC95: 20848.5 | AD95: 2118.64 | AF95: 0 | AG95: 0 | AH95: 0 | AI95: 33834.37 | AK95: EDIFICACIONES Y CONSTRUCCIONES | AL95: 1 | AM95: 33834.37 | AN95: 2118.64 | AP95: =+IF($AM95<=0,0,IF(($AM95-SUM($AO95:AO95))<$AN95,$AM95-SUM($AO95:AO95),IF(SUM($AO95:AO95)<$AM95,$AN95,0))) -> 2118.64 | AQ95: =+IF($AM95<=0,0,IF(($AM95-SUM($AO95:AP95))<$AN95,$AM95-SUM($AO95:AP95),IF(SUM($AO95:AP95)<$AM95,$AN95,0))) -> 2118.64 | AR95: =+IF($AM95<=0,0,IF(($AM95-SUM($AO95:AQ95))<$AN95,$AM95-SUM($AO95:AQ95),IF(SUM($AO95:AQ95)<$AM95,$AN95,0))) -> 2118.64 | AS95: =+IF($AM95<=0,0,IF(($AM95-SUM($AO95:AR95))<$AN95,$AM95-SUM($AO95:AR95),IF(SUM($AO95:AR95)<$AM95,$AN95,0))) -> 2118.64
B96: 332 | C96: 3321111 | D96: 9.LIMA | E96: NO | F96: NO | G96: AERONAVEGACIÓN/AEROPORTUARIO | H96: HABILITACION ZONA URBANA SUR-ESTE DIC 13-D.V.2306 AXO 2304 COD. REF.41 | I96: EDIFICIOS EN AEROPUERTOS-Administrativas | J96: DIRECTO | K96: Edificaciones y construcciones | L96: EDIFICACIONES Y CONSTRUCCIONES | P96: - | Q96: SI | R96: SI | S96: 1979-12-31 | T96: 1979-12-31 | U96: 1979-12-31 | X96: 149428.49 | AC96: 54782.45 | AD96: 5577.3 | AF96: 0 | AG96: 0 | AH96: 0 | AI96: 89068.74 | AK96: EDIFICACIONES Y CONSTRUCCIONES | AL96: 0.5 | AM96: 44534.37 | AN96: 2788.65 | AP96: =+IF($AM96<=0,0,IF(($AM96-SUM($AO96:AO96))<$AN96,$AM96-SUM($AO96:AO96),IF(SUM($AO96:AO96)<$AM96,$AN96,0))) -> 2788.65 | AQ96: =+IF($AM96<=0,0,IF(($AM96-SUM($AO96:AP96))<$AN96,$AM96-SUM($AO96:AP96),IF(SUM($AO96:AP96)<$AM96,$AN96,0))) -> 2788.65 | AR96: =+IF($AM96<=0,0,IF(($AM96-SUM($AO96:AQ96))<$AN96,$AM96-SUM($AO96:AQ96),IF(SUM($AO96:AQ96)<$AM96,$AN96,0))) -> 2788.65 | AS96: =+IF($AM96<=0,0,IF(($AM96-SUM($AO96:AR96))<$AN96,$AM96-SUM($AO96:AR96),IF(SUM($AO96:AR96)<$AM96,$AN96,0))) -> 2788.65
B97: 333 | C97: 3331115 | D97: 15.TALARA | E97: NO | F97: NO | G97: AERONAVEGACIÓN | H97: INCREMENTO DE COSTO (PRESTAMO BCO BELGA)REF.KEY:90003625 DIC/90 SISTEMAS DE AYUDA LUMINOSAS COMPUE | I97: EQUIPOS N.D.B. | J97: INDIRECTO | K97: Maquinaria y Equipo | L97: MAQUINARIAS Y EQUIPOS | P97: 0 | Q97: SI | R97: SI | S97: 1991-12-31 | T97: 1991-12-31 | U97: 1991-12-31 | X97: 41463079.08 | AC97: 41463079.08 | AD97: 0 | AF97: 0 | AG97: 0 | AH97: 0 | AI97: 0 | AK97: MAQUINARIAS Y EQUIPOS | AL97: 1 | AM97: 0 | AN97: 0 | AP97: =+IF($AM97<=0,0,IF(($AM97-SUM($AO97:AO97))<$AN97,$AM97-SUM($AO97:AO97),IF(SUM($AO97:AO97)<$AM97,$AN97,0))) -> 0 | AQ97: =+IF($AM97<=0,0,IF(($AM97-SUM($AO97:AP97))<$AN97,$AM97-SUM($AO97:AP97),IF(SUM($AO97:AP97)<$AM97,$AN97,0))) -> 0 | AR97: =+IF($AM97<=0,0,IF(($AM97-SUM($AO97:AQ97))<$AN97,$AM97-SUM($AO97:AQ97),IF(SUM($AO97:AQ97)<$AM97,$AN97,0))) -> 0 | AS97: =+IF($AM97<=0,0,IF(($AM97-SUM($AO97:AR97))<$AN97,$AM97-SUM($AO97:AR97),IF(SUM($AO97:AR97)<$AM97,$AN97,0))) -> 0
B98: 332 | C98: 3321111 | D98: 9.LIMA | E98: NO | F98: NO | G98: AERONAVEGACIÓN/AEROPORTUARIO | H98: CONSTRUCCION MODULO PRE-FABRICADO VEST Y PLANOTECA ESPALDA DE COMI | I98: EDIFICIOS EN AEROPUERTOS-Administrativas | J98: DIRECTO | K98: Edificaciones y construcciones | L98: EDIFICACIONES Y CONSTRUCCIONES | P98: - | Q98: SI | R98: SI | S98: 1979-12-31 | T98: 1979-12-31 | U98: 1979-12-31 | X98: 149428.49 | AC98: 54782.45 | AD98: 94646.04 | AF98: 0 | AG98: 0 | AH98: 0 | AI98: 0 | AK98: EDIFICACIONES Y CONSTRUCCIONES | AL98: 0.5 | AM98: 0 | AN98: 47323.02 | AP98: =+IF($AM98<=0,0,IF(($AM98-SUM($AO98:AO98))<$AN98,$AM98-SUM($AO98:AO98),IF(SUM($AO98:AO98)<$AM98,$AN98,0))) -> 0 | AQ98: =+IF($AM98<=0,0,IF(($AM98-SUM($AO98:AP98))<$AN98,$AM98-SUM($AO98:AP98),IF(SUM($AO98:AP98)<$AM98,$AN98,0))) -> 0 | AR98: =+IF($AM98<=0,0,IF(($AM98-SUM($AO98:AQ98))<$AN98,$AM98-SUM($AO98:AQ98),IF(SUM($AO98:AQ98)<$AM98,$AN98,0))) -> 0 | AS98: =+IF($AM98<=0,0,IF(($AM98-SUM($AO98:AR98))<$AN98,$AM98-SUM($AO98:AR98),IF(SUM($AO98:AR98)<$AM98,$AN98,0))) -> 0
B99: 332 | C99: 3321111 | D99: 21.OTROS | E99: Otros | F99: SI | G99: AEROPORTUARIO | H99: NUEVO TERMINAL DE PASAJERO | I99: EDIFICIOS EN AEROPUERTOS-Administrativas | J99: DIRECTO | K99: Edificaciones y construcciones | L99: EDIFICACIONES Y CONSTRUCCIONES | P99: - | Q99: SI | R99: SI | S99: 1977-12-31 | T99: 1977-12-31 | U99: 1977-12-31 | X99: 82040.65 | AC99: 30112.3 | AD99: 3468.86 | AF99: 0 | AG99: 0 | AH99: 0 | AI99: 48459.49 | AK99: EDIFICACIONES Y CONSTRUCCIONES | AL99: 1 | AM99: 48459.49 | AN99: 3468.86 | AP99: =+IF($AM99<=0,0,IF(($AM99-SUM($AO99:AO99))<$AN99,$AM99-SUM($AO99:AO99),IF(SUM($AO99:AO99)<$AM99,$AN99,0))) -> 3468.86 | AQ99: =+IF($AM99<=0,0,IF(($AM99-SUM($AO99:AP99))<$AN99,$AM99-SUM($AO99:AP99),IF(SUM($AO99:AP99)<$AM99,$AN99,0))) -> 3468.86 | AR99: =+IF($AM99<=0,0,IF(($AM99-SUM($AO99:AQ99))<$AN99,$AM99-SUM($AO99:AQ99),IF(SUM($AO99:AQ99)<$AM99,$AN99,0))) -> 3468.86 | AS99: =+IF($AM99<=0,0,IF(($AM99-SUM($AO99:AR99))<$AN99,$AM99-SUM($AO99:AR99),IF(SUM($AO99:AR99)<$AM99,$AN99,0))) -> 3468.86
B100: 332 | C100: 3321111 | D100: 21.OTROS | E100: Otros | F100: SI | G100: AEROPORTUARIO | H100: NUEVO TERMINAL DE PASAJERO | I100: EDIFICIOS EN AEROPUERTOS-Administrativas | J100: DIRECTO | K100: Edificaciones y construcciones | L100: EDIFICACIONES Y CONSTRUCCIONES | P100: - | Q100: SI | R100: SI | S100: 1977-12-31 | T100: 1977-12-31 | U100: 1977-12-31 | X100: 59266.09 | AC100: 19767.26 | AD100: 2638.56 | AF100: 0 | AG100: 0 | AH100: 0 | AI100: 36860.27 | AK100: EDIFICACIONES Y CONSTRUCCIONES | AL100: 1 | AM100: 36860.27 | AN100: 2638.56 | AP100: =+IF($AM100<=0,0,IF(($AM100-SUM($AO100:AO100))<$AN100,$AM100-SUM($AO100:AO100),IF(SUM($AO100:AO100)<$AM100,$AN100,0))) -> 2638.56 | AQ100: =+IF($AM100<=0,0,IF(($AM100-SUM($AO100:AP100))<$AN100,$AM100-SUM($AO100:AP100),IF(SUM($AO100:AP100)<$AM100,$AN100,0))) -> 2638.56 | AR100: =+IF($AM100<=0,0,IF(($AM100-SUM($AO100:AQ100))<$AN100,$AM100-SUM($AO100:AQ100),IF(SUM($AO100:AQ100)<$AM100,$AN100,0))) -> 2638.56 | AS100: =+IF($AM100<=0,0,IF(($AM100-SUM($AO100:AR100))<$AN100,$AM100-SUM($AO100:AR100),IF(SUM($AO100:AR100)<$AM100,$AN100,0))) -> 2638.56
B101: 332 | C101: 3321111 | D101: 21.OTROS | E101: Otros | F101: SI | G101: AEROPORTUARIO | H101: NUEVO TERMINAL DE PASAJERO | I101: EDIFICIOS EN AEROPUERTOS-Administrativas | J101: DIRECTO | K101: Edificaciones y construcciones | L101: EDIFICACIONES Y CONSTRUCCIONES | P101: - | Q101: SI | R101: SI | S101: 1977-12-31 | T101: 1977-12-31 | U101: 1977-12-31 | X101: 80297.41 | AC101: 40992.11 | AD101: 2625.63 | AF101: 0 | AG101: 0 | AH101: 0 | AI101: 36679.67 | AK101: EDIFICACIONES Y CONSTRUCCIONES | AL101: 1 | AM101: 36679.67 | AN101: 2625.63 | AP101: =+IF($AM101<=0,0,IF(($AM101-SUM($AO101:AO101))<$AN101,$AM101-SUM($AO101:AO101),IF(SUM($AO101:AO101)<$AM101,$AN101,0))) -> 2625.63 | AQ101: =+IF($AM101<=0,0,IF(($AM101-SUM($AO101:AP101))<$AN101,$AM101-SUM($AO101:AP101),IF(SUM($AO101:AP101)<$AM101,$AN101,0))) -> 2625.63 | AR101: =+IF($AM101<=0,0,IF(($AM101-SUM($AO101:AQ101))<$AN101,$AM101-SUM($AO101:AQ101),IF(SUM($AO101:AQ101)<$AM101,$AN101,0))) -> 2625.63 | AS101: =+IF($AM101<=0,0,IF(($AM101-SUM($AO101:AR101))<$AN101,$AM101-SUM($AO101:AR101),IF(SUM($AO101:AR101)<$AM101,$AN101,0))) -> 2625.63
B102: 332 | C102: 3321111 | D102: 19.CUSCO | E102: Cusco | F102: SI | G102: AEROPORTUARIO | H102: NUEVO TERMINAL DE PASAJEROS ARPTO CUSCO | I102: EDIFICIOS EN AEROPUERTOS-Administrativas | J102: DIRECTO | K102: Edificaciones y construcciones | L102: EDIFICACIONES Y CONSTRUCCIONES | P102: - | Q102: SI | R102: SI | S102: 2000-05-18 | T102: 2000-05-18 | U102: 2000-05-18 | X102: 6158553.18 | AC102: 3184851.79 | AD102: 79586.52 | AF102: 0 | AG102: 0 | AH102: 0 | AI102: 2894114.87 | AK102: EDIFICACIONES Y CONSTRUCCIONES | AL102: 1 | AM102: 2894114.87 | AN102: 79586.52 | AP102: =+IF($AM102<=0,0,IF(($AM102-SUM($AO102:AO102))<$AN102,$AM102-SUM($AO102:AO102),IF(SUM($AO102:AO102)<$AM102,$AN102,0))) -> 79586.52 | AQ102: =+IF($AM102<=0,0,IF(($AM102-SUM($AO102:AP102))<$AN102,$AM102-SUM($AO102:AP102),IF(SUM($AO102:AP102)<$AM102,$AN102,0))) -> 79586.52 | AR102: =+IF($AM102<=0,0,IF(($AM102-SUM($AO102:AQ102))<$AN102,$AM102-SUM($AO102:AQ102),IF(SUM($AO102:AQ102)<$AM102,$AN102,0))) -> 79586.52 | AS102: =+IF($AM102<=0,0,IF(($AM102-SUM($AO102:AR102))<$AN102,$AM102-SUM($AO102:AR102),IF(SUM($AO102:AR102)<$AM102,$AN102,0))) -> 79586.52
B103: 332 | C103: 3321111 | D103: 19.CUSCO | E103: Cusco | F103: SI | G103: AEROPORTUARIO | H103: NUEVO TERMINAL DE PASAJEROS ARPTO CUSCO | I103: EDIFICIOS EN AEROPUERTOS-Administrativas | J103: DIRECTO | K103: Edificaciones y construcciones | L103: EDIFICACIONES Y CONSTRUCCIONES | P103: - | Q103: SI | R103: SI | S103: 2000-05-18 | T103: 2000-05-18 | U103: 2000-05-18 | X103: 197197.64 | AC103: 106171.34 | AD103: 2436.18 | AF103: 0 | AG103: 0 | AH103: 0 | AI103: 88590.12 | AK103: EDIFICACIONES Y CONSTRUCCIONES | AL103: 1 | AM103: 88590.12 | AN103: 2436.18 | AP103: =+IF($AM103<=0,0,IF(($AM103-SUM($AO103:AO103))<$AN103,$AM103-SUM($AO103:AO103),IF(SUM($AO103:AO103)<$AM103,$AN103,0))) -> 2436.18 | AQ103: =+IF($AM103<=0,0,IF(($AM103-SUM($AO103:AP103))<$AN103,$AM103-SUM($AO103:AP103),IF(SUM($AO103:AP103)<$AM103,$AN103,0))) -> 2436.18 | AR103: =+IF($AM103<=0,0,IF(($AM103-SUM($AO103:AQ103))<$AN103,$AM103-SUM($AO103:AQ103),IF(SUM($AO103:AQ103)<$AM103,$AN103,0))) -> 2436.18 | AS103: =+IF($AM103<=0,0,IF(($AM103-SUM($AO103:AR103))<$AN103,$AM103-SUM($AO103:AR103),IF(SUM($AO103:AR103)<$AM103,$AN103,0))) -> 2436.18
B104: 332 | C104: 3324111 | D104: 9.LIMA | E104: NO | F104: NO | G104: AERONAVEGACIÓN/AEROPORTUARIO | H104: SUMINISTRO E INSTALACION DE PISO VINILICO EN ARCHIVO CENTRAL DEL ARPTO J. CHAVEZ | I104: Instalaciones | J104: INDIRECTO | K104: Edificaciones y construcciones | L104: EDIFICACIONES Y CONSTRUCCIONES | P104: - | Q104: SI | R104: SI | S104: 2000-03-02 | T104: 2000-03-02 | U104: 2000-03-02 | X104: 20254.38 | AC104: -27600.01 | AD104: 672.54 | AF104: 0 | AG104: 0 | AH104: 0 | AI104: 47181.85 | AK104: EDIFICACIONES Y CONSTRUCCIONES | AL104: 0.5 | AM104: 23590.925 | AN104: 336.27 | AP104: =+IF($AM104<=0,0,IF(($AM104-SUM($AO104:AO104))<$AN104,$AM104-SUM($AO104:AO104),IF(SUM($AO104:AO104)<$AM104,$AN104,0))) -> 336.27 | AQ104: =+IF($AM104<=0,0,IF(($AM104-SUM($AO104:AP104))<$AN104,$AM104-SUM($AO104:AP104),IF(SUM($AO104:AP104)<$AM104,$AN104,0))) -> 336.27 | AR104: =+IF($AM104<=0,0,IF(($AM104-SUM($AO104:AQ104))<$AN104,$AM104-SUM($AO104:AQ104),IF(SUM($AO104:AQ104)<$AM104,$AN104,0))) -> 336.27 | AS104: =+IF($AM104<=0,0,IF(($AM104-SUM($AO104:AR104))<$AN104,$AM104-SUM($AO104:AR104),IF(SUM($AO104:AR104)<$AM104,$AN104,0))) -> 336.27
